Workbook

Sheet Simulação
D3: Simulador do Plano RS-Municípios CNPB nº 2020.0010-47
D5: O presente simulador apresenta uma estimativa com base nos dados informados livremente por esse signatário. Trata-se apenas de uma simulação, sem qualquer autenticação por parte da RS-Prev quanto à veracidade dos dados informados. Os resultados apresentados são calculados com base nos dados informados pelo signatário e por premissas do plano que podem não se concretizar ao longo do tempo da projeção, não caracterizando, assim, qualquer garantia ou obrigação por parte dessa Fundação.
D7: Os campos em azul claro devem ser preenchidos para simulação.
D9: DADOS DO PARTICIPANTE
D11: Sexo
D13: Idade de Entrada
D15: Idade Atual
D17: Idade na Saída
D19: Idade de Aposentadoria | F19: =Simulador!$C$10 -> 60
D21: Tipo de Participação
F24: Total | G24: De Participação
D26: Salário | G26: =IF(F26="","",Listas!B4) -> 
D29: DETALHAMENTO | E29: Coluna2 | F29: Coluna1
D31: Teto do RGPS 2024 | E31: 8157.41
E33: Em percentual (%) | F33: Em R$ 1,00
D35: Contribuição Básica | F35: =IF(E35<>"",Listas!B5,"") -> 
D37: Contribuição de Aposentadoria | E37: =IF(E35<>"",Listas!B6,"") ->  | F37: =IF(E35<>"",Listas!B7,"") -> 
D39: Contribuição Adicional | E39: =IF(E35<>"",Listas!B9,"") ->  | F39: =IF(E35<>"",Listas!B10,"") -> 
D41: Carregamento (6,5%) | E41: =IF(E35<>"",Listas!B11,"") ->  | F41: =IF(E35<>"",Listas!B12,"") -> 
E44: Em percentual (%) | F44: Em R$ 1,00 | G44: Frequência
D46: Contribuição Facultativa | F46: =IF(E46<>"",Listas!B13,"") -> 
D48: Contribuição de Aposentadoria | E48: =IF(E46<>"",Listas!B14,"") ->  | F48: =IF(E46<>"",Listas!B15,"") -> 
D50: Contribuição Adicional | E50: =IF(E46<>"",Listas!B9,"") ->  | F50: =IF(E46<>"",Listas!B10,"") -> 
D52: Carregamento (0,0%) | E52: =IF(E46<>"",Listas!B19,"") ->  | F52: =IF(E46<>"",Listas!B20,"") -> 
E54: Em percentual (%) | F54: Em R$ 1,00
D56: Contribuição Patrocinador | E56: =IF(E35="","",Simulador!C28) ->  | F56: =IF(E56<>"",Listas!B22,"") -> 
D58: Contribuição de Aposentadoria | E58: =IF(E56<>"",Listas!B23,"") ->  | F58: =IF(E56<>"",Listas!B24,"") -> 
D60: Contribuição Adicional | E60: =IF(E56<>"",Listas!B27,"") ->  | F60: =IF(E56<>"",Listas!B28,"") -> 
D62: Carregamento (6,5%) | E62: =IF(E56<>"",Listas!B29,"") ->  | F62: =IF(E56<>"",Listas!B30,"") -> 
D65: Taxa de Juros ao ano (%)
D67: Crescimento Salarial (%)
F69: Participante | G69: Patrocinador
D70: Incluir o valor da sua Reserva atual no Plano
D72: RESULTADOS | E72: Coluna2 | F72: Coluna1
B85: 0 | D85: AJUSTAR OS BENEFÍCIOS
D87: PRAZO DE RECEBIMENTO (ANOS)
D90: PERCENTUAL À VISTA (Participante)
D93: NÚMERO DE PRESTAÇÕES ANUAIS
D96: ACRESCENTAR APORTE INICIAL
D100: O presente simulador apresenta uma estimativa com base nos dados informados livremente por esse signatário. Trata-se apenas de uma simulação, sem qualquer autenticação por parte da RS-Prev quanto à veracidade dos dados informados. Os resultados apresentados são calculados com base nos dados informados pelo signatário e por premissas do plano que podem não se concretizar ao longo do tempo da projeção, não caracterizando, assim, qualquer garantia ou obrigação por parte dessa Fundação.

Sheet Listas (hidden)
D1: Contribuição Básica | E1: Longevidade
A2: RGB 40, 67, 122 | D2: 0.14 | E2: 0
D3: 0.135 | E3: 0.001
A4: Salário de Participação da F22 | B4: =Simulador!$D$16 -> Verificar Participação | D4: 0.13 | E4: 0.002
A5: Contribuição básica da E33 | B5: =Simulador!$D$18 -> 0 | D5: 0.125 | E5: 0.003
A6: Contribuição de aposentadoria D35 | B6: =Simulador!$C$19 -> 0 | D6: 0.12 | E6: 0.004
A7: Contribuição de aposentadoria E35 | B7: =IFERROR(Simulador!$D$19,"") ->  | D7: 0.115 | E7: 0.005
A8: Contribuição de longevidade E38 | B8: =Simulador!$D$20 -> 0 | D8: 0.11
A9: Contribuição ADICIONAL D39 | B9: - | D9: 0.105
A10: Contribuição adicional E39 | B10: - | D10: 0.1
A11: Carregamento D41 | B11: =Simulador!$C$22 -> 0 | D11: 0.095
A12: Carregamento E41 | B12: =Simulador!$D$22 ->  | D12: 0.09
A13: Contribuição facultativa E47 | B13: =Simulador!$D$23 -> 0 | D13: 0.085
A14: Contribuição Facult aposent % D49 | B14: =Simulador!$C$24 -> 0 | D14: 0.08
A15: Contribuição Facult aposent $ E49 | B15: =Simulador!$D$24 -> 0 | D15: 0.075
A16: Contribuição facult longev $ | B16: =Simulador!$D$25 -> 0 | D16: 0.07
A17: Contribuição facult ADICIONAL D53 | B17: - | D17: 0.065
A18: Contribuição facult adicional E53 | B18: - | D18: 0.06
A19: Contribuição facult carreg D55 | B19: 0 | D19: 0.055
A20: Contribuição facult carreg E55 | B20: 0 | D20: 0.05
A21: Contribuição Patrocinador D59 | B21: =Simulador!$C$28 -> 0 | D21: 0.045
A22: Contribuição Patrocinador E59 | B22: =Simulador!$D$28 -> 0
A23: Contribuição Patroc Aposent % D61 | B23: =Simulador!$C$29 -> 0
A24: Contribuição Patroc Aposent $ E61 | B24: =Simulador!$D$29 -> 
A25: Contribuição Patroc Longev % D63 | B25: =Simulador!$C$30 -> 0
A26: Contribuição Patroc Longev $ E63 | B26: =Simulador!$D$30 -> 0
A27: Contribuição Patroc adicinal % D65 | B27: -
A28: Contribuição Patroc adicinal $ E65 | B28: -
A29: Contribuição Patroc carreg D67 | B29: =Simulador!$C$32 -> 0
A30: Contribuição Patroc carreg E67 | B30: =Simulador!$D$32 -> 

Sheet Simulador (hidden)
B1: As informações contidas neste simulador são projeções hipotéticas, com base nas premissas indicadas e podem apresentar diferença com relação aos resultados reais.
B2: Favor consultar o Regulamento do Plano para mais detalhes dos itens apresentados, Regulamento este que prevalecerá em qualquer divergência verificada com este Simulador.
B3: Instruções: podem ser alterados apenas os campos em laranja, sendo que nos campos com lista automática de valores, o preenchimento deve ser feito selecionando um valor da lista.
B5: Dados do Participante | E5: Institutos - Informação
B6: Sexo | C6: =PROPER(Simulação!F11) ->  | E6: =IF(C9<C10,"Selecionar instituto","Não Aplicável") -> Selecionar instituto | F6: =IF(AND(E6="Não Aplicável",E7<>""),"Limpar campo abaixo.","") -> 
B7: Idade de Entrada | C7: =Simulação!F13 -> 0 | E7: =Simulação!K76 -> 0
B8: Idade Atual | C8: =Simulação!F15 -> 0 | E8: =IF(E7="Resgate","Valor = Saldo Part. + "&TEXT(VLOOKUP(C9-C7,'Tabela de Resgate'!$A$3:$C$11,3,TRUE),"0%")&"*Patroc.",IF(E7="Portabilidade","Valor a Ser Portado","")) ->  | F8: =IF(E7="Resgate",D37+D39+(D38+D40)*VLOOKUP(C9-C7,'Tabela de Resgate'!$A$3:$C$11,3,TRUE),IF(E7="Portabilidade",SUM(D37:D40),"")) -> 
B9: Idade na Saída | C9: =Simulação!F17 -> 0 | E9: A opção por Instituto é aplicável quando não contemplar condições de aposentadoria na saída.
B10: Idade de Aposentadoria | C10: =MAX(C7+5,IF(C6="Masculino",65,60),C9) -> 60 | E10: =IFERROR(VLOOKUP(E7,'Tabela de Resgate'!$B$15:$C$18,2,0),"") -> 
B11: Tipo de Participação | C11: =PROPER(Simulação!F21) -> 
H12: Valor Último Ano | I12: =ROUND(INDEX(H16:J62,MATCH(LARGE(I16:I62,1),I16:I62,0),2),2) -> 0 | J12: =ROUND(INDEX(H16:J62,MATCH(LARGE(I16:I62,1),I16:I62,0),3),2) -> 0 | M12: =ROUND(INDEX(L16:N62,MATCH(LARGE(M16:M62,1),M16:M62,0),2),2) -> 0 | N12: =ROUND(INDEX(L16:N62,MATCH(LARGE(M16:M62,1),M16:M62,0),3),2) -> 0
B13: Saldo, Juros, Salário e Contribuições
B14: Teto do RGPS | C14: =Simulação!E31 -> 8157.41 | H14: Valor do Benefício Programado | L14: Valor do Benefício de Longevidade
C15: Total | D15: de Participação | E15: Digitado | H15: Tipo do Benefício | I15: Cotas Constantes | J15: Cotas Decrescentes | L15: Tipo do Benefício | M15: Cotas Constantes | N15: Cotas Decrescentes
B16: Salário | C16: =Simulação!F26 -> 0 | D16: =IF(C11="","Verificar Participação",IF(C11="Patrocinado",MAX(C16-C14,0),IF(E16="",C16,E16))) -> Verificar Participação | G16: 1 | H16: Valor Inicial | I16: =IFERROR(VLOOKUP($G16,'Ev. Benefícios'!$A$5:$E$499,2,0),0) -> 0 | J16: =IFERROR(VLOOKUP($G16,'Ev. Benefícios'!$A$5:$E$499,4,0),0) -> 0 | L16: Valor Inicial | M16: =IFERROR(VLOOKUP($G16,'Ev. Benefícios'!$O$5:$S$499,2,0),0) -> 0 | N16: =IFERROR(VLOOKUP($G16,'Ev. Benefícios'!$O$5:$S$499,4,0),0) -> 0
C17: Percentual | D17: em R$1,00 | G17: =G16+12 -> 13 | H17: Valor 2º ano | I17: =IFERROR(VLOOKUP($G17,'Ev. Benefícios'!$A$5:$E$499,2,0),0) -> 0 | J17: =IFERROR(VLOOKUP($G17,'Ev. Benefícios'!$A$5:$E$499,4,0),0) -> 0 | L17: Valor 2º ano | M17: =IFERROR(VLOOKUP($G17,'Ev. Benefícios'!$O$5:$S$499,2,0),0) -> 0 | N17: =IFERROR(VLOOKUP($G17,'Ev. Benefícios'!$O$5:$S$499,4,0),0) -> 0
B18: Contribuição Básica | C18: =Simulação!E35 -> 0 | D18: =IFERROR(C18*D$16,0) -> 0 | G18: =G17+12 -> 25 | H18: Valor 3º ano | I18: =IFERROR(VLOOKUP($G18,'Ev. Benefícios'!$A$5:$E$499,2,0),0) -> 0 | J18: =IFERROR(VLOOKUP($G18,'Ev. Benefícios'!$A$5:$E$499,4,0),0) -> 0 | L18: Valor 3º ano | M18: =IFERROR(VLOOKUP($G18,'Ev. Benefícios'!$O$5:$S$499,2,0),0) -> 0 | N18: =IFERROR(VLOOKUP($G18,'Ev. Benefícios'!$O$5:$S$499,4,0),0) -> 0
B19: Contr. Aposentadoria | C19: =C18-(C20+C22) -> 0 | D19: =D18-(D20+D22) ->  | G19: =G18+12 -> 37 | H19: Valor 4º ano | I19: =IFERROR(VLOOKUP($G19,'Ev. Benefícios'!$A$5:$E$499,2,0),0) -> 0 | J19: =IFERROR(VLOOKUP($G19,'Ev. Benefícios'!$A$5:$E$499,4,0),0) -> 0 | L19: Valor 4º ano | M19: =IFERROR(VLOOKUP($G19,'Ev. Benefícios'!$O$5:$S$499,2,0),0) -> 0 | N19: =IFERROR(VLOOKUP($G19,'Ev. Benefícios'!$O$5:$S$499,4,0),0) -> 0
B20: Contr. Longevidade | C20: 0 | D20: =IFERROR(IF(C20>C18,"Verificar Contr. Básica",C20*D$16),0) -> 0 | E20: Contratação de Seguro indisponível no momento. | G20: =G19+12 -> 49 | H20: Valor 5º ano | I20: =IFERROR(VLOOKUP($G20,'Ev. Benefícios'!$A$5:$E$499,2,0),0) -> 0 | J20: =IFERROR(VLOOKUP($G20,'Ev. Benefícios'!$A$5:$E$499,4,0),0) -> 0 | L20: Valor 5º ano | M20: =IFERROR(VLOOKUP($G20,'Ev. Benefícios'!$O$5:$S$499,2,0),0) -> 0 | N20: =IFERROR(VLOOKUP($G20,'Ev. Benefícios'!$O$5:$S$499,4,0),0) -> 0
B21: Contr. Adicional | C21: - | D21: - | E21: Contratação de Seguro indisponível no momento. | G21: 61 | H21: Valor 6º ano | I21: =IFERROR(VLOOKUP($G21,'Ev. Benefícios'!$A$5:$E$499,2,0),0) -> 0 | J21: =IFERROR(VLOOKUP($G21,'Ev. Benefícios'!$A$5:$E$499,4,0),0) -> 0 | L21: Valor 6º ano | M21: =IFERROR(VLOOKUP($G21,'Ev. Benefícios'!$O$5:$S$499,2,0),0) -> 0 | N21: =IFERROR(VLOOKUP($G21,'Ev. Benefícios'!$O$5:$S$499,4,0),0) -> 0
B22: Carregamento (6,5%) | C22: =C18*6.5% -> 0 | D22: =C22*(D16) ->  | G22: 73 | H22: Valor 7º ano | I22: =IFERROR(VLOOKUP($G22,'Ev. Benefícios'!$A$5:$E$499,2,0),0) -> 0 | J22: =IFERROR(VLOOKUP($G22,'Ev. Benefícios'!$A$5:$E$499,4,0),0) -> 0 | L22: Valor 7º ano | M22: =IFERROR(VLOOKUP($G22,'Ev. Benefícios'!$O$5:$S$499,2,0),0) -> 0 | N22: =IFERROR(VLOOKUP($G22,'Ev. Benefícios'!$O$5:$S$499,4,0),0) -> 0
B23: Contribuição Facultativa | C23: =Simulação!E46 -> 0 | D23: =IFERROR(C23*D$16,0) -> 0 | E23: =Simulação!G46 -> 0 | G23: 85 | H23: Valor 8º ano | I23: =IFERROR(VLOOKUP($G23,'Ev. Benefícios'!$A$5:$E$499,2,0),0) -> 0 | J23: =IFERROR(VLOOKUP($G23,'Ev. Benefícios'!$A$5:$E$499,4,0),0) -> 0 | L23: Valor 8º ano | M23: =IFERROR(VLOOKUP($G23,'Ev. Benefícios'!$O$5:$S$499,2,0),0) -> 0 | N23: =IFERROR(VLOOKUP($G23,'Ev. Benefícios'!$O$5:$S$499,4,0),0) -> 0
B24: Contr. Aposentadoria | C24: =C23-(C25+C27) -> 0 | D24: =D23-(D25+D27) -> 0 | G24: 97 | H24: Valor 9º ano | I24: =IFERROR(VLOOKUP($G24,'Ev. Benefícios'!$A$5:$E$499,2,0),0) -> 0 | J24: =IFERROR(VLOOKUP($G24,'Ev. Benefícios'!$A$5:$E$499,4,0),0) -> 0 | L24: Valor 9º ano | M24: =IFERROR(VLOOKUP($G24,'Ev. Benefícios'!$O$5:$S$499,2,0),0) -> 0 | N24: =IFERROR(VLOOKUP($G24,'Ev. Benefícios'!$O$5:$S$499,4,0),0) -> 0
B25: Contr. Longevidade | C25: 0 | D25: =IFERROR(IF(C25>C23,"Verificar Contr. Facult.",C25*D$16),0) -> 0 | E25: Contratação de Seguro indisponível no momento. | G25: 109 | H25: Valor 10º ano | I25: =IFERROR(VLOOKUP($G25,'Ev. Benefícios'!$A$5:$E$499,2,0),0) -> 0 | J25: =IFERROR(VLOOKUP($G25,'Ev. Benefícios'!$A$5:$E$499,4,0),0) -> 0 | L25: Valor 10º ano | M25: =IFERROR(VLOOKUP($G25,'Ev. Benefícios'!$O$5:$S$499,2,0),0) -> 0 | N25: =IFERROR(VLOOKUP($G25,'Ev. Benefícios'!$O$5:$S$499,4,0),0) -> 0
B26: Contr. Adicional | C26: - | D26: - | E26: Contratação de Seguro indisponível no momento. | G26: 121 | H26: Valor 11º ano | I26: =IFERROR(VLOOKUP($G26,'Ev. Benefícios'!$A$5:$E$499,2,0),0) -> 0 | J26: =IFERROR(VLOOKUP($G26,'Ev. Benefícios'!$A$5:$E$499,4,0),0) -> 0 | L26: Valor 11º ano | M26: =IFERROR(VLOOKUP($G26,'Ev. Benefícios'!$O$5:$S$499,2,0),0) -> 0 | N26: =IFERROR(VLOOKUP($G26,'Ev. Benefícios'!$O$5:$S$499,4,0),0) -> 0
B27: Carregamento (6,5%) | C27: 0 | D27: 0 | G27: 133 | H27: Valor 12º ano | I27: =IFERROR(VLOOKUP($G27,'Ev. Benefícios'!$A$5:$E$499,2,0),0) -> 0 | J27: =IFERROR(VLOOKUP($G27,'Ev. Benefícios'!$A$5:$E$499,4,0),0) -> 0 | L27: Valor 12º ano | M27: =IFERROR(VLOOKUP($G27,'Ev. Benefícios'!$O$5:$S$499,2,0),0) -> 0 | N27: =IFERROR(VLOOKUP($G27,'Ev. Benefícios'!$O$5:$S$499,4,0),0) -> 0
B28: Contribuição Patrocinador | C28: =IF($C$11="Patrocinado",C18,0) -> 0 | D28: =IFERROR(C28*D$16,0) -> 0 | E28: =IF(E7="Autopatrocínio","Em caso de Autopatrocínio, o Participante deverá cobrir as contribuições de Patrocinador.","") ->  | G28: 145 | H28: Valor 13º ano | I28: =IFERROR(VLOOKUP($G28,'Ev. Benefícios'!$A$5:$E$499,2,0),0) -> 0 | J28: =IFERROR(VLOOKUP($G28,'Ev. Benefícios'!$A$5:$E$499,4,0),0) -> 0 | L28: Valor 13º ano | M28: =IFERROR(VLOOKUP($G28,'Ev. Benefícios'!$O$5:$S$499,2,0),0) -> 0 | N28: =IFERROR(VLOOKUP($G28,'Ev. Benefícios'!$O$5:$S$499,4,0),0) -> 0
B29: Contr. Aposentadoria | C29: =C28-(C30+C32) -> 0 | D29: =D28-(D30+D32) ->  | G29: 157 | H29: Valor 14º ano | I29: =IFERROR(VLOOKUP($G29,'Ev. Benefícios'!$A$5:$E$499,2,0),0) -> 0 | J29: =IFERROR(VLOOKUP($G29,'Ev. Benefícios'!$A$5:$E$499,4,0),0) -> 0 | L29: Valor 14º ano | M29: =IFERROR(VLOOKUP($G29,'Ev. Benefícios'!$O$5:$S$499,2,0),0) -> 0 | N29: =IFERROR(VLOOKUP($G29,'Ev. Benefícios'!$O$5:$S$499,4,0),0) -> 0
B30: Contr. Longevidade | C30: =IF($C$11="Patrocinado",C20,0) -> 0 | D30: =IFERROR(IF(C30>C28,"Verificar Contr. Básica",C30*D$16),0) -> 0 | E30: Contratação de Seguro indisponível no momento. | G30: 169 | H30: Valor 15º ano | I30: =IFERROR(VLOOKUP($G30,'Ev. Benefícios'!$A$5:$E$499,2,0),0) -> 0 | J30: =IFERROR(VLOOKUP($G30,'Ev. Benefícios'!$A$5:$E$499,4,0),0) -> 0 | L30: Valor 15º ano | M30: =IFERROR(VLOOKUP($G30,'Ev. Benefícios'!$O$5:$S$499,2,0),0) -> 0 | N30: =IFERROR(VLOOKUP($G30,'Ev. Benefícios'!$O$5:$S$499,4,0),0) -> 0
B31: Contr. Adicional | C31: - | D31: - | E31: Contratação de Seguro indisponível no momento. | G31: 181 | H31: Valor 16º ano | I31: =IFERROR(VLOOKUP($G31,'Ev. Benefícios'!$A$5:$E$499,2,0),0) -> 0 | J31: =IFERROR(VLOOKUP($G31,'Ev. Benefícios'!$A$5:$E$499,4,0),0) -> 0 | L31: Valor 16º ano | M31: =IFERROR(VLOOKUP($G31,'Ev. Benefícios'!$O$5:$S$499,2,0),0) -> 0 | N31: =IFERROR(VLOOKUP($G31,'Ev. Benefícios'!$O$5:$S$499,4,0),0) -> 0
B32: Carregamento (6,5%) | C32: =C28*6.5% -> 0 | D32: =C32*(D16) ->  | G32: 193 | H32: Valor 17º ano | I32: =IFERROR(VLOOKUP($G32,'Ev. Benefícios'!$A$5:$E$499,2,0),0) -> 0 | J32: =IFERROR(VLOOKUP($G32,'Ev. Benefícios'!$A$5:$E$499,4,0),0) -> 0 | L32: Valor 17º ano | M32: =IFERROR(VLOOKUP($G32,'Ev. Benefícios'!$O$5:$S$499,2,0),0) -> 0 | N32: =IFERROR(VLOOKUP($G32,'Ev. Benefícios'!$O$5:$S$499,4,0),0) -> 0
C33: Anual | D33: Mensal | G33: 205 | H33: Valor 18º ano | I33: =IFERROR(VLOOKUP($G33,'Ev. Benefícios'!$A$5:$E$499,2,0),0) -> 0 | J33: =IFERROR(VLOOKUP($G33,'Ev. Benefícios'!$A$5:$E$499,4,0),0) -> 0 | L33: Valor 18º ano | M33: =IFERROR(VLOOKUP($G33,'Ev. Benefícios'!$O$5:$S$499,2,0),0) -> 0 | N33: =IFERROR(VLOOKUP($G33,'Ev. Benefícios'!$O$5:$S$499,4,0),0) -> 0
B34: Taxa de Juros a.a. | C34: =Simulação!F65 -> 0 | D34: =(C34+1)^(1/12)-1 -> 0 | G34: 217 | H34: Valor 19º ano | I34: =IFERROR(VLOOKUP($G34,'Ev. Benefícios'!$A$5:$E$499,2,0),0) -> 0 | J34: =IFERROR(VLOOKUP($G34,'Ev. Benefícios'!$A$5:$E$499,4,0),0) -> 0 | L34: Valor 19º ano | M34: =IFERROR(VLOOKUP($G34,'Ev. Benefícios'!$O$5:$S$499,2,0),0) -> 0 | N34: =IFERROR(VLOOKUP($G34,'Ev. Benefícios'!$O$5:$S$499,4,0),0) -> 0
B35: Crescimento Salarial a.a. | C35: =Simulação!F67 -> 0 | D35: =(C35+1)^(1/12)-1 -> 0 | G35: 229 | H35: Valor 20º ano | I35: =IFERROR(VLOOKUP($G35,'Ev. Benefícios'!$A$5:$E$499,2,0),0) -> 0 | J35: =IFERROR(VLOOKUP($G35,'Ev. Benefícios'!$A$5:$E$499,4,0),0) -> 0 | L35: Valor 20º ano | M35: =IFERROR(VLOOKUP($G35,'Ev. Benefícios'!$O$5:$S$499,2,0),0) -> 0 | N35: =IFERROR(VLOOKUP($G35,'Ev. Benefícios'!$O$5:$S$499,4,0),0) -> 0
C36: Atual | D36: Final | G36: 241 | H36: Valor 21º ano | I36: =IFERROR(VLOOKUP($G36,'Ev. Benefícios'!$A$5:$E$499,2,0),0) -> 0 | J36: =IFERROR(VLOOKUP($G36,'Ev. Benefícios'!$A$5:$E$499,4,0),0) -> 0 | L36: Valor 21º ano | M36: =IFERROR(VLOOKUP($G36,'Ev. Benefícios'!$O$5:$S$499,2,0),0) -> 0 | N36: =IFERROR(VLOOKUP($G36,'Ev. Benefícios'!$O$5:$S$499,4,0),0) -> 0
B37: Saldo Aposent. (Part.) | C37: =Simulação!D97+C61 -> 0 | D37: =VLOOKUP(MAX('Ev. Contribuições'!$Y$5:$Y$997),'Ev. Contribuições'!$Y$5:$AA$997,2,0) -> 0 | E37: ="Aos "&IF(AND($C$9<$C$10,OR($E$7="Resgate",$E$7="Portabilidade")),$C$9,$C$10)&" anos" -> Aos 60 anos | F37: =D37+D38 -> 0 | G37: 253 | H37: Valor 22º ano | I37: =IFERROR(VLOOKUP($G37,'Ev. Benefícios'!$A$5:$E$499,2,0),0) -> 0 | J37: =IFERROR(VLOOKUP($G37,'Ev. Benefícios'!$A$5:$E$499,4,0),0) -> 0 | L37: Valor 22º ano | M37: =IFERROR(VLOOKUP($G37,'Ev. Benefícios'!$O$5:$S$499,2,0),0) -> 0 | N37: =IFERROR(VLOOKUP($G37,'Ev. Benefícios'!$O$5:$S$499,4,0),0) -> 0
B38: Saldo Aposent. (Patroc.) | C38: =C62 -> 0 | D38: =VLOOKUP(MAX('Ev. Contribuições'!$Y$5:$Y$997),'Ev. Contribuições'!$Y$5:$AA$997,3,0) -> 0 | G38: 265 | H38: Valor 23º ano | I38: =IFERROR(VLOOKUP($G38,'Ev. Benefícios'!$A$5:$E$499,2,0),0) -> 0 | J38: =IFERROR(VLOOKUP($G38,'Ev. Benefícios'!$A$5:$E$499,4,0),0) -> 0 | L38: Valor 23º ano | M38: =IFERROR(VLOOKUP($G38,'Ev. Benefícios'!$O$5:$S$499,2,0),0) -> 0 | N38: =IFERROR(VLOOKUP($G38,'Ev. Benefícios'!$O$5:$S$499,4,0),0) -> 0
B39: Saldo Longev. (Part.) | C39: 0 | D39: =VLOOKUP(MAX('Ev. Contribuições'!$AB$5:$AB$997),'Ev. Contribuições'!$AB$5:$AD$997,2,0) -> 0 | E39: ="Aos "&IF(AND($C$9<$C$10,OR($E$7="Resgate",$E$7="Portabilidade")),$C$9,$C$50)&" anos" -> Aos 60 anos | F39: =D39+D40 -> 0 | G39: 277 | H39: Valor 24º ano | I39: =IFERROR(VLOOKUP($G39,'Ev. Benefícios'!$A$5:$E$499,2,0),0) -> 0 | J39: =IFERROR(VLOOKUP($G39,'Ev. Benefícios'!$A$5:$E$499,4,0),0) -> 0 | L39: Valor 24º ano | M39: =IFERROR(VLOOKUP($G39,'Ev. Benefícios'!$O$5:$S$499,2,0),0) -> 0 | N39: =IFERROR(VLOOKUP($G39,'Ev. Benefícios'!$O$5:$S$499,4,0),0) -> 0
B40: Saldo Longev. (Patroc.) | C40: 0 | D40: =VLOOKUP(MAX('Ev. Contribuições'!$AB$5:$AB$997),'Ev. Contribuições'!$AB$5:$AD$997,3,0) -> 0 | G40: 289 | H40: Valor 25º ano | I40: =IFERROR(VLOOKUP($G40,'Ev. Benefícios'!$A$5:$E$499,2,0),0) -> 0 | J40: =IFERROR(VLOOKUP($G40,'Ev. Benefícios'!$A$5:$E$499,4,0),0) -> 0 | L40: Valor 25º ano | M40: =IFERROR(VLOOKUP($G40,'Ev. Benefícios'!$O$5:$S$499,2,0),0) -> 0 | N40: =IFERROR(VLOOKUP($G40,'Ev. Benefícios'!$O$5:$S$499,4,0),0) -> 0
G41: 301 | H41: Valor 26º ano | I41: =IFERROR(VLOOKUP($G41,'Ev. Benefícios'!$A$5:$E$499,2,0),0) -> 0 | J41: =IFERROR(VLOOKUP($G41,'Ev. Benefícios'!$A$5:$E$499,4,0),0) -> 0 | L41: Valor 26º ano | M41: =IFERROR(VLOOKUP($G41,'Ev. Benefícios'!$O$5:$S$499,2,0),0) -> 0 | N41: =IFERROR(VLOOKUP($G41,'Ev. Benefícios'!$O$5:$S$499,4,0),0) -> 0
B42: Dados do Benefício Programado | G42: 313 | H42: Valor 27º ano | I42: =IFERROR(VLOOKUP($G42,'Ev. Benefícios'!$A$5:$E$499,2,0),0) -> 0 | J42: =IFERROR(VLOOKUP($G42,'Ev. Benefícios'!$A$5:$E$499,4,0),0) -> 0 | L42: Valor 27º ano | M42: =IFERROR(VLOOKUP($G42,'Ev. Benefícios'!$O$5:$S$499,2,0),0) -> 0 | N42: =IFERROR(VLOOKUP($G42,'Ev. Benefícios'!$O$5:$S$499,4,0),0) -> 0
B43: Opção Pag. à Vista | C43: =Simulação!D91 -> 0 | D43: =D37*C43 -> 0 | G43: 325 | H43: Valor 28º ano | I43: =IFERROR(VLOOKUP($G43,'Ev. Benefícios'!$A$5:$E$499,2,0),0) -> 0 | J43: =IFERROR(VLOOKUP($G43,'Ev. Benefícios'!$A$5:$E$499,4,0),0) -> 0 | L43: Valor 28º ano | M43: =IFERROR(VLOOKUP($G43,'Ev. Benefícios'!$O$5:$S$499,2,0),0) -> 0 | N43: =IFERROR(VLOOKUP($G43,'Ev. Benefícios'!$O$5:$S$499,4,0),0) -> 0
B44: Tipo do Benefício | C44: Cotas Constantes | D44: Cotas Decrescentes | G44: 337 | H44: Valor 29º ano | I44: =IFERROR(VLOOKUP($G44,'Ev. Benefícios'!$A$5:$E$499,2,0),0) -> 0 | J44: =IFERROR(VLOOKUP($G44,'Ev. Benefícios'!$A$5:$E$499,4,0),0) -> 0 | L44: Valor 29º ano | M44: =IFERROR(VLOOKUP($G44,'Ev. Benefícios'!$O$5:$S$499,2,0),0) -> 0 | N44: =IFERROR(VLOOKUP($G44,'Ev. Benefícios'!$O$5:$S$499,4,0),0) -> 0
B45: Expectativa de Vida | C45: =VLOOKUP(C10,'Tábua BR-EMS sb. 2015'!$B$4:$D$122,IF(C6="Masculino",2,3),0)*12 -> 348 | D45: =C45 -> 348 | E45: =D45/12 -> 29 | G45: 349 | H45: Valor 30º ano | I45: =IFERROR(VLOOKUP($G45,'Ev. Benefícios'!$A$5:$E$499,2,0),0) -> 0 | J45: =IFERROR(VLOOKUP($G45,'Ev. Benefícios'!$A$5:$E$499,4,0),0) -> 0 | L45: Valor 30º ano | M45: =IFERROR(VLOOKUP($G45,'Ev. Benefícios'!$O$5:$S$499,2,0),0) -> 0 | N45: =IFERROR(VLOOKUP($G45,'Ev. Benefícios'!$O$5:$S$499,4,0),0) -> 0
B46: Prazo do Benefício | C46: =Simulação!D88*12 -> 0 | D46: =C46 -> 0 | E46: =D46/12 -> 0 | G46: 361 | H46: Valor 31º ano | I46: =IFERROR(VLOOKUP($G46,'Ev. Benefícios'!$A$5:$E$499,2,0),0) -> 0 | J46: =IFERROR(VLOOKUP($G46,'Ev. Benefícios'!$A$5:$E$499,4,0),0) -> 0 | L46: Valor 31º ano | M46: =IFERROR(VLOOKUP($G46,'Ev. Benefícios'!$O$5:$S$499,2,0),0) -> 0 | N46: =IFERROR(VLOOKUP($G46,'Ev. Benefícios'!$O$5:$S$499,4,0),0) -> 0
B47: Prestações Anuais | C47: =Simulação!D94 -> 0 | G47: 373 | H47: Valor 32º ano | I47: =IFERROR(VLOOKUP($G47,'Ev. Benefícios'!$A$5:$E$499,2,0),0) -> 0 | J47: =IFERROR(VLOOKUP($G47,'Ev. Benefícios'!$A$5:$E$499,4,0),0) -> 0 | L47: Valor 32º ano | M47: =IFERROR(VLOOKUP($G47,'Ev. Benefícios'!$O$5:$S$499,2,0),0) -> 0 | N47: =IFERROR(VLOOKUP($G47,'Ev. Benefícios'!$O$5:$S$499,4,0),0) -> 0
G48: 385 | H48: Valor 33º ano | I48: =IFERROR(VLOOKUP($G48,'Ev. Benefícios'!$A$5:$E$499,2,0),0) -> 0 | J48: =IFERROR(VLOOKUP($G48,'Ev. Benefícios'!$A$5:$E$499,4,0),0) -> 0 | L48: Valor 33º ano | M48: =IFERROR(VLOOKUP($G48,'Ev. Benefícios'!$O$5:$S$499,2,0),0) -> 0 | N48: =IFERROR(VLOOKUP($G48,'Ev. Benefícios'!$O$5:$S$499,4,0),0) -> 0
B49: Dados do Benefício de Longevidade | G49: 397 | H49: Valor 34º ano | I49: =IFERROR(VLOOKUP($G49,'Ev. Benefícios'!$A$5:$E$499,2,0),0) -> 0 | J49: =IFERROR(VLOOKUP($G49,'Ev. Benefícios'!$A$5:$E$499,4,0),0) -> 0 | L49: Valor 34º ano | M49: =IFERROR(VLOOKUP($G49,'Ev. Benefícios'!$O$5:$S$499,2,0),0) -> 0 | N49: =IFERROR(VLOOKUP($G49,'Ev. Benefícios'!$O$5:$S$499,4,0),0) -> 0
B50: Idade de Início | C50: =C10+MIN(INT(C45/12),INT(C46/12)) -> 60 | D50: =C50 -> 60 | G50: 409 | H50: Valor 35º ano | I50: =IFERROR(VLOOKUP($G50,'Ev. Benefícios'!$A$5:$E$499,2,0),0) -> 0 | J50: =IFERROR(VLOOKUP($G50,'Ev. Benefícios'!$A$5:$E$499,4,0),0) -> 0 | L50: Valor 35º ano | M50: =IFERROR(VLOOKUP($G50,'Ev. Benefícios'!$O$5:$S$499,2,0),0) -> 0 | N50: =IFERROR(VLOOKUP($G50,'Ev. Benefícios'!$O$5:$S$499,4,0),0) -> 0
B51: Tipo do Benefício | C51: Cotas Constantes | D51: Cotas Decrescentes | G51: 421 | H51: Valor 36º ano | I51: =IFERROR(VLOOKUP($G51,'Ev. Benefícios'!$A$5:$E$499,2,0),0) -> 0 | J51: =IFERROR(VLOOKUP($G51,'Ev. Benefícios'!$A$5:$E$499,4,0),0) -> 0 | L51: Valor 36º ano | M51: =IFERROR(VLOOKUP($G51,'Ev. Benefícios'!$O$5:$S$499,2,0),0) -> 0 | N51: =IFERROR(VLOOKUP($G51,'Ev. Benefícios'!$O$5:$S$499,4,0),0) -> 0
B52: Expectativa de Vida | C52: =VLOOKUP(C50,'Tábua BR-EMS sb. 2015'!$B$4:$D$122,IF(C6="Masculino",2,3),0)*12 -> 348 | D52: =C52 -> 348 | G52: 433 | H52: Valor 37º ano | I52: =IFERROR(VLOOKUP($G52,'Ev. Benefícios'!$A$5:$E$499,2,0),0) -> 0 | J52: =IFERROR(VLOOKUP($G52,'Ev. Benefícios'!$A$5:$E$499,4,0),0) -> 0 | L52: Valor 37º ano | M52: =IFERROR(VLOOKUP($G52,'Ev. Benefícios'!$O$5:$S$499,2,0),0) -> 0 | N52: =IFERROR(VLOOKUP($G52,'Ev. Benefícios'!$O$5:$S$499,4,0),0) -> 0
B53: Prazo do Benefício | C53: 96 | D53: =C53 -> 96 | G53: 445 | H53: Valor 38º ano | I53: =IFERROR(VLOOKUP($G53,'Ev. Benefícios'!$A$5:$E$499,2,0),0) -> 0 | J53: =IFERROR(VLOOKUP($G53,'Ev. Benefícios'!$A$5:$E$499,4,0),0) -> 0 | L53: Valor 38º ano | M53: =IFERROR(VLOOKUP($G53,'Ev. Benefícios'!$O$5:$S$499,2,0),0) -> 0 | N53: =IFERROR(VLOOKUP($G53,'Ev. Benefícios'!$O$5:$S$499,4,0),0) -> 0
B54: Prestações Anuais | C54: 12 | G54: 457 | H54: Valor 39º ano | I54: =IFERROR(VLOOKUP($G54,'Ev. Benefícios'!$A$5:$E$499,2,0),0) -> 0 | J54: =IFERROR(VLOOKUP($G54,'Ev. Benefícios'!$A$5:$E$499,4,0),0) -> 0 | L54: Valor 39º ano | M54: =IFERROR(VLOOKUP($G54,'Ev. Benefícios'!$O$5:$S$499,2,0),0) -> 0 | N54: =IFERROR(VLOOKUP($G54,'Ev. Benefícios'!$O$5:$S$499,4,0),0) -> 0
G55: 469 | H55: Valor 40º ano | I55: =IFERROR(VLOOKUP($G55,'Ev. Benefícios'!$A$5:$E$499,2,0),0) -> 0 | J55: =IFERROR(VLOOKUP($G55,'Ev. Benefícios'!$A$5:$E$499,4,0),0) -> 0 | L55: Valor 40º ano | M55: =IFERROR(VLOOKUP($G55,'Ev. Benefícios'!$O$5:$S$499,2,0),0) -> 0 | N55: =IFERROR(VLOOKUP($G55,'Ev. Benefícios'!$O$5:$S$499,4,0),0) -> 0
G56: 481 | H56: Valor 41º ano | I56: =IFERROR(VLOOKUP($G56,'Ev. Benefícios'!$A$5:$E$499,2,0),0) -> 0 | J56: =IFERROR(VLOOKUP($G56,'Ev. Benefícios'!$A$5:$E$499,4,0),0) -> 0 | L56: Valor 41º ano | M56: =IFERROR(VLOOKUP($G56,'Ev. Benefícios'!$O$5:$S$499,2,0),0) -> 0 | N56: =IFERROR(VLOOKUP($G56,'Ev. Benefícios'!$O$5:$S$499,4,0),0) -> 0
G57: 493 | H57: Valor 42º ano | I57: =IFERROR(VLOOKUP($G57,'Ev. Benefícios'!$A$5:$E$499,2,0),0) -> 0 | J57: =IFERROR(VLOOKUP($G57,'Ev. Benefícios'!$A$5:$E$499,4,0),0) -> 0 | L57: Valor 42º ano | M57: =IFERROR(VLOOKUP($G57,'Ev. Benefícios'!$O$5:$S$499,2,0),0) -> 0 | N57: =IFERROR(VLOOKUP($G57,'Ev. Benefícios'!$O$5:$S$499,4,0),0) -> 0
G58: 505 | H58: Valor 43º ano | I58: =IFERROR(VLOOKUP($G58,'Ev. Benefícios'!$A$5:$E$499,2,0),0) -> 0 | J58: =IFERROR(VLOOKUP($G58,'Ev. Benefícios'!$A$5:$E$499,4,0),0) -> 0 | L58: Valor 43º ano | M58: =IFERROR(VLOOKUP($G58,'Ev. Benefícios'!$O$5:$S$499,2,0),0) -> 0 | N58: =IFERROR(VLOOKUP($G58,'Ev. Benefícios'!$O$5:$S$499,4,0),0) -> 0
G59: 517 | H59: Valor 44º ano | I59: =IFERROR(VLOOKUP($G59,'Ev. Benefícios'!$A$5:$E$499,2,0),0) -> 0 | J59: =IFERROR(VLOOKUP($G59,'Ev. Benefícios'!$A$5:$E$499,4,0),0) -> 0 | L59: Valor 44º ano | M59: =IFERROR(VLOOKUP($G59,'Ev. Benefícios'!$O$5:$S$499,2,0),0) -> 0 | N59: =IFERROR(VLOOKUP($G59,'Ev. Benefícios'!$O$5:$S$499,4,0),0) -> 0
B60: Reserva Atual | G60: 529 | H60: Valor 45º ano | I60: =IFERROR(VLOOKUP($G60,'Ev. Benefícios'!$A$5:$E$499,2,0),0) -> 0 | J60: =IFERROR(VLOOKUP($G60,'Ev. Benefícios'!$A$5:$E$499,4,0),0) -> 0 | L60: Valor 45º ano | M60: =IFERROR(VLOOKUP($G60,'Ev. Benefícios'!$O$5:$S$499,2,0),0) -> 0 | N60: =IFERROR(VLOOKUP($G60,'Ev. Benefícios'!$O$5:$S$499,4,0),0) -> 0
B61: Participante | C61: =Simulação!F70 -> 0 | G61: 541 | H61: Valor 46º ano | I61: =IFERROR(VLOOKUP($G61,'Ev. Benefícios'!$A$5:$E$499,2,0),0) -> 0 | J61: =IFERROR(VLOOKUP($G61,'Ev. Benefícios'!$A$5:$E$499,4,0),0) -> 0
B62: Patrocinador | C62: =Simulação!G70 -> 0 | G62: 553 | H62: Valor 47º ano | I62: =IFERROR(VLOOKUP($G62,'Ev. Benefícios'!$A$5:$E$499,2,0),0) -> 0 | J62: =IFERROR(VLOOKUP($G62,'Ev. Benefícios'!$A$5:$E$499,4,0),0) -> 0
G63: 565 | H63: Valor 48º ano | I63: =IFERROR(VLOOKUP($G63,'Ev. Benefícios'!$A$5:$E$499,2,0),0) -> 0 | J63: =IFERROR(VLOOKUP($G63,'Ev. Benefícios'!$A$5:$E$499,4,0),0) -> 0

Sheet Ev. Contribuições (hidden)
B1: Evolução dos Salários em R$ | E1: Evolução da Contribuição Básica em R$ | L1: Evolução da Contribuição Facultativa em R$ | S1: Evolução da Contribuição do Patrocinador em R$ | Z1: Evolução dos Saldos em R$
A2: Mês | B2: Salário | E2: Contribuição Básica | L2: Contribuição Facultativa | S2: Contribuição do Patrocinador | Y2: Mês Aposent. | Z2: Saldo Aposentadoria | AB2: Mês Longev. | AC2: Saldo Longevidade
E3: Aposentadoria | F3: Longevidade | G3: Adicional | H3: Carregamento | I3: Total | J3: Controlador | L3: Aposentadoria | M3: Longevidade | N3: Adicional | O3: Carregamento | P3: Total | Q3: Controlador | S3: Aposentadoria | T3: Longevidade | U3: Adicional | V3: Carregamento | W3: Total
B4: Total | C4: de Participação | E4: =I4-SUM(F4:H4) -> 0 | F4: =Simulador!$C$20 -> 0 | G4: 0 | H4: =Simulador!$C$22 -> 0 | I4: =Simulador!$C$18 -> 0 | J4: Grat. Natalina | L4: =P4-SUM(M4:O4) -> 0 | M4: =Simulador!C25 -> 0 | N4: 0 | O4: =Simulador!$C$27 -> 0 | P4: =Simulador!C23 -> 0 | Q4: =Simulador!E23 -> 0 | S4: =W4-SUM(T4:V4) -> 0 | T4: =Simulador!$C$30 -> 0 | U4: 0 | V4: =Simulador!$C$32 -> 0 | W4: =Simulador!$C$28 -> 0 | Z4: Participante | AA4: Patrocinador | AC4: Participante | AD4: Patrocinador
A5: 1 | B5: =IF(A5=0,0,Simulador!C16) -> 0 | C5: =MAX(IF(A5=0,0,B5-IF(Simulador!$C$11="Individual",0,Simulador!$C$14)),0) -> 0 | E5: =E$4*$C5*(1+$J5) -> 0 | F5: 0 | G5: 0 | H5: 0 | I5: 0 | J5: =IF($A5=0,0,IF(INT($A5/12)-$A5/12=0,1,0)) -> 0 | L5: =L$4*$C5*$Q5 -> 0 | M5: 0 | N5: 0 | O5: 0 | P5: 0 | Q5: =IF($A5=0,0,IF($Q$4="Mensal",1,IF($Q$4="Semestral",IF(INT(($A5+5)/6)-($A5+5)/6=0,1,0),IF($Q$4="Anual",IF(INT(($A5+11)/12)-($A5+11)/12=0,1,0))))) -> FALSE | S5: =S$4*$C5*(1+$J5) -> 0 | T5: 0 | U5: 0 | V5: 0 | W5: 0 | Y5: 1 | Z5: =Simulador!$C$37+E5+L5 -> 0 | AA5: =Simulador!$C$38+S5 -> 0 | AB5: 1 | AC5: =Simulador!$C$39+F5+M5 -> 0 | AD5: =Simulador!$C$40+T5 -> 0
A6: =IF(OR(A5+1>(IF(Simulador!$E$7="Autopatrocínio",Simulador!$C$10,Simulador!$C$9)-Simulador!$C$8)*12,A5=0),0,A5+1) -> 0 | B6: =IF($A6=0,0,IF(INT($A5/12)-$A5/12=0,B5*(1+Simulador!$C$35),B5)) -> 0 | C6: =MAX(IF(A6=0,0,B6-IF(Simulador!$C$11="Individual",0,Simulador!$C$14)),0) -> 0 | E6: 0 | F6: 0 | G6: 0 | H6: 0 | I6: 0 | J6: 0 | L6: 0 | M6: 0 | N6: 0 | O6: 0 | P6: 0 | Q6: 0 | S6: 0 | T6: 0 | U6: 0 | V6: 0 | W6: 0 | Y6: =IF(OR(Y5+1>(IF(AND(Simulador!$C$9<Simulador!$C$10,OR(Simulador!$E$7="Resgate",Simulador!$E$7="Portabilidade")),Simulador!$C$9,Simulador!$C$10)-Simulador!$C$8)*12,Y5=0),0,Y5+1) -> 2 | Z6: =IF($Y6=0,0,Z5*(1+Simulador!$D$34)+E6+L6) -> 0 | AA6: =IF($Y6=0,0,AA5*(1+Simulador!$D$34)+S6) -> 0 | AB6: =IF(OR(AB5+1>(IF(AND(Simulador!$C$9<Simulador!$C$10,OR(Simulador!$E$7="Resgate",Simulador!$E$7="Portabilidade")),Simulador!$C$9,Simulador!$C$50)-Simulador!$C$8)*12,AB5=0),0,AB5+1) -> 2 | AC6: =IF($AB6=0,0,AC5*(1+Simulador!$D$34)+F6+M6) -> 0 | AD6: =IF($AB6=0,0,AD5*(1+Simulador!$D$34)+T6) -> 0
A7: =IF(OR(A6+1>(IF(Simulador!$E$7="Autopatrocínio",Simulador!$C$10,Simulador!$C$9)-Simulador!$C$8)*12,A6=0),0,A6+1) -> 0 | B7: =IF($A7=0,0,IF(INT($A6/12)-$A6/12=0,B6*(1+Simulador!$C$35),B6)) -> 0 | C7: =MAX(IF(A7=0,0,B7-IF(Simulador!$C$11="Individual",0,Simulador!$C$14)),0) -> 0 | E7: 0 | F7: 0 | G7: 0 | H7: 0 | I7: 0 | J7: 0 | L7: 0 | M7: 0 | N7: 0 | O7: 0 | P7: 0 | Q7: 0 | S7: 0 | T7: 0 | U7: 0 | V7: 0 | W7: 0 | Y7: =IF(OR(Y6+1>(IF(AND(Simulador!$C$9<Simulador!$C$10,OR(Simulador!$E$7="Resgate",Simulador!$E$7="Portabilidade")),Simulador!$C$9,Simulador!$C$10)-Simulador!$C$8)*12,Y6=0),0,Y6+1) -> 3 | Z7: =IF($Y7=0,0,Z6*(1+Simulador!$D$34)+E7+L7) -> 0 | AA7: =IF($Y7=0,0,AA6*(1+Simulador!$D$34)+S7) -> 0 | AB7: =IF(OR(AB6+1>(IF(AND(Simulador!$C$9<Simulador!$C$10,OR(Simulador!$E$7="Resgate",Simulador!$E$7="Portabilidade")),Simulador!$C$9,Simulador!$C$50)-Simulador!$C$8)*12,AB6=0),0,AB6+1) -> 3 | AC7: =IF($AB7=0,0,AC6*(1+Simulador!$D$34)+F7+M7) -> 0 | AD7: =IF($AB7=0,0,AD6*(1+Simulador!$D$34)+T7) -> 0
A8: =IF(OR(A7+1>(IF(Simulador!$E$7="Autopatrocínio",Simulador!$C$10,Simulador!$C$9)-Simulador!$C$8)*12,A7=0),0,A7+1) -> 0 | B8: =IF($A8=0,0,IF(INT($A7/12)-$A7/12=0,B7*(1+Simulador!$C$35),B7)) -> 0 | C8: =MAX(IF(A8=0,0,B8-IF(Simulador!$C$11="Individual",0,Simulador!$C$14)),0) -> 0 | E8: 0 | F8: 0 | G8: 0 | H8: 0 | I8: 0 | J8: 0 | L8: 0 | M8: 0 | N8: 0 | O8: 0 | P8: 0 | Q8: 0 | S8: 0 | T8: 0 | U8: 0 | V8: 0 | W8: 0 | Y8: =IF(OR(Y7+1>(IF(AND(Simulador!$C$9<Simulador!$C$10,OR(Simulador!$E$7="Resgate",Simulador!$E$7="Portabilidade")),Simulador!$C$9,Simulador!$C$10)-Simulador!$C$8)*12,Y7=0),0,Y7+1) -> 4 | Z8: =IF($Y8=0,0,Z7*(1+Simulador!$D$34)+E8+L8) -> 0 | AA8: =IF($Y8=0,0,AA7*(1+Simulador!$D$34)+S8) -> 0 | AB8: =IF(OR(AB7+1>(IF(AND(Simulador!$C$9<Simulador!$C$10,OR(Simulador!$E$7="Resgate",Simulador!$E$7="Portabilidade")),Simulador!$C$9,Simulador!$C$50)-Simulador!$C$8)*12,AB7=0),0,AB7+1) -> 4 | AC8: =IF($AB8=0,0,AC7*(1+Simulador!$D$34)+F8+M8) -> 0 | AD8: =IF($AB8=0,0,AD7*(1+Simulador!$D$34)+T8) -> 0
A9: =IF(OR(A8+1>(IF(Simulador!$E$7="Autopatrocínio",Simulador!$C$10,Simulador!$C$9)-Simulador!$C$8)*12,A8=0),0,A8+1) -> 0 | B9: =IF($A9=0,0,IF(INT($A8/12)-$A8/12=0,B8*(1+Simulador!$C$35),B8)) -> 0 | C9: =MAX(IF(A9=0,0,B9-IF(Simulador!$C$11="Individual",0,Simulador!$C$14)),0) -> 0 | E9: 0 | F9: 0 | G9: 0 | H9: 0 | I9: 0 | J9: 0 | L9: 0 | M9: 0 | N9: 0 | O9: 0 | P9: 0 | Q9: 0 | S9: 0 | T9: 0 | U9: 0 | V9: 0 | W9: 0 | Y9: =IF(OR(Y8+1>(IF(AND(Simulador!$C$9<Simulador!$C$10,OR(Simulador!$E$7="Resgate",Simulador!$E$7="Portabilidade")),Simulador!$C$9,Simulador!$C$10)-Simulador!$C$8)*12,Y8=0),0,Y8+1) -> 5 | Z9: =IF($Y9=0,0,Z8*(1+Simulador!$D$34)+E9+L9) -> 0 | AA9: =IF($Y9=0,0,AA8*(1+Simulador!$D$34)+S9) -> 0 | AB9: =IF(OR(AB8+1>(IF(AND(Simulador!$C$9<Simulador!$C$10,OR(Simulador!$E$7="Resgate",Simulador!$E$7="Portabilidade")),Simulador!$C$9,Simulador!$C$50)-Simulador!$C$8)*12,AB8=0),0,AB8+1) -> 5 | AC9: =IF($AB9=0,0,AC8*(1+Simulador!$D$34)+F9+M9) -> 0 | AD9: =IF($AB9=0,0,AD8*(1+Simulador!$D$34)+T9) -> 0
A10: =IF(OR(A9+1>(IF(Simulador!$E$7="Autopatrocínio",Simulador!$C$10,Simulador!$C$9)-Simulador!$C$8)*12,A9=0),0,A9+1) -> 0 | B10: =IF($A10=0,0,IF(INT($A9/12)-$A9/12=0,B9*(1+Simulador!$C$35),B9)) -> 0 | C10: =MAX(IF(A10=0,0,B10-IF(Simulador!$C$11="Individual",0,Simulador!$C$14)),0) -> 0 | E10: 0 | F10: 0 | G10: 0 | H10: 0 | I10: 0 | J10: 0 | L10: 0 | M10: 0 | N10: 0 | O10: 0 | P10: 0 | Q10: 0 | S10: 0 | T10: 0 | U10: 0 | V10: 0 | W10: 0 | Y10: =IF(OR(Y9+1>(IF(AND(Simulador!$C$9<Simulador!$C$10,OR(Simulador!$E$7="Resgate",Simulador!$E$7="Portabilidade")),Simulador!$C$9,Simulador!$C$10)-Simulador!$C$8)*12,Y9=0),0,Y9+1) -> 6 | Z10: =IF($Y10=0,0,Z9*(1+Simulador!$D$34)+E10+L10) -> 0 | AA10: =IF($Y10=0,0,AA9*(1+Simulador!$D$34)+S10) -> 0 | AB10: =IF(OR(AB9+1>(IF(AND(Simulador!$C$9<Simulador!$C$10,OR(Simulador!$E$7="Resgate",Simulador!$E$7="Portabilidade")),Simulador!$C$9,Simulador!$C$50)-Simulador!$C$8)*12,AB9=0),0,AB9+1) -> 6 | AC10: =IF($AB10=0,0,AC9*(1+Simulador!$D$34)+F10+M10) -> 0 | AD10: =IF($AB10=0,0,AD9*(1+Simulador!$D$34)+T10) -> 0
A11: =IF(OR(A10+1>(IF(Simulador!$E$7="Autopatrocínio",Simulador!$C$10,Simulador!$C$9)-Simulador!$C$8)*12,A10=0),0,A10+1) -> 0 | B11: =IF($A11=0,0,IF(INT($A10/12)-$A10/12=0,B10*(1+Simulador!$C$35),B10)) -> 0 | C11: =MAX(IF(A11=0,0,B11-IF(Simulador!$C$11="Individual",0,Simulador!$C$14)),0) -> 0 | E11: 0 | F11: 0 | G11: 0 | H11: 0 | I11: 0 | J11: 0 | L11: 0 | M11: 0 | N11: 0 | O11: 0 | P11: 0 | Q11: 0 | S11: 0 | T11: 0 | U11: 0 | V11: 0 | W11: 0 | Y11: =IF(OR(Y10+1>(IF(AND(Simulador!$C$9<Simulador!$C$10,OR(Simulador!$E$7="Resgate",Simulador!$E$7="Portabilidade")),Simulador!$C$9,Simulador!$C$10)-Simulador!$C$8)*12,Y10=0),0,Y10+1) -> 7 | Z11: =IF($Y11=0,0,Z10*(1+Simulador!$D$34)+E11+L11) -> 0 | AA11: =IF($Y11=0,0,AA10*(1+Simulador!$D$34)+S11) -> 0 | AB11: =IF(OR(AB10+1>(IF(AND(Simulador!$C$9<Simulador!$C$10,OR(Simulador!$E$7="Resgate",Simulador!$E$7="Portabilidade")),Simulador!$C$9,Simulador!$C$50)-Simulador!$C$8)*12,AB10=0),0,AB10+1) -> 7 | AC11: =IF($AB11=0,0,AC10*(1+Simulador!$D$34)+F11+M11) -> 0 | AD11: =IF($AB11=0,0,AD10*(1+Simulador!$D$34)+T11) -> 0
A12: =IF(OR(A11+1>(IF(Simulador!$E$7="Autopatrocínio",Simulador!$C$10,Simulador!$C$9)-Simulador!$C$8)*12,A11=0),0,A11+1) -> 0 | B12: =IF($A12=0,0,IF(INT($A11/12)-$A11/12=0,B11*(1+Simulador!$C$35),B11)) -> 0 | C12: =MAX(IF(A12=0,0,B12-IF(Simulador!$C$11="Individual",0,Simulador!$C$14)),0) -> 0 | E12: 0 | F12: 0 | G12: 0 | H12: 0 | I12: 0 | J12: 0 | L12: 0 | M12: 0 | N12: 0 | O12: 0 | P12: 0 | Q12: 0 | S12: 0 | T12: 0 | U12: 0 | V12: 0 | W12: 0 | Y12: =IF(OR(Y11+1>(IF(AND(Simulador!$C$9<Simulador!$C$10,OR(Simulador!$E$7="Resgate",Simulador!$E$7="Portabilidade")),Simulador!$C$9,Simulador!$C$10)-Simulador!$C$8)*12,Y11=0),0,Y11+1) -> 8 | Z12: =IF($Y12=0,0,Z11*(1+Simulador!$D$34)+E12+L12) -> 0 | AA12: =IF($Y12=0,0,AA11*(1+Simulador!$D$34)+S12) -> 0 | AB12: =IF(OR(AB11+1>(IF(AND(Simulador!$C$9<Simulador!$C$10,OR(Simulador!$E$7="Resgate",Simulador!$E$7="Portabilidade")),Simulador!$C$9,Simulador!$C$50)-Simulador!$C$8)*12,AB11=0),0,AB11+1) -> 8 | AC12: =IF($AB12=0,0,AC11*(1+Simulador!$D$34)+F12+M12) -> 0 | AD12: =IF($AB12=0,0,AD11*(1+Simulador!$D$34)+T12) -> 0
A13: =IF(OR(A12+1>(IF(Simulador!$E$7="Autopatrocínio",Simulador!$C$10,Simulador!$C$9)-Simulador!$C$8)*12,A12=0),0,A12+1) -> 0 | B13: =IF($A13=0,0,IF(INT($A12/12)-$A12/12=0,B12*(1+Simulador!$C$35),B12)) -> 0 | C13: =MAX(IF(A13=0,0,B13-IF(Simulador!$C$11="Individual",0,Simulador!$C$14)),0) -> 0 | E13: 0 | F13: 0 | G13: 0 | H13: 0 | I13: 0 | J13: 0 | L13: 0 | M13: 0 | N13: 0 | O13: 0 | P13: 0 | Q13: 0 | S13: 0 | T13: 0 | U13: 0 | V13: 0 | W13: 0 | Y13: =IF(OR(Y12+1>(IF(AND(Simulador!$C$9<Simulador!$C$10,OR(Simulador!$E$7="Resgate",Simulador!$E$7="Portabilidade")),Simulador!$C$9,Simulador!$C$10)-Simulador!$C$8)*12,Y12=0),0,Y12+1) -> 9 | Z13: =IF($Y13=0,0,Z12*(1+Simulador!$D$34)+E13+L13) -> 0 | AA13: =IF($Y13=0,0,AA12*(1+Simulador!$D$34)+S13) -> 0 | AB13: =IF(OR(AB12+1>(IF(AND(Simulador!$C$9<Simulador!$C$10,OR(Simulador!$E$7="Resgate",Simulador!$E$7="Portabilidade")),Simulador!$C$9,Simulador!$C$50)-Simulador!$C$8)*12,AB12=0),0,AB12+1) -> 9 | AC13: =IF($AB13=0,0,AC12*(1+Simulador!$D$34)+F13+M13) -> 0 | AD13: =IF($AB13=0,0,AD12*(1+Simulador!$D$34)+T13) -> 0
A14: =IF(OR(A13+1>(IF(Simulador!$E$7="Autopatrocínio",Simulador!$C$10,Simulador!$C$9)-Simulador!$C$8)*12,A13=0),0,A13+1) -> 0 | B14: =IF($A14=0,0,IF(INT($A13/12)-$A13/12=0,B13*(1+Simulador!$C$35),B13)) -> 0 | C14: =MAX(IF(A14=0,0,B14-IF(Simulador!$C$11="Individual",0,Simulador!$C$14)),0) -> 0 | E14: 0 | F14: 0 | G14: 0 | H14: 0 | I14: 0 | J14: 0 | L14: 0 | M14: 0 | N14: 0 | O14: 0 | P14: 0 | Q14: 0 | S14: 0 | T14: 0 | U14: 0 | V14: 0 | W14: 0 | Y14: =IF(OR(Y13+1>(IF(AND(Simulador!$C$9<Simulador!$C$10,OR(Simulador!$E$7="Resgate",Simulador!$E$7="Portabilidade")),Simulador!$C$9,Simulador!$C$10)-Simulador!$C$8)*12,Y13=0),0,Y13+1) -> 10 | Z14: =IF($Y14=0,0,Z13*(1+Simulador!$D$34)+E14+L14) -> 0 | AA14: =IF($Y14=0,0,AA13*(1+Simulador!$D$34)+S14) -> 0 | AB14: =IF(OR(AB13+1>(IF(AND(Simulador!$C$9<Simulador!$C$10,OR(Simulador!$E$7="Resgate",Simulador!$E$7="Portabilidade")),Simulador!$C$9,Simulador!$C$50)-Simulador!$C$8)*12,AB13=0),0,AB13+1) -> 10 | AC14: =IF($AB14=0,0,AC13*(1+Simulador!$D$34)+F14+M14) -> 0 | AD14: =IF($AB14=0,0,AD13*(1+Simulador!$D$34)+T14) -> 0
A15: =IF(OR(A14+1>(IF(Simulador!$E$7="Autopatrocínio",Simulador!$C$10,Simulador!$C$9)-Simulador!$C$8)*12,A14=0),0,A14+1) -> 0 | B15: =IF($A15=0,0,IF(INT($A14/12)-$A14/12=0,B14*(1+Simulador!$C$35),B14)) -> 0 | C15: =MAX(IF(A15=0,0,B15-IF(Simulador!$C$11="Individual",0,Simulador!$C$14)),0) -> 0 | E15: =E$4*$C15*(1+$J15) -> 0 | F15: 0 | G15: 0 | H15: 0 | I15: 0 | J15: 0 | L15: =L$4*$C15*$Q15 -> 0 | M15: 0 | N15: 0 | O15: 0 | P15: 0 | Q15: 0 | S15: 0 | T15: 0 | U15: 0 | V15: 0 | W15: 0 | Y15: =IF(OR(Y14+1>(IF(AND(Simulador!$C$9<Simulador!$C$10,OR(Simulador!$E$7="Resgate",Simulador!$E$7="Portabilidade")),Simulador!$C$9,Simulador!$C$10)-Simulador!$C$8)*12,Y14=0),0,Y14+1) -> 11 | Z15: =IF($Y15=0,0,Z14*(1+Simulador!$D$34)+E15+L15) -> 0 | AA15: =IF($Y15=0,0,AA14*(1+Simulador!$D$34)+S15) -> 0 | AB15: =IF(OR(AB14+1>(IF(AND(Simulador!$C$9<Simulador!$C$10,OR(Simulador!$E$7="Resgate",Simulador!$E$7="Portabilidade")),Simulador!$C$9,Simulador!$C$50)-Simulador!$C$8)*12,AB14=0),0,AB14+1) -> 11 | AC15: =IF($AB15=0,0,AC14*(1+Simulador!$D$34)+F15+M15) -> 0 | AD15: =IF($AB15=0,0,AD14*(1+Simulador!$D$34)+T15) -> 0
A16: =IF(OR(A15+1>(IF(Simulador!$E$7="Autopatrocínio",Simulador!$C$10,Simulador!$C$9)-Simulador!$C$8)*12,A15=0),0,A15+1) -> 0 | B16: =IF($A16=0,0,IF(INT($A15/12)-$A15/12=0,B15*(1+Simulador!$C$35),B15)) -> 0 | C16: =MAX(IF(A16=0,0,B16-IF(Simulador!$C$11="Individual",0,Simulador!$C$14)),0) -> 0 | E16: 0 | F16: 0 | G16: 0 | H16: 0 | I16: 0 | J16: 0 | L16: 0 | M16: 0 | N16: 0 | O16: 0 | P16: 0 | Q16: 0 | S16: 0 | T16: 0 | U16: 0 | V16: 0 | W16: 0 | Y16: =IF(OR(Y15+1>(IF(AND(Simulador!$C$9<Simulador!$C$10,OR(Simulador!$E$7="Resgate",Simulador!$E$7="Portabilidade")),Simulador!$C$9,Simulador!$C$10)-Simulador!$C$8)*12,Y15=0),0,Y15+1) -> 12 | Z16: =IF($Y16=0,0,Z15*(1+Simulador!$D$34)+E16+L16) -> 0 | AA16: =IF($Y16=0,0,AA15*(1+Simulador!$D$34)+S16) -> 0 | AB16: =IF(OR(AB15+1>(IF(AND(Simulador!$C$9<Simulador!$C$10,OR(Simulador!$E$7="Resgate",Simulador!$E$7="Portabilidade")),Simulador!$C$9,Simulador!$C$50)-Simulador!$C$8)*12,AB15=0),0,AB15+1) -> 12 | AC16: =IF($AB16=0,0,AC15*(1+Simulador!$D$34)+F16+M16) -> 0 | AD16: =IF($AB16=0,0,AD15*(1+Simulador!$D$34)+T16) -> 0
A17: =IF(OR(A16+1>(IF(Simulador!$E$7="Autopatrocínio",Simulador!$C$10,Simulador!$C$9)-Simulador!$C$8)*12,A16=0),0,A16+1) -> 0 | B17: =IF($A17=0,0,IF(INT($A16/12)-$A16/12=0,B16*(1+Simulador!$C$35),B16)) -> 0 | C17: =MAX(IF(A17=0,0,B17-IF(Simulador!$C$11="Individual",0,Simulador!$C$14)),0) -> 0 | E17: 0 | F17: 0 | G17: 0 | H17: 0 | I17: 0 | J17: 0 | L17: 0 | M17: 0 | N17: 0 | O17: 0 | P17: 0 | Q17: 0 | S17: 0 | T17: 0 | U17: 0 | V17: 0 | W17: 0 | Y17: =IF(OR(Y16+1>(IF(AND(Simulador!$C$9<Simulador!$C$10,OR(Simulador!$E$7="Resgate",Simulador!$E$7="Portabilidade")),Simulador!$C$9,Simulador!$C$10)-Simulador!$C$8)*12,Y16=0),0,Y16+1) -> 13 | Z17: =IF($Y17=0,0,Z16*(1+Simulador!$D$34)+E17+L17) -> 0 | AA17: =IF($Y17=0,0,AA16*(1+Simulador!$D$34)+S17) -> 0 | AB17: =IF(OR(AB16+1>(IF(AND(Simulador!$C$9<Simulador!$C$10,OR(Simulador!$E$7="Resgate",Simulador!$E$7="Portabilidade")),Simulador!$C$9,Simulador!$C$50)-Simulador!$C$8)*12,AB16=0),0,AB16+1) -> 13 | AC17: =IF($AB17=0,0,AC16*(1+Simulador!$D$34)+F17+M17) -> 0 | AD17: =IF($AB17=0,0,AD16*(1+Simulador!$D$34)+T17) -> 0
A18: =IF(OR(A17+1>(IF(Simulador!$E$7="Autopatrocínio",Simulador!$C$10,Simulador!$C$9)-Simulador!$C$8)*12,A17=0),0,A17+1) -> 0 | B18: =IF($A18=0,0,IF(INT($A17/12)-$A17/12=0,B17*(1+Simulador!$C$35),B17)) -> 0 | C18: =MAX(IF(A18=0,0,B18-IF(Simulador!$C$11="Individual",0,Simulador!$C$14)),0) -> 0 | E18: 0 | F18: 0 | G18: 0 | H18: 0 | I18: 0 | J18: 0 | L18: 0 | M18: 0 | N18: 0 | O18: 0 | P18: 0 | Q18: 0 | S18: 0 | T18: 0 | U18: 0 | V18: 0 | W18: 0 | Y18: =IF(OR(Y17+1>(IF(AND(Simulador!$C$9<Simulador!$C$10,OR(Simulador!$E$7="Resgate",Simulador!$E$7="Portabilidade")),Simulador!$C$9,Simulador!$C$10)-Simulador!$C$8)*12,Y17=0),0,Y17+1) -> 14 | Z18: =IF($Y18=0,0,Z17*(1+Simulador!$D$34)+E18+L18) -> 0 | AA18: =IF($Y18=0,0,AA17*(1+Simulador!$D$34)+S18) -> 0 | AB18: =IF(OR(AB17+1>(IF(AND(Simulador!$C$9<Simulador!$C$10,OR(Simulador!$E$7="Resgate",Simulador!$E$7="Portabilidade")),Simulador!$C$9,Simulador!$C$50)-Simulador!$C$8)*12,AB17=0),0,AB17+1) -> 14 | AC18: =IF($AB18=0,0,AC17*(1+Simulador!$D$34)+F18+M18) -> 0 | AD18: =IF($AB18=0,0,AD17*(1+Simulador!$D$34)+T18) -> 0
A19: =IF(OR(A18+1>(IF(Simulador!$E$7="Autopatrocínio",Simulador!$C$10,Simulador!$C$9)-Simulador!$C$8)*12,A18=0),0,A18+1) -> 0 | B19: =IF($A19=0,0,IF(INT($A18/12)-$A18/12=0,B18*(1+Simulador!$C$35),B18)) -> 0 | C19: =MAX(IF(A19=0,0,B19-IF(Simulador!$C$11="Individual",0,Simulador!$C$14)),0) -> 0 | E19: 0 | F19: 0 | G19: 0 | H19: 0 | I19: 0 | J19: 0 | L19: 0 | M19: 0 | N19: 0 | O19: 0 | P19: 0 | Q19: 0 | S19: 0 | T19: 0 | U19: 0 | V19: 0 | W19: 0 | Y19: =IF(OR(Y18+1>(IF(AND(Simulador!$C$9<Simulador!$C$10,OR(Simulador!$E$7="Resgate",Simulador!$E$7="Portabilidade")),Simulador!$C$9,Simulador!$C$10)-Simulador!$C$8)*12,Y18=0),0,Y18+1) -> 15 | Z19: =IF($Y19=0,0,Z18*(1+Simulador!$D$34)+E19+L19) -> 0 | AA19: =IF($Y19=0,0,AA18*(1+Simulador!$D$34)+S19) -> 0 | AB19: =IF(OR(AB18+1>(IF(AND(Simulador!$C$9<Simulador!$C$10,OR(Simulador!$E$7="Resgate",Simulador!$E$7="Portabilidade")),Simulador!$C$9,Simulador!$C$50)-Simulador!$C$8)*12,AB18=0),0,AB18+1) -> 15 | AC19: =IF($AB19=0,0,AC18*(1+Simulador!$D$34)+F19+M19) -> 0 | AD19: =IF($AB19=0,0,AD18*(1+Simulador!$D$34)+T19) -> 0
A20: =IF(OR(A19+1>(IF(Simulador!$E$7="Autopatrocínio",Simulador!$C$10,Simulador!$C$9)-Simulador!$C$8)*12,A19=0),0,A19+1) -> 0 | B20: =IF($A20=0,0,IF(INT($A19/12)-$A19/12=0,B19*(1+Simulador!$C$35),B19)) -> 0 | C20: =MAX(IF(A20=0,0,B20-IF(Simulador!$C$11="Individual",0,Simulador!$C$14)),0) -> 0 | E20: 0 | F20: 0 | G20: 0 | H20: 0 | I20: 0 | J20: 0 | L20: 0 | M20: 0 | N20: 0 | O20: 0 | P20: 0 | Q20: 0 | S20: 0 | T20: 0 | U20: 0 | V20: 0 | W20: 0 | Y20: =IF(OR(Y19+1>(IF(AND(Simulador!$C$9<Simulador!$C$10,OR(Simulador!$E$7="Resgate",Simulador!$E$7="Portabilidade")),Simulador!$C$9,Simulador!$C$10)-Simulador!$C$8)*12,Y19=0),0,Y19+1) -> 16 | Z20: =IF($Y20=0,0,Z19*(1+Simulador!$D$34)+E20+L20) -> 0 | AA20: =IF($Y20=0,0,AA19*(1+Simulador!$D$34)+S20) -> 0 | AB20: =IF(OR(AB19+1>(IF(AND(Simulador!$C$9<Simulador!$C$10,OR(Simulador!$E$7="Resgate",Simulador!$E$7="Portabilidade")),Simulador!$C$9,Simulador!$C$50)-Simulador!$C$8)*12,AB19=0),0,AB19+1) -> 16 | AC20: =IF($AB20=0,0,AC19*(1+Simulador!$D$34)+F20+M20) -> 0 | AD20: =IF($AB20=0,0,AD19*(1+Simulador!$D$34)+T20) -> 0
A21: =IF(OR(A20+1>(IF(Simulador!$E$7="Autopatrocínio",Simulador!$C$10,Simulador!$C$9)-Simulador!$C$8)*12,A20=0),0,A20+1) -> 0 | B21: =IF($A21=0,0,IF(INT($A20/12)-$A20/12=0,B20*(1+Simulador!$C$35),B20)) -> 0 | C21: =MAX(IF(A21=0,0,B21-IF(Simulador!$C$11="Individual",0,Simulador!$C$14)),0) -> 0 | E21: 0 | F21: 0 | G21: 0 | H21: 0 | I21: 0 | J21: 0 | L21: 0 | M21: 0 | N21: 0 | O21: 0 | P21: 0 | Q21: 0 | S21: =S$4*$C21*(1+$J21) -> 0 | T21: 0 | U21: 0 | V21: 0 | W21: 0 | Y21: =IF(OR(Y20+1>(IF(AND(Simulador!$C$9<Simulador!$C$10,OR(Simulador!$E$7="Resgate",Simulador!$E$7="Portabilidade")),Simulador!$C$9,Simulador!$C$10)-Simulador!$C$8)*12,Y20=0),0,Y20+1) -> 17 | Z21: =IF($Y21=0,0,Z20*(1+Simulador!$D$34)+E21+L21) -> 0 | AA21: =IF($Y21=0,0,AA20*(1+Simulador!$D$34)+S21) -> 0 | AB21: =IF(OR(AB20+1>(IF(AND(Simulador!$C$9<Simulador!$C$10,OR(Simulador!$E$7="Resgate",Simulador!$E$7="Portabilidade")),Simulador!$C$9,Simulador!$C$50)-Simulador!$C$8)*12,AB20=0),0,AB20+1) -> 17 | AC21: =IF($AB21=0,0,AC20*(1+Simulador!$D$34)+F21+M21) -> 0 | AD21: =IF($AB21=0,0,AD20*(1+Simulador!$D$34)+T21) -> 0
A22: =IF(OR(A21+1>(IF(Simulador!$E$7="Autopatrocínio",Simulador!$C$10,Simulador!$C$9)-Simulador!$C$8)*12,A21=0),0,A21+1) -> 0 | B22: =IF($A22=0,0,IF(INT($A21/12)-$A21/12=0,B21*(1+Simulador!$C$35),B21)) -> 0 | C22: =MAX(IF(A22=0,0,B22-IF(Simulador!$C$11="Individual",0,Simulador!$C$14)),0) -> 0 | E22: 0 | F22: 0 | G22: 0 | H22: 0 | I22: 0 | J22: 0 | L22: 0 | M22: 0 | N22: 0 | O22: 0 | P22: 0 | Q22: 0 | S22: 0 | T22: 0 | U22: 0 | V22: 0 | W22: 0 | Y22: =IF(OR(Y21+1>(IF(AND(Simulador!$C$9<Simulador!$C$10,OR(Simulador!$E$7="Resgate",Simulador!$E$7="Portabilidade")),Simulador!$C$9,Simulador!$C$10)-Simulador!$C$8)*12,Y21=0),0,Y21+1) -> 18 | Z22: =IF($Y22=0,0,Z21*(1+Simulador!$D$34)+E22+L22) -> 0 | AA22: =IF($Y22=0,0,AA21*(1+Simulador!$D$34)+S22) -> 0 | AB22: =IF(OR(AB21+1>(IF(AND(Simulador!$C$9<Simulador!$C$10,OR(Simulador!$E$7="Resgate",Simulador!$E$7="Portabilidade")),Simulador!$C$9,Simulador!$C$50)-Simulador!$C$8)*12,AB21=0),0,AB21+1) -> 18 | AC22: =IF($AB22=0,0,AC21*(1+Simulador!$D$34)+F22+M22) -> 0 | AD22: =IF($AB22=0,0,AD21*(1+Simulador!$D$34)+T22) -> 0
A23: =IF(OR(A22+1>(IF(Simulador!$E$7="Autopatrocínio",Simulador!$C$10,Simulador!$C$9)-Simulador!$C$8)*12,A22=0),0,A22+1) -> 0 | B23: =IF($A23=0,0,IF(INT($A22/12)-$A22/12=0,B22*(1+Simulador!$C$35),B22)) -> 0 | C23: =MAX(IF(A23=0,0,B23-IF(Simulador!$C$11="Individual",0,Simulador!$C$14)),0) -> 0 | E23: 0 | F23: 0 | G23: 0 | H23: 0 | I23: 0 | J23: 0 | L23: 0 | M23: 0 | N23: 0 | O23: 0 | P23: 0 | Q23: 0 | S23: 0 | T23: 0 | U23: 0 | V23: 0 | W23: 0 | Y23: =IF(OR(Y22+1>(IF(AND(Simulador!$C$9<Simulador!$C$10,OR(Simulador!$E$7="Resgate",Simulador!$E$7="Portabilidade")),Simulador!$C$9,Simulador!$C$10)-Simulador!$C$8)*12,Y22=0),0,Y22+1) -> 19 | Z23: =IF($Y23=0,0,Z22*(1+Simulador!$D$34)+E23+L23) -> 0 | AA23: =IF($Y23=0,0,AA22*(1+Simulador!$D$34)+S23) -> 0 | AB23: =IF(OR(AB22+1>(IF(AND(Simulador!$C$9<Simulador!$C$10,OR(Simulador!$E$7="Resgate",Simulador!$E$7="Portabilidade")),Simulador!$C$9,Simulador!$C$50)-Simulador!$C$8)*12,AB22=0),0,AB22+1) -> 19 | AC23: =IF($AB23=0,0,AC22*(1+Simulador!$D$34)+F23+M23) -> 0 | AD23: =IF($AB23=0,0,AD22*(1+Simulador!$D$34)+T23) -> 0
A24: =IF(OR(A23+1>(IF(Simulador!$E$7="Autopatrocínio",Simulador!$C$10,Simulador!$C$9)-Simulador!$C$8)*12,A23=0),0,A23+1) -> 0 | B24: =IF($A24=0,0,IF(INT($A23/12)-$A23/12=0,B23*(1+Simulador!$C$35),B23)) -> 0 | C24: =MAX(IF(A24=0,0,B24-IF(Simulador!$C$11="Individual",0,Simulador!$C$14)),0) -> 0 | E24: 0 | F24: 0 | G24: 0 | H24: 0 | I24: 0 | J24: 0 | L24: 0 | M24: 0 | N24: 0 | O24: 0 | P24: 0 | Q24: 0 | S24: 0 | T24: 0 | U24: 0 | V24: 0 | W24: 0 | Y24: =IF(OR(Y23+1>(IF(AND(Simulador!$C$9<Simulador!$C$10,OR(Simulador!$E$7="Resgate",Simulador!$E$7="Portabilidade")),Simulador!$C$9,Simulador!$C$10)-Simulador!$C$8)*12,Y23=0),0,Y23+1) -> 20 | Z24: =IF($Y24=0,0,Z23*(1+Simulador!$D$34)+E24+L24) -> 0 | AA24: =IF($Y24=0,0,AA23*(1+Simulador!$D$34)+S24) -> 0 | AB24: =IF(OR(AB23+1>(IF(AND(Simulador!$C$9<Simulador!$C$10,OR(Simulador!$E$7="Resgate",Simulador!$E$7="Portabilidade")),Simulador!$C$9,Simulador!$C$50)-Simulador!$C$8)*12,AB23=0),0,AB23+1) -> 20 | AC24: =IF($AB24=0,0,AC23*(1+Simulador!$D$34)+F24+M24) -> 0 | AD24: =IF($AB24=0,0,AD23*(1+Simulador!$D$34)+T24) -> 0
A25: =IF(OR(A24+1>(IF(Simulador!$E$7="Autopatrocínio",Simulador!$C$10,Simulador!$C$9)-Simulador!$C$8)*12,A24=0),0,A24+1) -> 0 | B25: =IF($A25=0,0,IF(INT($A24/12)-$A24/12=0,B24*(1+Simulador!$C$35),B24)) -> 0 | C25: =MAX(IF(A25=0,0,B25-IF(Simulador!$C$11="Individual",0,Simulador!$C$14)),0) -> 0 | E25: =E$4*$C25*(1+$J25) -> 0 | F25: 0 | G25: 0 | H25: 0 | I25: 0 | J25: 0 | L25: =L$4*$C25*$Q25 -> 0 | M25: 0 | N25: 0 | O25: 0 | P25: 0 | Q25: 0 | S25: 0 | T25: 0 | U25: 0 | V25: 0 | W25: 0 | Y25: =IF(OR(Y24+1>(IF(AND(Simulador!$C$9<Simulador!$C$10,OR(Simulador!$E$7="Resgate",Simulador!$E$7="Portabilidade")),Simulador!$C$9,Simulador!$C$10)-Simulador!$C$8)*12,Y24=0),0,Y24+1) -> 21 | Z25: =IF($Y25=0,0,Z24*(1+Simulador!$D$34)+E25+L25) -> 0 | AA25: =IF($Y25=0,0,AA24*(1+Simulador!$D$34)+S25) -> 0 | AB25: =IF(OR(AB24+1>(IF(AND(Simulador!$C$9<Simulador!$C$10,OR(Simulador!$E$7="Resgate",Simulador!$E$7="Portabilidade")),Simulador!$C$9,Simulador!$C$50)-Simulador!$C$8)*12,AB24=0),0,AB24+1) -> 21 | AC25: =IF($AB25=0,0,AC24*(1+Simulador!$D$34)+F25+M25) -> 0 | AD25: =IF($AB25=0,0,AD24*(1+Simulador!$D$34)+T25) -> 0
A26: =IF(OR(A25+1>(IF(Simulador!$E$7="Autopatrocínio",Simulador!$C$10,Simulador!$C$9)-Simulador!$C$8)*12,A25=0),0,A25+1) -> 0 | B26: =IF($A26=0,0,IF(INT($A25/12)-$A25/12=0,B25*(1+Simulador!$C$35),B25)) -> 0 | C26: =MAX(IF(A26=0,0,B26-IF(Simulador!$C$11="Individual",0,Simulador!$C$14)),0) -> 0 | E26: 0 | F26: 0 | G26: 0 | H26: 0 | I26: 0 | J26: 0 | L26: 0 | M26: 0 | N26: 0 | O26: 0 | P26: 0 | Q26: 0 | S26: 0 | T26: 0 | U26: 0 | V26: 0 | W26: 0 | Y26: =IF(OR(Y25+1>(IF(AND(Simulador!$C$9<Simulador!$C$10,OR(Simulador!$E$7="Resgate",Simulador!$E$7="Portabilidade")),Simulador!$C$9,Simulador!$C$10)-Simulador!$C$8)*12,Y25=0),0,Y25+1) -> 22 | Z26: =IF($Y26=0,0,Z25*(1+Simulador!$D$34)+E26+L26) -> 0 | AA26: =IF($Y26=0,0,AA25*(1+Simulador!$D$34)+S26) -> 0 | AB26: =IF(OR(AB25+1>(IF(AND(Simulador!$C$9<Simulador!$C$10,OR(Simulador!$E$7="Resgate",Simulador!$E$7="Portabilidade")),Simulador!$C$9,Simulador!$C$50)-Simulador!$C$8)*12,AB25=0),0,AB25+1) -> 22 | AC26: =IF($AB26=0,0,AC25*(1+Simulador!$D$34)+F26+M26) -> 0 | AD26: =IF($AB26=0,0,AD25*(1+Simulador!$D$34)+T26) -> 0
A27: =IF(OR(A26+1>(IF(Simulador!$E$7="Autopatrocínio",Simulador!$C$10,Simulador!$C$9)-Simulador!$C$8)*12,A26=0),0,A26+1) -> 0 | B27: =IF($A27=0,0,IF(INT($A26/12)-$A26/12=0,B26*(1+Simulador!$C$35),B26)) -> 0 | C27: =MAX(IF(A27=0,0,B27-IF(Simulador!$C$11="Individual",0,Simulador!$C$14)),0) -> 0 | E27: 0 | F27: 0 | G27: 0 | H27: 0 | I27: 0 | J27: 0 | L27: 0 | M27: 0 | N27: 0 | O27: 0 | P27: 0 | Q27: 0 | S27: 0 | T27: 0 | U27: 0 | V27: 0 | W27: 0 | Y27: =IF(OR(Y26+1>(IF(AND(Simulador!$C$9<Simulador!$C$10,OR(Simulador!$E$7="Resgate",Simulador!$E$7="Portabilidade")),Simulador!$C$9,Simulador!$C$10)-Simulador!$C$8)*12,Y26=0),0,Y26+1) -> 23 | Z27: =IF($Y27=0,0,Z26*(1+Simulador!$D$34)+E27+L27) -> 0 | AA27: =IF($Y27=0,0,AA26*(1+Simulador!$D$34)+S27) -> 0 | AB27: =IF(OR(AB26+1>(IF(AND(Simulador!$C$9<Simulador!$C$10,OR(Simulador!$E$7="Resgate",Simulador!$E$7="Portabilidade")),Simulador!$C$9,Simulador!$C$50)-Simulador!$C$8)*12,AB26=0),0,AB26+1) -> 23 | AC27: =IF($AB27=0,0,AC26*(1+Simulador!$D$34)+F27+M27) -> 0 | AD27: =IF($AB27=0,0,AD26*(1+Simulador!$D$34)+T27) -> 0
A28: =IF(OR(A27+1>(IF(Simulador!$E$7="Autopatrocínio",Simulador!$C$10,Simulador!$C$9)-Simulador!$C$8)*12,A27=0),0,A27+1) -> 0 | B28: =IF($A28=0,0,IF(INT($A27/12)-$A27/12=0,B27*(1+Simulador!$C$35),B27)) -> 0 | C28: =MAX(IF(A28=0,0,B28-IF(Simulador!$C$11="Individual",0,Simulador!$C$14)),0) -> 0 | E28: 0 | F28: 0 | G28: 0 | H28: 0 | I28: 0 | J28: 0 | L28: 0 | M28: 0 | N28: 0 | O28: 0 | P28: 0 | Q28: 0 | S28: 0 | T28: 0 | U28: 0 | V28: 0 | W28: 0 | Y28: =IF(OR(Y27+1>(IF(AND(Simulador!$C$9<Simulador!$C$10,OR(Simulador!$E$7="Resgate",Simulador!$E$7="Portabilidade")),Simulador!$C$9,Simulador!$C$10)-Simulador!$C$8)*12,Y27=0),0,Y27+1) -> 24 | Z28: =IF($Y28=0,0,Z27*(1+Simulador!$D$34)+E28+L28) -> 0 | AA28: =IF($Y28=0,0,AA27*(1+Simulador!$D$34)+S28) -> 0 | AB28: =IF(OR(AB27+1>(IF(AND(Simulador!$C$9<Simulador!$C$10,OR(Simulador!$E$7="Resgate",Simulador!$E$7="Portabilidade")),Simulador!$C$9,Simulador!$C$50)-Simulador!$C$8)*12,AB27=0),0,AB27+1) -> 24 | AC28: =IF($AB28=0,0,AC27*(1+Simulador!$D$34)+F28+M28) -> 0 | AD28: =IF($AB28=0,0,AD27*(1+Simulador!$D$34)+T28) -> 0
A29: =IF(OR(A28+1>(IF(Simulador!$E$7="Autopatrocínio",Simulador!$C$10,Simulador!$C$9)-Simulador!$C$8)*12,A28=0),0,A28+1) -> 0 | B29: =IF($A29=0,0,IF(INT($A28/12)-$A28/12=0,B28*(1+Simulador!$C$35),B28)) -> 0 | C29: =MAX(IF(A29=0,0,B29-IF(Simulador!$C$11="Individual",0,Simulador!$C$14)),0) -> 0 | E29: 0 | F29: 0 | G29: 0 | H29: 0 | I29: 0 | J29: 0 | L29: 0 | M29: 0 | N29: 0 | O29: 0 | P29: 0 | Q29: 0 | S29: 0 | T29: 0 | U29: 0 | V29: 0 | W29: 0 | Y29: =IF(OR(Y28+1>(IF(AND(Simulador!$C$9<Simulador!$C$10,OR(Simulador!$E$7="Resgate",Simulador!$E$7="Portabilidade")),Simulador!$C$9,Simulador!$C$10)-Simulador!$C$8)*12,Y28=0),0,Y28+1) -> 25 | Z29: =IF($Y29=0,0,Z28*(1+Simulador!$D$34)+E29+L29) -> 0 | AA29: =IF($Y29=0,0,AA28*(1+Simulador!$D$34)+S29) -> 0 | AB29: =IF(OR(AB28+1>(IF(AND(Simulador!$C$9<Simulador!$C$10,OR(Simulador!$E$7="Resgate",Simulador!$E$7="Portabilidade")),Simulador!$C$9,Simulador!$C$50)-Simulador!$C$8)*12,AB28=0),0,AB28+1) -> 25 | AC29: =IF($AB29=0,0,AC28*(1+Simulador!$D$34)+F29+M29) -> 0 | AD29: =IF($AB29=0,0,AD28*(1+Simulador!$D$34)+T29) -> 0
A30: =IF(OR(A29+1>(IF(Simulador!$E$7="Autopatrocínio",Simulador!$C$10,Simulador!$C$9)-Simulador!$C$8)*12,A29=0),0,A29+1) -> 0 | B30: =IF($A30=0,0,IF(INT($A29/12)-$A29/12=0,B29*(1+Simulador!$C$35),B29)) -> 0 | C30: =MAX(IF(A30=0,0,B30-IF(Simulador!$C$11="Individual",0,Simulador!$C$14)),0) -> 0 | E30: 0 | F30: 0 | G30: 0 | H30: 0 | I30: 0 | J30: 0 | L30: 0 | M30: 0 | N30: 0 | O30: 0 | P30: 0 | Q30: 0 | S30: 0 | T30: 0 | U30: 0 | V30: 0 | W30: 0 | Y30: =IF(OR(Y29+1>(IF(AND(Simulador!$C$9<Simulador!$C$10,OR(Simulador!$E$7="Resgate",Simulador!$E$7="Portabilidade")),Simulador!$C$9,Simulador!$C$10)-Simulador!$C$8)*12,Y29=0),0,Y29+1) -> 26 | Z30: =IF($Y30=0,0,Z29*(1+Simulador!$D$34)+E30+L30) -> 0 | AA30: =IF($Y30=0,0,AA29*(1+Simulador!$D$34)+S30) -> 0 | AB30: =IF(OR(AB29+1>(IF(AND(Simulador!$C$9<Simulador!$C$10,OR(Simulador!$E$7="Resgate",Simulador!$E$7="Portabilidade")),Simulador!$C$9,Simulador!$C$50)-Simulador!$C$8)*12,AB29=0),0,AB29+1) -> 26 | AC30: =IF($AB30=0,0,AC29*(1+Simulador!$D$34)+F30+M30) -> 0 | AD30: =IF($AB30=0,0,AD29*(1+Simulador!$D$34)+T30) -> 0
A31: =IF(OR(A30+1>(IF(Simulador!$E$7="Autopatrocínio",Simulador!$C$10,Simulador!$C$9)-Simulador!$C$8)*12,A30=0),0,A30+1) -> 0 | B31: =IF($A31=0,0,IF(INT($A30/12)-$A30/12=0,B30*(1+Simulador!$C$35),B30)) -> 0 | C31: =MAX(IF(A31=0,0,B31-IF(Simulador!$C$11="Individual",0,Simulador!$C$14)),0) -> 0 | E31: 0 | F31: 0 | G31: 0 | H31: 0 | I31: 0 | J31: 0 | L31: 0 | M31: 0 | N31: 0 | O31: 0 | P31: 0 | Q31: 0 | S31: 0 | T31: 0 | U31: 0 | V31: 0 | W31: 0 | Y31: =IF(OR(Y30+1>(IF(AND(Simulador!$C$9<Simulador!$C$10,OR(Simulador!$E$7="Resgate",Simulador!$E$7="Portabilidade")),Simulador!$C$9,Simulador!$C$10)-Simulador!$C$8)*12,Y30=0),0,Y30+1) -> 27 | Z31: =IF($Y31=0,0,Z30*(1+Simulador!$D$34)+E31+L31) -> 0 | AA31: =IF($Y31=0,0,AA30*(1+Simulador!$D$34)+S31) -> 0 | AB31: =IF(OR(AB30+1>(IF(AND(Simulador!$C$9<Simulador!$C$10,OR(Simulador!$E$7="Resgate",Simulador!$E$7="Portabilidade")),Simulador!$C$9,Simulador!$C$50)-Simulador!$C$8)*12,AB30=0),0,AB30+1) -> 27 | AC31: =IF($AB31=0,0,AC30*(1+Simulador!$D$34)+F31+M31) -> 0 | AD31: =IF($AB31=0,0,AD30*(1+Simulador!$D$34)+T31) -> 0
A32: =IF(OR(A31+1>(IF(Simulador!$E$7="Autopatrocínio",Simulador!$C$10,Simulador!$C$9)-Simulador!$C$8)*12,A31=0),0,A31+1) -> 0 | B32: =IF($A32=0,0,IF(INT($A31/12)-$A31/12=0,B31*(1+Simulador!$C$35),B31)) -> 0 | C32: =MAX(IF(A32=0,0,B32-IF(Simulador!$C$11="Individual",0,Simulador!$C$14)),0) -> 0 | E32: 0 | F32: 0 | G32: 0 | H32: 0 | I32: 0 | J32: 0 | L32: 0 | M32: 0 | N32: 0 | O32: 0 | P32: 0 | Q32: 0 | S32: 0 | T32: 0 | U32: 0 | V32: 0 | W32: 0 | Y32: =IF(OR(Y31+1>(IF(AND(Simulador!$C$9<Simulador!$C$10,OR(Simulador!$E$7="Resgate",Simulador!$E$7="Portabilidade")),Simulador!$C$9,Simulador!$C$10)-Simulador!$C$8)*12,Y31=0),0,Y31+1) -> 28 | Z32: =IF($Y32=0,0,Z31*(1+Simulador!$D$34)+E32+L32) -> 0 | AA32: =IF($Y32=0,0,AA31*(1+Simulador!$D$34)+S32) -> 0 | AB32: =IF(OR(AB31+1>(IF(AND(Simulador!$C$9<Simulador!$C$10,OR(Simulador!$E$7="Resgate",Simulador!$E$7="Portabilidade")),Simulador!$C$9,Simulador!$C$50)-Simulador!$C$8)*12,AB31=0),0,AB31+1) -> 28 | AC32: =IF($AB32=0,0,AC31*(1+Simulador!$D$34)+F32+M32) -> 0 | AD32: =IF($AB32=0,0,AD31*(1+Simulador!$D$34)+T32) -> 0
A33: =IF(OR(A32+1>(IF(Simulador!$E$7="Autopatrocínio",Simulador!$C$10,Simulador!$C$9)-Simulador!$C$8)*12,A32=0),0,A32+1) -> 0 | B33: =IF($A33=0,0,IF(INT($A32/12)-$A32/12=0,B32*(1+Simulador!$C$35),B32)) -> 0 | C33: =MAX(IF(A33=0,0,B33-IF(Simulador!$C$11="Individual",0,Simulador!$C$14)),0) -> 0 | E33: 0 | F33: 0 | G33: 0 | H33: 0 | I33: 0 | J33: 0 | L33: 0 | M33: 0 | N33: 0 | O33: 0 | P33: 0 | Q33: 0 | S33: 0 | T33: 0 | U33: 0 | V33: 0 | W33: 0 | Y33: =IF(OR(Y32+1>(IF(AND(Simulador!$C$9<Simulador!$C$10,OR(Simulador!$E$7="Resgate",Simulador!$E$7="Portabilidade")),Simulador!$C$9,Simulador!$C$10)-Simulador!$C$8)*12,Y32=0),0,Y32+1) -> 29 | Z33: =IF($Y33=0,0,Z32*(1+Simulador!$D$34)+E33+L33) -> 0 | AA33: =IF($Y33=0,0,AA32*(1+Simulador!$D$34)+S33) -> 0 | AB33: =IF(OR(AB32+1>(IF(AND(Simulador!$C$9<Simulador!$C$10,OR(Simulador!$E$7="Resgate",Simulador!$E$7="Portabilidade")),Simulador!$C$9,Simulador!$C$50)-Simulador!$C$8)*12,AB32=0),0,AB32+1) -> 29 | AC33: =IF($AB33=0,0,AC32*(1+Simulador!$D$34)+F33+M33) -> 0 | AD33: =IF($AB33=0,0,AD32*(1+Simulador!$D$34)+T33) -> 0
A34: =IF(OR(A33+1>(IF(Simulador!$E$7="Autopatrocínio",Simulador!$C$10,Simulador!$C$9)-Simulador!$C$8)*12,A33=0),0,A33+1) -> 0 | B34: =IF($A34=0,0,IF(INT($A33/12)-$A33/12=0,B33*(1+Simulador!$C$35),B33)) -> 0 | C34: =MAX(IF(A34=0,0,B34-IF(Simulador!$C$11="Individual",0,Simulador!$C$14)),0) -> 0 | E34: 0 | F34: 0 | G34: 0 | H34: 0 | I34: 0 | J34: 0 | L34: 0 | M34: 0 | N34: 0 | O34: 0 | P34: 0 | Q34: 0 | S34: 0 | T34: 0 | U34: 0 | V34: 0 | W34: 0 | Y34: =IF(OR(Y33+1>(IF(AND(Simulador!$C$9<Simulador!$C$10,OR(Simulador!$E$7="Resgate",Simulador!$E$7="Portabilidade")),Simulador!$C$9,Simulador!$C$10)-Simulador!$C$8)*12,Y33=0),0,Y33+1) -> 30 | Z34: =IF($Y34=0,0,Z33*(1+Simulador!$D$34)+E34+L34) -> 0 | AA34: =IF($Y34=0,0,AA33*(1+Simulador!$D$34)+S34) -> 0 | AB34: =IF(OR(AB33+1>(IF(AND(Simulador!$C$9<Simulador!$C$10,OR(Simulador!$E$7="Resgate",Simulador!$E$7="Portabilidade")),Simulador!$C$9,Simulador!$C$50)-Simulador!$C$8)*12,AB33=0),0,AB33+1) -> 30 | AC34: =IF($AB34=0,0,AC33*(1+Simulador!$D$34)+F34+M34) -> 0 | AD34: =IF($AB34=0,0,AD33*(1+Simulador!$D$34)+T34) -> 0
A35: =IF(OR(A34+1>(IF(Simulador!$E$7="Autopatrocínio",Simulador!$C$10,Simulador!$C$9)-Simulador!$C$8)*12,A34=0),0,A34+1) -> 0 | B35: =IF($A35=0,0,IF(INT($A34/12)-$A34/12=0,B34*(1+Simulador!$C$35),B34)) -> 0 | C35: =MAX(IF(A35=0,0,B35-IF(Simulador!$C$11="Individual",0,Simulador!$C$14)),0) -> 0 | E35: =E$4*$C35*(1+$J35) -> 0 | F35: 0 | G35: 0 | H35: 0 | I35: 0 | J35: 0 | L35: =L$4*$C35*$Q35 -> 0 | M35: 0 | N35: 0 | O35: 0 | P35: 0 | Q35: 0 | S35: 0 | T35: 0 | U35: 0 | V35: 0 | W35: 0 | Y35: =IF(OR(Y34+1>(IF(AND(Simulador!$C$9<Simulador!$C$10,OR(Simulador!$E$7="Resgate",Simulador!$E$7="Portabilidade")),Simulador!$C$9,Simulador!$C$10)-Simulador!$C$8)*12,Y34=0),0,Y34+1) -> 31 | Z35: =IF($Y35=0,0,Z34*(1+Simulador!$D$34)+E35+L35) -> 0 | AA35: =IF($Y35=0,0,AA34*(1+Simulador!$D$34)+S35) -> 0 | AB35: =IF(OR(AB34+1>(IF(AND(Simulador!$C$9<Simulador!$C$10,OR(Simulador!$E$7="Resgate",Simulador!$E$7="Portabilidade")),Simulador!$C$9,Simulador!$C$50)-Simulador!$C$8)*12,AB34=0),0,AB34+1) -> 31 | AC35: =IF($AB35=0,0,AC34*(1+Simulador!$D$34)+F35+M35) -> 0 | AD35: =IF($AB35=0,0,AD34*(1+Simulador!$D$34)+T35) -> 0
A36: =IF(OR(A35+1>(IF(Simulador!$E$7="Autopatrocínio",Simulador!$C$10,Simulador!$C$9)-Simulador!$C$8)*12,A35=0),0,A35+1) -> 0 | B36: =IF($A36=0,0,IF(INT($A35/12)-$A35/12=0,B35*(1+Simulador!$C$35),B35)) -> 0 | C36: =MAX(IF(A36=0,0,B36-IF(Simulador!$C$11="Individual",0,Simulador!$C$14)),0) -> 0 | E36: 0 | F36: 0 | G36: 0 | H36: 0 | I36: 0 | J36: 0 | L36: 0 | M36: 0 | N36: 0 | O36: 0 | P36: 0 | Q36: 0 | S36: 0 | T36: 0 | U36: 0 | V36: 0 | W36: 0 | Y36: =IF(OR(Y35+1>(IF(AND(Simulador!$C$9<Simulador!$C$10,OR(Simulador!$E$7="Resgate",Simulador!$E$7="Portabilidade")),Simulador!$C$9,Simulador!$C$10)-Simulador!$C$8)*12,Y35=0),0,Y35+1) -> 32 | Z36: =IF($Y36=0,0,Z35*(1+Simulador!$D$34)+E36+L36) -> 0 | AA36: =IF($Y36=0,0,AA35*(1+Simulador!$D$34)+S36) -> 0 | AB36: =IF(OR(AB35+1>(IF(AND(Simulador!$C$9<Simulador!$C$10,OR(Simulador!$E$7="Resgate",Simulador!$E$7="Portabilidade")),Simulador!$C$9,Simulador!$C$50)-Simulador!$C$8)*12,AB35=0),0,AB35+1) -> 32 | AC36: =IF($AB36=0,0,AC35*(1+Simulador!$D$34)+F36+M36) -> 0 | AD36: =IF($AB36=0,0,AD35*(1+Simulador!$D$34)+T36) -> 0
A37: =IF(OR(A36+1>(IF(Simulador!$E$7="Autopatrocínio",Simulador!$C$10,Simulador!$C$9)-Simulador!$C$8)*12,A36=0),0,A36+1) -> 0 | B37: =IF($A37=0,0,IF(INT($A36/12)-$A36/12=0,B36*(1+Simulador!$C$35),B36)) -> 0 | C37: =MAX(IF(A37=0,0,B37-IF(Simulador!$C$11="Individual",0,Simulador!$C$14)),0) -> 0 | E37: 0 | F37: 0 | G37: 0 | H37: 0 | I37: 0 | J37: 0 | L37: 0 | M37: 0 | N37: 0 | O37: 0 | P37: 0 | Q37: 0 | S37: =S$4*$C37*(1+$J37) -> 0 | T37: 0 | U37: 0 | V37: 0 | W37: 0 | Y37: =IF(OR(Y36+1>(IF(AND(Simulador!$C$9<Simulador!$C$10,OR(Simulador!$E$7="Resgate",Simulador!$E$7="Portabilidade")),Simulador!$C$9,Simulador!$C$10)-Simulador!$C$8)*12,Y36=0),0,Y36+1) -> 33 | Z37: =IF($Y37=0,0,Z36*(1+Simulador!$D$34)+E37+L37) -> 0 | AA37: =IF($Y37=0,0,AA36*(1+Simulador!$D$34)+S37) -> 0 | AB37: =IF(OR(AB36+1>(IF(AND(Simulador!$C$9<Simulador!$C$10,OR(Simulador!$E$7="Resgate",Simulador!$E$7="Portabilidade")),Simulador!$C$9,Simulador!$C$50)-Simulador!$C$8)*12,AB36=0),0,AB36+1) -> 33 | AC37: =IF($AB37=0,0,AC36*(1+Simulador!$D$34)+F37+M37) -> 0 | AD37: =IF($AB37=0,0,AD36*(1+Simulador!$D$34)+T37) -> 0
A38: =IF(OR(A37+1>(IF(Simulador!$E$7="Autopatrocínio",Simulador!$C$10,Simulador!$C$9)-Simulador!$C$8)*12,A37=0),0,A37+1) -> 0 | B38: =IF($A38=0,0,IF(INT($A37/12)-$A37/12=0,B37*(1+Simulador!$C$35),B37)) -> 0 | C38: =MAX(IF(A38=0,0,B38-IF(Simulador!$C$11="Individual",0,Simulador!$C$14)),0) -> 0 | E38: 0 | F38: 0 | G38: 0 | H38: 0 | I38: 0 | J38: 0 | L38: 0 | M38: 0 | N38: 0 | O38: 0 | P38: 0 | Q38: 0 | S38: 0 | T38: 0 | U38: 0 | V38: 0 | W38: 0 | Y38: =IF(OR(Y37+1>(IF(AND(Simulador!$C$9<Simulador!$C$10,OR(Simulador!$E$7="Resgate",Simulador!$E$7="Portabilidade")),Simulador!$C$9,Simulador!$C$10)-Simulador!$C$8)*12,Y37=0),0,Y37+1) -> 34 | Z38: =IF($Y38=0,0,Z37*(1+Simulador!$D$34)+E38+L38) -> 0 | AA38: =IF($Y38=0,0,AA37*(1+Simulador!$D$34)+S38) -> 0 | AB38: =IF(OR(AB37+1>(IF(AND(Simulador!$C$9<Simulador!$C$10,OR(Simulador!$E$7="Resgate",Simulador!$E$7="Portabilidade")),Simulador!$C$9,Simulador!$C$50)-Simulador!$C$8)*12,AB37=0),0,AB37+1) -> 34 | AC38: =IF($AB38=0,0,AC37*(1+Simulador!$D$34)+F38+M38) -> 0 | AD38: =IF($AB38=0,0,AD37*(1+Simulador!$D$34)+T38) -> 0
A39: =IF(OR(A38+1>(IF(Simulador!$E$7="Autopatrocínio",Simulador!$C$10,Simulador!$C$9)-Simulador!$C$8)*12,A38=0),0,A38+1) -> 0 | B39: =IF($A39=0,0,IF(INT($A38/12)-$A38/12=0,B38*(1+Simulador!$C$35),B38)) -> 0 | C39: =MAX(IF(A39=0,0,B39-IF(Simulador!$C$11="Individual",0,Simulador!$C$14)),0) -> 0 | E39: 0 | F39: 0 | G39: 0 | H39: 0 | I39: 0 | J39: 0 | L39: 0 | M39: 0 | N39: 0 | O39: 0 | P39: 0 | Q39: 0 | S39: 0 | T39: 0 | U39: 0 | V39: 0 | W39: 0 | Y39: =IF(OR(Y38+1>(IF(AND(Simulador!$C$9<Simulador!$C$10,OR(Simulador!$E$7="Resgate",Simulador!$E$7="Portabilidade")),Simulador!$C$9,Simulador!$C$10)-Simulador!$C$8)*12,Y38=0),0,Y38+1) -> 35 | Z39: =IF($Y39=0,0,Z38*(1+Simulador!$D$34)+E39+L39) -> 0 | AA39: =IF($Y39=0,0,AA38*(1+Simulador!$D$34)+S39) -> 0 | AB39: =IF(OR(AB38+1>(IF(AND(Simulador!$C$9<Simulador!$C$10,OR(Simulador!$E$7="Resgate",Simulador!$E$7="Portabilidade")),Simulador!$C$9,Simulador!$C$50)-Simulador!$C$8)*12,AB38=0),0,AB38+1) -> 35 | AC39: =IF($AB39=0,0,AC38*(1+Simulador!$D$34)+F39+M39) -> 0 | AD39: =IF($AB39=0,0,AD38*(1+Simulador!$D$34)+T39) -> 0
A40: =IF(OR(A39+1>(IF(Simulador!$E$7="Autopatrocínio",Simulador!$C$10,Simulador!$C$9)-Simulador!$C$8)*12,A39=0),0,A39+1) -> 0 | B40: =IF($A40=0,0,IF(INT($A39/12)-$A39/12=0,B39*(1+Simulador!$C$35),B39)) -> 0 | C40: =MAX(IF(A40=0,0,B40-IF(Simulador!$C$11="Individual",0,Simulador!$C$14)),0) -> 0 | E40: 0 | F40: 0 | G40: 0 | H40: 0 | I40: 0 | J40: 0 | L40: 0 | M40: 0 | N40: 0 | O40: 0 | P40: 0 | Q40: 0 | S40: 0 | T40: 0 | U40: 0 | V40: 0 | W40: 0 | Y40: =IF(OR(Y39+1>(IF(AND(Simulador!$C$9<Simulador!$C$10,OR(Simulador!$E$7="Resgate",Simulador!$E$7="Portabilidade")),Simulador!$C$9,Simulador!$C$10)-Simulador!$C$8)*12,Y39=0),0,Y39+1) -> 36 | Z40: =IF($Y40=0,0,Z39*(1+Simulador!$D$34)+E40+L40) -> 0 | AA40: =IF($Y40=0,0,AA39*(1+Simulador!$D$34)+S40) -> 0 | AB40: =IF(OR(AB39+1>(IF(AND(Simulador!$C$9<Simulador!$C$10,OR(Simulador!$E$7="Resgate",Simulador!$E$7="Portabilidade")),Simulador!$C$9,Simulador!$C$50)-Simulador!$C$8)*12,AB39=0),0,AB39+1) -> 36 | AC40: =IF($AB40=0,0,AC39*(1+Simulador!$D$34)+F40+M40) -> 0 | AD40: =IF($AB40=0,0,AD39*(1+Simulador!$D$34)+T40) -> 0
A41: =IF(OR(A40+1>(IF(Simulador!$E$7="Autopatrocínio",Simulador!$C$10,Simulador!$C$9)-Simulador!$C$8)*12,A40=0),0,A40+1) -> 0 | B41: =IF($A41=0,0,IF(INT($A40/12)-$A40/12=0,B40*(1+Simulador!$C$35),B40)) -> 0 | C41: =MAX(IF(A41=0,0,B41-IF(Simulador!$C$11="Individual",0,Simulador!$C$14)),0) -> 0 | E41: 0 | F41: 0 | G41: 0 | H41: 0 | I41: 0 | J41: 0 | L41: 0 | M41: 0 | N41: 0 | O41: 0 | P41: 0 | Q41: 0 | S41: 0 | T41: 0 | U41: 0 | V41: 0 | W41: 0 | Y41: =IF(OR(Y40+1>(IF(AND(Simulador!$C$9<Simulador!$C$10,OR(Simulador!$E$7="Resgate",Simulador!$E$7="Portabilidade")),Simulador!$C$9,Simulador!$C$10)-Simulador!$C$8)*12,Y40=0),0,Y40+1) -> 37 | Z41: =IF($Y41=0,0,Z40*(1+Simulador!$D$34)+E41+L41) -> 0 | AA41: =IF($Y41=0,0,AA40*(1+Simulador!$D$34)+S41) -> 0 | AB41: =IF(OR(AB40+1>(IF(AND(Simulador!$C$9<Simulador!$C$10,OR(Simulador!$E$7="Resgate",Simulador!$E$7="Portabilidade")),Simulador!$C$9,Simulador!$C$50)-Simulador!$C$8)*12,AB40=0),0,AB40+1) -> 37 | AC41: =IF($AB41=0,0,AC40*(1+Simulador!$D$34)+F41+M41) -> 0 | AD41: =IF($AB41=0,0,AD40*(1+Simulador!$D$34)+T41) -> 0
A42: =IF(OR(A41+1>(IF(Simulador!$E$7="Autopatrocínio",Simulador!$C$10,Simulador!$C$9)-Simulador!$C$8)*12,A41=0),0,A41+1) -> 0 | B42: =IF($A42=0,0,IF(INT($A41/12)-$A41/12=0,B41*(1+Simulador!$C$35),B41)) -> 0 | C42: =MAX(IF(A42=0,0,B42-IF(Simulador!$C$11="Individual",0,Simulador!$C$14)),0) -> 0 | E42: 0 | F42: 0 | G42: 0 | H42: 0 | I42: 0 | J42: 0 | L42: 0 | M42: 0 | N42: 0 | O42: 0 | P42: 0 | Q42: 0 | S42: 0 | T42: 0 | U42: 0 | V42: 0 | W42: 0 | Y42: =IF(OR(Y41+1>(IF(AND(Simulador!$C$9<Simulador!$C$10,OR(Simulador!$E$7="Resgate",Simulador!$E$7="Portabilidade")),Simulador!$C$9,Simulador!$C$10)-Simulador!$C$8)*12,Y41=0),0,Y41+1) -> 38 | Z42: =IF($Y42=0,0,Z41*(1+Simulador!$D$34)+E42+L42) -> 0 | AA42: =IF($Y42=0,0,AA41*(1+Simulador!$D$34)+S42) -> 0 | AB42: =IF(OR(AB41+1>(IF(AND(Simulador!$C$9<Simulador!$C$10,OR(Simulador!$E$7="Resgate",Simulador!$E$7="Portabilidade")),Simulador!$C$9,Simulador!$C$50)-Simulador!$C$8)*12,AB41=0),0,AB41+1) -> 38 | AC42: =IF($AB42=0,0,AC41*(1+Simulador!$D$34)+F42+M42) -> 0 | AD42: =IF($AB42=0,0,AD41*(1+Simulador!$D$34)+T42) -> 0
A43: =IF(OR(A42+1>(IF(Simulador!$E$7="Autopatrocínio",Simulador!$C$10,Simulador!$C$9)-Simulador!$C$8)*12,A42=0),0,A42+1) -> 0 | B43: =IF($A43=0,0,IF(INT($A42/12)-$A42/12=0,B42*(1+Simulador!$C$35),B42)) -> 0 | C43: =MAX(IF(A43=0,0,B43-IF(Simulador!$C$11="Individual",0,Simulador!$C$14)),0) -> 0 | E43: 0 | F43: 0 | G43: 0 | H43: 0 | I43: 0 | J43: 0 | L43: 0 | M43: 0 | N43: 0 | O43: 0 | P43: 0 | Q43: 0 | S43: 0 | T43: 0 | U43: 0 | V43: 0 | W43: 0 | Y43: =IF(OR(Y42+1>(IF(AND(Simulador!$C$9<Simulador!$C$10,OR(Simulador!$E$7="Resgate",Simulador!$E$7="Portabilidade")),Simulador!$C$9,Simulador!$C$10)-Simulador!$C$8)*12,Y42=0),0,Y42+1) -> 39 | Z43: =IF($Y43=0,0,Z42*(1+Simulador!$D$34)+E43+L43) -> 0 | AA43: =IF($Y43=0,0,AA42*(1+Simulador!$D$34)+S43) -> 0 | AB43: =IF(OR(AB42+1>(IF(AND(Simulador!$C$9<Simulador!$C$10,OR(Simulador!$E$7="Resgate",Simulador!$E$7="Portabilidade")),Simulador!$C$9,Simulador!$C$50)-Simulador!$C$8)*12,AB42=0),0,AB42+1) -> 39 | AC43: =IF($AB43=0,0,AC42*(1+Simulador!$D$34)+F43+M43) -> 0 | AD43: =IF($AB43=0,0,AD42*(1+Simulador!$D$34)+T43) -> 0
A44: =IF(OR(A43+1>(IF(Simulador!$E$7="Autopatrocínio",Simulador!$C$10,Simulador!$C$9)-Simulador!$C$8)*12,A43=0),0,A43+1) -> 0 | B44: =IF($A44=0,0,IF(INT($A43/12)-$A43/12=0,B43*(1+Simulador!$C$35),B43)) -> 0 | C44: =MAX(IF(A44=0,0,B44-IF(Simulador!$C$11="Individual",0,Simulador!$C$14)),0) -> 0 | E44: 0 | F44: 0 | G44: 0 | H44: 0 | I44: 0 | J44: 0 | L44: 0 | M44: 0 | N44: 0 | O44: 0 | P44: 0 | Q44: 0 | S44: 0 | T44: 0 | U44: 0 | V44: 0 | W44: 0 | Y44: =IF(OR(Y43+1>(IF(AND(Simulador!$C$9<Simulador!$C$10,OR(Simulador!$E$7="Resgate",Simulador!$E$7="Portabilidade")),Simulador!$C$9,Simulador!$C$10)-Simulador!$C$8)*12,Y43=0),0,Y43+1) -> 40 | Z44: =IF($Y44=0,0,Z43*(1+Simulador!$D$34)+E44+L44) -> 0 | AA44: =IF($Y44=0,0,AA43*(1+Simulador!$D$34)+S44) -> 0 | AB44: =IF(OR(AB43+1>(IF(AND(Simulador!$C$9<Simulador!$C$10,OR(Simulador!$E$7="Resgate",Simulador!$E$7="Portabilidade")),Simulador!$C$9,Simulador!$C$50)-Simulador!$C$8)*12,AB43=0),0,AB43+1) -> 40 | AC44: =IF($AB44=0,0,AC43*(1+Simulador!$D$34)+F44+M44) -> 0 | AD44: =IF($AB44=0,0,AD43*(1+Simulador!$D$34)+T44) -> 0
A45: =IF(OR(A44+1>(IF(Simulador!$E$7="Autopatrocínio",Simulador!$C$10,Simulador!$C$9)-Simulador!$C$8)*12,A44=0),0,A44+1) -> 0 | B45: =IF($A45=0,0,IF(INT($A44/12)-$A44/12=0,B44*(1+Simulador!$C$35),B44)) -> 0 | C45: =MAX(IF(A45=0,0,B45-IF(Simulador!$C$11="Individual",0,Simulador!$C$14)),0) -> 0 | E45: =E$4*$C45*(1+$J45) -> 0 | F45: 0 | G45: 0 | H45: 0 | I45: 0 | J45: 0 | L45: =L$4*$C45*$Q45 -> 0 | M45: 0 | N45: 0 | O45: 0 | P45: 0 | Q45: 0 | S45: 0 | T45: 0 | U45: 0 | V45: 0 | W45: 0 | Y45: =IF(OR(Y44+1>(IF(AND(Simulador!$C$9<Simulador!$C$10,OR(Simulador!$E$7="Resgate",Simulador!$E$7="Portabilidade")),Simulador!$C$9,Simulador!$C$10)-Simulador!$C$8)*12,Y44=0),0,Y44+1) -> 41 | Z45: =IF($Y45=0,0,Z44*(1+Simulador!$D$34)+E45+L45) -> 0 | AA45: =IF($Y45=0,0,AA44*(1+Simulador!$D$34)+S45) -> 0 | AB45: =IF(OR(AB44+1>(IF(AND(Simulador!$C$9<Simulador!$C$10,OR(Simulador!$E$7="Resgate",Simulador!$E$7="Portabilidade")),Simulador!$C$9,Simulador!$C$50)-Simulador!$C$8)*12,AB44=0),0,AB44+1) -> 41 | AC45: =IF($AB45=0,0,AC44*(1+Simulador!$D$34)+F45+M45) -> 0 | AD45: =IF($AB45=0,0,AD44*(1+Simulador!$D$34)+T45) -> 0
A46: =IF(OR(A45+1>(IF(Simulador!$E$7="Autopatrocínio",Simulador!$C$10,Simulador!$C$9)-Simulador!$C$8)*12,A45=0),0,A45+1) -> 0 | B46: =IF($A46=0,0,IF(INT($A45/12)-$A45/12=0,B45*(1+Simulador!$C$35),B45)) -> 0 | C46: =MAX(IF(A46=0,0,B46-IF(Simulador!$C$11="Individual",0,Simulador!$C$14)),0) -> 0 | E46: 0 | F46: 0 | G46: 0 | H46: 0 | I46: 0 | J46: 0 | L46: 0 | M46: 0 | N46: 0 | O46: 0 | P46: 0 | Q46: 0 | S46: 0 | T46: 0 | U46: 0 | V46: 0 | W46: 0 | Y46: =IF(OR(Y45+1>(IF(AND(Simulador!$C$9<Simulador!$C$10,OR(Simulador!$E$7="Resgate",Simulador!$E$7="Portabilidade")),Simulador!$C$9,Simulador!$C$10)-Simulador!$C$8)*12,Y45=0),0,Y45+1) -> 42 | Z46: =IF($Y46=0,0,Z45*(1+Simulador!$D$34)+E46+L46) -> 0 | AA46: =IF($Y46=0,0,AA45*(1+Simulador!$D$34)+S46) -> 0 | AB46: =IF(OR(AB45+1>(IF(AND(Simulador!$C$9<Simulador!$C$10,OR(Simulador!$E$7="Resgate",Simulador!$E$7="Portabilidade")),Simulador!$C$9,Simulador!$C$50)-Simulador!$C$8)*12,AB45=0),0,AB45+1) -> 42 | AC46: =IF($AB46=0,0,AC45*(1+Simulador!$D$34)+F46+M46) -> 0 | AD46: =IF($AB46=0,0,AD45*(1+Simulador!$D$34)+T46) -> 0
A47: =IF(OR(A46+1>(IF(Simulador!$E$7="Autopatrocínio",Simulador!$C$10,Simulador!$C$9)-Simulador!$C$8)*12,A46=0),0,A46+1) -> 0 | B47: =IF($A47=0,0,IF(INT($A46/12)-$A46/12=0,B46*(1+Simulador!$C$35),B46)) -> 0 | C47: =MAX(IF(A47=0,0,B47-IF(Simulador!$C$11="Individual",0,Simulador!$C$14)),0) -> 0 | E47: 0 | F47: 0 | G47: 0 | H47: 0 | I47: 0 | J47: 0 | L47: 0 | M47: 0 | N47: 0 | O47: 0 | P47: 0 | Q47: 0 | S47: 0 | T47: 0 | U47: 0 | V47: 0 | W47: 0 | Y47: =IF(OR(Y46+1>(IF(AND(Simulador!$C$9<Simulador!$C$10,OR(Simulador!$E$7="Resgate",Simulador!$E$7="Portabilidade")),Simulador!$C$9,Simulador!$C$10)-Simulador!$C$8)*12,Y46=0),0,Y46+1) -> 43 | Z47: =IF($Y47=0,0,Z46*(1+Simulador!$D$34)+E47+L47) -> 0 | AA47: =IF($Y47=0,0,AA46*(1+Simulador!$D$34)+S47) -> 0 | AB47: =IF(OR(AB46+1>(IF(AND(Simulador!$C$9<Simulador!$C$10,OR(Simulador!$E$7="Resgate",Simulador!$E$7="Portabilidade")),Simulador!$C$9,Simulador!$C$50)-Simulador!$C$8)*12,AB46=0),0,AB46+1) -> 43 | AC47: =IF($AB47=0,0,AC46*(1+Simulador!$D$34)+F47+M47) -> 0 | AD47: =IF($AB47=0,0,AD46*(1+Simulador!$D$34)+T47) -> 0
A48: =IF(OR(A47+1>(IF(Simulador!$E$7="Autopatrocínio",Simulador!$C$10,Simulador!$C$9)-Simulador!$C$8)*12,A47=0),0,A47+1) -> 0 | B48: =IF($A48=0,0,IF(INT($A47/12)-$A47/12=0,B47*(1+Simulador!$C$35),B47)) -> 0 | C48: =MAX(IF(A48=0,0,B48-IF(Simulador!$C$11="Individual",0,Simulador!$C$14)),0) -> 0 | E48: 0 | F48: 0 | G48: 0 | H48: 0 | I48: 0 | J48: 0 | L48: 0 | M48: 0 | N48: 0 | O48: 0 | P48: 0 | Q48: 0 | S48: 0 | T48: 0 | U48: 0 | V48: 0 | W48: 0 | Y48: =IF(OR(Y47+1>(IF(AND(Simulador!$C$9<Simulador!$C$10,OR(Simulador!$E$7="Resgate",Simulador!$E$7="Portabilidade")),Simulador!$C$9,Simulador!$C$10)-Simulador!$C$8)*12,Y47=0),0,Y47+1) -> 44 | Z48: =IF($Y48=0,0,Z47*(1+Simulador!$D$34)+E48+L48) -> 0 | AA48: =IF($Y48=0,0,AA47*(1+Simulador!$D$34)+S48) -> 0 | AB48: =IF(OR(AB47+1>(IF(AND(Simulador!$C$9<Simulador!$C$10,OR(Simulador!$E$7="Resgate",Simulador!$E$7="Portabilidade")),Simulador!$C$9,Simulador!$C$50)-Simulador!$C$8)*12,AB47=0),0,AB47+1) -> 44 | AC48: =IF($AB48=0,0,AC47*(1+Simulador!$D$34)+F48+M48) -> 0 | AD48: =IF($AB48=0,0,AD47*(1+Simulador!$D$34)+T48) -> 0
A49: =IF(OR(A48+1>(IF(Simulador!$E$7="Autopatrocínio",Simulador!$C$10,Simulador!$C$9)-Simulador!$C$8)*12,A48=0),0,A48+1) -> 0 | B49: =IF($A49=0,0,IF(INT($A48/12)-$A48/12=0,B48*(1+Simulador!$C$35),B48)) -> 0 | C49: =MAX(IF(A49=0,0,B49-IF(Simulador!$C$11="Individual",0,Simulador!$C$14)),0) -> 0 | E49: 0 | F49: 0 | G49: 0 | H49: 0 | I49: 0 | J49: 0 | L49: 0 | M49: 0 | N49: 0 | O49: 0 | P49: 0 | Q49: 0 | S49: 0 | T49: 0 | U49: 0 | V49: 0 | W49: 0 | Y49: =IF(OR(Y48+1>(IF(AND(Simulador!$C$9<Simulador!$C$10,OR(Simulador!$E$7="Resgate",Simulador!$E$7="Portabilidade")),Simulador!$C$9,Simulador!$C$10)-Simulador!$C$8)*12,Y48=0),0,Y48+1) -> 45 | Z49: =IF($Y49=0,0,Z48*(1+Simulador!$D$34)+E49+L49) -> 0 | AA49: =IF($Y49=0,0,AA48*(1+Simulador!$D$34)+S49) -> 0 | AB49: =IF(OR(AB48+1>(IF(AND(Simulador!$C$9<Simulador!$C$10,OR(Simulador!$E$7="Resgate",Simulador!$E$7="Portabilidade")),Simulador!$C$9,Simulador!$C$50)-Simulador!$C$8)*12,AB48=0),0,AB48+1) -> 45 | AC49: =IF($AB49=0,0,AC48*(1+Simulador!$D$34)+F49+M49) -> 0 | AD49: =IF($AB49=0,0,AD48*(1+Simulador!$D$34)+T49) -> 0
A50: =IF(OR(A49+1>(IF(Simulador!$E$7="Autopatrocínio",Simulador!$C$10,Simulador!$C$9)-Simulador!$C$8)*12,A49=0),0,A49+1) -> 0 | B50: =IF($A50=0,0,IF(INT($A49/12)-$A49/12=0,B49*(1+Simulador!$C$35),B49)) -> 0 | C50: =MAX(IF(A50=0,0,B50-IF(Simulador!$C$11="Individual",0,Simulador!$C$14)),0) -> 0 | E50: 0 | F50: 0 | G50: 0 | H50: 0 | I50: 0 | J50: 0 | L50: 0 | M50: 0 | N50: 0 | O50: 0 | P50: 0 | Q50: 0 | S50: 0 | T50: 0 | U50: 0 | V50: 0 | W50: 0 | Y50: =IF(OR(Y49+1>(IF(AND(Simulador!$C$9<Simulador!$C$10,OR(Simulador!$E$7="Resgate",Simulador!$E$7="Portabilidade")),Simulador!$C$9,Simulador!$C$10)-Simulador!$C$8)*12,Y49=0),0,Y49+1) -> 46 | Z50: =IF($Y50=0,0,Z49*(1+Simulador!$D$34)+E50+L50) -> 0 | AA50: =IF($Y50=0,0,AA49*(1+Simulador!$D$34)+S50) -> 0 | AB50: =IF(OR(AB49+1>(IF(AND(Simulador!$C$9<Simulador!$C$10,OR(Simulador!$E$7="Resgate",Simulador!$E$7="Portabilidade")),Simulador!$C$9,Simulador!$C$50)-Simulador!$C$8)*12,AB49=0),0,AB49+1) -> 46 | AC50: =IF($AB50=0,0,AC49*(1+Simulador!$D$34)+F50+M50) -> 0 | AD50: =IF($AB50=0,0,AD49*(1+Simulador!$D$34)+T50) -> 0
A51: =IF(OR(A50+1>(IF(Simulador!$E$7="Autopatrocínio",Simulador!$C$10,Simulador!$C$9)-Simulador!$C$8)*12,A50=0),0,A50+1) -> 0 | B51: =IF($A51=0,0,IF(INT($A50/12)-$A50/12=0,B50*(1+Simulador!$C$35),B50)) -> 0 | C51: =MAX(IF(A51=0,0,B51-IF(Simulador!$C$11="Individual",0,Simulador!$C$14)),0) -> 0 | E51: 0 | F51: 0 | G51: 0 | H51: 0 | I51: 0 | J51: 0 | L51: 0 | M51: 0 | N51: 0 | O51: 0 | P51: 0 | Q51: 0 | S51: 0 | T51: 0 | U51: 0 | V51: 0 | W51: 0 | Y51: =IF(OR(Y50+1>(IF(AND(Simulador!$C$9<Simulador!$C$10,OR(Simulador!$E$7="Resgate",Simulador!$E$7="Portabilidade")),Simulador!$C$9,Simulador!$C$10)-Simulador!$C$8)*12,Y50=0),0,Y50+1) -> 47 | Z51: =IF($Y51=0,0,Z50*(1+Simulador!$D$34)+E51+L51) -> 0 | AA51: =IF($Y51=0,0,AA50*(1+Simulador!$D$34)+S51) -> 0 | AB51: =IF(OR(AB50+1>(IF(AND(Simulador!$C$9<Simulador!$C$10,OR(Simulador!$E$7="Resgate",Simulador!$E$7="Portabilidade")),Simulador!$C$9,Simulador!$C$50)-Simulador!$C$8)*12,AB50=0),0,AB50+1) -> 47 | AC51: =IF($AB51=0,0,AC50*(1+Simulador!$D$34)+F51+M51) -> 0 | AD51: =IF($AB51=0,0,AD50*(1+Simulador!$D$34)+T51) -> 0
A52: =IF(OR(A51+1>(IF(Simulador!$E$7="Autopatrocínio",Simulador!$C$10,Simulador!$C$9)-Simulador!$C$8)*12,A51=0),0,A51+1) -> 0 | B52: =IF($A52=0,0,IF(INT($A51/12)-$A51/12=0,B51*(1+Simulador!$C$35),B51)) -> 0 | C52: =MAX(IF(A52=0,0,B52-IF(Simulador!$C$11="Individual",0,Simulador!$C$14)),0) -> 0 | E52: 0 | F52: 0 | G52: 0 | H52: 0 | I52: 0 | J52: 0 | L52: 0 | M52: 0 | N52: 0 | O52: 0 | P52: 0 | Q52: 0 | S52: 0 | T52: 0 | U52: 0 | V52: 0 | W52: 0 | Y52: =IF(OR(Y51+1>(IF(AND(Simulador!$C$9<Simulador!$C$10,OR(Simulador!$E$7="Resgate",Simulador!$E$7="Portabilidade")),Simulador!$C$9,Simulador!$C$10)-Simulador!$C$8)*12,Y51=0),0,Y51+1) -> 48 | Z52: =IF($Y52=0,0,Z51*(1+Simulador!$D$34)+E52+L52) -> 0 | AA52: =IF($Y52=0,0,AA51*(1+Simulador!$D$34)+S52) -> 0 | AB52: =IF(OR(AB51+1>(IF(AND(Simulador!$C$9<Simulador!$C$10,OR(Simulador!$E$7="Resgate",Simulador!$E$7="Portabilidade")),Simulador!$C$9,Simulador!$C$50)-Simulador!$C$8)*12,AB51=0),0,AB51+1) -> 48 | AC52: =IF($AB52=0,0,AC51*(1+Simulador!$D$34)+F52+M52) -> 0 | AD52: =IF($AB52=0,0,AD51*(1+Simulador!$D$34)+T52) -> 0
A53: =IF(OR(A52+1>(IF(Simulador!$E$7="Autopatrocínio",Simulador!$C$10,Simulador!$C$9)-Simulador!$C$8)*12,A52=0),0,A52+1) -> 0 | B53: =IF($A53=0,0,IF(INT($A52/12)-$A52/12=0,B52*(1+Simulador!$C$35),B52)) -> 0 | C53: =MAX(IF(A53=0,0,B53-IF(Simulador!$C$11="Individual",0,Simulador!$C$14)),0) -> 0 | E53: 0 | F53: 0 | G53: 0 | H53: 0 | I53: 0 | J53: 0 | L53: 0 | M53: 0 | N53: 0 | O53: 0 | P53: 0 | Q53: 0 | S53: =S$4*$C53*(1+$J53) -> 0 | T53: 0 | U53: 0 | V53: 0 | W53: 0 | Y53: =IF(OR(Y52+1>(IF(AND(Simulador!$C$9<Simulador!$C$10,OR(Simulador!$E$7="Resgate",Simulador!$E$7="Portabilidade")),Simulador!$C$9,Simulador!$C$10)-Simulador!$C$8)*12,Y52=0),0,Y52+1) -> 49 | Z53: =IF($Y53=0,0,Z52*(1+Simulador!$D$34)+E53+L53) -> 0 | AA53: =IF($Y53=0,0,AA52*(1+Simulador!$D$34)+S53) -> 0 | AB53: =IF(OR(AB52+1>(IF(AND(Simulador!$C$9<Simulador!$C$10,OR(Simulador!$E$7="Resgate",Simulador!$E$7="Portabilidade")),Simulador!$C$9,Simulador!$C$50)-Simulador!$C$8)*12,AB52=0),0,AB52+1) -> 49 | AC53: =IF($AB53=0,0,AC52*(1+Simulador!$D$34)+F53+M53) -> 0 | AD53: =IF($AB53=0,0,AD52*(1+Simulador!$D$34)+T53) -> 0
A54: =IF(OR(A53+1>(IF(Simulador!$E$7="Autopatrocínio",Simulador!$C$10,Simulador!$C$9)-Simulador!$C$8)*12,A53=0),0,A53+1) -> 0 | B54: =IF($A54=0,0,IF(INT($A53/12)-$A53/12=0,B53*(1+Simulador!$C$35),B53)) -> 0 | C54: =MAX(IF(A54=0,0,B54-IF(Simulador!$C$11="Individual",0,Simulador!$C$14)),0) -> 0 | E54: 0 | F54: 0 | G54: 0 | H54: 0 | I54: 0 | J54: 0 | L54: 0 | M54: 0 | N54: 0 | O54: 0 | P54: 0 | Q54: 0 | S54: 0 | T54: 0 | U54: 0 | V54: 0 | W54: 0 | Y54: =IF(OR(Y53+1>(IF(AND(Simulador!$C$9<Simulador!$C$10,OR(Simulador!$E$7="Resgate",Simulador!$E$7="Portabilidade")),Simulador!$C$9,Simulador!$C$10)-Simulador!$C$8)*12,Y53=0),0,Y53+1) -> 50 | Z54: =IF($Y54=0,0,Z53*(1+Simulador!$D$34)+E54+L54) -> 0 | AA54: =IF($Y54=0,0,AA53*(1+Simulador!$D$34)+S54) -> 0 | AB54: =IF(OR(AB53+1>(IF(AND(Simulador!$C$9<Simulador!$C$10,OR(Simulador!$E$7="Resgate",Simulador!$E$7="Portabilidade")),Simulador!$C$9,Simulador!$C$50)-Simulador!$C$8)*12,AB53=0),0,AB53+1) -> 50 | AC54: =IF($AB54=0,0,AC53*(1+Simulador!$D$34)+F54+M54) -> 0 | AD54: =IF($AB54=0,0,AD53*(1+Simulador!$D$34)+T54) -> 0
A55: =IF(OR(A54+1>(IF(Simulador!$E$7="Autopatrocínio",Simulador!$C$10,Simulador!$C$9)-Simulador!$C$8)*12,A54=0),0,A54+1) -> 0 | B55: =IF($A55=0,0,IF(INT($A54/12)-$A54/12=0,B54*(1+Simulador!$C$35),B54)) -> 0 | C55: =MAX(IF(A55=0,0,B55-IF(Simulador!$C$11="Individual",0,Simulador!$C$14)),0) -> 0 | E55: =E$4*$C55*(1+$J55) -> 0 | F55: 0 | G55: 0 | H55: 0 | I55: 0 | J55: 0 | L55: =L$4*$C55*$Q55 -> 0 | M55: 0 | N55: 0 | O55: 0 | P55: 0 | Q55: 0 | S55: 0 | T55: 0 | U55: 0 | V55: 0 | W55: 0 | Y55: =IF(OR(Y54+1>(IF(AND(Simulador!$C$9<Simulador!$C$10,OR(Simulador!$E$7="Resgate",Simulador!$E$7="Portabilidade")),Simulador!$C$9,Simulador!$C$10)-Simulador!$C$8)*12,Y54=0),0,Y54+1) -> 51 | Z55: =IF($Y55=0,0,Z54*(1+Simulador!$D$34)+E55+L55) -> 0 | AA55: =IF($Y55=0,0,AA54*(1+Simulador!$D$34)+S55) -> 0 | AB55: =IF(OR(AB54+1>(IF(AND(Simulador!$C$9<Simulador!$C$10,OR(Simulador!$E$7="Resgate",Simulador!$E$7="Portabilidade")),Simulador!$C$9,Simulador!$C$50)-Simulador!$C$8)*12,AB54=0),0,AB54+1) -> 51 | AC55: =IF($AB55=0,0,AC54*(1+Simulador!$D$34)+F55+M55) -> 0 | AD55: =IF($AB55=0,0,AD54*(1+Simulador!$D$34)+T55) -> 0
A56: =IF(OR(A55+1>(IF(Simulador!$E$7="Autopatrocínio",Simulador!$C$10,Simulador!$C$9)-Simulador!$C$8)*12,A55=0),0,A55+1) -> 0 | B56: =IF($A56=0,0,IF(INT($A55/12)-$A55/12=0,B55*(1+Simulador!$C$35),B55)) -> 0 | C56: =MAX(IF(A56=0,0,B56-IF(Simulador!$C$11="Individual",0,Simulador!$C$14)),0) -> 0 | E56: 0 | F56: 0 | G56: 0 | H56: 0 | I56: 0 | J56: 0 | L56: 0 | M56: 0 | N56: 0 | O56: 0 | P56: 0 | Q56: 0 | S56: 0 | T56: 0 | U56: 0 | V56: 0 | W56: 0 | Y56: =IF(OR(Y55+1>(IF(AND(Simulador!$C$9<Simulador!$C$10,OR(Simulador!$E$7="Resgate",Simulador!$E$7="Portabilidade")),Simulador!$C$9,Simulador!$C$10)-Simulador!$C$8)*12,Y55=0),0,Y55+1) -> 52 | Z56: =IF($Y56=0,0,Z55*(1+Simulador!$D$34)+E56+L56) -> 0 | AA56: =IF($Y56=0,0,AA55*(1+Simulador!$D$34)+S56) -> 0 | AB56: =IF(OR(AB55+1>(IF(AND(Simulador!$C$9<Simulador!$C$10,OR(Simulador!$E$7="Resgate",Simulador!$E$7="Portabilidade")),Simulador!$C$9,Simulador!$C$50)-Simulador!$C$8)*12,AB55=0),0,AB55+1) -> 52 | AC56: =IF($AB56=0,0,AC55*(1+Simulador!$D$34)+F56+M56) -> 0 | AD56: =IF($AB56=0,0,AD55*(1+Simulador!$D$34)+T56) -> 0
A57: =IF(OR(A56+1>(IF(Simulador!$E$7="Autopatrocínio",Simulador!$C$10,Simulador!$C$9)-Simulador!$C$8)*12,A56=0),0,A56+1) -> 0 | B57: =IF($A57=0,0,IF(INT($A56/12)-$A56/12=0,B56*(1+Simulador!$C$35),B56)) -> 0 | C57: =MAX(IF(A57=0,0,B57-IF(Simulador!$C$11="Individual",0,Simulador!$C$14)),0) -> 0 | E57: 0 | F57: 0 | G57: 0 | H57: 0 | I57: 0 | J57: 0 | L57: 0 | M57: 0 | N57: 0 | O57: 0 | P57: 0 | Q57: 0 | S57: 0 | T57: 0 | U57: 0 | V57: 0 | W57: 0 | Y57: =IF(OR(Y56+1>(IF(AND(Simulador!$C$9<Simulador!$C$10,OR(Simulador!$E$7="Resgate",Simulador!$E$7="Portabilidade")),Simulador!$C$9,Simulador!$C$10)-Simulador!$C$8)*12,Y56=0),0,Y56+1) -> 53 | Z57: =IF($Y57=0,0,Z56*(1+Simulador!$D$34)+E57+L57) -> 0 | AA57: =IF($Y57=0,0,AA56*(1+Simulador!$D$34)+S57) -> 0 | AB57: =IF(OR(AB56+1>(IF(AND(Simulador!$C$9<Simulador!$C$10,OR(Simulador!$E$7="Resgate",Simulador!$E$7="Portabilidade")),Simulador!$C$9,Simulador!$C$50)-Simulador!$C$8)*12,AB56=0),0,AB56+1) -> 53 | AC57: =IF($AB57=0,0,AC56*(1+Simulador!$D$34)+F57+M57) -> 0 | AD57: =IF($AB57=0,0,AD56*(1+Simulador!$D$34)+T57) -> 0
A58: =IF(OR(A57+1>(IF(Simulador!$E$7="Autopatrocínio",Simulador!$C$10,Simulador!$C$9)-Simulador!$C$8)*12,A57=0),0,A57+1) -> 0 | B58: =IF($A58=0,0,IF(INT($A57/12)-$A57/12=0,B57*(1+Simulador!$C$35),B57)) -> 0 | C58: =MAX(IF(A58=0,0,B58-IF(Simulador!$C$11="Individual",0,Simulador!$C$14)),0) -> 0 | E58: 0 | F58: 0 | G58: 0 | H58: 0 | I58: 0 | J58: 0 | L58: 0 | M58: 0 | N58: 0 | O58: 0 | P58: 0 | Q58: 0 | S58: 0 | T58: 0 | U58: 0 | V58: 0 | W58: 0 | Y58: =IF(OR(Y57+1>(IF(AND(Simulador!$C$9<Simulador!$C$10,OR(Simulador!$E$7="Resgate",Simulador!$E$7="Portabilidade")),Simulador!$C$9,Simulador!$C$10)-Simulador!$C$8)*12,Y57=0),0,Y57+1) -> 54 | Z58: =IF($Y58=0,0,Z57*(1+Simulador!$D$34)+E58+L58) -> 0 | AA58: =IF($Y58=0,0,AA57*(1+Simulador!$D$34)+S58) -> 0 | AB58: =IF(OR(AB57+1>(IF(AND(Simulador!$C$9<Simulador!$C$10,OR(Simulador!$E$7="Resgate",Simulador!$E$7="Portabilidade")),Simulador!$C$9,Simulador!$C$50)-Simulador!$C$8)*12,AB57=0),0,AB57+1) -> 54 | AC58: =IF($AB58=0,0,AC57*(1+Simulador!$D$34)+F58+M58) -> 0 | AD58: =IF($AB58=0,0,AD57*(1+Simulador!$D$34)+T58) -> 0
A59: =IF(OR(A58+1>(IF(Simulador!$E$7="Autopatrocínio",Simulador!$C$10,Simulador!$C$9)-Simulador!$C$8)*12,A58=0),0,A58+1) -> 0 | B59: =IF($A59=0,0,IF(INT($A58/12)-$A58/12=0,B58*(1+Simulador!$C$35),B58)) -> 0 | C59: =MAX(IF(A59=0,0,B59-IF(Simulador!$C$11="Individual",0,Simulador!$C$14)),0) -> 0 | E59: 0 | F59: 0 | G59: 0 | H59: 0 | I59: 0 | J59: 0 | L59: 0 | M59: 0 | N59: 0 | O59: 0 | P59: 0 | Q59: 0 | S59: 0 | T59: 0 | U59: 0 | V59: 0 | W59: 0 | Y59: =IF(OR(Y58+1>(IF(AND(Simulador!$C$9<Simulador!$C$10,OR(Simulador!$E$7="Resgate",Simulador!$E$7="Portabilidade")),Simulador!$C$9,Simulador!$C$10)-Simulador!$C$8)*12,Y58=0),0,Y58+1) -> 55 | Z59: =IF($Y59=0,0,Z58*(1+Simulador!$D$34)+E59+L59) -> 0 | AA59: =IF($Y59=0,0,AA58*(1+Simulador!$D$34)+S59) -> 0 | AB59: =IF(OR(AB58+1>(IF(AND(Simulador!$C$9<Simulador!$C$10,OR(Simulador!$E$7="Resgate",Simulador!$E$7="Portabilidade")),Simulador!$C$9,Simulador!$C$50)-Simulador!$C$8)*12,AB58=0),0,AB58+1) -> 55 | AC59: =IF($AB59=0,0,AC58*(1+Simulador!$D$34)+F59+M59) -> 0 | AD59: =IF($AB59=0,0,AD58*(1+Simulador!$D$34)+T59) -> 0
A60: =IF(OR(A59+1>(IF(Simulador!$E$7="Autopatrocínio",Simulador!$C$10,Simulador!$C$9)-Simulador!$C$8)*12,A59=0),0,A59+1) -> 0 | B60: =IF($A60=0,0,IF(INT($A59/12)-$A59/12=0,B59*(1+Simulador!$C$35),B59)) -> 0 | C60: =MAX(IF(A60=0,0,B60-IF(Simulador!$C$11="Individual",0,Simulador!$C$14)),0) -> 0 | E60: 0 | F60: 0 | G60: 0 | H60: 0 | I60: 0 | J60: 0 | L60: 0 | M60: 0 | N60: 0 | O60: 0 | P60: 0 | Q60: 0 | S60: 0 | T60: 0 | U60: 0 | V60: 0 | W60: 0 | Y60: =IF(OR(Y59+1>(IF(AND(Simulador!$C$9<Simulador!$C$10,OR(Simulador!$E$7="Resgate",Simulador!$E$7="Portabilidade")),Simulador!$C$9,Simulador!$C$10)-Simulador!$C$8)*12,Y59=0),0,Y59+1) -> 56 | Z60: =IF($Y60=0,0,Z59*(1+Simulador!$D$34)+E60+L60) -> 0 | AA60: =IF($Y60=0,0,AA59*(1+Simulador!$D$34)+S60) -> 0 | AB60: =IF(OR(AB59+1>(IF(AND(Simulador!$C$9<Simulador!$C$10,OR(Simulador!$E$7="Resgate",Simulador!$E$7="Portabilidade")),Simulador!$C$9,Simulador!$C$50)-Simulador!$C$8)*12,AB59=0),0,AB59+1) -> 56 | AC60: =IF($AB60=0,0,AC59*(1+Simulador!$D$34)+F60+M60) -> 0 | AD60: =IF($AB60=0,0,AD59*(1+Simulador!$D$34)+T60) -> 0
A61: =IF(OR(A60+1>(IF(Simulador!$E$7="Autopatrocínio",Simulador!$C$10,Simulador!$C$9)-Simulador!$C$8)*12,A60=0),0,A60+1) -> 0 | B61: =IF($A61=0,0,IF(INT($A60/12)-$A60/12=0,B60*(1+Simulador!$C$35),B60)) -> 0 | C61: =MAX(IF(A61=0,0,B61-IF(Simulador!$C$11="Individual",0,Simulador!$C$14)),0) -> 0 | E61: 0 | F61: 0 | G61: 0 | H61: 0 | I61: 0 | J61: 0 | L61: 0 | M61: 0 | N61: 0 | O61: 0 | P61: 0 | Q61: 0 | S61: 0 | T61: 0 | U61: 0 | V61: 0 | W61: 0 | Y61: =IF(OR(Y60+1>(IF(AND(Simulador!$C$9<Simulador!$C$10,OR(Simulador!$E$7="Resgate",Simulador!$E$7="Portabilidade")),Simulador!$C$9,Simulador!$C$10)-Simulador!$C$8)*12,Y60=0),0,Y60+1) -> 57 | Z61: =IF($Y61=0,0,Z60*(1+Simulador!$D$34)+E61+L61) -> 0 | AA61: =IF($Y61=0,0,AA60*(1+Simulador!$D$34)+S61) -> 0 | AB61: =IF(OR(AB60+1>(IF(AND(Simulador!$C$9<Simulador!$C$10,OR(Simulador!$E$7="Resgate",Simulador!$E$7="Portabilidade")),Simulador!$C$9,Simulador!$C$50)-Simulador!$C$8)*12,AB60=0),0,AB60+1) -> 57 | AC61: =IF($AB61=0,0,AC60*(1+Simulador!$D$34)+F61+M61) -> 0 | AD61: =IF($AB61=0,0,AD60*(1+Simulador!$D$34)+T61) -> 0
A62: =IF(OR(A61+1>(IF(Simulador!$E$7="Autopatrocínio",Simulador!$C$10,Simulador!$C$9)-Simulador!$C$8)*12,A61=0),0,A61+1) -> 0 | B62: =IF($A62=0,0,IF(INT($A61/12)-$A61/12=0,B61*(1+Simulador!$C$35),B61)) -> 0 | C62: =MAX(IF(A62=0,0,B62-IF(Simulador!$C$11="Individual",0,Simulador!$C$14)),0) -> 0 | E62: 0 | F62: 0 | G62: 0 | H62: 0 | I62: 0 | J62: 0 | L62: 0 | M62: 0 | N62: 0 | O62: 0 | P62: 0 | Q62: 0 | S62: 0 | T62: 0 | U62: 0 | V62: 0 | W62: 0 | Y62: =IF(OR(Y61+1>(IF(AND(Simulador!$C$9<Simulador!$C$10,OR(Simulador!$E$7="Resgate",Simulador!$E$7="Portabilidade")),Simulador!$C$9,Simulador!$C$10)-Simulador!$C$8)*12,Y61=0),0,Y61+1) -> 58 | Z62: =IF($Y62=0,0,Z61*(1+Simulador!$D$34)+E62+L62) -> 0 | AA62: =IF($Y62=0,0,AA61*(1+Simulador!$D$34)+S62) -> 0 | AB62: =IF(OR(AB61+1>(IF(AND(Simulador!$C$9<Simulador!$C$10,OR(Simulador!$E$7="Resgate",Simulador!$E$7="Portabilidade")),Simulador!$C$9,Simulador!$C$50)-Simulador!$C$8)*12,AB61=0),0,AB61+1) -> 58 | AC62: =IF($AB62=0,0,AC61*(1+Simulador!$D$34)+F62+M62) -> 0 | AD62: =IF($AB62=0,0,AD61*(1+Simulador!$D$34)+T62) -> 0
A63: =IF(OR(A62+1>(IF(Simulador!$E$7="Autopatrocínio",Simulador!$C$10,Simulador!$C$9)-Simulador!$C$8)*12,A62=0),0,A62+1) -> 0 | B63: =IF($A63=0,0,IF(INT($A62/12)-$A62/12=0,B62*(1+Simulador!$C$35),B62)) -> 0 | C63: =MAX(IF(A63=0,0,B63-IF(Simulador!$C$11="Individual",0,Simulador!$C$14)),0) -> 0 | E63: 0 | F63: 0 | G63: 0 | H63: 0 | I63: 0 | J63: 0 | L63: 0 | M63: 0 | N63: 0 | O63: 0 | P63: 0 | Q63: 0 | S63: 0 | T63: 0 | U63: 0 | V63: 0 | W63: 0 | Y63: =IF(OR(Y62+1>(IF(AND(Simulador!$C$9<Simulador!$C$10,OR(Simulador!$E$7="Resgate",Simulador!$E$7="Portabilidade")),Simulador!$C$9,Simulador!$C$10)-Simulador!$C$8)*12,Y62=0),0,Y62+1) -> 59 | Z63: =IF($Y63=0,0,Z62*(1+Simulador!$D$34)+E63+L63) -> 0 | AA63: =IF($Y63=0,0,AA62*(1+Simulador!$D$34)+S63) -> 0 | AB63: =IF(OR(AB62+1>(IF(AND(Simulador!$C$9<Simulador!$C$10,OR(Simulador!$E$7="Resgate",Simulador!$E$7="Portabilidade")),Simulador!$C$9,Simulador!$C$50)-Simulador!$C$8)*12,AB62=0),0,AB62+1) -> 59 | AC63: =IF($AB63=0,0,AC62*(1+Simulador!$D$34)+F63+M63) -> 0 | AD63: =IF($AB63=0,0,AD62*(1+Simulador!$D$34)+T63) -> 0
A64: =IF(OR(A63+1>(IF(Simulador!$E$7="Autopatrocínio",Simulador!$C$10,Simulador!$C$9)-Simulador!$C$8)*12,A63=0),0,A63+1) -> 0 | B64: =IF($A64=0,0,IF(INT($A63/12)-$A63/12=0,B63*(1+Simulador!$C$35),B63)) -> 0 | C64: =MAX(IF(A64=0,0,B64-IF(Simulador!$C$11="Individual",0,Simulador!$C$14)),0) -> 0 | E64: 0 | F64: 0 | G64: 0 | H64: 0 | I64: 0 | J64: 0 | L64: 0 | M64: 0 | N64: 0 | O64: 0 | P64: 0 | Q64: 0 | S64: 0 | T64: 0 | U64: 0 | V64: 0 | W64: 0 | Y64: =IF(OR(Y63+1>(IF(AND(Simulador!$C$9<Simulador!$C$10,OR(Simulador!$E$7="Resgate",Simulador!$E$7="Portabilidade")),Simulador!$C$9,Simulador!$C$10)-Simulador!$C$8)*12,Y63=0),0,Y63+1) -> 60 | Z64: =IF($Y64=0,0,Z63*(1+Simulador!$D$34)+E64+L64) -> 0 | AA64: =IF($Y64=0,0,AA63*(1+Simulador!$D$34)+S64) -> 0 | AB64: =IF(OR(AB63+1>(IF(AND(Simulador!$C$9<Simulador!$C$10,OR(Simulador!$E$7="Resgate",Simulador!$E$7="Portabilidade")),Simulador!$C$9,Simulador!$C$50)-Simulador!$C$8)*12,AB63=0),0,AB63+1) -> 60 | AC64: =IF($AB64=0,0,AC63*(1+Simulador!$D$34)+F64+M64) -> 0 | AD64: =IF($AB64=0,0,AD63*(1+Simulador!$D$34)+T64) -> 0
A65: =IF(OR(A64+1>(IF(Simulador!$E$7="Autopatrocínio",Simulador!$C$10,Simulador!$C$9)-Simulador!$C$8)*12,A64=0),0,A64+1) -> 0 | B65: =IF($A65=0,0,IF(INT($A64/12)-$A64/12=0,B64*(1+Simulador!$C$35),B64)) -> 0 | C65: =MAX(IF(A65=0,0,B65-IF(Simulador!$C$11="Individual",0,Simulador!$C$14)),0) -> 0 | E65: =E$4*$C65*(1+$J65) -> 0 | F65: 0 | G65: 0 | H65: 0 | I65: 0 | J65: 0 | L65: =L$4*$C65*$Q65 -> 0 | M65: 0 | N65: 0 | O65: 0 | P65: 0 | Q65: 0 | S65: 0 | T65: 0 | U65: 0 | V65: 0 | W65: 0 | Y65: =IF(OR(Y64+1>(IF(AND(Simulador!$C$9<Simulador!$C$10,OR(Simulador!$E$7="Resgate",Simulador!$E$7="Portabilidade")),Simulador!$C$9,Simulador!$C$10)-Simulador!$C$8)*12,Y64=0),0,Y64+1) -> 61 | Z65: =IF($Y65=0,0,Z64*(1+Simulador!$D$34)+E65+L65) -> 0 | AA65: =IF($Y65=0,0,AA64*(1+Simulador!$D$34)+S65) -> 0 | AB65: =IF(OR(AB64+1>(IF(AND(Simulador!$C$9<Simulador!$C$10,OR(Simulador!$E$7="Resgate",Simulador!$E$7="Portabilidade")),Simulador!$C$9,Simulador!$C$50)-Simulador!$C$8)*12,AB64=0),0,AB64+1) -> 61 | AC65: =IF($AB65=0,0,AC64*(1+Simulador!$D$34)+F65+M65) -> 0 | AD65: =IF($AB65=0,0,AD64*(1+Simulador!$D$34)+T65) -> 0
A66: =IF(OR(A65+1>(IF(Simulador!$E$7="Autopatrocínio",Simulador!$C$10,Simulador!$C$9)-Simulador!$C$8)*12,A65=0),0,A65+1) -> 0 | B66: =IF($A66=0,0,IF(INT($A65/12)-$A65/12=0,B65*(1+Simulador!$C$35),B65)) -> 0 | C66: =MAX(IF(A66=0,0,B66-IF(Simulador!$C$11="Individual",0,Simulador!$C$14)),0) -> 0 | E66: 0 | F66: 0 | G66: 0 | H66: 0 | I66: 0 | J66: 0 | L66: 0 | M66: 0 | N66: 0 | O66: 0 | P66: 0 | Q66: 0 | S66: 0 | T66: 0 | U66: 0 | V66: 0 | W66: 0 | Y66: =IF(OR(Y65+1>(IF(AND(Simulador!$C$9<Simulador!$C$10,OR(Simulador!$E$7="Resgate",Simulador!$E$7="Portabilidade")),Simulador!$C$9,Simulador!$C$10)-Simulador!$C$8)*12,Y65=0),0,Y65+1) -> 62 | Z66: =IF($Y66=0,0,Z65*(1+Simulador!$D$34)+E66+L66) -> 0 | AA66: =IF($Y66=0,0,AA65*(1+Simulador!$D$34)+S66) -> 0 | AB66: =IF(OR(AB65+1>(IF(AND(Simulador!$C$9<Simulador!$C$10,OR(Simulador!$E$7="Resgate",Simulador!$E$7="Portabilidade")),Simulador!$C$9,Simulador!$C$50)-Simulador!$C$8)*12,AB65=0),0,AB65+1) -> 62 | AC66: =IF($AB66=0,0,AC65*(1+Simulador!$D$34)+F66+M66) -> 0 | AD66: =IF($AB66=0,0,AD65*(1+Simulador!$D$34)+T66) -> 0
A67: =IF(OR(A66+1>(IF(Simulador!$E$7="Autopatrocínio",Simulador!$C$10,Simulador!$C$9)-Simulador!$C$8)*12,A66=0),0,A66+1) -> 0 | B67: =IF($A67=0,0,IF(INT($A66/12)-$A66/12=0,B66*(1+Simulador!$C$35),B66)) -> 0 | C67: =MAX(IF(A67=0,0,B67-IF(Simulador!$C$11="Individual",0,Simulador!$C$14)),0) -> 0 | E67: 0 | F67: 0 | G67: 0 | H67: 0 | I67: 0 | J67: 0 | L67: 0 | M67: 0 | N67: 0 | O67: 0 | P67: 0 | Q67: 0 | S67: 0 | T67: 0 | U67: 0 | V67: 0 | W67: 0 | Y67: =IF(OR(Y66+1>(IF(AND(Simulador!$C$9<Simulador!$C$10,OR(Simulador!$E$7="Resgate",Simulador!$E$7="Portabilidade")),Simulador!$C$9,Simulador!$C$10)-Simulador!$C$8)*12,Y66=0),0,Y66+1) -> 63 | Z67: =IF($Y67=0,0,Z66*(1+Simulador!$D$34)+E67+L67) -> 0 | AA67: =IF($Y67=0,0,AA66*(1+Simulador!$D$34)+S67) -> 0 | AB67: =IF(OR(AB66+1>(IF(AND(Simulador!$C$9<Simulador!$C$10,OR(Simulador!$E$7="Resgate",Simulador!$E$7="Portabilidade")),Simulador!$C$9,Simulador!$C$50)-Simulador!$C$8)*12,AB66=0),0,AB66+1) -> 63 | AC67: =IF($AB67=0,0,AC66*(1+Simulador!$D$34)+F67+M67) -> 0 | AD67: =IF($AB67=0,0,AD66*(1+Simulador!$D$34)+T67) -> 0
A68: =IF(OR(A67+1>(IF(Simulador!$E$7="Autopatrocínio",Simulador!$C$10,Simulador!$C$9)-Simulador!$C$8)*12,A67=0),0,A67+1) -> 0 | B68: =IF($A68=0,0,IF(INT($A67/12)-$A67/12=0,B67*(1+Simulador!$C$35),B67)) -> 0 | C68: =MAX(IF(A68=0,0,B68-IF(Simulador!$C$11="Individual",0,Simulador!$C$14)),0) -> 0 | E68: 0 | F68: 0 | G68: 0 | H68: 0 | I68: 0 | J68: 0 | L68: 0 | M68: 0 | N68: 0 | O68: 0 | P68: 0 | Q68: 0 | S68: 0 | T68: 0 | U68: 0 | V68: 0 | W68: 0 | Y68: =IF(OR(Y67+1>(IF(AND(Simulador!$C$9<Simulador!$C$10,OR(Simulador!$E$7="Resgate",Simulador!$E$7="Portabilidade")),Simulador!$C$9,Simulador!$C$10)-Simulador!$C$8)*12,Y67=0),0,Y67+1) -> 64 | Z68: =IF($Y68=0,0,Z67*(1+Simulador!$D$34)+E68+L68) -> 0 | AA68: =IF($Y68=0,0,AA67*(1+Simulador!$D$34)+S68) -> 0 | AB68: =IF(OR(AB67+1>(IF(AND(Simulador!$C$9<Simulador!$C$10,OR(Simulador!$E$7="Resgate",Simulador!$E$7="Portabilidade")),Simulador!$C$9,Simulador!$C$50)-Simulador!$C$8)*12,AB67=0),0,AB67+1) -> 64 | AC68: =IF($AB68=0,0,AC67*(1+Simulador!$D$34)+F68+M68) -> 0 | AD68: =IF($AB68=0,0,AD67*(1+Simulador!$D$34)+T68) -> 0
A69: =IF(OR(A68+1>(IF(Simulador!$E$7="Autopatrocínio",Simulador!$C$10,Simulador!$C$9)-Simulador!$C$8)*12,A68=0),0,A68+1) -> 0 | B69: =IF($A69=0,0,IF(INT($A68/12)-$A68/12=0,B68*(1+Simulador!$C$35),B68)) -> 0 | C69: =MAX(IF(A69=0,0,B69-IF(Simulador!$C$11="Individual",0,Simulador!$C$14)),0) -> 0 | E69: 0 | F69: 0 | G69: 0 | H69: 0 | I69: 0 | J69: =IF($A69=0,0,IF(INT($A69/12)-$A69/12=0,1,0)) -> 0 | L69: 0 | M69: 0 | N69: 0 | O69: 0 | P69: 0 | Q69: =IF($A69=0,0,IF($Q$4="Mensal",1,IF($Q$4="Semestral",IF(INT(($A69+5)/6)-($A69+5)/6=0,1,0),IF($Q$4="Anual",IF(INT(($A69+11)/12)-($A69+11)/12=0,1,0))))) -> 0 | S69: =S$4*$C69*(1+$J69) -> 0 | T69: 0 | U69: 0 | V69: 0 | W69: 0 | Y69: =IF(OR(Y68+1>(IF(AND(Simulador!$C$9<Simulador!$C$10,OR(Simulador!$E$7="Resgate",Simulador!$E$7="Portabilidade")),Simulador!$C$9,Simulador!$C$10)-Simulador!$C$8)*12,Y68=0),0,Y68+1) -> 65 | Z69: =IF($Y69=0,0,Z68*(1+Simulador!$D$34)+E69+L69) -> 0 | AA69: =IF($Y69=0,0,AA68*(1+Simulador!$D$34)+S69) -> 0 | AB69: =IF(OR(AB68+1>(IF(AND(Simulador!$C$9<Simulador!$C$10,OR(Simulador!$E$7="Resgate",Simulador!$E$7="Portabilidade")),Simulador!$C$9,Simulador!$C$50)-Simulador!$C$8)*12,AB68=0),0,AB68+1) -> 65 | AC69: =IF($AB69=0,0,AC68*(1+Simulador!$D$34)+F69+M69) -> 0 | AD69: =IF($AB69=0,0,AD68*(1+Simulador!$D$34)+T69) -> 0
A70: =IF(OR(A69+1>(IF(Simulador!$E$7="Autopatrocínio",Simulador!$C$10,Simulador!$C$9)-Simulador!$C$8)*12,A69=0),0,A69+1) -> 0 | B70: =IF($A70=0,0,IF(INT($A69/12)-$A69/12=0,B69*(1+Simulador!$C$35),B69)) -> 0 | C70: =MAX(IF(A70=0,0,B70-IF(Simulador!$C$11="Individual",0,Simulador!$C$14)),0) -> 0 | E70: 0 | F70: 0 | G70: 0 | H70: 0 | I70: 0 | J70: 0 | L70: 0 | M70: 0 | N70: 0 | O70: 0 | P70: 0 | Q70: 0 | S70: 0 | T70: 0 | U70: 0 | V70: 0 | W70: 0 | Y70: =IF(OR(Y69+1>(IF(AND(Simulador!$C$9<Simulador!$C$10,OR(Simulador!$E$7="Resgate",Simulador!$E$7="Portabilidade")),Simulador!$C$9,Simulador!$C$10)-Simulador!$C$8)*12,Y69=0),0,Y69+1) -> 66 | Z70: =IF($Y70=0,0,Z69*(1+Simulador!$D$34)+E70+L70) -> 0 | AA70: =IF($Y70=0,0,AA69*(1+Simulador!$D$34)+S70) -> 0 | AB70: =IF(OR(AB69+1>(IF(AND(Simulador!$C$9<Simulador!$C$10,OR(Simulador!$E$7="Resgate",Simulador!$E$7="Portabilidade")),Simulador!$C$9,Simulador!$C$50)-Simulador!$C$8)*12,AB69=0),0,AB69+1) -> 66 | AC70: =IF($AB70=0,0,AC69*(1+Simulador!$D$34)+F70+M70) -> 0 | AD70: =IF($AB70=0,0,AD69*(1+Simulador!$D$34)+T70) -> 0
A71: =IF(OR(A70+1>(IF(Simulador!$E$7="Autopatrocínio",Simulador!$C$10,Simulador!$C$9)-Simulador!$C$8)*12,A70=0),0,A70+1) -> 0 | B71: =IF($A71=0,0,IF(INT($A70/12)-$A70/12=0,B70*(1+Simulador!$C$35),B70)) -> 0 | C71: =MAX(IF(A71=0,0,B71-IF(Simulador!$C$11="Individual",0,Simulador!$C$14)),0) -> 0 | E71: 0 | F71: 0 | G71: 0 | H71: 0 | I71: 0 | J71: 0 | L71: 0 | M71: 0 | N71: 0 | O71: 0 | P71: 0 | Q71: 0 | S71: 0 | T71: 0 | U71: 0 | V71: 0 | W71: 0 | Y71: =IF(OR(Y70+1>(IF(AND(Simulador!$C$9<Simulador!$C$10,OR(Simulador!$E$7="Resgate",Simulador!$E$7="Portabilidade")),Simulador!$C$9,Simulador!$C$10)-Simulador!$C$8)*12,Y70=0),0,Y70+1) -> 67 | Z71: =IF($Y71=0,0,Z70*(1+Simulador!$D$34)+E71+L71) -> 0 | AA71: =IF($Y71=0,0,AA70*(1+Simulador!$D$34)+S71) -> 0 | AB71: =IF(OR(AB70+1>(IF(AND(Simulador!$C$9<Simulador!$C$10,OR(Simulador!$E$7="Resgate",Simulador!$E$7="Portabilidade")),Simulador!$C$9,Simulador!$C$50)-Simulador!$C$8)*12,AB70=0),0,AB70+1) -> 67 | AC71: =IF($AB71=0,0,AC70*(1+Simulador!$D$34)+F71+M71) -> 0 | AD71: =IF($AB71=0,0,AD70*(1+Simulador!$D$34)+T71) -> 0
A72: =IF(OR(A71+1>(IF(Simulador!$E$7="Autopatrocínio",Simulador!$C$10,Simulador!$C$9)-Simulador!$C$8)*12,A71=0),0,A71+1) -> 0 | B72: =IF($A72=0,0,IF(INT($A71/12)-$A71/12=0,B71*(1+Simulador!$C$35),B71)) -> 0 | C72: =MAX(IF(A72=0,0,B72-IF(Simulador!$C$11="Individual",0,Simulador!$C$14)),0) -> 0 | E72: 0 | F72: 0 | G72: 0 | H72: 0 | I72: 0 | J72: 0 | L72: 0 | M72: 0 | N72: 0 | O72: 0 | P72: 0 | Q72: 0 | S72: 0 | T72: 0 | U72: 0 | V72: 0 | W72: 0 | Y72: =IF(OR(Y71+1>(IF(AND(Simulador!$C$9<Simulador!$C$10,OR(Simulador!$E$7="Resgate",Simulador!$E$7="Portabilidade")),Simulador!$C$9,Simulador!$C$10)-Simulador!$C$8)*12,Y71=0),0,Y71+1) -> 68 | Z72: =IF($Y72=0,0,Z71*(1+Simulador!$D$34)+E72+L72) -> 0 | AA72: =IF($Y72=0,0,AA71*(1+Simulador!$D$34)+S72) -> 0 | AB72: =IF(OR(AB71+1>(IF(AND(Simulador!$C$9<Simulador!$C$10,OR(Simulador!$E$7="Resgate",Simulador!$E$7="Portabilidade")),Simulador!$C$9,Simulador!$C$50)-Simulador!$C$8)*12,AB71=0),0,AB71+1) -> 68 | AC72: =IF($AB72=0,0,AC71*(1+Simulador!$D$34)+F72+M72) -> 0 | AD72: =IF($AB72=0,0,AD71*(1+Simulador!$D$34)+T72) -> 0
A73: =IF(OR(A72+1>(IF(Simulador!$E$7="Autopatrocínio",Simulador!$C$10,Simulador!$C$9)-Simulador!$C$8)*12,A72=0),0,A72+1) -> 0 | B73: =IF($A73=0,0,IF(INT($A72/12)-$A72/12=0,B72*(1+Simulador!$C$35),B72)) -> 0 | C73: =MAX(IF(A73=0,0,B73-IF(Simulador!$C$11="Individual",0,Simulador!$C$14)),0) -> 0 | E73: 0 | F73: 0 | G73: 0 | H73: 0 | I73: 0 | J73: 0 | L73: 0 | M73: 0 | N73: 0 | O73: 0 | P73: 0 | Q73: 0 | S73: 0 | T73: 0 | U73: 0 | V73: 0 | W73: 0 | Y73: =IF(OR(Y72+1>(IF(AND(Simulador!$C$9<Simulador!$C$10,OR(Simulador!$E$7="Resgate",Simulador!$E$7="Portabilidade")),Simulador!$C$9,Simulador!$C$10)-Simulador!$C$8)*12,Y72=0),0,Y72+1) -> 69 | Z73: =IF($Y73=0,0,Z72*(1+Simulador!$D$34)+E73+L73) -> 0 | AA73: =IF($Y73=0,0,AA72*(1+Simulador!$D$34)+S73) -> 0 | AB73: =IF(OR(AB72+1>(IF(AND(Simulador!$C$9<Simulador!$C$10,OR(Simulador!$E$7="Resgate",Simulador!$E$7="Portabilidade")),Simulador!$C$9,Simulador!$C$50)-Simulador!$C$8)*12,AB72=0),0,AB72+1) -> 69 | AC73: =IF($AB73=0,0,AC72*(1+Simulador!$D$34)+F73+M73) -> 0 | AD73: =IF($AB73=0,0,AD72*(1+Simulador!$D$34)+T73) -> 0
A74: =IF(OR(A73+1>(IF(Simulador!$E$7="Autopatrocínio",Simulador!$C$10,Simulador!$C$9)-Simulador!$C$8)*12,A73=0),0,A73+1) -> 0 | B74: =IF($A74=0,0,IF(INT($A73/12)-$A73/12=0,B73*(1+Simulador!$C$35),B73)) -> 0 | C74: =MAX(IF(A74=0,0,B74-IF(Simulador!$C$11="Individual",0,Simulador!$C$14)),0) -> 0 | E74: 0 | F74: 0 | G74: 0 | H74: 0 | I74: 0 | J74: 0 | L74: 0 | M74: 0 | N74: 0 | O74: 0 | P74: 0 | Q74: 0 | S74: 0 | T74: 0 | U74: 0 | V74: 0 | W74: 0 | Y74: =IF(OR(Y73+1>(IF(AND(Simulador!$C$9<Simulador!$C$10,OR(Simulador!$E$7="Resgate",Simulador!$E$7="Portabilidade")),Simulador!$C$9,Simulador!$C$10)-Simulador!$C$8)*12,Y73=0),0,Y73+1) -> 70 | Z74: =IF($Y74=0,0,Z73*(1+Simulador!$D$34)+E74+L74) -> 0 | AA74: =IF($Y74=0,0,AA73*(1+Simulador!$D$34)+S74) -> 0 | AB74: =IF(OR(AB73+1>(IF(AND(Simulador!$C$9<Simulador!$C$10,OR(Simulador!$E$7="Resgate",Simulador!$E$7="Portabilidade")),Simulador!$C$9,Simulador!$C$50)-Simulador!$C$8)*12,AB73=0),0,AB73+1) -> 70 | AC74: =IF($AB74=0,0,AC73*(1+Simulador!$D$34)+F74+M74) -> 0 | AD74: =IF($AB74=0,0,AD73*(1+Simulador!$D$34)+T74) -> 0
A75: =IF(OR(A74+1>(IF(Simulador!$E$7="Autopatrocínio",Simulador!$C$10,Simulador!$C$9)-Simulador!$C$8)*12,A74=0),0,A74+1) -> 0 | B75: =IF($A75=0,0,IF(INT($A74/12)-$A74/12=0,B74*(1+Simulador!$C$35),B74)) -> 0 | C75: =MAX(IF(A75=0,0,B75-IF(Simulador!$C$11="Individual",0,Simulador!$C$14)),0) -> 0 | E75: =E$4*$C75*(1+$J75) -> 0 | F75: 0 | G75: 0 | H75: 0 | I75: 0 | J75: 0 | L75: =L$4*$C75*$Q75 -> 0 | M75: 0 | N75: 0 | O75: 0 | P75: 0 | Q75: 0 | S75: 0 | T75: 0 | U75: 0 | V75: 0 | W75: 0 | Y75: =IF(OR(Y74+1>(IF(AND(Simulador!$C$9<Simulador!$C$10,OR(Simulador!$E$7="Resgate",Simulador!$E$7="Portabilidade")),Simulador!$C$9,Simulador!$C$10)-Simulador!$C$8)*12,Y74=0),0,Y74+1) -> 71 | Z75: =IF($Y75=0,0,Z74*(1+Simulador!$D$34)+E75+L75) -> 0 | AA75: =IF($Y75=0,0,AA74*(1+Simulador!$D$34)+S75) -> 0 | AB75: =IF(OR(AB74+1>(IF(AND(Simulador!$C$9<Simulador!$C$10,OR(Simulador!$E$7="Resgate",Simulador!$E$7="Portabilidade")),Simulador!$C$9,Simulador!$C$50)-Simulador!$C$8)*12,AB74=0),0,AB74+1) -> 71 | AC75: =IF($AB75=0,0,AC74*(1+Simulador!$D$34)+F75+M75) -> 0 | AD75: =IF($AB75=0,0,AD74*(1+Simulador!$D$34)+T75) -> 0
A76: =IF(OR(A75+1>(IF(Simulador!$E$7="Autopatrocínio",Simulador!$C$10,Simulador!$C$9)-Simulador!$C$8)*12,A75=0),0,A75+1) -> 0 | B76: =IF($A76=0,0,IF(INT($A75/12)-$A75/12=0,B75*(1+Simulador!$C$35),B75)) -> 0 | C76: =MAX(IF(A76=0,0,B76-IF(Simulador!$C$11="Individual",0,Simulador!$C$14)),0) -> 0 | E76: 0 | F76: 0 | G76: 0 | H76: 0 | I76: 0 | J76: 0 | L76: 0 | M76: 0 | N76: 0 | O76: 0 | P76: 0 | Q76: 0 | S76: 0 | T76: 0 | U76: 0 | V76: 0 | W76: 0 | Y76: =IF(OR(Y75+1>(IF(AND(Simulador!$C$9<Simulador!$C$10,OR(Simulador!$E$7="Resgate",Simulador!$E$7="Portabilidade")),Simulador!$C$9,Simulador!$C$10)-Simulador!$C$8)*12,Y75=0),0,Y75+1) -> 72 | Z76: =IF($Y76=0,0,Z75*(1+Simulador!$D$34)+E76+L76) -> 0 | AA76: =IF($Y76=0,0,AA75*(1+Simulador!$D$34)+S76) -> 0 | AB76: =IF(OR(AB75+1>(IF(AND(Simulador!$C$9<Simulador!$C$10,OR(Simulador!$E$7="Resgate",Simulador!$E$7="Portabilidade")),Simulador!$C$9,Simulador!$C$50)-Simulador!$C$8)*12,AB75=0),0,AB75+1) -> 72 | AC76: =IF($AB76=0,0,AC75*(1+Simulador!$D$34)+F76+M76) -> 0 | AD76: =IF($AB76=0,0,AD75*(1+Simulador!$D$34)+T76) -> 0
A77: =IF(OR(A76+1>(IF(Simulador!$E$7="Autopatrocínio",Simulador!$C$10,Simulador!$C$9)-Simulador!$C$8)*12,A76=0),0,A76+1) -> 0 | B77: =IF($A77=0,0,IF(INT($A76/12)-$A76/12=0,B76*(1+Simulador!$C$35),B76)) -> 0 | C77: =MAX(IF(A77=0,0,B77-IF(Simulador!$C$11="Individual",0,Simulador!$C$14)),0) -> 0 | E77: 0 | F77: 0 | G77: 0 | H77: 0 | I77: 0 | J77: 0 | L77: 0 | M77: 0 | N77: 0 | O77: 0 | P77: 0 | Q77: 0 | S77: 0 | T77: 0 | U77: 0 | V77: 0 | W77: 0 | Y77: =IF(OR(Y76+1>(IF(AND(Simulador!$C$9<Simulador!$C$10,OR(Simulador!$E$7="Resgate",Simulador!$E$7="Portabilidade")),Simulador!$C$9,Simulador!$C$10)-Simulador!$C$8)*12,Y76=0),0,Y76+1) -> 73 | Z77: =IF($Y77=0,0,Z76*(1+Simulador!$D$34)+E77+L77) -> 0 | AA77: =IF($Y77=0,0,AA76*(1+Simulador!$D$34)+S77) -> 0 | AB77: =IF(OR(AB76+1>(IF(AND(Simulador!$C$9<Simulador!$C$10,OR(Simulador!$E$7="Resgate",Simulador!$E$7="Portabilidade")),Simulador!$C$9,Simulador!$C$50)-Simulador!$C$8)*12,AB76=0),0,AB76+1) -> 73 | AC77: =IF($AB77=0,0,AC76*(1+Simulador!$D$34)+F77+M77) -> 0 | AD77: =IF($AB77=0,0,AD76*(1+Simulador!$D$34)+T77) -> 0
A78: =IF(OR(A77+1>(IF(Simulador!$E$7="Autopatrocínio",Simulador!$C$10,Simulador!$C$9)-Simulador!$C$8)*12,A77=0),0,A77+1) -> 0 | B78: =IF($A78=0,0,IF(INT($A77/12)-$A77/12=0,B77*(1+Simulador!$C$35),B77)) -> 0 | C78: =MAX(IF(A78=0,0,B78-IF(Simulador!$C$11="Individual",0,Simulador!$C$14)),0) -> 0 | E78: 0 | F78: 0 | G78: 0 | H78: 0 | I78: 0 | J78: 0 | L78: 0 | M78: 0 | N78: 0 | O78: 0 | P78: 0 | Q78: 0 | S78: 0 | T78: 0 | U78: 0 | V78: 0 | W78: 0 | Y78: =IF(OR(Y77+1>(IF(AND(Simulador!$C$9<Simulador!$C$10,OR(Simulador!$E$7="Resgate",Simulador!$E$7="Portabilidade")),Simulador!$C$9,Simulador!$C$10)-Simulador!$C$8)*12,Y77=0),0,Y77+1) -> 74 | Z78: =IF($Y78=0,0,Z77*(1+Simulador!$D$34)+E78+L78) -> 0 | AA78: =IF($Y78=0,0,AA77*(1+Simulador!$D$34)+S78) -> 0 | AB78: =IF(OR(AB77+1>(IF(AND(Simulador!$C$9<Simulador!$C$10,OR(Simulador!$E$7="Resgate",Simulador!$E$7="Portabilidade")),Simulador!$C$9,Simulador!$C$50)-Simulador!$C$8)*12,AB77=0),0,AB77+1) -> 74 | AC78: =IF($AB78=0,0,AC77*(1+Simulador!$D$34)+F78+M78) -> 0 | AD78: =IF($AB78=0,0,AD77*(1+Simulador!$D$34)+T78) -> 0
A79: =IF(OR(A78+1>(IF(Simulador!$E$7="Autopatrocínio",Simulador!$C$10,Simulador!$C$9)-Simulador!$C$8)*12,A78=0),0,A78+1) -> 0 | B79: =IF($A79=0,0,IF(INT($A78/12)-$A78/12=0,B78*(1+Simulador!$C$35),B78)) -> 0 | C79: =MAX(IF(A79=0,0,B79-IF(Simulador!$C$11="Individual",0,Simulador!$C$14)),0) -> 0 | E79: 0 | F79: 0 | G79: 0 | H79: 0 | I79: 0 | J79: 0 | L79: 0 | M79: 0 | N79: 0 | O79: 0 | P79: 0 | Q79: 0 | S79: 0 | T79: 0 | U79: 0 | V79: 0 | W79: 0 | Y79: =IF(OR(Y78+1>(IF(AND(Simulador!$C$9<Simulador!$C$10,OR(Simulador!$E$7="Resgate",Simulador!$E$7="Portabilidade")),Simulador!$C$9,Simulador!$C$10)-Simulador!$C$8)*12,Y78=0),0,Y78+1) -> 75 | Z79: =IF($Y79=0,0,Z78*(1+Simulador!$D$34)+E79+L79) -> 0 | AA79: =IF($Y79=0,0,AA78*(1+Simulador!$D$34)+S79) -> 0 | AB79: =IF(OR(AB78+1>(IF(AND(Simulador!$C$9<Simulador!$C$10,OR(Simulador!$E$7="Resgate",Simulador!$E$7="Portabilidade")),Simulador!$C$9,Simulador!$C$50)-Simulador!$C$8)*12,AB78=0),0,AB78+1) -> 75 | AC79: =IF($AB79=0,0,AC78*(1+Simulador!$D$34)+F79+M79) -> 0 | AD79: =IF($AB79=0,0,AD78*(1+Simulador!$D$34)+T79) -> 0
A80: =IF(OR(A79+1>(IF(Simulador!$E$7="Autopatrocínio",Simulador!$C$10,Simulador!$C$9)-Simulador!$C$8)*12,A79=0),0,A79+1) -> 0 | B80: =IF($A80=0,0,IF(INT($A79/12)-$A79/12=0,B79*(1+Simulador!$C$35),B79)) -> 0 | C80: =MAX(IF(A80=0,0,B80-IF(Simulador!$C$11="Individual",0,Simulador!$C$14)),0) -> 0 | E80: 0 | F80: 0 | G80: 0 | H80: 0 | I80: 0 | J80: 0 | L80: 0 | M80: 0 | N80: 0 | O80: 0 | P80: 0 | Q80: 0 | S80: 0 | T80: 0 | U80: 0 | V80: 0 | W80: 0 | Y80: =IF(OR(Y79+1>(IF(AND(Simulador!$C$9<Simulador!$C$10,OR(Simulador!$E$7="Resgate",Simulador!$E$7="Portabilidade")),Simulador!$C$9,Simulador!$C$10)-Simulador!$C$8)*12,Y79=0),0,Y79+1) -> 76 | Z80: =IF($Y80=0,0,Z79*(1+Simulador!$D$34)+E80+L80) -> 0 | AA80: =IF($Y80=0,0,AA79*(1+Simulador!$D$34)+S80) -> 0 | AB80: =IF(OR(AB79+1>(IF(AND(Simulador!$C$9<Simulador!$C$10,OR(Simulador!$E$7="Resgate",Simulador!$E$7="Portabilidade")),Simulador!$C$9,Simulador!$C$50)-Simulador!$C$8)*12,AB79=0),0,AB79+1) -> 76 | AC80: =IF($AB80=0,0,AC79*(1+Simulador!$D$34)+F80+M80) -> 0 | AD80: =IF($AB80=0,0,AD79*(1+Simulador!$D$34)+T80) -> 0
A81: =IF(OR(A80+1>(IF(Simulador!$E$7="Autopatrocínio",Simulador!$C$10,Simulador!$C$9)-Simulador!$C$8)*12,A80=0),0,A80+1) -> 0 | B81: =IF($A81=0,0,IF(INT($A80/12)-$A80/12=0,B80*(1+Simulador!$C$35),B80)) -> 0 | C81: =MAX(IF(A81=0,0,B81-IF(Simulador!$C$11="Individual",0,Simulador!$C$14)),0) -> 0 | E81: 0 | F81: 0 | G81: 0 | H81: 0 | I81: 0 | J81: 0 | L81: 0 | M81: 0 | N81: 0 | O81: 0 | P81: 0 | Q81: 0 | S81: 0 | T81: 0 | U81: 0 | V81: 0 | W81: 0 | Y81: =IF(OR(Y80+1>(IF(AND(Simulador!$C$9<Simulador!$C$10,OR(Simulador!$E$7="Resgate",Simulador!$E$7="Portabilidade")),Simulador!$C$9,Simulador!$C$10)-Simulador!$C$8)*12,Y80=0),0,Y80+1) -> 77 | Z81: =IF($Y81=0,0,Z80*(1+Simulador!$D$34)+E81+L81) -> 0 | AA81: =IF($Y81=0,0,AA80*(1+Simulador!$D$34)+S81) -> 0 | AB81: =IF(OR(AB80+1>(IF(AND(Simulador!$C$9<Simulador!$C$10,OR(Simulador!$E$7="Resgate",Simulador!$E$7="Portabilidade")),Simulador!$C$9,Simulador!$C$50)-Simulador!$C$8)*12,AB80=0),0,AB80+1) -> 77 | AC81: =IF($AB81=0,0,AC80*(1+Simulador!$D$34)+F81+M81) -> 0 | AD81: =IF($AB81=0,0,AD80*(1+Simulador!$D$34)+T81) -> 0
A82: =IF(OR(A81+1>(IF(Simulador!$E$7="Autopatrocínio",Simulador!$C$10,Simulador!$C$9)-Simulador!$C$8)*12,A81=0),0,A81+1) -> 0 | B82: =IF($A82=0,0,IF(INT($A81/12)-$A81/12=0,B81*(1+Simulador!$C$35),B81)) -> 0 | C82: =MAX(IF(A82=0,0,B82-IF(Simulador!$C$11="Individual",0,Simulador!$C$14)),0) -> 0 | E82: 0 | F82: 0 | G82: 0 | H82: 0 | I82: 0 | J82: 0 | L82: 0 | M82: 0 | N82: 0 | O82: 0 | P82: 0 | Q82: 0 | S82: 0 | T82: 0 | U82: 0 | V82: 0 | W82: 0 | Y82: =IF(OR(Y81+1>(IF(AND(Simulador!$C$9<Simulador!$C$10,OR(Simulador!$E$7="Resgate",Simulador!$E$7="Portabilidade")),Simulador!$C$9,Simulador!$C$10)-Simulador!$C$8)*12,Y81=0),0,Y81+1) -> 78 | Z82: =IF($Y82=0,0,Z81*(1+Simulador!$D$34)+E82+L82) -> 0 | AA82: =IF($Y82=0,0,AA81*(1+Simulador!$D$34)+S82) -> 0 | AB82: =IF(OR(AB81+1>(IF(AND(Simulador!$C$9<Simulador!$C$10,OR(Simulador!$E$7="Resgate",Simulador!$E$7="Portabilidade")),Simulador!$C$9,Simulador!$C$50)-Simulador!$C$8)*12,AB81=0),0,AB81+1) -> 78 | AC82: =IF($AB82=0,0,AC81*(1+Simulador!$D$34)+F82+M82) -> 0 | AD82: =IF($AB82=0,0,AD81*(1+Simulador!$D$34)+T82) -> 0
A83: =IF(OR(A82+1>(IF(Simulador!$E$7="Autopatrocínio",Simulador!$C$10,Simulador!$C$9)-Simulador!$C$8)*12,A82=0),0,A82+1) -> 0 | B83: =IF($A83=0,0,IF(INT($A82/12)-$A82/12=0,B82*(1+Simulador!$C$35),B82)) -> 0 | C83: =MAX(IF(A83=0,0,B83-IF(Simulador!$C$11="Individual",0,Simulador!$C$14)),0) -> 0 | E83: 0 | F83: 0 | G83: 0 | H83: 0 | I83: 0 | J83: 0 | L83: 0 | M83: 0 | N83: 0 | O83: 0 | P83: 0 | Q83: 0 | S83: 0 | T83: 0 | U83: 0 | V83: 0 | W83: 0 | Y83: =IF(OR(Y82+1>(IF(AND(Simulador!$C$9<Simulador!$C$10,OR(Simulador!$E$7="Resgate",Simulador!$E$7="Portabilidade")),Simulador!$C$9,Simulador!$C$10)-Simulador!$C$8)*12,Y82=0),0,Y82+1) -> 79 | Z83: =IF($Y83=0,0,Z82*(1+Simulador!$D$34)+E83+L83) -> 0 | AA83: =IF($Y83=0,0,AA82*(1+Simulador!$D$34)+S83) -> 0 | AB83: =IF(OR(AB82+1>(IF(AND(Simulador!$C$9<Simulador!$C$10,OR(Simulador!$E$7="Resgate",Simulador!$E$7="Portabilidade")),Simulador!$C$9,Simulador!$C$50)-Simulador!$C$8)*12,AB82=0),0,AB82+1) -> 79 | AC83: =IF($AB83=0,0,AC82*(1+Simulador!$D$34)+F83+M83) -> 0 | AD83: =IF($AB83=0,0,AD82*(1+Simulador!$D$34)+T83) -> 0
A84: =IF(OR(A83+1>(IF(Simulador!$E$7="Autopatrocínio",Simulador!$C$10,Simulador!$C$9)-Simulador!$C$8)*12,A83=0),0,A83+1) -> 0 | B84: =IF($A84=0,0,IF(INT($A83/12)-$A83/12=0,B83*(1+Simulador!$C$35),B83)) -> 0 | C84: =MAX(IF(A84=0,0,B84-IF(Simulador!$C$11="Individual",0,Simulador!$C$14)),0) -> 0 | E84: 0 | F84: 0 | G84: 0 | H84: 0 | I84: 0 | J84: 0 | L84: 0 | M84: 0 | N84: 0 | O84: 0 | P84: 0 | Q84: 0 | S84: 0 | T84: 0 | U84: 0 | V84: 0 | W84: 0 | Y84: =IF(OR(Y83+1>(IF(AND(Simulador!$C$9<Simulador!$C$10,OR(Simulador!$E$7="Resgate",Simulador!$E$7="Portabilidade")),Simulador!$C$9,Simulador!$C$10)-Simulador!$C$8)*12,Y83=0),0,Y83+1) -> 80 | Z84: =IF($Y84=0,0,Z83*(1+Simulador!$D$34)+E84+L84) -> 0 | AA84: =IF($Y84=0,0,AA83*(1+Simulador!$D$34)+S84) -> 0 | AB84: =IF(OR(AB83+1>(IF(AND(Simulador!$C$9<Simulador!$C$10,OR(Simulador!$E$7="Resgate",Simulador!$E$7="Portabilidade")),Simulador!$C$9,Simulador!$C$50)-Simulador!$C$8)*12,AB83=0),0,AB83+1) -> 80 | AC84: =IF($AB84=0,0,AC83*(1+Simulador!$D$34)+F84+M84) -> 0 | AD84: =IF($AB84=0,0,AD83*(1+Simulador!$D$34)+T84) -> 0
A85: =IF(OR(A84+1>(IF(Simulador!$E$7="Autopatrocínio",Simulador!$C$10,Simulador!$C$9)-Simulador!$C$8)*12,A84=0),0,A84+1) -> 0 | B85: =IF($A85=0,0,IF(INT($A84/12)-$A84/12=0,B84*(1+Simulador!$C$35),B84)) -> 0 | C85: =MAX(IF(A85=0,0,B85-IF(Simulador!$C$11="Individual",0,Simulador!$C$14)),0) -> 0 | E85: =E$4*$C85*(1+$J85) -> 0 | F85: 0 | G85: 0 | H85: 0 | I85: 0 | J85: 0 | L85: =L$4*$C85*$Q85 -> 0 | M85: 0 | N85: 0 | O85: 0 | P85: 0 | Q85: 0 | S85: =S$4*$C85*(1+$J85) -> 0 | T85: 0 | U85: 0 | V85: 0 | W85: 0 | Y85: =IF(OR(Y84+1>(IF(AND(Simulador!$C$9<Simulador!$C$10,OR(Simulador!$E$7="Resgate",Simulador!$E$7="Portabilidade")),Simulador!$C$9,Simulador!$C$10)-Simulador!$C$8)*12,Y84=0),0,Y84+1) -> 81 | Z85: =IF($Y85=0,0,Z84*(1+Simulador!$D$34)+E85+L85) -> 0 | AA85: =IF($Y85=0,0,AA84*(1+Simulador!$D$34)+S85) -> 0 | AB85: =IF(OR(AB84+1>(IF(AND(Simulador!$C$9<Simulador!$C$10,OR(Simulador!$E$7="Resgate",Simulador!$E$7="Portabilidade")),Simulador!$C$9,Simulador!$C$50)-Simulador!$C$8)*12,AB84=0),0,AB84+1) -> 81 | AC85: =IF($AB85=0,0,AC84*(1+Simulador!$D$34)+F85+M85) -> 0 | AD85: =IF($AB85=0,0,AD84*(1+Simulador!$D$34)+T85) -> 0
A86: =IF(OR(A85+1>(IF(Simulador!$E$7="Autopatrocínio",Simulador!$C$10,Simulador!$C$9)-Simulador!$C$8)*12,A85=0),0,A85+1) -> 0 | B86: =IF($A86=0,0,IF(INT($A85/12)-$A85/12=0,B85*(1+Simulador!$C$35),B85)) -> 0 | C86: =MAX(IF(A86=0,0,B86-IF(Simulador!$C$11="Individual",0,Simulador!$C$14)),0) -> 0 | E86: 0 | F86: 0 | G86: 0 | H86: 0 | I86: 0 | J86: 0 | L86: 0 | M86: 0 | N86: 0 | O86: 0 | P86: 0 | Q86: 0 | S86: 0 | T86: 0 | U86: 0 | V86: 0 | W86: 0 | Y86: =IF(OR(Y85+1>(IF(AND(Simulador!$C$9<Simulador!$C$10,OR(Simulador!$E$7="Resgate",Simulador!$E$7="Portabilidade")),Simulador!$C$9,Simulador!$C$10)-Simulador!$C$8)*12,Y85=0),0,Y85+1) -> 82 | Z86: =IF($Y86=0,0,Z85*(1+Simulador!$D$34)+E86+L86) -> 0 | AA86: =IF($Y86=0,0,AA85*(1+Simulador!$D$34)+S86) -> 0 | AB86: =IF(OR(AB85+1>(IF(AND(Simulador!$C$9<Simulador!$C$10,OR(Simulador!$E$7="Resgate",Simulador!$E$7="Portabilidade")),Simulador!$C$9,Simulador!$C$50)-Simulador!$C$8)*12,AB85=0),0,AB85+1) -> 82 | AC86: =IF($AB86=0,0,AC85*(1+Simulador!$D$34)+F86+M86) -> 0 | AD86: =IF($AB86=0,0,AD85*(1+Simulador!$D$34)+T86) -> 0
A87: =IF(OR(A86+1>(IF(Simulador!$E$7="Autopatrocínio",Simulador!$C$10,Simulador!$C$9)-Simulador!$C$8)*12,A86=0),0,A86+1) -> 0 | B87: =IF($A87=0,0,IF(INT($A86/12)-$A86/12=0,B86*(1+Simulador!$C$35),B86)) -> 0 | C87: =MAX(IF(A87=0,0,B87-IF(Simulador!$C$11="Individual",0,Simulador!$C$14)),0) -> 0 | E87: 0 | F87: 0 | G87: 0 | H87: 0 | I87: 0 | J87: 0 | L87: 0 | M87: 0 | N87: 0 | O87: 0 | P87: 0 | Q87: 0 | S87: 0 | T87: 0 | U87: 0 | V87: 0 | W87: 0 | Y87: =IF(OR(Y86+1>(IF(AND(Simulador!$C$9<Simulador!$C$10,OR(Simulador!$E$7="Resgate",Simulador!$E$7="Portabilidade")),Simulador!$C$9,Simulador!$C$10)-Simulador!$C$8)*12,Y86=0),0,Y86+1) -> 83 | Z87: =IF($Y87=0,0,Z86*(1+Simulador!$D$34)+E87+L87) -> 0 | AA87: =IF($Y87=0,0,AA86*(1+Simulador!$D$34)+S87) -> 0 | AB87: =IF(OR(AB86+1>(IF(AND(Simulador!$C$9<Simulador!$C$10,OR(Simulador!$E$7="Resgate",Simulador!$E$7="Portabilidade")),Simulador!$C$9,Simulador!$C$50)-Simulador!$C$8)*12,AB86=0),0,AB86+1) -> 83 | AC87: =IF($AB87=0,0,AC86*(1+Simulador!$D$34)+F87+M87) -> 0 | AD87: =IF($AB87=0,0,AD86*(1+Simulador!$D$34)+T87) -> 0
A88: =IF(OR(A87+1>(IF(Simulador!$E$7="Autopatrocínio",Simulador!$C$10,Simulador!$C$9)-Simulador!$C$8)*12,A87=0),0,A87+1) -> 0 | B88: =IF($A88=0,0,IF(INT($A87/12)-$A87/12=0,B87*(1+Simulador!$C$35),B87)) -> 0 | C88: =MAX(IF(A88=0,0,B88-IF(Simulador!$C$11="Individual",0,Simulador!$C$14)),0) -> 0 | E88: 0 | F88: 0 | G88: 0 | H88: 0 | I88: 0 | J88: 0 | L88: 0 | M88: 0 | N88: 0 | O88: 0 | P88: 0 | Q88: 0 | S88: 0 | T88: 0 | U88: 0 | V88: 0 | W88: 0 | Y88: =IF(OR(Y87+1>(IF(AND(Simulador!$C$9<Simulador!$C$10,OR(Simulador!$E$7="Resgate",Simulador!$E$7="Portabilidade")),Simulador!$C$9,Simulador!$C$10)-Simulador!$C$8)*12,Y87=0),0,Y87+1) -> 84 | Z88: =IF($Y88=0,0,Z87*(1+Simulador!$D$34)+E88+L88) -> 0 | AA88: =IF($Y88=0,0,AA87*(1+Simulador!$D$34)+S88) -> 0 | AB88: =IF(OR(AB87+1>(IF(AND(Simulador!$C$9<Simulador!$C$10,OR(Simulador!$E$7="Resgate",Simulador!$E$7="Portabilidade")),Simulador!$C$9,Simulador!$C$50)-Simulador!$C$8)*12,AB87=0),0,AB87+1) -> 84 | AC88: =IF($AB88=0,0,AC87*(1+Simulador!$D$34)+F88+M88) -> 0 | AD88: =IF($AB88=0,0,AD87*(1+Simulador!$D$34)+T88) -> 0
A89: =IF(OR(A88+1>(IF(Simulador!$E$7="Autopatrocínio",Simulador!$C$10,Simulador!$C$9)-Simulador!$C$8)*12,A88=0),0,A88+1) -> 0 | B89: =IF($A89=0,0,IF(INT($A88/12)-$A88/12=0,B88*(1+Simulador!$C$35),B88)) -> 0 | C89: =MAX(IF(A89=0,0,B89-IF(Simulador!$C$11="Individual",0,Simulador!$C$14)),0) -> 0 | E89: 0 | F89: 0 | G89: 0 | H89: 0 | I89: 0 | J89: 0 | L89: 0 | M89: 0 | N89: 0 | O89: 0 | P89: 0 | Q89: 0 | S89: 0 | T89: 0 | U89: 0 | V89: 0 | W89: 0 | Y89: =IF(OR(Y88+1>(IF(AND(Simulador!$C$9<Simulador!$C$10,OR(Simulador!$E$7="Resgate",Simulador!$E$7="Portabilidade")),Simulador!$C$9,Simulador!$C$10)-Simulador!$C$8)*12,Y88=0),0,Y88+1) -> 85 | Z89: =IF($Y89=0,0,Z88*(1+Simulador!$D$34)+E89+L89) -> 0 | AA89: =IF($Y89=0,0,AA88*(1+Simulador!$D$34)+S89) -> 0 | AB89: =IF(OR(AB88+1>(IF(AND(Simulador!$C$9<Simulador!$C$10,OR(Simulador!$E$7="Resgate",Simulador!$E$7="Portabilidade")),Simulador!$C$9,Simulador!$C$50)-Simulador!$C$8)*12,AB88=0),0,AB88+1) -> 85 | AC89: =IF($AB89=0,0,AC88*(1+Simulador!$D$34)+F89+M89) -> 0 | AD89: =IF($AB89=0,0,AD88*(1+Simulador!$D$34)+T89) -> 0
A90: =IF(OR(A89+1>(IF(Simulador!$E$7="Autopatrocínio",Simulador!$C$10,Simulador!$C$9)-Simulador!$C$8)*12,A89=0),0,A89+1) -> 0 | B90: =IF($A90=0,0,IF(INT($A89/12)-$A89/12=0,B89*(1+Simulador!$C$35),B89)) -> 0 | C90: =MAX(IF(A90=0,0,B90-IF(Simulador!$C$11="Individual",0,Simulador!$C$14)),0) -> 0 | E90: 0 | F90: 0 | G90: 0 | H90: 0 | I90: 0 | J90: 0 | L90: 0 | M90: 0 | N90: 0 | O90: 0 | P90: 0 | Q90: 0 | S90: 0 | T90: 0 | U90: 0 | V90: 0 | W90: 0 | Y90: =IF(OR(Y89+1>(IF(AND(Simulador!$C$9<Simulador!$C$10,OR(Simulador!$E$7="Resgate",Simulador!$E$7="Portabilidade")),Simulador!$C$9,Simulador!$C$10)-Simulador!$C$8)*12,Y89=0),0,Y89+1) -> 86 | Z90: =IF($Y90=0,0,Z89*(1+Simulador!$D$34)+E90+L90) -> 0 | AA90: =IF($Y90=0,0,AA89*(1+Simulador!$D$34)+S90) -> 0 | AB90: =IF(OR(AB89+1>(IF(AND(Simulador!$C$9<Simulador!$C$10,OR(Simulador!$E$7="Resgate",Simulador!$E$7="Portabilidade")),Simulador!$C$9,Simulador!$C$50)-Simulador!$C$8)*12,AB89=0),0,AB89+1) -> 86 | AC90: =IF($AB90=0,0,AC89*(1+Simulador!$D$34)+F90+M90) -> 0 | AD90: =IF($AB90=0,0,AD89*(1+Simulador!$D$34)+T90) -> 0
A91: =IF(OR(A90+1>(IF(Simulador!$E$7="Autopatrocínio",Simulador!$C$10,Simulador!$C$9)-Simulador!$C$8)*12,A90=0),0,A90+1) -> 0 | B91: =IF($A91=0,0,IF(INT($A90/12)-$A90/12=0,B90*(1+Simulador!$C$35),B90)) -> 0 | C91: =MAX(IF(A91=0,0,B91-IF(Simulador!$C$11="Individual",0,Simulador!$C$14)),0) -> 0 | E91: 0 | F91: 0 | G91: 0 | H91: 0 | I91: 0 | J91: 0 | L91: 0 | M91: 0 | N91: 0 | O91: 0 | P91: 0 | Q91: 0 | S91: 0 | T91: 0 | U91: 0 | V91: 0 | W91: 0 | Y91: =IF(OR(Y90+1>(IF(AND(Simulador!$C$9<Simulador!$C$10,OR(Simulador!$E$7="Resgate",Simulador!$E$7="Portabilidade")),Simulador!$C$9,Simulador!$C$10)-Simulador!$C$8)*12,Y90=0),0,Y90+1) -> 87 | Z91: =IF($Y91=0,0,Z90*(1+Simulador!$D$34)+E91+L91) -> 0 | AA91: =IF($Y91=0,0,AA90*(1+Simulador!$D$34)+S91) -> 0 | AB91: =IF(OR(AB90+1>(IF(AND(Simulador!$C$9<Simulador!$C$10,OR(Simulador!$E$7="Resgate",Simulador!$E$7="Portabilidade")),Simulador!$C$9,Simulador!$C$50)-Simulador!$C$8)*12,AB90=0),0,AB90+1) -> 87 | AC91: =IF($AB91=0,0,AC90*(1+Simulador!$D$34)+F91+M91) -> 0 | AD91: =IF($AB91=0,0,AD90*(1+Simulador!$D$34)+T91) -> 0
A92: =IF(OR(A91+1>(IF(Simulador!$E$7="Autopatrocínio",Simulador!$C$10,Simulador!$C$9)-Simulador!$C$8)*12,A91=0),0,A91+1) -> 0 | B92: =IF($A92=0,0,IF(INT($A91/12)-$A91/12=0,B91*(1+Simulador!$C$35),B91)) -> 0 | C92: =MAX(IF(A92=0,0,B92-IF(Simulador!$C$11="Individual",0,Simulador!$C$14)),0) -> 0 | E92: 0 | F92: 0 | G92: 0 | H92: 0 | I92: 0 | J92: 0 | L92: 0 | M92: 0 | N92: 0 | O92: 0 | P92: 0 | Q92: 0 | S92: 0 | T92: 0 | U92: 0 | V92: 0 | W92: 0 | Y92: =IF(OR(Y91+1>(IF(AND(Simulador!$C$9<Simulador!$C$10,OR(Simulador!$E$7="Resgate",Simulador!$E$7="Portabilidade")),Simulador!$C$9,Simulador!$C$10)-Simulador!$C$8)*12,Y91=0),0,Y91+1) -> 88 | Z92: =IF($Y92=0,0,Z91*(1+Simulador!$D$34)+E92+L92) -> 0 | AA92: =IF($Y92=0,0,AA91*(1+Simulador!$D$34)+S92) -> 0 | AB92: =IF(OR(AB91+1>(IF(AND(Simulador!$C$9<Simulador!$C$10,OR(Simulador!$E$7="Resgate",Simulador!$E$7="Portabilidade")),Simulador!$C$9,Simulador!$C$50)-Simulador!$C$8)*12,AB91=0),0,AB91+1) -> 88 | AC92: =IF($AB92=0,0,AC91*(1+Simulador!$D$34)+F92+M92) -> 0 | AD92: =IF($AB92=0,0,AD91*(1+Simulador!$D$34)+T92) -> 0
A93: =IF(OR(A92+1>(IF(Simulador!$E$7="Autopatrocínio",Simulador!$C$10,Simulador!$C$9)-Simulador!$C$8)*12,A92=0),0,A92+1) -> 0 | B93: =IF($A93=0,0,IF(INT($A92/12)-$A92/12=0,B92*(1+Simulador!$C$35),B92)) -> 0 | C93: =MAX(IF(A93=0,0,B93-IF(Simulador!$C$11="Individual",0,Simulador!$C$14)),0) -> 0 | E93: 0 | F93: 0 | G93: 0 | H93: 0 | I93: 0 | J93: 0 | L93: 0 | M93: 0 | N93: 0 | O93: 0 | P93: 0 | Q93: 0 | S93: 0 | T93: 0 | U93: 0 | V93: 0 | W93: 0 | Y93: =IF(OR(Y92+1>(IF(AND(Simulador!$C$9<Simulador!$C$10,OR(Simulador!$E$7="Resgate",Simulador!$E$7="Portabilidade")),Simulador!$C$9,Simulador!$C$10)-Simulador!$C$8)*12,Y92=0),0,Y92+1) -> 89 | Z93: =IF($Y93=0,0,Z92*(1+Simulador!$D$34)+E93+L93) -> 0 | AA93: =IF($Y93=0,0,AA92*(1+Simulador!$D$34)+S93) -> 0 | AB93: =IF(OR(AB92+1>(IF(AND(Simulador!$C$9<Simulador!$C$10,OR(Simulador!$E$7="Resgate",Simulador!$E$7="Portabilidade")),Simulador!$C$9,Simulador!$C$50)-Simulador!$C$8)*12,AB92=0),0,AB92+1) -> 89 | AC93: =IF($AB93=0,0,AC92*(1+Simulador!$D$34)+F93+M93) -> 0 | AD93: =IF($AB93=0,0,AD92*(1+Simulador!$D$34)+T93) -> 0
A94: =IF(OR(A93+1>(IF(Simulador!$E$7="Autopatrocínio",Simulador!$C$10,Simulador!$C$9)-Simulador!$C$8)*12,A93=0),0,A93+1) -> 0 | B94: =IF($A94=0,0,IF(INT($A93/12)-$A93/12=0,B93*(1+Simulador!$C$35),B93)) -> 0 | C94: =MAX(IF(A94=0,0,B94-IF(Simulador!$C$11="Individual",0,Simulador!$C$14)),0) -> 0 | E94: 0 | F94: 0 | G94: 0 | H94: 0 | I94: 0 | J94: 0 | L94: 0 | M94: 0 | N94: 0 | O94: 0 | P94: 0 | Q94: 0 | S94: 0 | T94: 0 | U94: 0 | V94: 0 | W94: 0 | Y94: =IF(OR(Y93+1>(IF(AND(Simulador!$C$9<Simulador!$C$10,OR(Simulador!$E$7="Resgate",Simulador!$E$7="Portabilidade")),Simulador!$C$9,Simulador!$C$10)-Simulador!$C$8)*12,Y93=0),0,Y93+1) -> 90 | Z94: =IF($Y94=0,0,Z93*(1+Simulador!$D$34)+E94+L94) -> 0 | AA94: =IF($Y94=0,0,AA93*(1+Simulador!$D$34)+S94) -> 0 | AB94: =IF(OR(AB93+1>(IF(AND(Simulador!$C$9<Simulador!$C$10,OR(Simulador!$E$7="Resgate",Simulador!$E$7="Portabilidade")),Simulador!$C$9,Simulador!$C$50)-Simulador!$C$8)*12,AB93=0),0,AB93+1) -> 90 | AC94: =IF($AB94=0,0,AC93*(1+Simulador!$D$34)+F94+M94) -> 0 | AD94: =IF($AB94=0,0,AD93*(1+Simulador!$D$34)+T94) -> 0
A95: =IF(OR(A94+1>(IF(Simulador!$E$7="Autopatrocínio",Simulador!$C$10,Simulador!$C$9)-Simulador!$C$8)*12,A94=0),0,A94+1) -> 0 | B95: =IF($A95=0,0,IF(INT($A94/12)-$A94/12=0,B94*(1+Simulador!$C$35),B94)) -> 0 | C95: =MAX(IF(A95=0,0,B95-IF(Simulador!$C$11="Individual",0,Simulador!$C$14)),0) -> 0 | E95: =E$4*$C95*(1+$J95) -> 0 | F95: 0 | G95: 0 | H95: 0 | I95: 0 | J95: 0 | L95: =L$4*$C95*$Q95 -> 0 | M95: 0 | N95: 0 | O95: 0 | P95: 0 | Q95: 0 | S95: 0 | T95: 0 | U95: 0 | V95: 0 | W95: 0 | Y95: =IF(OR(Y94+1>(IF(AND(Simulador!$C$9<Simulador!$C$10,OR(Simulador!$E$7="Resgate",Simulador!$E$7="Portabilidade")),Simulador!$C$9,Simulador!$C$10)-Simulador!$C$8)*12,Y94=0),0,Y94+1) -> 91 | Z95: =IF($Y95=0,0,Z94*(1+Simulador!$D$34)+E95+L95) -> 0 | AA95: =IF($Y95=0,0,AA94*(1+Simulador!$D$34)+S95) -> 0 | AB95: =IF(OR(AB94+1>(IF(AND(Simulador!$C$9<Simulador!$C$10,OR(Simulador!$E$7="Resgate",Simulador!$E$7="Portabilidade")),Simulador!$C$9,Simulador!$C$50)-Simulador!$C$8)*12,AB94=0),0,AB94+1) -> 91 | AC95: =IF($AB95=0,0,AC94*(1+Simulador!$D$34)+F95+M95) -> 0 | AD95: =IF($AB95=0,0,AD94*(1+Simulador!$D$34)+T95) -> 0
A96: =IF(OR(A95+1>(IF(Simulador!$E$7="Autopatrocínio",Simulador!$C$10,Simulador!$C$9)-Simulador!$C$8)*12,A95=0),0,A95+1) -> 0 | B96: =IF($A96=0,0,IF(INT($A95/12)-$A95/12=0,B95*(1+Simulador!$C$35),B95)) -> 0 | C96: =MAX(IF(A96=0,0,B96-IF(Simulador!$C$11="Individual",0,Simulador!$C$14)),0) -> 0 | E96: 0 | F96: 0 | G96: 0 | H96: 0 | I96: 0 | J96: 0 | L96: 0 | M96: 0 | N96: 0 | O96: 0 | P96: 0 | Q96: 0 | S96: 0 | T96: 0 | U96: 0 | V96: 0 | W96: 0 | Y96: =IF(OR(Y95+1>(IF(AND(Simulador!$C$9<Simulador!$C$10,OR(Simulador!$E$7="Resgate",Simulador!$E$7="Portabilidade")),Simulador!$C$9,Simulador!$C$10)-Simulador!$C$8)*12,Y95=0),0,Y95+1) -> 92 | Z96: =IF($Y96=0,0,Z95*(1+Simulador!$D$34)+E96+L96) -> 0 | AA96: =IF($Y96=0,0,AA95*(1+Simulador!$D$34)+S96) -> 0 | AB96: =IF(OR(AB95+1>(IF(AND(Simulador!$C$9<Simulador!$C$10,OR(Simulador!$E$7="Resgate",Simulador!$E$7="Portabilidade")),Simulador!$C$9,Simulador!$C$50)-Simulador!$C$8)*12,AB95=0),0,AB95+1) -> 92 | AC96: =IF($AB96=0,0,AC95*(1+Simulador!$D$34)+F96+M96) -> 0 | AD96: =IF($AB96=0,0,AD95*(1+Simulador!$D$34)+T96) -> 0
A97: =IF(OR(A96+1>(IF(Simulador!$E$7="Autopatrocínio",Simulador!$C$10,Simulador!$C$9)-Simulador!$C$8)*12,A96=0),0,A96+1) -> 0 | B97: =IF($A97=0,0,IF(INT($A96/12)-$A96/12=0,B96*(1+Simulador!$C$35),B96)) -> 0 | C97: =MAX(IF(A97=0,0,B97-IF(Simulador!$C$11="Individual",0,Simulador!$C$14)),0) -> 0 | E97: 0 | F97: 0 | G97: 0 | H97: 0 | I97: 0 | J97: 0 | L97: 0 | M97: 0 | N97: 0 | O97: 0 | P97: 0 | Q97: 0 | S97: 0 | T97: 0 | U97: 0 | V97: 0 | W97: 0 | Y97: =IF(OR(Y96+1>(IF(AND(Simulador!$C$9<Simulador!$C$10,OR(Simulador!$E$7="Resgate",Simulador!$E$7="Portabilidade")),Simulador!$C$9,Simulador!$C$10)-Simulador!$C$8)*12,Y96=0),0,Y96+1) -> 93 | Z97: =IF($Y97=0,0,Z96*(1+Simulador!$D$34)+E97+L97) -> 0 | AA97: =IF($Y97=0,0,AA96*(1+Simulador!$D$34)+S97) -> 0 | AB97: =IF(OR(AB96+1>(IF(AND(Simulador!$C$9<Simulador!$C$10,OR(Simulador!$E$7="Resgate",Simulador!$E$7="Portabilidade")),Simulador!$C$9,Simulador!$C$50)-Simulador!$C$8)*12,AB96=0),0,AB96+1) -> 93 | AC97: =IF($AB97=0,0,AC96*(1+Simulador!$D$34)+F97+M97) -> 0 | AD97: =IF($AB97=0,0,AD96*(1+Simulador!$D$34)+T97) -> 0
A98: =IF(OR(A97+1>(IF(Simulador!$E$7="Autopatrocínio",Simulador!$C$10,Simulador!$C$9)-Simulador!$C$8)*12,A97=0),0,A97+1) -> 0 | B98: =IF($A98=0,0,IF(INT($A97/12)-$A97/12=0,B97*(1+Simulador!$C$35),B97)) -> 0 | C98: =MAX(IF(A98=0,0,B98-IF(Simulador!$C$11="Individual",0,Simulador!$C$14)),0) -> 0 | E98: 0 | F98: 0 | G98: 0 | H98: 0 | I98: 0 | J98: 0 | L98: 0 | M98: 0 | N98: 0 | O98: 0 | P98: 0 | Q98: 0 | S98: 0 | T98: 0 | U98: 0 | V98: 0 | W98: 0 | Y98: =IF(OR(Y97+1>(IF(AND(Simulador!$C$9<Simulador!$C$10,OR(Simulador!$E$7="Resgate",Simulador!$E$7="Portabilidade")),Simulador!$C$9,Simulador!$C$10)-Simulador!$C$8)*12,Y97=0),0,Y97+1) -> 94 | Z98: =IF($Y98=0,0,Z97*(1+Simulador!$D$34)+E98+L98) -> 0 | AA98: =IF($Y98=0,0,AA97*(1+Simulador!$D$34)+S98) -> 0 | AB98: =IF(OR(AB97+1>(IF(AND(Simulador!$C$9<Simulador!$C$10,OR(Simulador!$E$7="Resgate",Simulador!$E$7="Portabilidade")),Simulador!$C$9,Simulador!$C$50)-Simulador!$C$8)*12,AB97=0),0,AB97+1) -> 94 | AC98: =IF($AB98=0,0,AC97*(1+Simulador!$D$34)+F98+M98) -> 0 | AD98: =IF($AB98=0,0,AD97*(1+Simulador!$D$34)+T98) -> 0
A99: =IF(OR(A98+1>(IF(Simulador!$E$7="Autopatrocínio",Simulador!$C$10,Simulador!$C$9)-Simulador!$C$8)*12,A98=0),0,A98+1) -> 0 | B99: =IF($A99=0,0,IF(INT($A98/12)-$A98/12=0,B98*(1+Simulador!$C$35),B98)) -> 0 | C99: =MAX(IF(A99=0,0,B99-IF(Simulador!$C$11="Individual",0,Simulador!$C$14)),0) -> 0 | E99: 0 | F99: 0 | G99: 0 | H99: 0 | I99: 0 | J99: 0 | L99: 0 | M99: 0 | N99: 0 | O99: 0 | P99: 0 | Q99: 0 | S99: 0 | T99: 0 | U99: 0 | V99: 0 | W99: 0 | Y99: =IF(OR(Y98+1>(IF(AND(Simulador!$C$9<Simulador!$C$10,OR(Simulador!$E$7="Resgate",Simulador!$E$7="Portabilidade")),Simulador!$C$9,Simulador!$C$10)-Simulador!$C$8)*12,Y98=0),0,Y98+1) -> 95 | Z99: =IF($Y99=0,0,Z98*(1+Simulador!$D$34)+E99+L99) -> 0 | AA99: =IF($Y99=0,0,AA98*(1+Simulador!$D$34)+S99) -> 0 | AB99: =IF(OR(AB98+1>(IF(AND(Simulador!$C$9<Simulador!$C$10,OR(Simulador!$E$7="Resgate",Simulador!$E$7="Portabilidade")),Simulador!$C$9,Simulador!$C$50)-Simulador!$C$8)*12,AB98=0),0,AB98+1) -> 95 | AC99: =IF($AB99=0,0,AC98*(1+Simulador!$D$34)+F99+M99) -> 0 | AD99: =IF($AB99=0,0,AD98*(1+Simulador!$D$34)+T99) -> 0
A100: =IF(OR(A99+1>(IF(Simulador!$E$7="Autopatrocínio",Simulador!$C$10,Simulador!$C$9)-Simulador!$C$8)*12,A99=0),0,A99+1) -> 0 | B100: =IF($A100=0,0,IF(INT($A99/12)-$A99/12=0,B99*(1+Simulador!$C$35),B99)) -> 0 | C100: =MAX(IF(A100=0,0,B100-IF(Simulador!$C$11="Individual",0,Simulador!$C$14)),0) -> 0 | E100: 0 | F100: 0 | G100: 0 | H100: 0 | I100: 0 | J100: 0 | L100: 0 | M100: 0 | N100: 0 | O100: 0 | P100: 0 | Q100: 0 | S100: 0 | T100: 0 | U100: 0 | V100: 0 | W100: 0 | Y100: =IF(OR(Y99+1>(IF(AND(Simulador!$C$9<Simulador!$C$10,OR(Simulador!$E$7="Resgate",Simulador!$E$7="Portabilidade")),Simulador!$C$9,Simulador!$C$10)-Simulador!$C$8)*12,Y99=0),0,Y99+1) -> 96 | Z100: =IF($Y100=0,0,Z99*(1+Simulador!$D$34)+E100+L100) -> 0 | AA100: =IF($Y100=0,0,AA99*(1+Simulador!$D$34)+S100) -> 0 | AB100: =IF(OR(AB99+1>(IF(AND(Simulador!$C$9<Simulador!$C$10,OR(Simulador!$E$7="Resgate",Simulador!$E$7="Portabilidade")),Simulador!$C$9,Simulador!$C$50)-Simulador!$C$8)*12,AB99=0),0,AB99+1) -> 96 | AC100: =IF($AB100=0,0,AC99*(1+Simulador!$D$34)+F100+M100) -> 0 | AD100: =IF($AB100=0,0,AD99*(1+Simulador!$D$34)+T100) -> 0
A101: =IF(OR(A100+1>(IF(Simulador!$E$7="Autopatrocínio",Simulador!$C$10,Simulador!$C$9)-Simulador!$C$8)*12,A100=0),0,A100+1) -> 0 | B101: =IF($A101=0,0,IF(INT($A100/12)-$A100/12=0,B100*(1+Simulador!$C$35),B100)) -> 0 | C101: =MAX(IF(A101=0,0,B101-IF(Simulador!$C$11="Individual",0,Simulador!$C$14)),0) -> 0 | E101: 0 | F101: 0 | G101: 0 | H101: 0 | I101: 0 | J101: 0 | L101: 0 | M101: 0 | N101: 0 | O101: 0 | P101: 0 | Q101: 0 | S101: =S$4*$C101*(1+$J101) -> 0 | T101: 0 | U101: 0 | V101: 0 | W101: 0 | Y101: =IF(OR(Y100+1>(IF(AND(Simulador!$C$9<Simulador!$C$10,OR(Simulador!$E$7="Resgate",Simulador!$E$7="Portabilidade")),Simulador!$C$9,Simulador!$C$10)-Simulador!$C$8)*12,Y100=0),0,Y100+1) -> 97 | Z101: =IF($Y101=0,0,Z100*(1+Simulador!$D$34)+E101+L101) -> 0 | AA101: =IF($Y101=0,0,AA100*(1+Simulador!$D$34)+S101) -> 0 | AB101: =IF(OR(AB100+1>(IF(AND(Simulador!$C$9<Simulador!$C$10,OR(Simulador!$E$7="Resgate",Simulador!$E$7="Portabilidade")),Simulador!$C$9,Simulador!$C$50)-Simulador!$C$8)*12,AB100=0),0,AB100+1) -> 97 | AC101: =IF($AB101=0,0,AC100*(1+Simulador!$D$34)+F101+M101) -> 0 | AD101: =IF($AB101=0,0,AD100*(1+Simulador!$D$34)+T101) -> 0
A102: =IF(OR(A101+1>(IF(Simulador!$E$7="Autopatrocínio",Simulador!$C$10,Simulador!$C$9)-Simulador!$C$8)*12,A101=0),0,A101+1) -> 0 | B102: =IF($A102=0,0,IF(INT($A101/12)-$A101/12=0,B101*(1+Simulador!$C$35),B101)) -> 0 | C102: =MAX(IF(A102=0,0,B102-IF(Simulador!$C$11="Individual",0,Simulador!$C$14)),0) -> 0 | E102: 0 | F102: 0 | G102: 0 | H102: 0 | I102: 0 | J102: 0 | L102: 0 | M102: 0 | N102: 0 | O102: 0 | P102: 0 | Q102: 0 | S102: 0 | T102: 0 | U102: 0 | V102: 0 | W102: 0 | Y102: =IF(OR(Y101+1>(IF(AND(Simulador!$C$9<Simulador!$C$10,OR(Simulador!$E$7="Resgate",Simulador!$E$7="Portabilidade")),Simulador!$C$9,Simulador!$C$10)-Simulador!$C$8)*12,Y101=0),0,Y101+1) -> 98 | Z102: =IF($Y102=0,0,Z101*(1+Simulador!$D$34)+E102+L102) -> 0 | AA102: =IF($Y102=0,0,AA101*(1+Simulador!$D$34)+S102) -> 0 | AB102: =IF(OR(AB101+1>(IF(AND(Simulador!$C$9<Simulador!$C$10,OR(Simulador!$E$7="Resgate",Simulador!$E$7="Portabilidade")),Simulador!$C$9,Simulador!$C$50)-Simulador!$C$8)*12,AB101=0),0,AB101+1) -> 98 | AC102: =IF($AB102=0,0,AC101*(1+Simulador!$D$34)+F102+M102) -> 0 | AD102: =IF($AB102=0,0,AD101*(1+Simulador!$D$34)+T102) -> 0
A103: =IF(OR(A102+1>(IF(Simulador!$E$7="Autopatrocínio",Simulador!$C$10,Simulador!$C$9)-Simulador!$C$8)*12,A102=0),0,A102+1) -> 0 | B103: =IF($A103=0,0,IF(INT($A102/12)-$A102/12=0,B102*(1+Simulador!$C$35),B102)) -> 0 | C103: =MAX(IF(A103=0,0,B103-IF(Simulador!$C$11="Individual",0,Simulador!$C$14)),0) -> 0 | E103: 0 | F103: 0 | G103: 0 | H103: 0 | I103: 0 | J103: 0 | L103: 0 | M103: 0 | N103: 0 | O103: 0 | P103: 0 | Q103: 0 | S103: 0 | T103: 0 | U103: 0 | V103: 0 | W103: 0 | Y103: =IF(OR(Y102+1>(IF(AND(Simulador!$C$9<Simulador!$C$10,OR(Simulador!$E$7="Resgate",Simulador!$E$7="Portabilidade")),Simulador!$C$9,Simulador!$C$10)-Simulador!$C$8)*12,Y102=0),0,Y102+1) -> 99 | Z103: =IF($Y103=0,0,Z102*(1+Simulador!$D$34)+E103+L103) -> 0 | AA103: =IF($Y103=0,0,AA102*(1+Simulador!$D$34)+S103) -> 0 | AB103: =IF(OR(AB102+1>(IF(AND(Simulador!$C$9<Simulador!$C$10,OR(Simulador!$E$7="Resgate",Simulador!$E$7="Portabilidade")),Simulador!$C$9,Simulador!$C$50)-Simulador!$C$8)*12,AB102=0),0,AB102+1) -> 99 | AC103: =IF($AB103=0,0,AC102*(1+Simulador!$D$34)+F103+M103) -> 0 | AD103: =IF($AB103=0,0,AD102*(1+Simulador!$D$34)+T103) -> 0
A104: =IF(OR(A103+1>(IF(Simulador!$E$7="Autopatrocínio",Simulador!$C$10,Simulador!$C$9)-Simulador!$C$8)*12,A103=0),0,A103+1) -> 0 | B104: =IF($A104=0,0,IF(INT($A103/12)-$A103/12=0,B103*(1+Simulador!$C$35),B103)) -> 0 | C104: =MAX(IF(A104=0,0,B104-IF(Simulador!$C$11="Individual",0,Simulador!$C$14)),0) -> 0 | E104: 0 | F104: 0 | G104: 0 | H104: 0 | I104: 0 | J104: 0 | L104: 0 | M104: 0 | N104: 0 | O104: 0 | P104: 0 | Q104: 0 | S104: 0 | T104: 0 | U104: 0 | V104: 0 | W104: 0 | Y104: =IF(OR(Y103+1>(IF(AND(Simulador!$C$9<Simulador!$C$10,OR(Simulador!$E$7="Resgate",Simulador!$E$7="Portabilidade")),Simulador!$C$9,Simulador!$C$10)-Simulador!$C$8)*12,Y103=0),0,Y103+1) -> 100 | Z104: =IF($Y104=0,0,Z103*(1+Simulador!$D$34)+E104+L104) -> 0 | AA104: =IF($Y104=0,0,AA103*(1+Simulador!$D$34)+S104) -> 0 | AB104: =IF(OR(AB103+1>(IF(AND(Simulador!$C$9<Simulador!$C$10,OR(Simulador!$E$7="Resgate",Simulador!$E$7="Portabilidade")),Simulador!$C$9,Simulador!$C$50)-Simulador!$C$8)*12,AB103=0),0,AB103+1) -> 100 | AC104: =IF($AB104=0,0,AC103*(1+Simulador!$D$34)+F104+M104) -> 0 | AD104: =IF($AB104=0,0,AD103*(1+Simulador!$D$34)+T104) -> 0
A105: =IF(OR(A104+1>(IF(Simulador!$E$7="Autopatrocínio",Simulador!$C$10,Simulador!$C$9)-Simulador!$C$8)*12,A104=0),0,A104+1) -> 0 | B105: =IF($A105=0,0,IF(INT($A104/12)-$A104/12=0,B104*(1+Simulador!$C$35),B104)) -> 0 | C105: =MAX(IF(A105=0,0,B105-IF(Simulador!$C$11="Individual",0,Simulador!$C$14)),0) -> 0 | E105: =E$4*$C105*(1+$J105) -> 0 | F105: 0 | G105: 0 | H105: 0 | I105: 0 | J105: 0 | L105: =L$4*$C105*$Q105 -> 0 | M105: 0 | N105: 0 | O105: 0 | P105: 0 | Q105: 0 | S105: 0 | T105: 0 | U105: 0 | V105: 0 | W105: 0 | Y105: =IF(OR(Y104+1>(IF(AND(Simulador!$C$9<Simulador!$C$10,OR(Simulador!$E$7="Resgate",Simulador!$E$7="Portabilidade")),Simulador!$C$9,Simulador!$C$10)-Simulador!$C$8)*12,Y104=0),0,Y104+1) -> 101 | Z105: =IF($Y105=0,0,Z104*(1+Simulador!$D$34)+E105+L105) -> 0 | AA105: =IF($Y105=0,0,AA104*(1+Simulador!$D$34)+S105) -> 0 | AB105: =IF(OR(AB104+1>(IF(AND(Simulador!$C$9<Simulador!$C$10,OR(Simulador!$E$7="Resgate",Simulador!$E$7="Portabilidade")),Simulador!$C$9,Simulador!$C$50)-Simulador!$C$8)*12,AB104=0),0,AB104+1) -> 101 | AC105: =IF($AB105=0,0,AC104*(1+Simulador!$D$34)+F105+M105) -> 0 | AD105: =IF($AB105=0,0,AD104*(1+Simulador!$D$34)+T105) -> 0
A106: =IF(OR(A105+1>(IF(Simulador!$E$7="Autopatrocínio",Simulador!$C$10,Simulador!$C$9)-Simulador!$C$8)*12,A105=0),0,A105+1) -> 0 | B106: =IF($A106=0,0,IF(INT($A105/12)-$A105/12=0,B105*(1+Simulador!$C$35),B105)) -> 0 | C106: =MAX(IF(A106=0,0,B106-IF(Simulador!$C$11="Individual",0,Simulador!$C$14)),0) -> 0 | E106: 0 | F106: 0 | G106: 0 | H106: 0 | I106: 0 | J106: 0 | L106: 0 | M106: 0 | N106: 0 | O106: 0 | P106: 0 | Q106: 0 | S106: 0 | T106: 0 | U106: 0 | V106: 0 | W106: 0 | Y106: =IF(OR(Y105+1>(IF(AND(Simulador!$C$9<Simulador!$C$10,OR(Simulador!$E$7="Resgate",Simulador!$E$7="Portabilidade")),Simulador!$C$9,Simulador!$C$10)-Simulador!$C$8)*12,Y105=0),0,Y105+1) -> 102 | Z106: =IF($Y106=0,0,Z105*(1+Simulador!$D$34)+E106+L106) -> 0 | AA106: =IF($Y106=0,0,AA105*(1+Simulador!$D$34)+S106) -> 0 | AB106: =IF(OR(AB105+1>(IF(AND(Simulador!$C$9<Simulador!$C$10,OR(Simulador!$E$7="Resgate",Simulador!$E$7="Portabilidade")),Simulador!$C$9,Simulador!$C$50)-Simulador!$C$8)*12,AB105=0),0,AB105+1) -> 102 | AC106: =IF($AB106=0,0,AC105*(1+Simulador!$D$34)+F106+M106) -> 0 | AD106: =IF($AB106=0,0,AD105*(1+Simulador!$D$34)+T106) -> 0
A107: =IF(OR(A106+1>(IF(Simulador!$E$7="Autopatrocínio",Simulador!$C$10,Simulador!$C$9)-Simulador!$C$8)*12,A106=0),0,A106+1) -> 0 | B107: =IF($A107=0,0,IF(INT($A106/12)-$A106/12=0,B106*(1+Simulador!$C$35),B106)) -> 0 | C107: =MAX(IF(A107=0,0,B107-IF(Simulador!$C$11="Individual",0,Simulador!$C$14)),0) -> 0 | E107: 0 | F107: 0 | G107: 0 | H107: 0 | I107: 0 | J107: 0 | L107: 0 | M107: 0 | N107: 0 | O107: 0 | P107: 0 | Q107: 0 | S107: 0 | T107: 0 | U107: 0 | V107: 0 | W107: 0 | Y107: =IF(OR(Y106+1>(IF(AND(Simulador!$C$9<Simulador!$C$10,OR(Simulador!$E$7="Resgate",Simulador!$E$7="Portabilidade")),Simulador!$C$9,Simulador!$C$10)-Simulador!$C$8)*12,Y106=0),0,Y106+1) -> 103 | Z107: =IF($Y107=0,0,Z106*(1+Simulador!$D$34)+E107+L107) -> 0 | AA107: =IF($Y107=0,0,AA106*(1+Simulador!$D$34)+S107) -> 0 | AB107: =IF(OR(AB106+1>(IF(AND(Simulador!$C$9<Simulador!$C$10,OR(Simulador!$E$7="Resgate",Simulador!$E$7="Portabilidade")),Simulador!$C$9,Simulador!$C$50)-Simulador!$C$8)*12,AB106=0),0,AB106+1) -> 103 | AC107: =IF($AB107=0,0,AC106*(1+Simulador!$D$34)+F107+M107) -> 0 | AD107: =IF($AB107=0,0,AD106*(1+Simulador!$D$34)+T107) -> 0
A108: =IF(OR(A107+1>(IF(Simulador!$E$7="Autopatrocínio",Simulador!$C$10,Simulador!$C$9)-Simulador!$C$8)*12,A107=0),0,A107+1) -> 0 | B108: =IF($A108=0,0,IF(INT($A107/12)-$A107/12=0,B107*(1+Simulador!$C$35),B107)) -> 0 | C108: =MAX(IF(A108=0,0,B108-IF(Simulador!$C$11="Individual",0,Simulador!$C$14)),0) -> 0 | E108: 0 | F108: 0 | G108: 0 | H108: 0 | I108: 0 | J108: 0 | L108: 0 | M108: 0 | N108: 0 | O108: 0 | P108: 0 | Q108: 0 | S108: 0 | T108: 0 | U108: 0 | V108: 0 | W108: 0 | Y108: =IF(OR(Y107+1>(IF(AND(Simulador!$C$9<Simulador!$C$10,OR(Simulador!$E$7="Resgate",Simulador!$E$7="Portabilidade")),Simulador!$C$9,Simulador!$C$10)-Simulador!$C$8)*12,Y107=0),0,Y107+1) -> 104 | Z108: =IF($Y108=0,0,Z107*(1+Simulador!$D$34)+E108+L108) -> 0 | AA108: =IF($Y108=0,0,AA107*(1+Simulador!$D$34)+S108) -> 0 | AB108: =IF(OR(AB107+1>(IF(AND(Simulador!$C$9<Simulador!$C$10,OR(Simulador!$E$7="Resgate",Simulador!$E$7="Portabilidade")),Simulador!$C$9,Simulador!$C$50)-Simulador!$C$8)*12,AB107=0),0,AB107+1) -> 104 | AC108: =IF($AB108=0,0,AC107*(1+Simulador!$D$34)+F108+M108) -> 0 | AD108: =IF($AB108=0,0,AD107*(1+Simulador!$D$34)+T108) -> 0
A109: =IF(OR(A108+1>(IF(Simulador!$E$7="Autopatrocínio",Simulador!$C$10,Simulador!$C$9)-Simulador!$C$8)*12,A108=0),0,A108+1) -> 0 | B109: =IF($A109=0,0,IF(INT($A108/12)-$A108/12=0,B108*(1+Simulador!$C$35),B108)) -> 0 | C109: =MAX(IF(A109=0,0,B109-IF(Simulador!$C$11="Individual",0,Simulador!$C$14)),0) -> 0 | E109: 0 | F109: 0 | G109: 0 | H109: 0 | I109: 0 | J109: 0 | L109: 0 | M109: 0 | N109: 0 | O109: 0 | P109: 0 | Q109: 0 | S109: 0 | T109: 0 | U109: 0 | V109: 0 | W109: 0 | Y109: =IF(OR(Y108+1>(IF(AND(Simulador!$C$9<Simulador!$C$10,OR(Simulador!$E$7="Resgate",Simulador!$E$7="Portabilidade")),Simulador!$C$9,Simulador!$C$10)-Simulador!$C$8)*12,Y108=0),0,Y108+1) -> 105 | Z109: =IF($Y109=0,0,Z108*(1+Simulador!$D$34)+E109+L109) -> 0 | AA109: =IF($Y109=0,0,AA108*(1+Simulador!$D$34)+S109) -> 0 | AB109: =IF(OR(AB108+1>(IF(AND(Simulador!$C$9<Simulador!$C$10,OR(Simulador!$E$7="Resgate",Simulador!$E$7="Portabilidade")),Simulador!$C$9,Simulador!$C$50)-Simulador!$C$8)*12,AB108=0),0,AB108+1) -> 105 | AC109: =IF($AB109=0,0,AC108*(1+Simulador!$D$34)+F109+M109) -> 0 | AD109: =IF($AB109=0,0,AD108*(1+Simulador!$D$34)+T109) -> 0
A110: =IF(OR(A109+1>(IF(Simulador!$E$7="Autopatrocínio",Simulador!$C$10,Simulador!$C$9)-Simulador!$C$8)*12,A109=0),0,A109+1) -> 0 | B110: =IF($A110=0,0,IF(INT($A109/12)-$A109/12=0,B109*(1+Simulador!$C$35),B109)) -> 0 | C110: =MAX(IF(A110=0,0,B110-IF(Simulador!$C$11="Individual",0,Simulador!$C$14)),0) -> 0 | E110: 0 | F110: 0 | G110: 0 | H110: 0 | I110: 0 | J110: 0 | L110: 0 | M110: 0 | N110: 0 | O110: 0 | P110: 0 | Q110: 0 | S110: 0 | T110: 0 | U110: 0 | V110: 0 | W110: 0 | Y110: =IF(OR(Y109+1>(IF(AND(Simulador!$C$9<Simulador!$C$10,OR(Simulador!$E$7="Resgate",Simulador!$E$7="Portabilidade")),Simulador!$C$9,Simulador!$C$10)-Simulador!$C$8)*12,Y109=0),0,Y109+1) -> 106 | Z110: =IF($Y110=0,0,Z109*(1+Simulador!$D$34)+E110+L110) -> 0 | AA110: =IF($Y110=0,0,AA109*(1+Simulador!$D$34)+S110) -> 0 | AB110: =IF(OR(AB109+1>(IF(AND(Simulador!$C$9<Simulador!$C$10,OR(Simulador!$E$7="Resgate",Simulador!$E$7="Portabilidade")),Simulador!$C$9,Simulador!$C$50)-Simulador!$C$8)*12,AB109=0),0,AB109+1) -> 106 | AC110: =IF($AB110=0,0,AC109*(1+Simulador!$D$34)+F110+M110) -> 0 | AD110: =IF($AB110=0,0,AD109*(1+Simulador!$D$34)+T110) -> 0
A111: =IF(OR(A110+1>(IF(Simulador!$E$7="Autopatrocínio",Simulador!$C$10,Simulador!$C$9)-Simulador!$C$8)*12,A110=0),0,A110+1) -> 0 | B111: =IF($A111=0,0,IF(INT($A110/12)-$A110/12=0,B110*(1+Simulador!$C$35),B110)) -> 0 | C111: =MAX(IF(A111=0,0,B111-IF(Simulador!$C$11="Individual",0,Simulador!$C$14)),0) -> 0 | E111: 0 | F111: 0 | G111: 0 | H111: 0 | I111: 0 | J111: 0 | L111: 0 | M111: 0 | N111: 0 | O111: 0 | P111: 0 | Q111: 0 | S111: 0 | T111: 0 | U111: 0 | V111: 0 | W111: 0 | Y111: =IF(OR(Y110+1>(IF(AND(Simulador!$C$9<Simulador!$C$10,OR(Simulador!$E$7="Resgate",Simulador!$E$7="Portabilidade")),Simulador!$C$9,Simulador!$C$10)-Simulador!$C$8)*12,Y110=0),0,Y110+1) -> 107 | Z111: =IF($Y111=0,0,Z110*(1+Simulador!$D$34)+E111+L111) -> 0 | AA111: =IF($Y111=0,0,AA110*(1+Simulador!$D$34)+S111) -> 0 | AB111: =IF(OR(AB110+1>(IF(AND(Simulador!$C$9<Simulador!$C$10,OR(Simulador!$E$7="Resgate",Simulador!$E$7="Portabilidade")),Simulador!$C$9,Simulador!$C$50)-Simulador!$C$8)*12,AB110=0),0,AB110+1) -> 107 | AC111: =IF($AB111=0,0,AC110*(1+Simulador!$D$34)+F111+M111) -> 0 | AD111: =IF($AB111=0,0,AD110*(1+Simulador!$D$34)+T111) -> 0
A112: =IF(OR(A111+1>(IF(Simulador!$E$7="Autopatrocínio",Simulador!$C$10,Simulador!$C$9)-Simulador!$C$8)*12,A111=0),0,A111+1) -> 0 | B112: =IF($A112=0,0,IF(INT($A111/12)-$A111/12=0,B111*(1+Simulador!$C$35),B111)) -> 0 | C112: =MAX(IF(A112=0,0,B112-IF(Simulador!$C$11="Individual",0,Simulador!$C$14)),0) -> 0 | E112: 0 | F112: 0 | G112: 0 | H112: 0 | I112: 0 | J112: 0 | L112: 0 | M112: 0 | N112: 0 | O112: 0 | P112: 0 | Q112: 0 | S112: 0 | T112: 0 | U112: 0 | V112: 0 | W112: 0 | Y112: =IF(OR(Y111+1>(IF(AND(Simulador!$C$9<Simulador!$C$10,OR(Simulador!$E$7="Resgate",Simulador!$E$7="Portabilidade")),Simulador!$C$9,Simulador!$C$10)-Simulador!$C$8)*12,Y111=0),0,Y111+1) -> 108 | Z112: =IF($Y112=0,0,Z111*(1+Simulador!$D$34)+E112+L112) -> 0 | AA112: =IF($Y112=0,0,AA111*(1+Simulador!$D$34)+S112) -> 0 | AB112: =IF(OR(AB111+1>(IF(AND(Simulador!$C$9<Simulador!$C$10,OR(Simulador!$E$7="Resgate",Simulador!$E$7="Portabilidade")),Simulador!$C$9,Simulador!$C$50)-Simulador!$C$8)*12,AB111=0),0,AB111+1) -> 108 | AC112: =IF($AB112=0,0,AC111*(1+Simulador!$D$34)+F112+M112) -> 0 | AD112: =IF($AB112=0,0,AD111*(1+Simulador!$D$34)+T112) -> 0
A113: =IF(OR(A112+1>(IF(Simulador!$E$7="Autopatrocínio",Simulador!$C$10,Simulador!$C$9)-Simulador!$C$8)*12,A112=0),0,A112+1) -> 0 | B113: =IF($A113=0,0,IF(INT($A112/12)-$A112/12=0,B112*(1+Simulador!$C$35),B112)) -> 0 | C113: =MAX(IF(A113=0,0,B113-IF(Simulador!$C$11="Individual",0,Simulador!$C$14)),0) -> 0 | E113: 0 | F113: 0 | G113: 0 | H113: 0 | I113: 0 | J113: 0 | L113: 0 | M113: 0 | N113: 0 | O113: 0 | P113: 0 | Q113: 0 | S113: 0 | T113: 0 | U113: 0 | V113: 0 | W113: 0 | Y113: =IF(OR(Y112+1>(IF(AND(Simulador!$C$9<Simulador!$C$10,OR(Simulador!$E$7="Resgate",Simulador!$E$7="Portabilidade")),Simulador!$C$9,Simulador!$C$10)-Simulador!$C$8)*12,Y112=0),0,Y112+1) -> 109 | Z113: =IF($Y113=0,0,Z112*(1+Simulador!$D$34)+E113+L113) -> 0 | AA113: =IF($Y113=0,0,AA112*(1+Simulador!$D$34)+S113) -> 0 | AB113: =IF(OR(AB112+1>(IF(AND(Simulador!$C$9<Simulador!$C$10,OR(Simulador!$E$7="Resgate",Simulador!$E$7="Portabilidade")),Simulador!$C$9,Simulador!$C$50)-Simulador!$C$8)*12,AB112=0),0,AB112+1) -> 109 | AC113: =IF($AB113=0,0,AC112*(1+Simulador!$D$34)+F113+M113) -> 0 | AD113: =IF($AB113=0,0,AD112*(1+Simulador!$D$34)+T113) -> 0
A114: =IF(OR(A113+1>(IF(Simulador!$E$7="Autopatrocínio",Simulador!$C$10,Simulador!$C$9)-Simulador!$C$8)*12,A113=0),0,A113+1) -> 0 | B114: =IF($A114=0,0,IF(INT($A113/12)-$A113/12=0,B113*(1+Simulador!$C$35),B113)) -> 0 | C114: =MAX(IF(A114=0,0,B114-IF(Simulador!$C$11="Individual",0,Simulador!$C$14)),0) -> 0 | E114: 0 | F114: 0 | G114: 0 | H114: 0 | I114: 0 | J114: 0 | L114: 0 | M114: 0 | N114: 0 | O114: 0 | P114: 0 | Q114: 0 | S114: 0 | T114: 0 | U114: 0 | V114: 0 | W114: 0 | Y114: =IF(OR(Y113+1>(IF(AND(Simulador!$C$9<Simulador!$C$10,OR(Simulador!$E$7="Resgate",Simulador!$E$7="Portabilidade")),Simulador!$C$9,Simulador!$C$10)-Simulador!$C$8)*12,Y113=0),0,Y113+1) -> 110 | Z114: =IF($Y114=0,0,Z113*(1+Simulador!$D$34)+E114+L114) -> 0 | AA114: =IF($Y114=0,0,AA113*(1+Simulador!$D$34)+S114) -> 0 | AB114: =IF(OR(AB113+1>(IF(AND(Simulador!$C$9<Simulador!$C$10,OR(Simulador!$E$7="Resgate",Simulador!$E$7="Portabilidade")),Simulador!$C$9,Simulador!$C$50)-Simulador!$C$8)*12,AB113=0),0,AB113+1) -> 110 | AC114: =IF($AB114=0,0,AC113*(1+Simulador!$D$34)+F114+M114) -> 0 | AD114: =IF($AB114=0,0,AD113*(1+Simulador!$D$34)+T114) -> 0
A115: =IF(OR(A114+1>(IF(Simulador!$E$7="Autopatrocínio",Simulador!$C$10,Simulador!$C$9)-Simulador!$C$8)*12,A114=0),0,A114+1) -> 0 | B115: =IF($A115=0,0,IF(INT($A114/12)-$A114/12=0,B114*(1+Simulador!$C$35),B114)) -> 0 | C115: =MAX(IF(A115=0,0,B115-IF(Simulador!$C$11="Individual",0,Simulador!$C$14)),0) -> 0 | E115: =E$4*$C115*(1+$J115) -> 0 | F115: 0 | G115: 0 | H115: 0 | I115: 0 | J115: 0 | L115: =L$4*$C115*$Q115 -> 0 | M115: 0 | N115: 0 | O115: 0 | P115: 0 | Q115: 0 | S115: 0 | T115: 0 | U115: 0 | V115: 0 | W115: 0 | Y115: =IF(OR(Y114+1>(IF(AND(Simulador!$C$9<Simulador!$C$10,OR(Simulador!$E$7="Resgate",Simulador!$E$7="Portabilidade")),Simulador!$C$9,Simulador!$C$10)-Simulador!$C$8)*12,Y114=0),0,Y114+1) -> 111 | Z115: =IF($Y115=0,0,Z114*(1+Simulador!$D$34)+E115+L115) -> 0 | AA115: =IF($Y115=0,0,AA114*(1+Simulador!$D$34)+S115) -> 0 | AB115: =IF(OR(AB114+1>(IF(AND(Simulador!$C$9<Simulador!$C$10,OR(Simulador!$E$7="Resgate",Simulador!$E$7="Portabilidade")),Simulador!$C$9,Simulador!$C$50)-Simulador!$C$8)*12,AB114=0),0,AB114+1) -> 111 | AC115: =IF($AB115=0,0,AC114*(1+Simulador!$D$34)+F115+M115) -> 0 | AD115: =IF($AB115=0,0,AD114*(1+Simulador!$D$34)+T115) -> 0
A116: =IF(OR(A115+1>(IF(Simulador!$E$7="Autopatrocínio",Simulador!$C$10,Simulador!$C$9)-Simulador!$C$8)*12,A115=0),0,A115+1) -> 0 | B116: =IF($A116=0,0,IF(INT($A115/12)-$A115/12=0,B115*(1+Simulador!$C$35),B115)) -> 0 | C116: =MAX(IF(A116=0,0,B116-IF(Simulador!$C$11="Individual",0,Simulador!$C$14)),0) -> 0 | E116: 0 | F116: 0 | G116: 0 | H116: 0 | I116: 0 | J116: 0 | L116: 0 | M116: 0 | N116: 0 | O116: 0 | P116: 0 | Q116: 0 | S116: 0 | T116: 0 | U116: 0 | V116: 0 | W116: 0 | Y116: =IF(OR(Y115+1>(IF(AND(Simulador!$C$9<Simulador!$C$10,OR(Simulador!$E$7="Resgate",Simulador!$E$7="Portabilidade")),Simulador!$C$9,Simulador!$C$10)-Simulador!$C$8)*12,Y115=0),0,Y115+1) -> 112 | Z116: =IF($Y116=0,0,Z115*(1+Simulador!$D$34)+E116+L116) -> 0 | AA116: =IF($Y116=0,0,AA115*(1+Simulador!$D$34)+S116) -> 0 | AB116: =IF(OR(AB115+1>(IF(AND(Simulador!$C$9<Simulador!$C$10,OR(Simulador!$E$7="Resgate",Simulador!$E$7="Portabilidade")),Simulador!$C$9,Simulador!$C$50)-Simulador!$C$8)*12,AB115=0),0,AB115+1) -> 112 | AC116: =IF($AB116=0,0,AC115*(1+Simulador!$D$34)+F116+M116) -> 0 | AD116: =IF($AB116=0,0,AD115*(1+Simulador!$D$34)+T116) -> 0
A117: =IF(OR(A116+1>(IF(Simulador!$E$7="Autopatrocínio",Simulador!$C$10,Simulador!$C$9)-Simulador!$C$8)*12,A116=0),0,A116+1) -> 0 | B117: =IF($A117=0,0,IF(INT($A116/12)-$A116/12=0,B116*(1+Simulador!$C$35),B116)) -> 0 | C117: =MAX(IF(A117=0,0,B117-IF(Simulador!$C$11="Individual",0,Simulador!$C$14)),0) -> 0 | E117: 0 | F117: 0 | G117: 0 | H117: 0 | I117: 0 | J117: 0 | L117: 0 | M117: 0 | N117: 0 | O117: 0 | P117: 0 | Q117: 0 | S117: =S$4*$C117*(1+$J117) -> 0 | T117: 0 | U117: 0 | V117: 0 | W117: 0 | Y117: =IF(OR(Y116+1>(IF(AND(Simulador!$C$9<Simulador!$C$10,OR(Simulador!$E$7="Resgate",Simulador!$E$7="Portabilidade")),Simulador!$C$9,Simulador!$C$10)-Simulador!$C$8)*12,Y116=0),0,Y116+1) -> 113 | Z117: =IF($Y117=0,0,Z116*(1+Simulador!$D$34)+E117+L117) -> 0 | AA117: =IF($Y117=0,0,AA116*(1+Simulador!$D$34)+S117) -> 0 | AB117: =IF(OR(AB116+1>(IF(AND(Simulador!$C$9<Simulador!$C$10,OR(Simulador!$E$7="Resgate",Simulador!$E$7="Portabilidade")),Simulador!$C$9,Simulador!$C$50)-Simulador!$C$8)*12,AB116=0),0,AB116+1) -> 113 | AC117: =IF($AB117=0,0,AC116*(1+Simulador!$D$34)+F117+M117) -> 0 | AD117: =IF($AB117=0,0,AD116*(1+Simulador!$D$34)+T117) -> 0
A118: =IF(OR(A117+1>(IF(Simulador!$E$7="Autopatrocínio",Simulador!$C$10,Simulador!$C$9)-Simulador!$C$8)*12,A117=0),0,A117+1) -> 0 | B118: =IF($A118=0,0,IF(INT($A117/12)-$A117/12=0,B117*(1+Simulador!$C$35),B117)) -> 0 | C118: =MAX(IF(A118=0,0,B118-IF(Simulador!$C$11="Individual",0,Simulador!$C$14)),0) -> 0 | E118: 0 | F118: 0 | G118: 0 | H118: 0 | I118: 0 | J118: 0 | L118: 0 | M118: 0 | N118: 0 | O118: 0 | P118: 0 | Q118: 0 | S118: 0 | T118: 0 | U118: 0 | V118: 0 | W118: 0 | Y118: =IF(OR(Y117+1>(IF(AND(Simulador!$C$9<Simulador!$C$10,OR(Simulador!$E$7="Resgate",Simulador!$E$7="Portabilidade")),Simulador!$C$9,Simulador!$C$10)-Simulador!$C$8)*12,Y117=0),0,Y117+1) -> 114 | Z118: =IF($Y118=0,0,Z117*(1+Simulador!$D$34)+E118+L118) -> 0 | AA118: =IF($Y118=0,0,AA117*(1+Simulador!$D$34)+S118) -> 0 | AB118: =IF(OR(AB117+1>(IF(AND(Simulador!$C$9<Simulador!$C$10,OR(Simulador!$E$7="Resgate",Simulador!$E$7="Portabilidade")),Simulador!$C$9,Simulador!$C$50)-Simulador!$C$8)*12,AB117=0),0,AB117+1) -> 114 | AC118: =IF($AB118=0,0,AC117*(1+Simulador!$D$34)+F118+M118) -> 0 | AD118: =IF($AB118=0,0,AD117*(1+Simulador!$D$34)+T118) -> 0
A119: =IF(OR(A118+1>(IF(Simulador!$E$7="Autopatrocínio",Simulador!$C$10,Simulador!$C$9)-Simulador!$C$8)*12,A118=0),0,A118+1) -> 0 | B119: =IF($A119=0,0,IF(INT($A118/12)-$A118/12=0,B118*(1+Simulador!$C$35),B118)) -> 0 | C119: =MAX(IF(A119=0,0,B119-IF(Simulador!$C$11="Individual",0,Simulador!$C$14)),0) -> 0 | E119: 0 | F119: 0 | G119: 0 | H119: 0 | I119: 0 | J119: 0 | L119: 0 | M119: 0 | N119: 0 | O119: 0 | P119: 0 | Q119: 0 | S119: 0 | T119: 0 | U119: 0 | V119: 0 | W119: 0 | Y119: =IF(OR(Y118+1>(IF(AND(Simulador!$C$9<Simulador!$C$10,OR(Simulador!$E$7="Resgate",Simulador!$E$7="Portabilidade")),Simulador!$C$9,Simulador!$C$10)-Simulador!$C$8)*12,Y118=0),0,Y118+1) -> 115 | Z119: =IF($Y119=0,0,Z118*(1+Simulador!$D$34)+E119+L119) -> 0 | AA119: =IF($Y119=0,0,AA118*(1+Simulador!$D$34)+S119) -> 0 | AB119: =IF(OR(AB118+1>(IF(AND(Simulador!$C$9<Simulador!$C$10,OR(Simulador!$E$7="Resgate",Simulador!$E$7="Portabilidade")),Simulador!$C$9,Simulador!$C$50)-Simulador!$C$8)*12,AB118=0),0,AB118+1) -> 115 | AC119: =IF($AB119=0,0,AC118*(1+Simulador!$D$34)+F119+M119) -> 0 | AD119: =IF($AB119=0,0,AD118*(1+Simulador!$D$34)+T119) -> 0
A120: =IF(OR(A119+1>(IF(Simulador!$E$7="Autopatrocínio",Simulador!$C$10,Simulador!$C$9)-Simulador!$C$8)*12,A119=0),0,A119+1) -> 0 | B120: =IF($A120=0,0,IF(INT($A119/12)-$A119/12=0,B119*(1+Simulador!$C$35),B119)) -> 0 | C120: =MAX(IF(A120=0,0,B120-IF(Simulador!$C$11="Individual",0,Simulador!$C$14)),0) -> 0 | E120: 0 | F120: 0 | G120: 0 | H120: 0 | I120: 0 | J120: 0 | L120: 0 | M120: 0 | N120: 0 | O120: 0 | P120: 0 | Q120: 0 | S120: 0 | T120: 0 | U120: 0 | V120: 0 | W120: 0 | Y120: =IF(OR(Y119+1>(IF(AND(Simulador!$C$9<Simulador!$C$10,OR(Simulador!$E$7="Resgate",Simulador!$E$7="Portabilidade")),Simulador!$C$9,Simulador!$C$10)-Simulador!$C$8)*12,Y119=0),0,Y119+1) -> 116 | Z120: =IF($Y120=0,0,Z119*(1+Simulador!$D$34)+E120+L120) -> 0 | AA120: =IF($Y120=0,0,AA119*(1+Simulador!$D$34)+S120) -> 0 | AB120: =IF(OR(AB119+1>(IF(AND(Simulador!$C$9<Simulador!$C$10,OR(Simulador!$E$7="Resgate",Simulador!$E$7="Portabilidade")),Simulador!$C$9,Simulador!$C$50)-Simulador!$C$8)*12,AB119=0),0,AB119+1) -> 116 | AC120: =IF($AB120=0,0,AC119*(1+Simulador!$D$34)+F120+M120) -> 0 | AD120: =IF($AB120=0,0,AD119*(1+Simulador!$D$34)+T120) -> 0
A121: =IF(OR(A120+1>(IF(Simulador!$E$7="Autopatrocínio",Simulador!$C$10,Simulador!$C$9)-Simulador!$C$8)*12,A120=0),0,A120+1) -> 0 | B121: =IF($A121=0,0,IF(INT($A120/12)-$A120/12=0,B120*(1+Simulador!$C$35),B120)) -> 0 | C121: =MAX(IF(A121=0,0,B121-IF(Simulador!$C$11="Individual",0,Simulador!$C$14)),0) -> 0 | E121: 0 | F121: 0 | G121: 0 | H121: 0 | I121: 0 | J121: 0 | L121: 0 | M121: 0 | N121: 0 | O121: 0 | P121: 0 | Q121: 0 | S121: 0 | T121: 0 | U121: 0 | V121: 0 | W121: 0 | Y121: =IF(OR(Y120+1>(IF(AND(Simulador!$C$9<Simulador!$C$10,OR(Simulador!$E$7="Resgate",Simulador!$E$7="Portabilidade")),Simulador!$C$9,Simulador!$C$10)-Simulador!$C$8)*12,Y120=0),0,Y120+1) -> 117 | Z121: =IF($Y121=0,0,Z120*(1+Simulador!$D$34)+E121+L121) -> 0 | AA121: =IF($Y121=0,0,AA120*(1+Simulador!$D$34)+S121) -> 0 | AB121: =IF(OR(AB120+1>(IF(AND(Simulador!$C$9<Simulador!$C$10,OR(Simulador!$E$7="Resgate",Simulador!$E$7="Portabilidade")),Simulador!$C$9,Simulador!$C$50)-Simulador!$C$8)*12,AB120=0),0,AB120+1) -> 117 | AC121: =IF($AB121=0,0,AC120*(1+Simulador!$D$34)+F121+M121) -> 0 | AD121: =IF($AB121=0,0,AD120*(1+Simulador!$D$34)+T121) -> 0
A122: =IF(OR(A121+1>(IF(Simulador!$E$7="Autopatrocínio",Simulador!$C$10,Simulador!$C$9)-Simulador!$C$8)*12,A121=0),0,A121+1) -> 0 | B122: =IF($A122=0,0,IF(INT($A121/12)-$A121/12=0,B121*(1+Simulador!$C$35),B121)) -> 0 | C122: =MAX(IF(A122=0,0,B122-IF(Simulador!$C$11="Individual",0,Simulador!$C$14)),0) -> 0 | E122: 0 | F122: 0 | G122: 0 | H122: 0 | I122: 0 | J122: 0 | L122: 0 | M122: 0 | N122: 0 | O122: 0 | P122: 0 | Q122: 0 | S122: 0 | T122: 0 | U122: 0 | V122: 0 | W122: 0 | Y122: =IF(OR(Y121+1>(IF(AND(Simulador!$C$9<Simulador!$C$10,OR(Simulador!$E$7="Resgate",Simulador!$E$7="Portabilidade")),Simulador!$C$9,Simulador!$C$10)-Simulador!$C$8)*12,Y121=0),0,Y121+1) -> 118 | Z122: =IF($Y122=0,0,Z121*(1+Simulador!$D$34)+E122+L122) -> 0 | AA122: =IF($Y122=0,0,AA121*(1+Simulador!$D$34)+S122) -> 0 | AB122: =IF(OR(AB121+1>(IF(AND(Simulador!$C$9<Simulador!$C$10,OR(Simulador!$E$7="Resgate",Simulador!$E$7="Portabilidade")),Simulador!$C$9,Simulador!$C$50)-Simulador!$C$8)*12,AB121=0),0,AB121+1) -> 118 | AC122: =IF($AB122=0,0,AC121*(1+Simulador!$D$34)+F122+M122) -> 0 | AD122: =IF($AB122=0,0,AD121*(1+Simulador!$D$34)+T122) -> 0
A123: =IF(OR(A122+1>(IF(Simulador!$E$7="Autopatrocínio",Simulador!$C$10,Simulador!$C$9)-Simulador!$C$8)*12,A122=0),0,A122+1) -> 0 | B123: =IF($A123=0,0,IF(INT($A122/12)-$A122/12=0,B122*(1+Simulador!$C$35),B122)) -> 0 | C123: =MAX(IF(A123=0,0,B123-IF(Simulador!$C$11="Individual",0,Simulador!$C$14)),0) -> 0 | E123: 0 | F123: 0 | G123: 0 | H123: 0 | I123: 0 | J123: 0 | L123: 0 | M123: 0 | N123: 0 | O123: 0 | P123: 0 | Q123: 0 | S123: 0 | T123: 0 | U123: 0 | V123: 0 | W123: 0 | Y123: =IF(OR(Y122+1>(IF(AND(Simulador!$C$9<Simulador!$C$10,OR(Simulador!$E$7="Resgate",Simulador!$E$7="Portabilidade")),Simulador!$C$9,Simulador!$C$10)-Simulador!$C$8)*12,Y122=0),0,Y122+1) -> 119 | Z123: =IF($Y123=0,0,Z122*(1+Simulador!$D$34)+E123+L123) -> 0 | AA123: =IF($Y123=0,0,AA122*(1+Simulador!$D$34)+S123) -> 0 | AB123: =IF(OR(AB122+1>(IF(AND(Simulador!$C$9<Simulador!$C$10,OR(Simulador!$E$7="Resgate",Simulador!$E$7="Portabilidade")),Simulador!$C$9,Simulador!$C$50)-Simulador!$C$8)*12,AB122=0),0,AB122+1) -> 119 | AC123: =IF($AB123=0,0,AC122*(1+Simulador!$D$34)+F123+M123) -> 0 | AD123: =IF($AB123=0,0,AD122*(1+Simulador!$D$34)+T123) -> 0
A124: =IF(OR(A123+1>(IF(Simulador!$E$7="Autopatrocínio",Simulador!$C$10,Simulador!$C$9)-Simulador!$C$8)*12,A123=0),0,A123+1) -> 0 | B124: =IF($A124=0,0,IF(INT($A123/12)-$A123/12=0,B123*(1+Simulador!$C$35),B123)) -> 0 | C124: =MAX(IF(A124=0,0,B124-IF(Simulador!$C$11="Individual",0,Simulador!$C$14)),0) -> 0 | E124: 0 | F124: 0 | G124: 0 | H124: 0 | I124: 0 | J124: 0 | L124: 0 | M124: 0 | N124: 0 | O124: 0 | P124: 0 | Q124: 0 | S124: 0 | T124: 0 | U124: 0 | V124: 0 | W124: 0 | Y124: =IF(OR(Y123+1>(IF(AND(Simulador!$C$9<Simulador!$C$10,OR(Simulador!$E$7="Resgate",Simulador!$E$7="Portabilidade")),Simulador!$C$9,Simulador!$C$10)-Simulador!$C$8)*12,Y123=0),0,Y123+1) -> 120 | Z124: =IF($Y124=0,0,Z123*(1+Simulador!$D$34)+E124+L124) -> 0 | AA124: =IF($Y124=0,0,AA123*(1+Simulador!$D$34)+S124) -> 0 | AB124: =IF(OR(AB123+1>(IF(AND(Simulador!$C$9<Simulador!$C$10,OR(Simulador!$E$7="Resgate",Simulador!$E$7="Portabilidade")),Simulador!$C$9,Simulador!$C$50)-Simulador!$C$8)*12,AB123=0),0,AB123+1) -> 120 | AC124: =IF($AB124=0,0,AC123*(1+Simulador!$D$34)+F124+M124) -> 0 | AD124: =IF($AB124=0,0,AD123*(1+Simulador!$D$34)+T124) -> 0
A125: =IF(OR(A124+1>(IF(Simulador!$E$7="Autopatrocínio",Simulador!$C$10,Simulador!$C$9)-Simulador!$C$8)*12,A124=0),0,A124+1) -> 0 | B125: =IF($A125=0,0,IF(INT($A124/12)-$A124/12=0,B124*(1+Simulador!$C$35),B124)) -> 0 | C125: =MAX(IF(A125=0,0,B125-IF(Simulador!$C$11="Individual",0,Simulador!$C$14)),0) -> 0 | E125: =E$4*$C125*(1+$J125) -> 0 | F125: 0 | G125: 0 | H125: 0 | I125: 0 | J125: 0 | L125: =L$4*$C125*$Q125 -> 0 | M125: 0 | N125: 0 | O125: 0 | P125: 0 | Q125: 0 | S125: 0 | T125: 0 | U125: 0 | V125: 0 | W125: 0 | Y125: =IF(OR(Y124+1>(IF(AND(Simulador!$C$9<Simulador!$C$10,OR(Simulador!$E$7="Resgate",Simulador!$E$7="Portabilidade")),Simulador!$C$9,Simulador!$C$10)-Simulador!$C$8)*12,Y124=0),0,Y124+1) -> 121 | Z125: =IF($Y125=0,0,Z124*(1+Simulador!$D$34)+E125+L125) -> 0 | AA125: =IF($Y125=0,0,AA124*(1+Simulador!$D$34)+S125) -> 0 | AB125: =IF(OR(AB124+1>(IF(AND(Simulador!$C$9<Simulador!$C$10,OR(Simulador!$E$7="Resgate",Simulador!$E$7="Portabilidade")),Simulador!$C$9,Simulador!$C$50)-Simulador!$C$8)*12,AB124=0),0,AB124+1) -> 121 | AC125: =IF($AB125=0,0,AC124*(1+Simulador!$D$34)+F125+M125) -> 0 | AD125: =IF($AB125=0,0,AD124*(1+Simulador!$D$34)+T125) -> 0
A126: =IF(OR(A125+1>(IF(Simulador!$E$7="Autopatrocínio",Simulador!$C$10,Simulador!$C$9)-Simulador!$C$8)*12,A125=0),0,A125+1) -> 0 | B126: =IF($A126=0,0,IF(INT($A125/12)-$A125/12=0,B125*(1+Simulador!$C$35),B125)) -> 0 | C126: =MAX(IF(A126=0,0,B126-IF(Simulador!$C$11="Individual",0,Simulador!$C$14)),0) -> 0 | E126: 0 | F126: 0 | G126: 0 | H126: 0 | I126: 0 | J126: 0 | L126: 0 | M126: 0 | N126: 0 | O126: 0 | P126: 0 | Q126: 0 | S126: 0 | T126: 0 | U126: 0 | V126: 0 | W126: 0 | Y126: =IF(OR(Y125+1>(IF(AND(Simulador!$C$9<Simulador!$C$10,OR(Simulador!$E$7="Resgate",Simulador!$E$7="Portabilidade")),Simulador!$C$9,Simulador!$C$10)-Simulador!$C$8)*12,Y125=0),0,Y125+1) -> 122 | Z126: =IF($Y126=0,0,Z125*(1+Simulador!$D$34)+E126+L126) -> 0 | AA126: =IF($Y126=0,0,AA125*(1+Simulador!$D$34)+S126) -> 0 | AB126: =IF(OR(AB125+1>(IF(AND(Simulador!$C$9<Simulador!$C$10,OR(Simulador!$E$7="Resgate",Simulador!$E$7="Portabilidade")),Simulador!$C$9,Simulador!$C$50)-Simulador!$C$8)*12,AB125=0),0,AB125+1) -> 122 | AC126: =IF($AB126=0,0,AC125*(1+Simulador!$D$34)+F126+M126) -> 0 | AD126: =IF($AB126=0,0,AD125*(1+Simulador!$D$34)+T126) -> 0
A127: =IF(OR(A126+1>(IF(Simulador!$E$7="Autopatrocínio",Simulador!$C$10,Simulador!$C$9)-Simulador!$C$8)*12,A126=0),0,A126+1) -> 0 | B127: =IF($A127=0,0,IF(INT($A126/12)-$A126/12=0,B126*(1+Simulador!$C$35),B126)) -> 0 | C127: =MAX(IF(A127=0,0,B127-IF(Simulador!$C$11="Individual",0,Simulador!$C$14)),0) -> 0 | E127: 0 | F127: 0 | G127: 0 | H127: 0 | I127: 0 | J127: 0 | L127: 0 | M127: 0 | N127: 0 | O127: 0 | P127: 0 | Q127: 0 | S127: 0 | T127: 0 | U127: 0 | V127: 0 | W127: 0 | Y127: =IF(OR(Y126+1>(IF(AND(Simulador!$C$9<Simulador!$C$10,OR(Simulador!$E$7="Resgate",Simulador!$E$7="Portabilidade")),Simulador!$C$9,Simulador!$C$10)-Simulador!$C$8)*12,Y126=0),0,Y126+1) -> 123 | Z127: =IF($Y127=0,0,Z126*(1+Simulador!$D$34)+E127+L127) -> 0 | AA127: =IF($Y127=0,0,AA126*(1+Simulador!$D$34)+S127) -> 0 | AB127: =IF(OR(AB126+1>(IF(AND(Simulador!$C$9<Simulador!$C$10,OR(Simulador!$E$7="Resgate",Simulador!$E$7="Portabilidade")),Simulador!$C$9,Simulador!$C$50)-Simulador!$C$8)*12,AB126=0),0,AB126+1) -> 123 | AC127: =IF($AB127=0,0,AC126*(1+Simulador!$D$34)+F127+M127) -> 0 | AD127: =IF($AB127=0,0,AD126*(1+Simulador!$D$34)+T127) -> 0
A128: =IF(OR(A127+1>(IF(Simulador!$E$7="Autopatrocínio",Simulador!$C$10,Simulador!$C$9)-Simulador!$C$8)*12,A127=0),0,A127+1) -> 0 | B128: =IF($A128=0,0,IF(INT($A127/12)-$A127/12=0,B127*(1+Simulador!$C$35),B127)) -> 0 | C128: =MAX(IF(A128=0,0,B128-IF(Simulador!$C$11="Individual",0,Simulador!$C$14)),0) -> 0 | E128: 0 | F128: 0 | G128: 0 | H128: 0 | I128: 0 | J128: 0 | L128: 0 | M128: 0 | N128: 0 | O128: 0 | P128: 0 | Q128: 0 | S128: 0 | T128: 0 | U128: 0 | V128: 0 | W128: 0 | Y128: =IF(OR(Y127+1>(IF(AND(Simulador!$C$9<Simulador!$C$10,OR(Simulador!$E$7="Resgate",Simulador!$E$7="Portabilidade")),Simulador!$C$9,Simulador!$C$10)-Simulador!$C$8)*12,Y127=0),0,Y127+1) -> 124 | Z128: =IF($Y128=0,0,Z127*(1+Simulador!$D$34)+E128+L128) -> 0 | AA128: =IF($Y128=0,0,AA127*(1+Simulador!$D$34)+S128) -> 0 | AB128: =IF(OR(AB127+1>(IF(AND(Simulador!$C$9<Simulador!$C$10,OR(Simulador!$E$7="Resgate",Simulador!$E$7="Portabilidade")),Simulador!$C$9,Simulador!$C$50)-Simulador!$C$8)*12,AB127=0),0,AB127+1) -> 124 | AC128: =IF($AB128=0,0,AC127*(1+Simulador!$D$34)+F128+M128) -> 0 | AD128: =IF($AB128=0,0,AD127*(1+Simulador!$D$34)+T128) -> 0
A129: =IF(OR(A128+1>(IF(Simulador!$E$7="Autopatrocínio",Simulador!$C$10,Simulador!$C$9)-Simulador!$C$8)*12,A128=0),0,A128+1) -> 0 | B129: =IF($A129=0,0,IF(INT($A128/12)-$A128/12=0,B128*(1+Simulador!$C$35),B128)) -> 0 | C129: =MAX(IF(A129=0,0,B129-IF(Simulador!$C$11="Individual",0,Simulador!$C$14)),0) -> 0 | E129: 0 | F129: 0 | G129: 0 | H129: 0 | I129: 0 | J129: 0 | L129: 0 | M129: 0 | N129: 0 | O129: 0 | P129: 0 | Q129: 0 | S129: 0 | T129: 0 | U129: 0 | V129: 0 | W129: 0 | Y129: =IF(OR(Y128+1>(IF(AND(Simulador!$C$9<Simulador!$C$10,OR(Simulador!$E$7="Resgate",Simulador!$E$7="Portabilidade")),Simulador!$C$9,Simulador!$C$10)-Simulador!$C$8)*12,Y128=0),0,Y128+1) -> 125 | Z129: =IF($Y129=0,0,Z128*(1+Simulador!$D$34)+E129+L129) -> 0 | AA129: =IF($Y129=0,0,AA128*(1+Simulador!$D$34)+S129) -> 0 | AB129: =IF(OR(AB128+1>(IF(AND(Simulador!$C$9<Simulador!$C$10,OR(Simulador!$E$7="Resgate",Simulador!$E$7="Portabilidade")),Simulador!$C$9,Simulador!$C$50)-Simulador!$C$8)*12,AB128=0),0,AB128+1) -> 125 | AC129: =IF($AB129=0,0,AC128*(1+Simulador!$D$34)+F129+M129) -> 0 | AD129: =IF($AB129=0,0,AD128*(1+Simulador!$D$34)+T129) -> 0
A130: =IF(OR(A129+1>(IF(Simulador!$E$7="Autopatrocínio",Simulador!$C$10,Simulador!$C$9)-Simulador!$C$8)*12,A129=0),0,A129+1) -> 0 | B130: =IF($A130=0,0,IF(INT($A129/12)-$A129/12=0,B129*(1+Simulador!$C$35),B129)) -> 0 | C130: =MAX(IF(A130=0,0,B130-IF(Simulador!$C$11="Individual",0,Simulador!$C$14)),0) -> 0 | E130: 0 | F130: 0 | G130: 0 | H130: 0 | I130: 0 | J130: 0 | L130: 0 | M130: 0 | N130: 0 | O130: 0 | P130: 0 | Q130: 0 | S130: 0 | T130: 0 | U130: 0 | V130: 0 | W130: 0 | Y130: =IF(OR(Y129+1>(IF(AND(Simulador!$C$9<Simulador!$C$10,OR(Simulador!$E$7="Resgate",Simulador!$E$7="Portabilidade")),Simulador!$C$9,Simulador!$C$10)-Simulador!$C$8)*12,Y129=0),0,Y129+1) -> 126 | Z130: =IF($Y130=0,0,Z129*(1+Simulador!$D$34)+E130+L130) -> 0 | AA130: =IF($Y130=0,0,AA129*(1+Simulador!$D$34)+S130) -> 0 | AB130: =IF(OR(AB129+1>(IF(AND(Simulador!$C$9<Simulador!$C$10,OR(Simulador!$E$7="Resgate",Simulador!$E$7="Portabilidade")),Simulador!$C$9,Simulador!$C$50)-Simulador!$C$8)*12,AB129=0),0,AB129+1) -> 126 | AC130: =IF($AB130=0,0,AC129*(1+Simulador!$D$34)+F130+M130) -> 0 | AD130: =IF($AB130=0,0,AD129*(1+Simulador!$D$34)+T130) -> 0
A131: =IF(OR(A130+1>(IF(Simulador!$E$7="Autopatrocínio",Simulador!$C$10,Simulador!$C$9)-Simulador!$C$8)*12,A130=0),0,A130+1) -> 0 | B131: =IF($A131=0,0,IF(INT($A130/12)-$A130/12=0,B130*(1+Simulador!$C$35),B130)) -> 0 | C131: =MAX(IF(A131=0,0,B131-IF(Simulador!$C$11="Individual",0,Simulador!$C$14)),0) -> 0 | E131: 0 | F131: 0 | G131: 0 | H131: 0 | I131: 0 | J131: 0 | L131: 0 | M131: 0 | N131: 0 | O131: 0 | P131: 0 | Q131: 0 | S131: 0 | T131: 0 | U131: 0 | V131: 0 | W131: 0 | Y131: =IF(OR(Y130+1>(IF(AND(Simulador!$C$9<Simulador!$C$10,OR(Simulador!$E$7="Resgate",Simulador!$E$7="Portabilidade")),Simulador!$C$9,Simulador!$C$10)-Simulador!$C$8)*12,Y130=0),0,Y130+1) -> 127 | Z131: =IF($Y131=0,0,Z130*(1+Simulador!$D$34)+E131+L131) -> 0 | AA131: =IF($Y131=0,0,AA130*(1+Simulador!$D$34)+S131) -> 0 | AB131: =IF(OR(AB130+1>(IF(AND(Simulador!$C$9<Simulador!$C$10,OR(Simulador!$E$7="Resgate",Simulador!$E$7="Portabilidade")),Simulador!$C$9,Simulador!$C$50)-Simulador!$C$8)*12,AB130=0),0,AB130+1) -> 127 | AC131: =IF($AB131=0,0,AC130*(1+Simulador!$D$34)+F131+M131) -> 0 | AD131: =IF($AB131=0,0,AD130*(1+Simulador!$D$34)+T131) -> 0
A132: =IF(OR(A131+1>(IF(Simulador!$E$7="Autopatrocínio",Simulador!$C$10,Simulador!$C$9)-Simulador!$C$8)*12,A131=0),0,A131+1) -> 0 | B132: =IF($A132=0,0,IF(INT($A131/12)-$A131/12=0,B131*(1+Simulador!$C$35),B131)) -> 0 | C132: =MAX(IF(A132=0,0,B132-IF(Simulador!$C$11="Individual",0,Simulador!$C$14)),0) -> 0 | E132: 0 | F132: 0 | G132: 0 | H132: 0 | I132: 0 | J132: 0 | L132: 0 | M132: 0 | N132: 0 | O132: 0 | P132: 0 | Q132: 0 | S132: 0 | T132: 0 | U132: 0 | V132: 0 | W132: 0 | Y132: =IF(OR(Y131+1>(IF(AND(Simulador!$C$9<Simulador!$C$10,OR(Simulador!$E$7="Resgate",Simulador!$E$7="Portabilidade")),Simulador!$C$9,Simulador!$C$10)-Simulador!$C$8)*12,Y131=0),0,Y131+1) -> 128 | Z132: =IF($Y132=0,0,Z131*(1+Simulador!$D$34)+E132+L132) -> 0 | AA132: =IF($Y132=0,0,AA131*(1+Simulador!$D$34)+S132) -> 0 | AB132: =IF(OR(AB131+1>(IF(AND(Simulador!$C$9<Simulador!$C$10,OR(Simulador!$E$7="Resgate",Simulador!$E$7="Portabilidade")),Simulador!$C$9,Simulador!$C$50)-Simulador!$C$8)*12,AB131=0),0,AB131+1) -> 128 | AC132: =IF($AB132=0,0,AC131*(1+Simulador!$D$34)+F132+M132) -> 0 | AD132: =IF($AB132=0,0,AD131*(1+Simulador!$D$34)+T132) -> 0
A133: =IF(OR(A132+1>(IF(Simulador!$E$7="Autopatrocínio",Simulador!$C$10,Simulador!$C$9)-Simulador!$C$8)*12,A132=0),0,A132+1) -> 0 | B133: =IF($A133=0,0,IF(INT($A132/12)-$A132/12=0,B132*(1+Simulador!$C$35),B132)) -> 0 | C133: =MAX(IF(A133=0,0,B133-IF(Simulador!$C$11="Individual",0,Simulador!$C$14)),0) -> 0 | E133: 0 | F133: 0 | G133: 0 | H133: 0 | I133: 0 | J133: =IF($A133=0,0,IF(INT($A133/12)-$A133/12=0,1,0)) -> 0 | L133: 0 | M133: 0 | N133: 0 | O133: 0 | P133: 0 | Q133: =IF($A133=0,0,IF($Q$4="Mensal",1,IF($Q$4="Semestral",IF(INT(($A133+5)/6)-($A133+5)/6=0,1,0),IF($Q$4="Anual",IF(INT(($A133+11)/12)-($A133+11)/12=0,1,0))))) -> 0 | S133: =S$4*$C133*(1+$J133) -> 0 | T133: 0 | U133: 0 | V133: 0 | W133: 0 | Y133: =IF(OR(Y132+1>(IF(AND(Simulador!$C$9<Simulador!$C$10,OR(Simulador!$E$7="Resgate",Simulador!$E$7="Portabilidade")),Simulador!$C$9,Simulador!$C$10)-Simulador!$C$8)*12,Y132=0),0,Y132+1) -> 129 | Z133: =IF($Y133=0,0,Z132*(1+Simulador!$D$34)+E133+L133) -> 0 | AA133: =IF($Y133=0,0,AA132*(1+Simulador!$D$34)+S133) -> 0 | AB133: =IF(OR(AB132+1>(IF(AND(Simulador!$C$9<Simulador!$C$10,OR(Simulador!$E$7="Resgate",Simulador!$E$7="Portabilidade")),Simulador!$C$9,Simulador!$C$50)-Simulador!$C$8)*12,AB132=0),0,AB132+1) -> 129 | AC133: =IF($AB133=0,0,AC132*(1+Simulador!$D$34)+F133+M133) -> 0 | AD133: =IF($AB133=0,0,AD132*(1+Simulador!$D$34)+T133) -> 0
A134: =IF(OR(A133+1>(IF(Simulador!$E$7="Autopatrocínio",Simulador!$C$10,Simulador!$C$9)-Simulador!$C$8)*12,A133=0),0,A133+1) -> 0 | B134: =IF($A134=0,0,IF(INT($A133/12)-$A133/12=0,B133*(1+Simulador!$C$35),B133)) -> 0 | C134: =MAX(IF(A134=0,0,B134-IF(Simulador!$C$11="Individual",0,Simulador!$C$14)),0) -> 0 | E134: 0 | F134: 0 | G134: 0 | H134: 0 | I134: 0 | J134: 0 | L134: 0 | M134: 0 | N134: 0 | O134: 0 | P134: 0 | Q134: 0 | S134: 0 | T134: 0 | U134: 0 | V134: 0 | W134: 0 | Y134: =IF(OR(Y133+1>(IF(AND(Simulador!$C$9<Simulador!$C$10,OR(Simulador!$E$7="Resgate",Simulador!$E$7="Portabilidade")),Simulador!$C$9,Simulador!$C$10)-Simulador!$C$8)*12,Y133=0),0,Y133+1) -> 130 | Z134: =IF($Y134=0,0,Z133*(1+Simulador!$D$34)+E134+L134) -> 0 | AA134: =IF($Y134=0,0,AA133*(1+Simulador!$D$34)+S134) -> 0 | AB134: =IF(OR(AB133+1>(IF(AND(Simulador!$C$9<Simulador!$C$10,OR(Simulador!$E$7="Resgate",Simulador!$E$7="Portabilidade")),Simulador!$C$9,Simulador!$C$50)-Simulador!$C$8)*12,AB133=0),0,AB133+1) -> 130 | AC134: =IF($AB134=0,0,AC133*(1+Simulador!$D$34)+F134+M134) -> 0 | AD134: =IF($AB134=0,0,AD133*(1+Simulador!$D$34)+T134) -> 0
A135: =IF(OR(A134+1>(IF(Simulador!$E$7="Autopatrocínio",Simulador!$C$10,Simulador!$C$9)-Simulador!$C$8)*12,A134=0),0,A134+1) -> 0 | B135: =IF($A135=0,0,IF(INT($A134/12)-$A134/12=0,B134*(1+Simulador!$C$35),B134)) -> 0 | C135: =MAX(IF(A135=0,0,B135-IF(Simulador!$C$11="Individual",0,Simulador!$C$14)),0) -> 0 | E135: =E$4*$C135*(1+$J135) -> 0 | F135: 0 | G135: 0 | H135: 0 | I135: 0 | J135: 0 | L135: =L$4*$C135*$Q135 -> 0 | M135: 0 | N135: 0 | O135: 0 | P135: 0 | Q135: 0 | S135: 0 | T135: 0 | U135: 0 | V135: 0 | W135: 0 | Y135: =IF(OR(Y134+1>(IF(AND(Simulador!$C$9<Simulador!$C$10,OR(Simulador!$E$7="Resgate",Simulador!$E$7="Portabilidade")),Simulador!$C$9,Simulador!$C$10)-Simulador!$C$8)*12,Y134=0),0,Y134+1) -> 131 | Z135: =IF($Y135=0,0,Z134*(1+Simulador!$D$34)+E135+L135) -> 0 | AA135: =IF($Y135=0,0,AA134*(1+Simulador!$D$34)+S135) -> 0 | AB135: =IF(OR(AB134+1>(IF(AND(Simulador!$C$9<Simulador!$C$10,OR(Simulador!$E$7="Resgate",Simulador!$E$7="Portabilidade")),Simulador!$C$9,Simulador!$C$50)-Simulador!$C$8)*12,AB134=0),0,AB134+1) -> 131 | AC135: =IF($AB135=0,0,AC134*(1+Simulador!$D$34)+F135+M135) -> 0 | AD135: =IF($AB135=0,0,AD134*(1+Simulador!$D$34)+T135) -> 0
A136: =IF(OR(A135+1>(IF(Simulador!$E$7="Autopatrocínio",Simulador!$C$10,Simulador!$C$9)-Simulador!$C$8)*12,A135=0),0,A135+1) -> 0 | B136: =IF($A136=0,0,IF(INT($A135/12)-$A135/12=0,B135*(1+Simulador!$C$35),B135)) -> 0 | C136: =MAX(IF(A136=0,0,B136-IF(Simulador!$C$11="Individual",0,Simulador!$C$14)),0) -> 0 | E136: 0 | F136: 0 | G136: 0 | H136: 0 | I136: 0 | J136: 0 | L136: 0 | M136: 0 | N136: 0 | O136: 0 | P136: 0 | Q136: 0 | S136: 0 | T136: 0 | U136: 0 | V136: 0 | W136: 0 | Y136: =IF(OR(Y135+1>(IF(AND(Simulador!$C$9<Simulador!$C$10,OR(Simulador!$E$7="Resgate",Simulador!$E$7="Portabilidade")),Simulador!$C$9,Simulador!$C$10)-Simulador!$C$8)*12,Y135=0),0,Y135+1) -> 132 | Z136: =IF($Y136=0,0,Z135*(1+Simulador!$D$34)+E136+L136) -> 0 | AA136: =IF($Y136=0,0,AA135*(1+Simulador!$D$34)+S136) -> 0 | AB136: =IF(OR(AB135+1>(IF(AND(Simulador!$C$9<Simulador!$C$10,OR(Simulador!$E$7="Resgate",Simulador!$E$7="Portabilidade")),Simulador!$C$9,Simulador!$C$50)-Simulador!$C$8)*12,AB135=0),0,AB135+1) -> 132 | AC136: =IF($AB136=0,0,AC135*(1+Simulador!$D$34)+F136+M136) -> 0 | AD136: =IF($AB136=0,0,AD135*(1+Simulador!$D$34)+T136) -> 0
A137: =IF(OR(A136+1>(IF(Simulador!$E$7="Autopatrocínio",Simulador!$C$10,Simulador!$C$9)-Simulador!$C$8)*12,A136=0),0,A136+1) -> 0 | B137: =IF($A137=0,0,IF(INT($A136/12)-$A136/12=0,B136*(1+Simulador!$C$35),B136)) -> 0 | C137: =MAX(IF(A137=0,0,B137-IF(Simulador!$C$11="Individual",0,Simulador!$C$14)),0) -> 0 | E137: 0 | F137: 0 | G137: 0 | H137: 0 | I137: 0 | J137: 0 | L137: 0 | M137: 0 | N137: 0 | O137: 0 | P137: 0 | Q137: 0 | S137: 0 | T137: 0 | U137: 0 | V137: 0 | W137: 0 | Y137: =IF(OR(Y136+1>(IF(AND(Simulador!$C$9<Simulador!$C$10,OR(Simulador!$E$7="Resgate",Simulador!$E$7="Portabilidade")),Simulador!$C$9,Simulador!$C$10)-Simulador!$C$8)*12,Y136=0),0,Y136+1) -> 133 | Z137: =IF($Y137=0,0,Z136*(1+Simulador!$D$34)+E137+L137) -> 0 | AA137: =IF($Y137=0,0,AA136*(1+Simulador!$D$34)+S137) -> 0 | AB137: =IF(OR(AB136+1>(IF(AND(Simulador!$C$9<Simulador!$C$10,OR(Simulador!$E$7="Resgate",Simulador!$E$7="Portabilidade")),Simulador!$C$9,Simulador!$C$50)-Simulador!$C$8)*12,AB136=0),0,AB136+1) -> 133 | AC137: =IF($AB137=0,0,AC136*(1+Simulador!$D$34)+F137+M137) -> 0 | AD137: =IF($AB137=0,0,AD136*(1+Simulador!$D$34)+T137) -> 0
A138: =IF(OR(A137+1>(IF(Simulador!$E$7="Autopatrocínio",Simulador!$C$10,Simulador!$C$9)-Simulador!$C$8)*12,A137=0),0,A137+1) -> 0 | B138: =IF($A138=0,0,IF(INT($A137/12)-$A137/12=0,B137*(1+Simulador!$C$35),B137)) -> 0 | C138: =MAX(IF(A138=0,0,B138-IF(Simulador!$C$11="Individual",0,Simulador!$C$14)),0) -> 0 | E138: 0 | F138: 0 | G138: 0 | H138: 0 | I138: 0 | J138: 0 | L138: 0 | M138: 0 | N138: 0 | O138: 0 | P138: 0 | Q138: 0 | S138: 0 | T138: 0 | U138: 0 | V138: 0 | W138: 0 | Y138: =IF(OR(Y137+1>(IF(AND(Simulador!$C$9<Simulador!$C$10,OR(Simulador!$E$7="Resgate",Simulador!$E$7="Portabilidade")),Simulador!$C$9,Simulador!$C$10)-Simulador!$C$8)*12,Y137=0),0,Y137+1) -> 134 | Z138: =IF($Y138=0,0,Z137*(1+Simulador!$D$34)+E138+L138) -> 0 | AA138: =IF($Y138=0,0,AA137*(1+Simulador!$D$34)+S138) -> 0 | AB138: =IF(OR(AB137+1>(IF(AND(Simulador!$C$9<Simulador!$C$10,OR(Simulador!$E$7="Resgate",Simulador!$E$7="Portabilidade")),Simulador!$C$9,Simulador!$C$50)-Simulador!$C$8)*12,AB137=0),0,AB137+1) -> 134 | AC138: =IF($AB138=0,0,AC137*(1+Simulador!$D$34)+F138+M138) -> 0 | AD138: =IF($AB138=0,0,AD137*(1+Simulador!$D$34)+T138) -> 0
A139: =IF(OR(A138+1>(IF(Simulador!$E$7="Autopatrocínio",Simulador!$C$10,Simulador!$C$9)-Simulador!$C$8)*12,A138=0),0,A138+1) -> 0 | B139: =IF($A139=0,0,IF(INT($A138/12)-$A138/12=0,B138*(1+Simulador!$C$35),B138)) -> 0 | C139: =MAX(IF(A139=0,0,B139-IF(Simulador!$C$11="Individual",0,Simulador!$C$14)),0) -> 0 | E139: 0 | F139: 0 | G139: 0 | H139: 0 | I139: 0 | J139: 0 | L139: 0 | M139: 0 | N139: 0 | O139: 0 | P139: 0 | Q139: 0 | S139: 0 | T139: 0 | U139: 0 | V139: 0 | W139: 0 | Y139: =IF(OR(Y138+1>(IF(AND(Simulador!$C$9<Simulador!$C$10,OR(Simulador!$E$7="Resgate",Simulador!$E$7="Portabilidade")),Simulador!$C$9,Simulador!$C$10)-Simulador!$C$8)*12,Y138=0),0,Y138+1) -> 135 | Z139: =IF($Y139=0,0,Z138*(1+Simulador!$D$34)+E139+L139) -> 0 | AA139: =IF($Y139=0,0,AA138*(1+Simulador!$D$34)+S139) -> 0 | AB139: =IF(OR(AB138+1>(IF(AND(Simulador!$C$9<Simulador!$C$10,OR(Simulador!$E$7="Resgate",Simulador!$E$7="Portabilidade")),Simulador!$C$9,Simulador!$C$50)-Simulador!$C$8)*12,AB138=0),0,AB138+1) -> 135 | AC139: =IF($AB139=0,0,AC138*(1+Simulador!$D$34)+F139+M139) -> 0 | AD139: =IF($AB139=0,0,AD138*(1+Simulador!$D$34)+T139) -> 0
A140: =IF(OR(A139+1>(IF(Simulador!$E$7="Autopatrocínio",Simulador!$C$10,Simulador!$C$9)-Simulador!$C$8)*12,A139=0),0,A139+1) -> 0 | B140: =IF($A140=0,0,IF(INT($A139/12)-$A139/12=0,B139*(1+Simulador!$C$35),B139)) -> 0 | C140: =MAX(IF(A140=0,0,B140-IF(Simulador!$C$11="Individual",0,Simulador!$C$14)),0) -> 0 | E140: 0 | F140: 0 | G140: 0 | H140: 0 | I140: 0 | J140: 0 | L140: 0 | M140: 0 | N140: 0 | O140: 0 | P140: 0 | Q140: 0 | S140: 0 | T140: 0 | U140: 0 | V140: 0 | W140: 0 | Y140: =IF(OR(Y139+1>(IF(AND(Simulador!$C$9<Simulador!$C$10,OR(Simulador!$E$7="Resgate",Simulador!$E$7="Portabilidade")),Simulador!$C$9,Simulador!$C$10)-Simulador!$C$8)*12,Y139=0),0,Y139+1) -> 136 | Z140: =IF($Y140=0,0,Z139*(1+Simulador!$D$34)+E140+L140) -> 0 | AA140: =IF($Y140=0,0,AA139*(1+Simulador!$D$34)+S140) -> 0 | AB140: =IF(OR(AB139+1>(IF(AND(Simulador!$C$9<Simulador!$C$10,OR(Simulador!$E$7="Resgate",Simulador!$E$7="Portabilidade")),Simulador!$C$9,Simulador!$C$50)-Simulador!$C$8)*12,AB139=0),0,AB139+1) -> 136 | AC140: =IF($AB140=0,0,AC139*(1+Simulador!$D$34)+F140+M140) -> 0 | AD140: =IF($AB140=0,0,AD139*(1+Simulador!$D$34)+T140) -> 0
A141: =IF(OR(A140+1>(IF(Simulador!$E$7="Autopatrocínio",Simulador!$C$10,Simulador!$C$9)-Simulador!$C$8)*12,A140=0),0,A140+1) -> 0 | B141: =IF($A141=0,0,IF(INT($A140/12)-$A140/12=0,B140*(1+Simulador!$C$35),B140)) -> 0 | C141: =MAX(IF(A141=0,0,B141-IF(Simulador!$C$11="Individual",0,Simulador!$C$14)),0) -> 0 | E141: 0 | F141: 0 | G141: 0 | H141: 0 | I141: 0 | J141: 0 | L141: 0 | M141: 0 | N141: 0 | O141: 0 | P141: 0 | Q141: 0 | S141: 0 | T141: 0 | U141: 0 | V141: 0 | W141: 0 | Y141: =IF(OR(Y140+1>(IF(AND(Simulador!$C$9<Simulador!$C$10,OR(Simulador!$E$7="Resgate",Simulador!$E$7="Portabilidade")),Simulador!$C$9,Simulador!$C$10)-Simulador!$C$8)*12,Y140=0),0,Y140+1) -> 137 | Z141: =IF($Y141=0,0,Z140*(1+Simulador!$D$34)+E141+L141) -> 0 | AA141: =IF($Y141=0,0,AA140*(1+Simulador!$D$34)+S141) -> 0 | AB141: =IF(OR(AB140+1>(IF(AND(Simulador!$C$9<Simulador!$C$10,OR(Simulador!$E$7="Resgate",Simulador!$E$7="Portabilidade")),Simulador!$C$9,Simulador!$C$50)-Simulador!$C$8)*12,AB140=0),0,AB140+1) -> 137 | AC141: =IF($AB141=0,0,AC140*(1+Simulador!$D$34)+F141+M141) -> 0 | AD141: =IF($AB141=0,0,AD140*(1+Simulador!$D$34)+T141) -> 0
A142: =IF(OR(A141+1>(IF(Simulador!$E$7="Autopatrocínio",Simulador!$C$10,Simulador!$C$9)-Simulador!$C$8)*12,A141=0),0,A141+1) -> 0 | B142: =IF($A142=0,0,IF(INT($A141/12)-$A141/12=0,B141*(1+Simulador!$C$35),B141)) -> 0 | C142: =MAX(IF(A142=0,0,B142-IF(Simulador!$C$11="Individual",0,Simulador!$C$14)),0) -> 0 | E142: 0 | F142: 0 | G142: 0 | H142: 0 | I142: 0 | J142: 0 | L142: 0 | M142: 0 | N142: 0 | O142: 0 | P142: 0 | Q142: 0 | S142: 0 | T142: 0 | U142: 0 | V142: 0 | W142: 0 | Y142: =IF(OR(Y141+1>(IF(AND(Simulador!$C$9<Simulador!$C$10,OR(Simulador!$E$7="Resgate",Simulador!$E$7="Portabilidade")),Simulador!$C$9,Simulador!$C$10)-Simulador!$C$8)*12,Y141=0),0,Y141+1) -> 138 | Z142: =IF($Y142=0,0,Z141*(1+Simulador!$D$34)+E142+L142) -> 0 | AA142: =IF($Y142=0,0,AA141*(1+Simulador!$D$34)+S142) -> 0 | AB142: =IF(OR(AB141+1>(IF(AND(Simulador!$C$9<Simulador!$C$10,OR(Simulador!$E$7="Resgate",Simulador!$E$7="Portabilidade")),Simulador!$C$9,Simulador!$C$50)-Simulador!$C$8)*12,AB141=0),0,AB141+1) -> 138 | AC142: =IF($AB142=0,0,AC141*(1+Simulador!$D$34)+F142+M142) -> 0 | AD142: =IF($AB142=0,0,AD141*(1+Simulador!$D$34)+T142) -> 0
A143: =IF(OR(A142+1>(IF(Simulador!$E$7="Autopatrocínio",Simulador!$C$10,Simulador!$C$9)-Simulador!$C$8)*12,A142=0),0,A142+1) -> 0 | B143: =IF($A143=0,0,IF(INT($A142/12)-$A142/12=0,B142*(1+Simulador!$C$35),B142)) -> 0 | C143: =MAX(IF(A143=0,0,B143-IF(Simulador!$C$11="Individual",0,Simulador!$C$14)),0) -> 0 | E143: 0 | F143: 0 | G143: 0 | H143: 0 | I143: 0 | J143: 0 | L143: 0 | M143: 0 | N143: 0 | O143: 0 | P143: 0 | Q143: 0 | S143: 0 | T143: 0 | U143: 0 | V143: 0 | W143: 0 | Y143: =IF(OR(Y142+1>(IF(AND(Simulador!$C$9<Simulador!$C$10,OR(Simulador!$E$7="Resgate",Simulador!$E$7="Portabilidade")),Simulador!$C$9,Simulador!$C$10)-Simulador!$C$8)*12,Y142=0),0,Y142+1) -> 139 | Z143: =IF($Y143=0,0,Z142*(1+Simulador!$D$34)+E143+L143) -> 0 | AA143: =IF($Y143=0,0,AA142*(1+Simulador!$D$34)+S143) -> 0 | AB143: =IF(OR(AB142+1>(IF(AND(Simulador!$C$9<Simulador!$C$10,OR(Simulador!$E$7="Resgate",Simulador!$E$7="Portabilidade")),Simulador!$C$9,Simulador!$C$50)-Simulador!$C$8)*12,AB142=0),0,AB142+1) -> 139 | AC143: =IF($AB143=0,0,AC142*(1+Simulador!$D$34)+F143+M143) -> 0 | AD143: =IF($AB143=0,0,AD142*(1+Simulador!$D$34)+T143) -> 0
A144: =IF(OR(A143+1>(IF(Simulador!$E$7="Autopatrocínio",Simulador!$C$10,Simulador!$C$9)-Simulador!$C$8)*12,A143=0),0,A143+1) -> 0 | B144: =IF($A144=0,0,IF(INT($A143/12)-$A143/12=0,B143*(1+Simulador!$C$35),B143)) -> 0 | C144: =MAX(IF(A144=0,0,B144-IF(Simulador!$C$11="Individual",0,Simulador!$C$14)),0) -> 0 | E144: 0 | F144: 0 | G144: 0 | H144: 0 | I144: 0 | J144: 0 | L144: 0 | M144: 0 | N144: 0 | O144: 0 | P144: 0 | Q144: 0 | S144: 0 | T144: 0 | U144: 0 | V144: 0 | W144: 0 | Y144: =IF(OR(Y143+1>(IF(AND(Simulador!$C$9<Simulador!$C$10,OR(Simulador!$E$7="Resgate",Simulador!$E$7="Portabilidade")),Simulador!$C$9,Simulador!$C$10)-Simulador!$C$8)*12,Y143=0),0,Y143+1) -> 140 | Z144: =IF($Y144=0,0,Z143*(1+Simulador!$D$34)+E144+L144) -> 0 | AA144: =IF($Y144=0,0,AA143*(1+Simulador!$D$34)+S144) -> 0 | AB144: =IF(OR(AB143+1>(IF(AND(Simulador!$C$9<Simulador!$C$10,OR(Simulador!$E$7="Resgate",Simulador!$E$7="Portabilidade")),Simulador!$C$9,Simulador!$C$50)-Simulador!$C$8)*12,AB143=0),0,AB143+1) -> 140 | AC144: =IF($AB144=0,0,AC143*(1+Simulador!$D$34)+F144+M144) -> 0 | AD144: =IF($AB144=0,0,AD143*(1+Simulador!$D$34)+T144) -> 0
A145: =IF(OR(A144+1>(IF(Simulador!$E$7="Autopatrocínio",Simulador!$C$10,Simulador!$C$9)-Simulador!$C$8)*12,A144=0),0,A144+1) -> 0 | B145: =IF($A145=0,0,IF(INT($A144/12)-$A144/12=0,B144*(1+Simulador!$C$35),B144)) -> 0 | C145: =MAX(IF(A145=0,0,B145-IF(Simulador!$C$11="Individual",0,Simulador!$C$14)),0) -> 0 | E145: =E$4*$C145*(1+$J145) -> 0 | F145: 0 | G145: 0 | H145: 0 | I145: 0 | J145: 0 | L145: =L$4*$C145*$Q145 -> 0 | M145: 0 | N145: 0 | O145: 0 | P145: 0 | Q145: 0 | S145: 0 | T145: 0 | U145: 0 | V145: 0 | W145: 0 | Y145: =IF(OR(Y144+1>(IF(AND(Simulador!$C$9<Simulador!$C$10,OR(Simulador!$E$7="Resgate",Simulador!$E$7="Portabilidade")),Simulador!$C$9,Simulador!$C$10)-Simulador!$C$8)*12,Y144=0),0,Y144+1) -> 141 | Z145: =IF($Y145=0,0,Z144*(1+Simulador!$D$34)+E145+L145) -> 0 | AA145: =IF($Y145=0,0,AA144*(1+Simulador!$D$34)+S145) -> 0 | AB145: =IF(OR(AB144+1>(IF(AND(Simulador!$C$9<Simulador!$C$10,OR(Simulador!$E$7="Resgate",Simulador!$E$7="Portabilidade")),Simulador!$C$9,Simulador!$C$50)-Simulador!$C$8)*12,AB144=0),0,AB144+1) -> 141 | AC145: =IF($AB145=0,0,AC144*(1+Simulador!$D$34)+F145+M145) -> 0 | AD145: =IF($AB145=0,0,AD144*(1+Simulador!$D$34)+T145) -> 0
A146: =IF(OR(A145+1>(IF(Simulador!$E$7="Autopatrocínio",Simulador!$C$10,Simulador!$C$9)-Simulador!$C$8)*12,A145=0),0,A145+1) -> 0 | B146: =IF($A146=0,0,IF(INT($A145/12)-$A145/12=0,B145*(1+Simulador!$C$35),B145)) -> 0 | C146: =MAX(IF(A146=0,0,B146-IF(Simulador!$C$11="Individual",0,Simulador!$C$14)),0) -> 0 | E146: 0 | F146: 0 | G146: 0 | H146: 0 | I146: 0 | J146: 0 | L146: 0 | M146: 0 | N146: 0 | O146: 0 | P146: 0 | Q146: 0 | S146: 0 | T146: 0 | U146: 0 | V146: 0 | W146: 0 | Y146: =IF(OR(Y145+1>(IF(AND(Simulador!$C$9<Simulador!$C$10,OR(Simulador!$E$7="Resgate",Simulador!$E$7="Portabilidade")),Simulador!$C$9,Simulador!$C$10)-Simulador!$C$8)*12,Y145=0),0,Y145+1) -> 142 | Z146: =IF($Y146=0,0,Z145*(1+Simulador!$D$34)+E146+L146) -> 0 | AA146: =IF($Y146=0,0,AA145*(1+Simulador!$D$34)+S146) -> 0 | AB146: =IF(OR(AB145+1>(IF(AND(Simulador!$C$9<Simulador!$C$10,OR(Simulador!$E$7="Resgate",Simulador!$E$7="Portabilidade")),Simulador!$C$9,Simulador!$C$50)-Simulador!$C$8)*12,AB145=0),0,AB145+1) -> 142 | AC146: =IF($AB146=0,0,AC145*(1+Simulador!$D$34)+F146+M146) -> 0 | AD146: =IF($AB146=0,0,AD145*(1+Simulador!$D$34)+T146) -> 0
A147: =IF(OR(A146+1>(IF(Simulador!$E$7="Autopatrocínio",Simulador!$C$10,Simulador!$C$9)-Simulador!$C$8)*12,A146=0),0,A146+1) -> 0 | B147: =IF($A147=0,0,IF(INT($A146/12)-$A146/12=0,B146*(1+Simulador!$C$35),B146)) -> 0 | C147: =MAX(IF(A147=0,0,B147-IF(Simulador!$C$11="Individual",0,Simulador!$C$14)),0) -> 0 | E147: 0 | F147: 0 | G147: 0 | H147: 0 | I147: 0 | J147: 0 | L147: 0 | M147: 0 | N147: 0 | O147: 0 | P147: 0 | Q147: 0 | S147: 0 | T147: 0 | U147: 0 | V147: 0 | W147: 0 | Y147: =IF(OR(Y146+1>(IF(AND(Simulador!$C$9<Simulador!$C$10,OR(Simulador!$E$7="Resgate",Simulador!$E$7="Portabilidade")),Simulador!$C$9,Simulador!$C$10)-Simulador!$C$8)*12,Y146=0),0,Y146+1) -> 143 | Z147: =IF($Y147=0,0,Z146*(1+Simulador!$D$34)+E147+L147) -> 0 | AA147: =IF($Y147=0,0,AA146*(1+Simulador!$D$34)+S147) -> 0 | AB147: =IF(OR(AB146+1>(IF(AND(Simulador!$C$9<Simulador!$C$10,OR(Simulador!$E$7="Resgate",Simulador!$E$7="Portabilidade")),Simulador!$C$9,Simulador!$C$50)-Simulador!$C$8)*12,AB146=0),0,AB146+1) -> 143 | AC147: =IF($AB147=0,0,AC146*(1+Simulador!$D$34)+F147+M147) -> 0 | AD147: =IF($AB147=0,0,AD146*(1+Simulador!$D$34)+T147) -> 0
A148: =IF(OR(A147+1>(IF(Simulador!$E$7="Autopatrocínio",Simulador!$C$10,Simulador!$C$9)-Simulador!$C$8)*12,A147=0),0,A147+1) -> 0 | B148: =IF($A148=0,0,IF(INT($A147/12)-$A147/12=0,B147*(1+Simulador!$C$35),B147)) -> 0 | C148: =MAX(IF(A148=0,0,B148-IF(Simulador!$C$11="Individual",0,Simulador!$C$14)),0) -> 0 | E148: 0 | F148: 0 | G148: 0 | H148: 0 | I148: 0 | J148: 0 | L148: 0 | M148: 0 | N148: 0 | O148: 0 | P148: 0 | Q148: 0 | S148: 0 | T148: 0 | U148: 0 | V148: 0 | W148: 0 | Y148: =IF(OR(Y147+1>(IF(AND(Simulador!$C$9<Simulador!$C$10,OR(Simulador!$E$7="Resgate",Simulador!$E$7="Portabilidade")),Simulador!$C$9,Simulador!$C$10)-Simulador!$C$8)*12,Y147=0),0,Y147+1) -> 144 | Z148: =IF($Y148=0,0,Z147*(1+Simulador!$D$34)+E148+L148) -> 0 | AA148: =IF($Y148=0,0,AA147*(1+Simulador!$D$34)+S148) -> 0 | AB148: =IF(OR(AB147+1>(IF(AND(Simulador!$C$9<Simulador!$C$10,OR(Simulador!$E$7="Resgate",Simulador!$E$7="Portabilidade")),Simulador!$C$9,Simulador!$C$50)-Simulador!$C$8)*12,AB147=0),0,AB147+1) -> 144 | AC148: =IF($AB148=0,0,AC147*(1+Simulador!$D$34)+F148+M148) -> 0 | AD148: =IF($AB148=0,0,AD147*(1+Simulador!$D$34)+T148) -> 0
A149: =IF(OR(A148+1>(IF(Simulador!$E$7="Autopatrocínio",Simulador!$C$10,Simulador!$C$9)-Simulador!$C$8)*12,A148=0),0,A148+1) -> 0 | B149: =IF($A149=0,0,IF(INT($A148/12)-$A148/12=0,B148*(1+Simulador!$C$35),B148)) -> 0 | C149: =MAX(IF(A149=0,0,B149-IF(Simulador!$C$11="Individual",0,Simulador!$C$14)),0) -> 0 | E149: 0 | F149: 0 | G149: 0 | H149: 0 | I149: 0 | J149: 0 | L149: 0 | M149: 0 | N149: 0 | O149: 0 | P149: 0 | Q149: 0 | S149: =S$4*$C149*(1+$J149) -> 0 | T149: 0 | U149: 0 | V149: 0 | W149: 0 | Y149: =IF(OR(Y148+1>(IF(AND(Simulador!$C$9<Simulador!$C$10,OR(Simulador!$E$7="Resgate",Simulador!$E$7="Portabilidade")),Simulador!$C$9,Simulador!$C$10)-Simulador!$C$8)*12,Y148=0),0,Y148+1) -> 145 | Z149: =IF($Y149=0,0,Z148*(1+Simulador!$D$34)+E149+L149) -> 0 | AA149: =IF($Y149=0,0,AA148*(1+Simulador!$D$34)+S149) -> 0 | AB149: =IF(OR(AB148+1>(IF(AND(Simulador!$C$9<Simulador!$C$10,OR(Simulador!$E$7="Resgate",Simulador!$E$7="Portabilidade")),Simulador!$C$9,Simulador!$C$50)-Simulador!$C$8)*12,AB148=0),0,AB148+1) -> 145 | AC149: =IF($AB149=0,0,AC148*(1+Simulador!$D$34)+F149+M149) -> 0 | AD149: =IF($AB149=0,0,AD148*(1+Simulador!$D$34)+T149) -> 0
A150: =IF(OR(A149+1>(IF(Simulador!$E$7="Autopatrocínio",Simulador!$C$10,Simulador!$C$9)-Simulador!$C$8)*12,A149=0),0,A149+1) -> 0 | B150: =IF($A150=0,0,IF(INT($A149/12)-$A149/12=0,B149*(1+Simulador!$C$35),B149)) -> 0 | C150: =MAX(IF(A150=0,0,B150-IF(Simulador!$C$11="Individual",0,Simulador!$C$14)),0) -> 0 | E150: 0 | F150: 0 | G150: 0 | H150: 0 | I150: 0 | J150: 0 | L150: 0 | M150: 0 | N150: 0 | O150: 0 | P150: 0 | Q150: 0 | S150: 0 | T150: 0 | U150: 0 | V150: 0 | W150: 0 | Y150: =IF(OR(Y149+1>(IF(AND(Simulador!$C$9<Simulador!$C$10,OR(Simulador!$E$7="Resgate",Simulador!$E$7="Portabilidade")),Simulador!$C$9,Simulador!$C$10)-Simulador!$C$8)*12,Y149=0),0,Y149+1) -> 146 | Z150: =IF($Y150=0,0,Z149*(1+Simulador!$D$34)+E150+L150) -> 0 | AA150: =IF($Y150=0,0,AA149*(1+Simulador!$D$34)+S150) -> 0 | AB150: =IF(OR(AB149+1>(IF(AND(Simulador!$C$9<Simulador!$C$10,OR(Simulador!$E$7="Resgate",Simulador!$E$7="Portabilidade")),Simulador!$C$9,Simulador!$C$50)-Simulador!$C$8)*12,AB149=0),0,AB149+1) -> 146 | AC150: =IF($AB150=0,0,AC149*(1+Simulador!$D$34)+F150+M150) -> 0 | AD150: =IF($AB150=0,0,AD149*(1+Simulador!$D$34)+T150) -> 0
A151: =IF(OR(A150+1>(IF(Simulador!$E$7="Autopatrocínio",Simulador!$C$10,Simulador!$C$9)-Simulador!$C$8)*12,A150=0),0,A150+1) -> 0 | B151: =IF($A151=0,0,IF(INT($A150/12)-$A150/12=0,B150*(1+Simulador!$C$35),B150)) -> 0 | C151: =MAX(IF(A151=0,0,B151-IF(Simulador!$C$11="Individual",0,Simulador!$C$14)),0) -> 0 | E151: 0 | F151: 0 | G151: 0 | H151: 0 | I151: 0 | J151: 0 | L151: 0 | M151: 0 | N151: 0 | O151: 0 | P151: 0 | Q151: 0 | S151: 0 | T151: 0 | U151: 0 | V151: 0 | W151: 0 | Y151: =IF(OR(Y150+1>(IF(AND(Simulador!$C$9<Simulador!$C$10,OR(Simulador!$E$7="Resgate",Simulador!$E$7="Portabilidade")),Simulador!$C$9,Simulador!$C$10)-Simulador!$C$8)*12,Y150=0),0,Y150+1) -> 147 | Z151: =IF($Y151=0,0,Z150*(1+Simulador!$D$34)+E151+L151) -> 0 | AA151: =IF($Y151=0,0,AA150*(1+Simulador!$D$34)+S151) -> 0 | AB151: =IF(OR(AB150+1>(IF(AND(Simulador!$C$9<Simulador!$C$10,OR(Simulador!$E$7="Resgate",Simulador!$E$7="Portabilidade")),Simulador!$C$9,Simulador!$C$50)-Simulador!$C$8)*12,AB150=0),0,AB150+1) -> 147 | AC151: =IF($AB151=0,0,AC150*(1+Simulador!$D$34)+F151+M151) -> 0 | AD151: =IF($AB151=0,0,AD150*(1+Simulador!$D$34)+T151) -> 0
A152: =IF(OR(A151+1>(IF(Simulador!$E$7="Autopatrocínio",Simulador!$C$10,Simulador!$C$9)-Simulador!$C$8)*12,A151=0),0,A151+1) -> 0 | B152: =IF($A152=0,0,IF(INT($A151/12)-$A151/12=0,B151*(1+Simulador!$C$35),B151)) -> 0 | C152: =MAX(IF(A152=0,0,B152-IF(Simulador!$C$11="Individual",0,Simulador!$C$14)),0) -> 0 | E152: 0 | F152: 0 | G152: 0 | H152: 0 | I152: 0 | J152: 0 | L152: 0 | M152: 0 | N152: 0 | O152: 0 | P152: 0 | Q152: 0 | S152: 0 | T152: 0 | U152: 0 | V152: 0 | W152: 0 | Y152: =IF(OR(Y151+1>(IF(AND(Simulador!$C$9<Simulador!$C$10,OR(Simulador!$E$7="Resgate",Simulador!$E$7="Portabilidade")),Simulador!$C$9,Simulador!$C$10)-Simulador!$C$8)*12,Y151=0),0,Y151+1) -> 148 | Z152: =IF($Y152=0,0,Z151*(1+Simulador!$D$34)+E152+L152) -> 0 | AA152: =IF($Y152=0,0,AA151*(1+Simulador!$D$34)+S152) -> 0 | AB152: =IF(OR(AB151+1>(IF(AND(Simulador!$C$9<Simulador!$C$10,OR(Simulador!$E$7="Resgate",Simulador!$E$7="Portabilidade")),Simulador!$C$9,Simulador!$C$50)-Simulador!$C$8)*12,AB151=0),0,AB151+1) -> 148 | AC152: =IF($AB152=0,0,AC151*(1+Simulador!$D$34)+F152+M152) -> 0 | AD152: =IF($AB152=0,0,AD151*(1+Simulador!$D$34)+T152) -> 0
A153: =IF(OR(A152+1>(IF(Simulador!$E$7="Autopatrocínio",Simulador!$C$10,Simulador!$C$9)-Simulador!$C$8)*12,A152=0),0,A152+1) -> 0 | B153: =IF($A153=0,0,IF(INT($A152/12)-$A152/12=0,B152*(1+Simulador!$C$35),B152)) -> 0 | C153: =MAX(IF(A153=0,0,B153-IF(Simulador!$C$11="Individual",0,Simulador!$C$14)),0) -> 0 | E153: 0 | F153: 0 | G153: 0 | H153: 0 | I153: 0 | J153: 0 | L153: 0 | M153: 0 | N153: 0 | O153: 0 | P153: 0 | Q153: 0 | S153: 0 | T153: 0 | U153: 0 | V153: 0 | W153: 0 | Y153: =IF(OR(Y152+1>(IF(AND(Simulador!$C$9<Simulador!$C$10,OR(Simulador!$E$7="Resgate",Simulador!$E$7="Portabilidade")),Simulador!$C$9,Simulador!$C$10)-Simulador!$C$8)*12,Y152=0),0,Y152+1) -> 149 | Z153: =IF($Y153=0,0,Z152*(1+Simulador!$D$34)+E153+L153) -> 0 | AA153: =IF($Y153=0,0,AA152*(1+Simulador!$D$34)+S153) -> 0 | AB153: =IF(OR(AB152+1>(IF(AND(Simulador!$C$9<Simulador!$C$10,OR(Simulador!$E$7="Resgate",Simulador!$E$7="Portabilidade")),Simulador!$C$9,Simulador!$C$50)-Simulador!$C$8)*12,AB152=0),0,AB152+1) -> 149 | AC153: =IF($AB153=0,0,AC152*(1+Simulador!$D$34)+F153+M153) -> 0 | AD153: =IF($AB153=0,0,AD152*(1+Simulador!$D$34)+T153) -> 0
A154: =IF(OR(A153+1>(IF(Simulador!$E$7="Autopatrocínio",Simulador!$C$10,Simulador!$C$9)-Simulador!$C$8)*12,A153=0),0,A153+1) -> 0 | B154: =IF($A154=0,0,IF(INT($A153/12)-$A153/12=0,B153*(1+Simulador!$C$35),B153)) -> 0 | C154: =MAX(IF(A154=0,0,B154-IF(Simulador!$C$11="Individual",0,Simulador!$C$14)),0) -> 0 | E154: 0 | F154: 0 | G154: 0 | H154: 0 | I154: 0 | J154: 0 | L154: 0 | M154: 0 | N154: 0 | O154: 0 | P154: 0 | Q154: 0 | S154: 0 | T154: 0 | U154: 0 | V154: 0 | W154: 0 | Y154: =IF(OR(Y153+1>(IF(AND(Simulador!$C$9<Simulador!$C$10,OR(Simulador!$E$7="Resgate",Simulador!$E$7="Portabilidade")),Simulador!$C$9,Simulador!$C$10)-Simulador!$C$8)*12,Y153=0),0,Y153+1) -> 150 | Z154: =IF($Y154=0,0,Z153*(1+Simulador!$D$34)+E154+L154) -> 0 | AA154: =IF($Y154=0,0,AA153*(1+Simulador!$D$34)+S154) -> 0 | AB154: =IF(OR(AB153+1>(IF(AND(Simulador!$C$9<Simulador!$C$10,OR(Simulador!$E$7="Resgate",Simulador!$E$7="Portabilidade")),Simulador!$C$9,Simulador!$C$50)-Simulador!$C$8)*12,AB153=0),0,AB153+1) -> 150 | AC154: =IF($AB154=0,0,AC153*(1+Simulador!$D$34)+F154+M154) -> 0 | AD154: =IF($AB154=0,0,AD153*(1+Simulador!$D$34)+T154) -> 0
A155: =IF(OR(A154+1>(IF(Simulador!$E$7="Autopatrocínio",Simulador!$C$10,Simulador!$C$9)-Simulador!$C$8)*12,A154=0),0,A154+1) -> 0 | B155: =IF($A155=0,0,IF(INT($A154/12)-$A154/12=0,B154*(1+Simulador!$C$35),B154)) -> 0 | C155: =MAX(IF(A155=0,0,B155-IF(Simulador!$C$11="Individual",0,Simulador!$C$14)),0) -> 0 | E155: =E$4*$C155*(1+$J155) -> 0 | F155: 0 | G155: 0 | H155: 0 | I155: 0 | J155: 0 | L155: =L$4*$C155*$Q155 -> 0 | M155: 0 | N155: 0 | O155: 0 | P155: 0 | Q155: 0 | S155: 0 | T155: 0 | U155: 0 | V155: 0 | W155: 0 | Y155: =IF(OR(Y154+1>(IF(AND(Simulador!$C$9<Simulador!$C$10,OR(Simulador!$E$7="Resgate",Simulador!$E$7="Portabilidade")),Simulador!$C$9,Simulador!$C$10)-Simulador!$C$8)*12,Y154=0),0,Y154+1) -> 151 | Z155: =IF($Y155=0,0,Z154*(1+Simulador!$D$34)+E155+L155) -> 0 | AA155: =IF($Y155=0,0,AA154*(1+Simulador!$D$34)+S155) -> 0 | AB155: =IF(OR(AB154+1>(IF(AND(Simulador!$C$9<Simulador!$C$10,OR(Simulador!$E$7="Resgate",Simulador!$E$7="Portabilidade")),Simulador!$C$9,Simulador!$C$50)-Simulador!$C$8)*12,AB154=0),0,AB154+1) -> 151 | AC155: =IF($AB155=0,0,AC154*(1+Simulador!$D$34)+F155+M155) -> 0 | AD155: =IF($AB155=0,0,AD154*(1+Simulador!$D$34)+T155) -> 0
A156: =IF(OR(A155+1>(IF(Simulador!$E$7="Autopatrocínio",Simulador!$C$10,Simulador!$C$9)-Simulador!$C$8)*12,A155=0),0,A155+1) -> 0 | B156: =IF($A156=0,0,IF(INT($A155/12)-$A155/12=0,B155*(1+Simulador!$C$35),B155)) -> 0 | C156: =MAX(IF(A156=0,0,B156-IF(Simulador!$C$11="Individual",0,Simulador!$C$14)),0) -> 0 | E156: 0 | F156: 0 | G156: 0 | H156: 0 | I156: 0 | J156: 0 | L156: 0 | M156: 0 | N156: 0 | O156: 0 | P156: 0 | Q156: 0 | S156: 0 | T156: 0 | U156: 0 | V156: 0 | W156: 0 | Y156: =IF(OR(Y155+1>(IF(AND(Simulador!$C$9<Simulador!$C$10,OR(Simulador!$E$7="Resgate",Simulador!$E$7="Portabilidade")),Simulador!$C$9,Simulador!$C$10)-Simulador!$C$8)*12,Y155=0),0,Y155+1) -> 152 | Z156: =IF($Y156=0,0,Z155*(1+Simulador!$D$34)+E156+L156) -> 0 | AA156: =IF($Y156=0,0,AA155*(1+Simulador!$D$34)+S156) -> 0 | AB156: =IF(OR(AB155+1>(IF(AND(Simulador!$C$9<Simulador!$C$10,OR(Simulador!$E$7="Resgate",Simulador!$E$7="Portabilidade")),Simulador!$C$9,Simulador!$C$50)-Simulador!$C$8)*12,AB155=0),0,AB155+1) -> 152 | AC156: =IF($AB156=0,0,AC155*(1+Simulador!$D$34)+F156+M156) -> 0 | AD156: =IF($AB156=0,0,AD155*(1+Simulador!$D$34)+T156) -> 0
A157: =IF(OR(A156+1>(IF(Simulador!$E$7="Autopatrocínio",Simulador!$C$10,Simulador!$C$9)-Simulador!$C$8)*12,A156=0),0,A156+1) -> 0 | B157: =IF($A157=0,0,IF(INT($A156/12)-$A156/12=0,B156*(1+Simulador!$C$35),B156)) -> 0 | C157: =MAX(IF(A157=0,0,B157-IF(Simulador!$C$11="Individual",0,Simulador!$C$14)),0) -> 0 | E157: 0 | F157: 0 | G157: 0 | H157: 0 | I157: 0 | J157: 0 | L157: 0 | M157: 0 | N157: 0 | O157: 0 | P157: 0 | Q157: 0 | S157: 0 | T157: 0 | U157: 0 | V157: 0 | W157: 0 | Y157: =IF(OR(Y156+1>(IF(AND(Simulador!$C$9<Simulador!$C$10,OR(Simulador!$E$7="Resgate",Simulador!$E$7="Portabilidade")),Simulador!$C$9,Simulador!$C$10)-Simulador!$C$8)*12,Y156=0),0,Y156+1) -> 153 | Z157: =IF($Y157=0,0,Z156*(1+Simulador!$D$34)+E157+L157) -> 0 | AA157: =IF($Y157=0,0,AA156*(1+Simulador!$D$34)+S157) -> 0 | AB157: =IF(OR(AB156+1>(IF(AND(Simulador!$C$9<Simulador!$C$10,OR(Simulador!$E$7="Resgate",Simulador!$E$7="Portabilidade")),Simulador!$C$9,Simulador!$C$50)-Simulador!$C$8)*12,AB156=0),0,AB156+1) -> 153 | AC157: =IF($AB157=0,0,AC156*(1+Simulador!$D$34)+F157+M157) -> 0 | AD157: =IF($AB157=0,0,AD156*(1+Simulador!$D$34)+T157) -> 0
A158: =IF(OR(A157+1>(IF(Simulador!$E$7="Autopatrocínio",Simulador!$C$10,Simulador!$C$9)-Simulador!$C$8)*12,A157=0),0,A157+1) -> 0 | B158: =IF($A158=0,0,IF(INT($A157/12)-$A157/12=0,B157*(1+Simulador!$C$35),B157)) -> 0 | C158: =MAX(IF(A158=0,0,B158-IF(Simulador!$C$11="Individual",0,Simulador!$C$14)),0) -> 0 | E158: 0 | F158: 0 | G158: 0 | H158: 0 | I158: 0 | J158: 0 | L158: 0 | M158: 0 | N158: 0 | O158: 0 | P158: 0 | Q158: 0 | S158: 0 | T158: 0 | U158: 0 | V158: 0 | W158: 0 | Y158: =IF(OR(Y157+1>(IF(AND(Simulador!$C$9<Simulador!$C$10,OR(Simulador!$E$7="Resgate",Simulador!$E$7="Portabilidade")),Simulador!$C$9,Simulador!$C$10)-Simulador!$C$8)*12,Y157=0),0,Y157+1) -> 154 | Z158: =IF($Y158=0,0,Z157*(1+Simulador!$D$34)+E158+L158) -> 0 | AA158: =IF($Y158=0,0,AA157*(1+Simulador!$D$34)+S158) -> 0 | AB158: =IF(OR(AB157+1>(IF(AND(Simulador!$C$9<Simulador!$C$10,OR(Simulador!$E$7="Resgate",Simulador!$E$7="Portabilidade")),Simulador!$C$9,Simulador!$C$50)-Simulador!$C$8)*12,AB157=0),0,AB157+1) -> 154 | AC158: =IF($AB158=0,0,AC157*(1+Simulador!$D$34)+F158+M158) -> 0 | AD158: =IF($AB158=0,0,AD157*(1+Simulador!$D$34)+T158) -> 0
A159: =IF(OR(A158+1>(IF(Simulador!$E$7="Autopatrocínio",Simulador!$C$10,Simulador!$C$9)-Simulador!$C$8)*12,A158=0),0,A158+1) -> 0 | B159: =IF($A159=0,0,IF(INT($A158/12)-$A158/12=0,B158*(1+Simulador!$C$35),B158)) -> 0 | C159: =MAX(IF(A159=0,0,B159-IF(Simulador!$C$11="Individual",0,Simulador!$C$14)),0) -> 0 | E159: 0 | F159: 0 | G159: 0 | H159: 0 | I159: 0 | J159: 0 | L159: 0 | M159: 0 | N159: 0 | O159: 0 | P159: 0 | Q159: 0 | S159: 0 | T159: 0 | U159: 0 | V159: 0 | W159: 0 | Y159: =IF(OR(Y158+1>(IF(AND(Simulador!$C$9<Simulador!$C$10,OR(Simulador!$E$7="Resgate",Simulador!$E$7="Portabilidade")),Simulador!$C$9,Simulador!$C$10)-Simulador!$C$8)*12,Y158=0),0,Y158+1) -> 155 | Z159: =IF($Y159=0,0,Z158*(1+Simulador!$D$34)+E159+L159) -> 0 | AA159: =IF($Y159=0,0,AA158*(1+Simulador!$D$34)+S159) -> 0 | AB159: =IF(OR(AB158+1>(IF(AND(Simulador!$C$9<Simulador!$C$10,OR(Simulador!$E$7="Resgate",Simulador!$E$7="Portabilidade")),Simulador!$C$9,Simulador!$C$50)-Simulador!$C$8)*12,AB158=0),0,AB158+1) -> 155 | AC159: =IF($AB159=0,0,AC158*(1+Simulador!$D$34)+F159+M159) -> 0 | AD159: =IF($AB159=0,0,AD158*(1+Simulador!$D$34)+T159) -> 0
A160: =IF(OR(A159+1>(IF(Simulador!$E$7="Autopatrocínio",Simulador!$C$10,Simulador!$C$9)-Simulador!$C$8)*12,A159=0),0,A159+1) -> 0 | B160: =IF($A160=0,0,IF(INT($A159/12)-$A159/12=0,B159*(1+Simulador!$C$35),B159)) -> 0 | C160: =MAX(IF(A160=0,0,B160-IF(Simulador!$C$11="Individual",0,Simulador!$C$14)),0) -> 0 | E160: 0 | F160: 0 | G160: 0 | H160: 0 | I160: 0 | J160: 0 | L160: 0 | M160: 0 | N160: 0 | O160: 0 | P160: 0 | Q160: 0 | S160: 0 | T160: 0 | U160: 0 | V160: 0 | W160: 0 | Y160: =IF(OR(Y159+1>(IF(AND(Simulador!$C$9<Simulador!$C$10,OR(Simulador!$E$7="Resgate",Simulador!$E$7="Portabilidade")),Simulador!$C$9,Simulador!$C$10)-Simulador!$C$8)*12,Y159=0),0,Y159+1) -> 156 | Z160: =IF($Y160=0,0,Z159*(1+Simulador!$D$34)+E160+L160) -> 0 | AA160: =IF($Y160=0,0,AA159*(1+Simulador!$D$34)+S160) -> 0 | AB160: =IF(OR(AB159+1>(IF(AND(Simulador!$C$9<Simulador!$C$10,OR(Simulador!$E$7="Resgate",Simulador!$E$7="Portabilidade")),Simulador!$C$9,Simulador!$C$50)-Simulador!$C$8)*12,AB159=0),0,AB159+1) -> 156 | AC160: =IF($AB160=0,0,AC159*(1+Simulador!$D$34)+F160+M160) -> 0 | AD160: =IF($AB160=0,0,AD159*(1+Simulador!$D$34)+T160) -> 0
A161: =IF(OR(A160+1>(IF(Simulador!$E$7="Autopatrocínio",Simulador!$C$10,Simulador!$C$9)-Simulador!$C$8)*12,A160=0),0,A160+1) -> 0 | B161: =IF($A161=0,0,IF(INT($A160/12)-$A160/12=0,B160*(1+Simulador!$C$35),B160)) -> 0 | C161: =MAX(IF(A161=0,0,B161-IF(Simulador!$C$11="Individual",0,Simulador!$C$14)),0) -> 0 | E161: 0 | F161: 0 | G161: 0 | H161: 0 | I161: 0 | J161: 0 | L161: 0 | M161: 0 | N161: 0 | O161: 0 | P161: 0 | Q161: 0 | S161: 0 | T161: 0 | U161: 0 | V161: 0 | W161: 0 | Y161: =IF(OR(Y160+1>(IF(AND(Simulador!$C$9<Simulador!$C$10,OR(Simulador!$E$7="Resgate",Simulador!$E$7="Portabilidade")),Simulador!$C$9,Simulador!$C$10)-Simulador!$C$8)*12,Y160=0),0,Y160+1) -> 157 | Z161: =IF($Y161=0,0,Z160*(1+Simulador!$D$34)+E161+L161) -> 0 | AA161: =IF($Y161=0,0,AA160*(1+Simulador!$D$34)+S161) -> 0 | AB161: =IF(OR(AB160+1>(IF(AND(Simulador!$C$9<Simulador!$C$10,OR(Simulador!$E$7="Resgate",Simulador!$E$7="Portabilidade")),Simulador!$C$9,Simulador!$C$50)-Simulador!$C$8)*12,AB160=0),0,AB160+1) -> 157 | AC161: =IF($AB161=0,0,AC160*(1+Simulador!$D$34)+F161+M161) -> 0 | AD161: =IF($AB161=0,0,AD160*(1+Simulador!$D$34)+T161) -> 0
A162: =IF(OR(A161+1>(IF(Simulador!$E$7="Autopatrocínio",Simulador!$C$10,Simulador!$C$9)-Simulador!$C$8)*12,A161=0),0,A161+1) -> 0 | B162: =IF($A162=0,0,IF(INT($A161/12)-$A161/12=0,B161*(1+Simulador!$C$35),B161)) -> 0 | C162: =MAX(IF(A162=0,0,B162-IF(Simulador!$C$11="Individual",0,Simulador!$C$14)),0) -> 0 | E162: 0 | F162: 0 | G162: 0 | H162: 0 | I162: 0 | J162: 0 | L162: 0 | M162: 0 | N162: 0 | O162: 0 | P162: 0 | Q162: 0 | S162: 0 | T162: 0 | U162: 0 | V162: 0 | W162: 0 | Y162: =IF(OR(Y161+1>(IF(AND(Simulador!$C$9<Simulador!$C$10,OR(Simulador!$E$7="Resgate",Simulador!$E$7="Portabilidade")),Simulador!$C$9,Simulador!$C$10)-Simulador!$C$8)*12,Y161=0),0,Y161+1) -> 158 | Z162: =IF($Y162=0,0,Z161*(1+Simulador!$D$34)+E162+L162) -> 0 | AA162: =IF($Y162=0,0,AA161*(1+Simulador!$D$34)+S162) -> 0 | AB162: =IF(OR(AB161+1>(IF(AND(Simulador!$C$9<Simulador!$C$10,OR(Simulador!$E$7="Resgate",Simulador!$E$7="Portabilidade")),Simulador!$C$9,Simulador!$C$50)-Simulador!$C$8)*12,AB161=0),0,AB161+1) -> 158 | AC162: =IF($AB162=0,0,AC161*(1+Simulador!$D$34)+F162+M162) -> 0 | AD162: =IF($AB162=0,0,AD161*(1+Simulador!$D$34)+T162) -> 0
A163: =IF(OR(A162+1>(IF(Simulador!$E$7="Autopatrocínio",Simulador!$C$10,Simulador!$C$9)-Simulador!$C$8)*12,A162=0),0,A162+1) -> 0 | B163: =IF($A163=0,0,IF(INT($A162/12)-$A162/12=0,B162*(1+Simulador!$C$35),B162)) -> 0 | C163: =MAX(IF(A163=0,0,B163-IF(Simulador!$C$11="Individual",0,Simulador!$C$14)),0) -> 0 | E163: 0 | F163: 0 | G163: 0 | H163: 0 | I163: 0 | J163: 0 | L163: 0 | M163: 0 | N163: 0 | O163: 0 | P163: 0 | Q163: 0 | S163: 0 | T163: 0 | U163: 0 | V163: 0 | W163: 0 | Y163: =IF(OR(Y162+1>(IF(AND(Simulador!$C$9<Simulador!$C$10,OR(Simulador!$E$7="Resgate",Simulador!$E$7="Portabilidade")),Simulador!$C$9,Simulador!$C$10)-Simulador!$C$8)*12,Y162=0),0,Y162+1) -> 159 | Z163: =IF($Y163=0,0,Z162*(1+Simulador!$D$34)+E163+L163) -> 0 | AA163: =IF($Y163=0,0,AA162*(1+Simulador!$D$34)+S163) -> 0 | AB163: =IF(OR(AB162+1>(IF(AND(Simulador!$C$9<Simulador!$C$10,OR(Simulador!$E$7="Resgate",Simulador!$E$7="Portabilidade")),Simulador!$C$9,Simulador!$C$50)-Simulador!$C$8)*12,AB162=0),0,AB162+1) -> 159 | AC163: =IF($AB163=0,0,AC162*(1+Simulador!$D$34)+F163+M163) -> 0 | AD163: =IF($AB163=0,0,AD162*(1+Simulador!$D$34)+T163) -> 0
A164: =IF(OR(A163+1>(IF(Simulador!$E$7="Autopatrocínio",Simulador!$C$10,Simulador!$C$9)-Simulador!$C$8)*12,A163=0),0,A163+1) -> 0 | B164: =IF($A164=0,0,IF(INT($A163/12)-$A163/12=0,B163*(1+Simulador!$C$35),B163)) -> 0 | C164: =MAX(IF(A164=0,0,B164-IF(Simulador!$C$11="Individual",0,Simulador!$C$14)),0) -> 0 | E164: 0 | F164: 0 | G164: 0 | H164: 0 | I164: 0 | J164: 0 | L164: 0 | M164: 0 | N164: 0 | O164: 0 | P164: 0 | Q164: 0 | S164: 0 | T164: 0 | U164: 0 | V164: 0 | W164: 0 | Y164: =IF(OR(Y163+1>(IF(AND(Simulador!$C$9<Simulador!$C$10,OR(Simulador!$E$7="Resgate",Simulador!$E$7="Portabilidade")),Simulador!$C$9,Simulador!$C$10)-Simulador!$C$8)*12,Y163=0),0,Y163+1) -> 160 | Z164: =IF($Y164=0,0,Z163*(1+Simulador!$D$34)+E164+L164) -> 0 | AA164: =IF($Y164=0,0,AA163*(1+Simulador!$D$34)+S164) -> 0 | AB164: =IF(OR(AB163+1>(IF(AND(Simulador!$C$9<Simulador!$C$10,OR(Simulador!$E$7="Resgate",Simulador!$E$7="Portabilidade")),Simulador!$C$9,Simulador!$C$50)-Simulador!$C$8)*12,AB163=0),0,AB163+1) -> 160 | AC164: =IF($AB164=0,0,AC163*(1+Simulador!$D$34)+F164+M164) -> 0 | AD164: =IF($AB164=0,0,AD163*(1+Simulador!$D$34)+T164) -> 0
A165: =IF(OR(A164+1>(IF(Simulador!$E$7="Autopatrocínio",Simulador!$C$10,Simulador!$C$9)-Simulador!$C$8)*12,A164=0),0,A164+1) -> 0 | B165: =IF($A165=0,0,IF(INT($A164/12)-$A164/12=0,B164*(1+Simulador!$C$35),B164)) -> 0 | C165: =MAX(IF(A165=0,0,B165-IF(Simulador!$C$11="Individual",0,Simulador!$C$14)),0) -> 0 | E165: =E$4*$C165*(1+$J165) -> 0 | F165: 0 | G165: 0 | H165: 0 | I165: 0 | J165: 0 | L165: =L$4*$C165*$Q165 -> 0 | M165: 0 | N165: 0 | O165: 0 | P165: 0 | Q165: 0 | S165: =S$4*$C165*(1+$J165) -> 0 | T165: 0 | U165: 0 | V165: 0 | W165: 0 | Y165: =IF(OR(Y164+1>(IF(AND(Simulador!$C$9<Simulador!$C$10,OR(Simulador!$E$7="Resgate",Simulador!$E$7="Portabilidade")),Simulador!$C$9,Simulador!$C$10)-Simulador!$C$8)*12,Y164=0),0,Y164+1) -> 161 | Z165: =IF($Y165=0,0,Z164*(1+Simulador!$D$34)+E165+L165) -> 0 | AA165: =IF($Y165=0,0,AA164*(1+Simulador!$D$34)+S165) -> 0 | AB165: =IF(OR(AB164+1>(IF(AND(Simulador!$C$9<Simulador!$C$10,OR(Simulador!$E$7="Resgate",Simulador!$E$7="Portabilidade")),Simulador!$C$9,Simulador!$C$50)-Simulador!$C$8)*12,AB164=0),0,AB164+1) -> 161 | AC165: =IF($AB165=0,0,AC164*(1+Simulador!$D$34)+F165+M165) -> 0 | AD165: =IF($AB165=0,0,AD164*(1+Simulador!$D$34)+T165) -> 0
A166: =IF(OR(A165+1>(IF(Simulador!$E$7="Autopatrocínio",Simulador!$C$10,Simulador!$C$9)-Simulador!$C$8)*12,A165=0),0,A165+1) -> 0 | B166: =IF($A166=0,0,IF(INT($A165/12)-$A165/12=0,B165*(1+Simulador!$C$35),B165)) -> 0 | C166: =MAX(IF(A166=0,0,B166-IF(Simulador!$C$11="Individual",0,Simulador!$C$14)),0) -> 0 | E166: 0 | F166: 0 | G166: 0 | H166: 0 | I166: 0 | J166: 0 | L166: 0 | M166: 0 | N166: 0 | O166: 0 | P166: 0 | Q166: 0 | S166: 0 | T166: 0 | U166: 0 | V166: 0 | W166: 0 | Y166: =IF(OR(Y165+1>(IF(AND(Simulador!$C$9<Simulador!$C$10,OR(Simulador!$E$7="Resgate",Simulador!$E$7="Portabilidade")),Simulador!$C$9,Simulador!$C$10)-Simulador!$C$8)*12,Y165=0),0,Y165+1) -> 162 | Z166: =IF($Y166=0,0,Z165*(1+Simulador!$D$34)+E166+L166) -> 0 | AA166: =IF($Y166=0,0,AA165*(1+Simulador!$D$34)+S166) -> 0 | AB166: =IF(OR(AB165+1>(IF(AND(Simulador!$C$9<Simulador!$C$10,OR(Simulador!$E$7="Resgate",Simulador!$E$7="Portabilidade")),Simulador!$C$9,Simulador!$C$50)-Simulador!$C$8)*12,AB165=0),0,AB165+1) -> 162 | AC166: =IF($AB166=0,0,AC165*(1+Simulador!$D$34)+F166+M166) -> 0 | AD166: =IF($AB166=0,0,AD165*(1+Simulador!$D$34)+T166) -> 0
A167: =IF(OR(A166+1>(IF(Simulador!$E$7="Autopatrocínio",Simulador!$C$10,Simulador!$C$9)-Simulador!$C$8)*12,A166=0),0,A166+1) -> 0 | B167: =IF($A167=0,0,IF(INT($A166/12)-$A166/12=0,B166*(1+Simulador!$C$35),B166)) -> 0 | C167: =MAX(IF(A167=0,0,B167-IF(Simulador!$C$11="Individual",0,Simulador!$C$14)),0) -> 0 | E167: 0 | F167: 0 | G167: 0 | H167: 0 | I167: 0 | J167: 0 | L167: 0 | M167: 0 | N167: 0 | O167: 0 | P167: 0 | Q167: 0 | S167: 0 | T167: 0 | U167: 0 | V167: 0 | W167: 0 | Y167: =IF(OR(Y166+1>(IF(AND(Simulador!$C$9<Simulador!$C$10,OR(Simulador!$E$7="Resgate",Simulador!$E$7="Portabilidade")),Simulador!$C$9,Simulador!$C$10)-Simulador!$C$8)*12,Y166=0),0,Y166+1) -> 163 | Z167: =IF($Y167=0,0,Z166*(1+Simulador!$D$34)+E167+L167) -> 0 | AA167: =IF($Y167=0,0,AA166*(1+Simulador!$D$34)+S167) -> 0 | AB167: =IF(OR(AB166+1>(IF(AND(Simulador!$C$9<Simulador!$C$10,OR(Simulador!$E$7="Resgate",Simulador!$E$7="Portabilidade")),Simulador!$C$9,Simulador!$C$50)-Simulador!$C$8)*12,AB166=0),0,AB166+1) -> 163 | AC167: =IF($AB167=0,0,AC166*(1+Simulador!$D$34)+F167+M167) -> 0 | AD167: =IF($AB167=0,0,AD166*(1+Simulador!$D$34)+T167) -> 0
A168: =IF(OR(A167+1>(IF(Simulador!$E$7="Autopatrocínio",Simulador!$C$10,Simulador!$C$9)-Simulador!$C$8)*12,A167=0),0,A167+1) -> 0 | B168: =IF($A168=0,0,IF(INT($A167/12)-$A167/12=0,B167*(1+Simulador!$C$35),B167)) -> 0 | C168: =MAX(IF(A168=0,0,B168-IF(Simulador!$C$11="Individual",0,Simulador!$C$14)),0) -> 0 | E168: 0 | F168: 0 | G168: 0 | H168: 0 | I168: 0 | J168: 0 | L168: 0 | M168: 0 | N168: 0 | O168: 0 | P168: 0 | Q168: 0 | S168: 0 | T168: 0 | U168: 0 | V168: 0 | W168: 0 | Y168: =IF(OR(Y167+1>(IF(AND(Simulador!$C$9<Simulador!$C$10,OR(Simulador!$E$7="Resgate",Simulador!$E$7="Portabilidade")),Simulador!$C$9,Simulador!$C$10)-Simulador!$C$8)*12,Y167=0),0,Y167+1) -> 164 | Z168: =IF($Y168=0,0,Z167*(1+Simulador!$D$34)+E168+L168) -> 0 | AA168: =IF($Y168=0,0,AA167*(1+Simulador!$D$34)+S168) -> 0 | AB168: =IF(OR(AB167+1>(IF(AND(Simulador!$C$9<Simulador!$C$10,OR(Simulador!$E$7="Resgate",Simulador!$E$7="Portabilidade")),Simulador!$C$9,Simulador!$C$50)-Simulador!$C$8)*12,AB167=0),0,AB167+1) -> 164 | AC168: =IF($AB168=0,0,AC167*(1+Simulador!$D$34)+F168+M168) -> 0 | AD168: =IF($AB168=0,0,AD167*(1+Simulador!$D$34)+T168) -> 0
A169: =IF(OR(A168+1>(IF(Simulador!$E$7="Autopatrocínio",Simulador!$C$10,Simulador!$C$9)-Simulador!$C$8)*12,A168=0),0,A168+1) -> 0 | B169: =IF($A169=0,0,IF(INT($A168/12)-$A168/12=0,B168*(1+Simulador!$C$35),B168)) -> 0 | C169: =MAX(IF(A169=0,0,B169-IF(Simulador!$C$11="Individual",0,Simulador!$C$14)),0) -> 0 | E169: 0 | F169: 0 | G169: 0 | H169: 0 | I169: 0 | J169: 0 | L169: 0 | M169: 0 | N169: 0 | O169: 0 | P169: 0 | Q169: 0 | S169: 0 | T169: 0 | U169: 0 | V169: 0 | W169: 0 | Y169: =IF(OR(Y168+1>(IF(AND(Simulador!$C$9<Simulador!$C$10,OR(Simulador!$E$7="Resgate",Simulador!$E$7="Portabilidade")),Simulador!$C$9,Simulador!$C$10)-Simulador!$C$8)*12,Y168=0),0,Y168+1) -> 165 | Z169: =IF($Y169=0,0,Z168*(1+Simulador!$D$34)+E169+L169) -> 0 | AA169: =IF($Y169=0,0,AA168*(1+Simulador!$D$34)+S169) -> 0 | AB169: =IF(OR(AB168+1>(IF(AND(Simulador!$C$9<Simulador!$C$10,OR(Simulador!$E$7="Resgate",Simulador!$E$7="Portabilidade")),Simulador!$C$9,Simulador!$C$50)-Simulador!$C$8)*12,AB168=0),0,AB168+1) -> 165 | AC169: =IF($AB169=0,0,AC168*(1+Simulador!$D$34)+F169+M169) -> 0 | AD169: =IF($AB169=0,0,AD168*(1+Simulador!$D$34)+T169) -> 0
A170: =IF(OR(A169+1>(IF(Simulador!$E$7="Autopatrocínio",Simulador!$C$10,Simulador!$C$9)-Simulador!$C$8)*12,A169=0),0,A169+1) -> 0 | B170: =IF($A170=0,0,IF(INT($A169/12)-$A169/12=0,B169*(1+Simulador!$C$35),B169)) -> 0 | C170: =MAX(IF(A170=0,0,B170-IF(Simulador!$C$11="Individual",0,Simulador!$C$14)),0) -> 0 | E170: 0 | F170: 0 | G170: 0 | H170: 0 | I170: 0 | J170: 0 | L170: 0 | M170: 0 | N170: 0 | O170: 0 | P170: 0 | Q170: 0 | S170: 0 | T170: 0 | U170: 0 | V170: 0 | W170: 0 | Y170: =IF(OR(Y169+1>(IF(AND(Simulador!$C$9<Simulador!$C$10,OR(Simulador!$E$7="Resgate",Simulador!$E$7="Portabilidade")),Simulador!$C$9,Simulador!$C$10)-Simulador!$C$8)*12,Y169=0),0,Y169+1) -> 166 | Z170: =IF($Y170=0,0,Z169*(1+Simulador!$D$34)+E170+L170) -> 0 | AA170: =IF($Y170=0,0,AA169*(1+Simulador!$D$34)+S170) -> 0 | AB170: =IF(OR(AB169+1>(IF(AND(Simulador!$C$9<Simulador!$C$10,OR(Simulador!$E$7="Resgate",Simulador!$E$7="Portabilidade")),Simulador!$C$9,Simulador!$C$50)-Simulador!$C$8)*12,AB169=0),0,AB169+1) -> 166 | AC170: =IF($AB170=0,0,AC169*(1+Simulador!$D$34)+F170+M170) -> 0 | AD170: =IF($AB170=0,0,AD169*(1+Simulador!$D$34)+T170) -> 0
A171: =IF(OR(A170+1>(IF(Simulador!$E$7="Autopatrocínio",Simulador!$C$10,Simulador!$C$9)-Simulador!$C$8)*12,A170=0),0,A170+1) -> 0 | B171: =IF($A171=0,0,IF(INT($A170/12)-$A170/12=0,B170*(1+Simulador!$C$35),B170)) -> 0 | C171: =MAX(IF(A171=0,0,B171-IF(Simulador!$C$11="Individual",0,Simulador!$C$14)),0) -> 0 | E171: 0 | F171: 0 | G171: 0 | H171: 0 | I171: 0 | J171: 0 | L171: 0 | M171: 0 | N171: 0 | O171: 0 | P171: 0 | Q171: 0 | S171: 0 | T171: 0 | U171: 0 | V171: 0 | W171: 0 | Y171: =IF(OR(Y170+1>(IF(AND(Simulador!$C$9<Simulador!$C$10,OR(Simulador!$E$7="Resgate",Simulador!$E$7="Portabilidade")),Simulador!$C$9,Simulador!$C$10)-Simulador!$C$8)*12,Y170=0),0,Y170+1) -> 167 | Z171: =IF($Y171=0,0,Z170*(1+Simulador!$D$34)+E171+L171) -> 0 | AA171: =IF($Y171=0,0,AA170*(1+Simulador!$D$34)+S171) -> 0 | AB171: =IF(OR(AB170+1>(IF(AND(Simulador!$C$9<Simulador!$C$10,OR(Simulador!$E$7="Resgate",Simulador!$E$7="Portabilidade")),Simulador!$C$9,Simulador!$C$50)-Simulador!$C$8)*12,AB170=0),0,AB170+1) -> 167 | AC171: =IF($AB171=0,0,AC170*(1+Simulador!$D$34)+F171+M171) -> 0 | AD171: =IF($AB171=0,0,AD170*(1+Simulador!$D$34)+T171) -> 0
A172: =IF(OR(A171+1>(IF(Simulador!$E$7="Autopatrocínio",Simulador!$C$10,Simulador!$C$9)-Simulador!$C$8)*12,A171=0),0,A171+1) -> 0 | B172: =IF($A172=0,0,IF(INT($A171/12)-$A171/12=0,B171*(1+Simulador!$C$35),B171)) -> 0 | C172: =MAX(IF(A172=0,0,B172-IF(Simulador!$C$11="Individual",0,Simulador!$C$14)),0) -> 0 | E172: 0 | F172: 0 | G172: 0 | H172: 0 | I172: 0 | J172: 0 | L172: 0 | M172: 0 | N172: 0 | O172: 0 | P172: 0 | Q172: 0 | S172: 0 | T172: 0 | U172: 0 | V172: 0 | W172: 0 | Y172: =IF(OR(Y171+1>(IF(AND(Simulador!$C$9<Simulador!$C$10,OR(Simulador!$E$7="Resgate",Simulador!$E$7="Portabilidade")),Simulador!$C$9,Simulador!$C$10)-Simulador!$C$8)*12,Y171=0),0,Y171+1) -> 168 | Z172: =IF($Y172=0,0,Z171*(1+Simulador!$D$34)+E172+L172) -> 0 | AA172: =IF($Y172=0,0,AA171*(1+Simulador!$D$34)+S172) -> 0 | AB172: =IF(OR(AB171+1>(IF(AND(Simulador!$C$9<Simulador!$C$10,OR(Simulador!$E$7="Resgate",Simulador!$E$7="Portabilidade")),Simulador!$C$9,Simulador!$C$50)-Simulador!$C$8)*12,AB171=0),0,AB171+1) -> 168 | AC172: =IF($AB172=0,0,AC171*(1+Simulador!$D$34)+F172+M172) -> 0 | AD172: =IF($AB172=0,0,AD171*(1+Simulador!$D$34)+T172) -> 0
A173: =IF(OR(A172+1>(IF(Simulador!$E$7="Autopatrocínio",Simulador!$C$10,Simulador!$C$9)-Simulador!$C$8)*12,A172=0),0,A172+1) -> 0 | B173: =IF($A173=0,0,IF(INT($A172/12)-$A172/12=0,B172*(1+Simulador!$C$35),B172)) -> 0 | C173: =MAX(IF(A173=0,0,B173-IF(Simulador!$C$11="Individual",0,Simulador!$C$14)),0) -> 0 | E173: 0 | F173: 0 | G173: 0 | H173: 0 | I173: 0 | J173: 0 | L173: 0 | M173: 0 | N173: 0 | O173: 0 | P173: 0 | Q173: 0 | S173: 0 | T173: 0 | U173: 0 | V173: 0 | W173: 0 | Y173: =IF(OR(Y172+1>(IF(AND(Simulador!$C$9<Simulador!$C$10,OR(Simulador!$E$7="Resgate",Simulador!$E$7="Portabilidade")),Simulador!$C$9,Simulador!$C$10)-Simulador!$C$8)*12,Y172=0),0,Y172+1) -> 169 | Z173: =IF($Y173=0,0,Z172*(1+Simulador!$D$34)+E173+L173) -> 0 | AA173: =IF($Y173=0,0,AA172*(1+Simulador!$D$34)+S173) -> 0 | AB173: =IF(OR(AB172+1>(IF(AND(Simulador!$C$9<Simulador!$C$10,OR(Simulador!$E$7="Resgate",Simulador!$E$7="Portabilidade")),Simulador!$C$9,Simulador!$C$50)-Simulador!$C$8)*12,AB172=0),0,AB172+1) -> 169 | AC173: =IF($AB173=0,0,AC172*(1+Simulador!$D$34)+F173+M173) -> 0 | AD173: =IF($AB173=0,0,AD172*(1+Simulador!$D$34)+T173) -> 0
A174: =IF(OR(A173+1>(IF(Simulador!$E$7="Autopatrocínio",Simulador!$C$10,Simulador!$C$9)-Simulador!$C$8)*12,A173=0),0,A173+1) -> 0 | B174: =IF($A174=0,0,IF(INT($A173/12)-$A173/12=0,B173*(1+Simulador!$C$35),B173)) -> 0 | C174: =MAX(IF(A174=0,0,B174-IF(Simulador!$C$11="Individual",0,Simulador!$C$14)),0) -> 0 | E174: 0 | F174: 0 | G174: 0 | H174: 0 | I174: 0 | J174: 0 | L174: 0 | M174: 0 | N174: 0 | O174: 0 | P174: 0 | Q174: 0 | S174: 0 | T174: 0 | U174: 0 | V174: 0 | W174: 0 | Y174: =IF(OR(Y173+1>(IF(AND(Simulador!$C$9<Simulador!$C$10,OR(Simulador!$E$7="Resgate",Simulador!$E$7="Portabilidade")),Simulador!$C$9,Simulador!$C$10)-Simulador!$C$8)*12,Y173=0),0,Y173+1) -> 170 | Z174: =IF($Y174=0,0,Z173*(1+Simulador!$D$34)+E174+L174) -> 0 | AA174: =IF($Y174=0,0,AA173*(1+Simulador!$D$34)+S174) -> 0 | AB174: =IF(OR(AB173+1>(IF(AND(Simulador!$C$9<Simulador!$C$10,OR(Simulador!$E$7="Resgate",Simulador!$E$7="Portabilidade")),Simulador!$C$9,Simulador!$C$50)-Simulador!$C$8)*12,AB173=0),0,AB173+1) -> 170 | AC174: =IF($AB174=0,0,AC173*(1+Simulador!$D$34)+F174+M174) -> 0 | AD174: =IF($AB174=0,0,AD173*(1+Simulador!$D$34)+T174) -> 0
A175: =IF(OR(A174+1>(IF(Simulador!$E$7="Autopatrocínio",Simulador!$C$10,Simulador!$C$9)-Simulador!$C$8)*12,A174=0),0,A174+1) -> 0 | B175: =IF($A175=0,0,IF(INT($A174/12)-$A174/12=0,B174*(1+Simulador!$C$35),B174)) -> 0 | C175: =MAX(IF(A175=0,0,B175-IF(Simulador!$C$11="Individual",0,Simulador!$C$14)),0) -> 0 | E175: =E$4*$C175*(1+$J175) -> 0 | F175: 0 | G175: 0 | H175: 0 | I175: 0 | J175: 0 | L175: =L$4*$C175*$Q175 -> 0 | M175: 0 | N175: 0 | O175: 0 | P175: 0 | Q175: 0 | S175: 0 | T175: 0 | U175: 0 | V175: 0 | W175: 0 | Y175: =IF(OR(Y174+1>(IF(AND(Simulador!$C$9<Simulador!$C$10,OR(Simulador!$E$7="Resgate",Simulador!$E$7="Portabilidade")),Simulador!$C$9,Simulador!$C$10)-Simulador!$C$8)*12,Y174=0),0,Y174+1) -> 171 | Z175: =IF($Y175=0,0,Z174*(1+Simulador!$D$34)+E175+L175) -> 0 | AA175: =IF($Y175=0,0,AA174*(1+Simulador!$D$34)+S175) -> 0 | AB175: =IF(OR(AB174+1>(IF(AND(Simulador!$C$9<Simulador!$C$10,OR(Simulador!$E$7="Resgate",Simulador!$E$7="Portabilidade")),Simulador!$C$9,Simulador!$C$50)-Simulador!$C$8)*12,AB174=0),0,AB174+1) -> 171 | AC175: =IF($AB175=0,0,AC174*(1+Simulador!$D$34)+F175+M175) -> 0 | AD175: =IF($AB175=0,0,AD174*(1+Simulador!$D$34)+T175) -> 0
A176: =IF(OR(A175+1>(IF(Simulador!$E$7="Autopatrocínio",Simulador!$C$10,Simulador!$C$9)-Simulador!$C$8)*12,A175=0),0,A175+1) -> 0 | B176: =IF($A176=0,0,IF(INT($A175/12)-$A175/12=0,B175*(1+Simulador!$C$35),B175)) -> 0 | C176: =MAX(IF(A176=0,0,B176-IF(Simulador!$C$11="Individual",0,Simulador!$C$14)),0) -> 0 | E176: 0 | F176: 0 | G176: 0 | H176: 0 | I176: 0 | J176: 0 | L176: 0 | M176: 0 | N176: 0 | O176: 0 | P176: 0 | Q176: 0 | S176: 0 | T176: 0 | U176: 0 | V176: 0 | W176: 0 | Y176: =IF(OR(Y175+1>(IF(AND(Simulador!$C$9<Simulador!$C$10,OR(Simulador!$E$7="Resgate",Simulador!$E$7="Portabilidade")),Simulador!$C$9,Simulador!$C$10)-Simulador!$C$8)*12,Y175=0),0,Y175+1) -> 172 | Z176: =IF($Y176=0,0,Z175*(1+Simulador!$D$34)+E176+L176) -> 0 | AA176: =IF($Y176=0,0,AA175*(1+Simulador!$D$34)+S176) -> 0 | AB176: =IF(OR(AB175+1>(IF(AND(Simulador!$C$9<Simulador!$C$10,OR(Simulador!$E$7="Resgate",Simulador!$E$7="Portabilidade")),Simulador!$C$9,Simulador!$C$50)-Simulador!$C$8)*12,AB175=0),0,AB175+1) -> 172 | AC176: =IF($AB176=0,0,AC175*(1+Simulador!$D$34)+F176+M176) -> 0 | AD176: =IF($AB176=0,0,AD175*(1+Simulador!$D$34)+T176) -> 0
A177: =IF(OR(A176+1>(IF(Simulador!$E$7="Autopatrocínio",Simulador!$C$10,Simulador!$C$9)-Simulador!$C$8)*12,A176=0),0,A176+1) -> 0 | B177: =IF($A177=0,0,IF(INT($A176/12)-$A176/12=0,B176*(1+Simulador!$C$35),B176)) -> 0 | C177: =MAX(IF(A177=0,0,B177-IF(Simulador!$C$11="Individual",0,Simulador!$C$14)),0) -> 0 | E177: 0 | F177: 0 | G177: 0 | H177: 0 | I177: 0 | J177: 0 | L177: 0 | M177: 0 | N177: 0 | O177: 0 | P177: 0 | Q177: 0 | S177: 0 | T177: 0 | U177: 0 | V177: 0 | W177: 0 | Y177: =IF(OR(Y176+1>(IF(AND(Simulador!$C$9<Simulador!$C$10,OR(Simulador!$E$7="Resgate",Simulador!$E$7="Portabilidade")),Simulador!$C$9,Simulador!$C$10)-Simulador!$C$8)*12,Y176=0),0,Y176+1) -> 173 | Z177: =IF($Y177=0,0,Z176*(1+Simulador!$D$34)+E177+L177) -> 0 | AA177: =IF($Y177=0,0,AA176*(1+Simulador!$D$34)+S177) -> 0 | AB177: =IF(OR(AB176+1>(IF(AND(Simulador!$C$9<Simulador!$C$10,OR(Simulador!$E$7="Resgate",Simulador!$E$7="Portabilidade")),Simulador!$C$9,Simulador!$C$50)-Simulador!$C$8)*12,AB176=0),0,AB176+1) -> 173 | AC177: =IF($AB177=0,0,AC176*(1+Simulador!$D$34)+F177+M177) -> 0 | AD177: =IF($AB177=0,0,AD176*(1+Simulador!$D$34)+T177) -> 0
A178: =IF(OR(A177+1>(IF(Simulador!$E$7="Autopatrocínio",Simulador!$C$10,Simulador!$C$9)-Simulador!$C$8)*12,A177=0),0,A177+1) -> 0 | B178: =IF($A178=0,0,IF(INT($A177/12)-$A177/12=0,B177*(1+Simulador!$C$35),B177)) -> 0 | C178: =MAX(IF(A178=0,0,B178-IF(Simulador!$C$11="Individual",0,Simulador!$C$14)),0) -> 0 | E178: 0 | F178: 0 | G178: 0 | H178: 0 | I178: 0 | J178: 0 | L178: 0 | M178: 0 | N178: 0 | O178: 0 | P178: 0 | Q178: 0 | S178: 0 | T178: 0 | U178: 0 | V178: 0 | W178: 0 | Y178: =IF(OR(Y177+1>(IF(AND(Simulador!$C$9<Simulador!$C$10,OR(Simulador!$E$7="Resgate",Simulador!$E$7="Portabilidade")),Simulador!$C$9,Simulador!$C$10)-Simulador!$C$8)*12,Y177=0),0,Y177+1) -> 174 | Z178: =IF($Y178=0,0,Z177*(1+Simulador!$D$34)+E178+L178) -> 0 | AA178: =IF($Y178=0,0,AA177*(1+Simulador!$D$34)+S178) -> 0 | AB178: =IF(OR(AB177+1>(IF(AND(Simulador!$C$9<Simulador!$C$10,OR(Simulador!$E$7="Resgate",Simulador!$E$7="Portabilidade")),Simulador!$C$9,Simulador!$C$50)-Simulador!$C$8)*12,AB177=0),0,AB177+1) -> 174 | AC178: =IF($AB178=0,0,AC177*(1+Simulador!$D$34)+F178+M178) -> 0 | AD178: =IF($AB178=0,0,AD177*(1+Simulador!$D$34)+T178) -> 0
A179: =IF(OR(A178+1>(IF(Simulador!$E$7="Autopatrocínio",Simulador!$C$10,Simulador!$C$9)-Simulador!$C$8)*12,A178=0),0,A178+1) -> 0 | B179: =IF($A179=0,0,IF(INT($A178/12)-$A178/12=0,B178*(1+Simulador!$C$35),B178)) -> 0 | C179: =MAX(IF(A179=0,0,B179-IF(Simulador!$C$11="Individual",0,Simulador!$C$14)),0) -> 0 | E179: 0 | F179: 0 | G179: 0 | H179: 0 | I179: 0 | J179: 0 | L179: 0 | M179: 0 | N179: 0 | O179: 0 | P179: 0 | Q179: 0 | S179: 0 | T179: 0 | U179: 0 | V179: 0 | W179: 0 | Y179: =IF(OR(Y178+1>(IF(AND(Simulador!$C$9<Simulador!$C$10,OR(Simulador!$E$7="Resgate",Simulador!$E$7="Portabilidade")),Simulador!$C$9,Simulador!$C$10)-Simulador!$C$8)*12,Y178=0),0,Y178+1) -> 175 | Z179: =IF($Y179=0,0,Z178*(1+Simulador!$D$34)+E179+L179) -> 0 | AA179: =IF($Y179=0,0,AA178*(1+Simulador!$D$34)+S179) -> 0 | AB179: =IF(OR(AB178+1>(IF(AND(Simulador!$C$9<Simulador!$C$10,OR(Simulador!$E$7="Resgate",Simulador!$E$7="Portabilidade")),Simulador!$C$9,Simulador!$C$50)-Simulador!$C$8)*12,AB178=0),0,AB178+1) -> 175 | AC179: =IF($AB179=0,0,AC178*(1+Simulador!$D$34)+F179+M179) -> 0 | AD179: =IF($AB179=0,0,AD178*(1+Simulador!$D$34)+T179) -> 0
A180: =IF(OR(A179+1>(IF(Simulador!$E$7="Autopatrocínio",Simulador!$C$10,Simulador!$C$9)-Simulador!$C$8)*12,A179=0),0,A179+1) -> 0 | B180: =IF($A180=0,0,IF(INT($A179/12)-$A179/12=0,B179*(1+Simulador!$C$35),B179)) -> 0 | C180: =MAX(IF(A180=0,0,B180-IF(Simulador!$C$11="Individual",0,Simulador!$C$14)),0) -> 0 | E180: 0 | F180: 0 | G180: 0 | H180: 0 | I180: 0 | J180: 0 | L180: 0 | M180: 0 | N180: 0 | O180: 0 | P180: 0 | Q180: 0 | S180: 0 | T180: 0 | U180: 0 | V180: 0 | W180: 0 | Y180: =IF(OR(Y179+1>(IF(AND(Simulador!$C$9<Simulador!$C$10,OR(Simulador!$E$7="Resgate",Simulador!$E$7="Portabilidade")),Simulador!$C$9,Simulador!$C$10)-Simulador!$C$8)*12,Y179=0),0,Y179+1) -> 176 | Z180: =IF($Y180=0,0,Z179*(1+Simulador!$D$34)+E180+L180) -> 0 | AA180: =IF($Y180=0,0,AA179*(1+Simulador!$D$34)+S180) -> 0 | AB180: =IF(OR(AB179+1>(IF(AND(Simulador!$C$9<Simulador!$C$10,OR(Simulador!$E$7="Resgate",Simulador!$E$7="Portabilidade")),Simulador!$C$9,Simulador!$C$50)-Simulador!$C$8)*12,AB179=0),0,AB179+1) -> 176 | AC180: =IF($AB180=0,0,AC179*(1+Simulador!$D$34)+F180+M180) -> 0 | AD180: =IF($AB180=0,0,AD179*(1+Simulador!$D$34)+T180) -> 0
A181: =IF(OR(A180+1>(IF(Simulador!$E$7="Autopatrocínio",Simulador!$C$10,Simulador!$C$9)-Simulador!$C$8)*12,A180=0),0,A180+1) -> 0 | B181: =IF($A181=0,0,IF(INT($A180/12)-$A180/12=0,B180*(1+Simulador!$C$35),B180)) -> 0 | C181: =MAX(IF(A181=0,0,B181-IF(Simulador!$C$11="Individual",0,Simulador!$C$14)),0) -> 0 | E181: 0 | F181: 0 | G181: 0 | H181: 0 | I181: 0 | J181: 0 | L181: 0 | M181: 0 | N181: 0 | O181: 0 | P181: 0 | Q181: 0 | S181: =S$4*$C181*(1+$J181) -> 0 | T181: 0 | U181: 0 | V181: 0 | W181: 0 | Y181: =IF(OR(Y180+1>(IF(AND(Simulador!$C$9<Simulador!$C$10,OR(Simulador!$E$7="Resgate",Simulador!$E$7="Portabilidade")),Simulador!$C$9,Simulador!$C$10)-Simulador!$C$8)*12,Y180=0),0,Y180+1) -> 177 | Z181: =IF($Y181=0,0,Z180*(1+Simulador!$D$34)+E181+L181) -> 0 | AA181: =IF($Y181=0,0,AA180*(1+Simulador!$D$34)+S181) -> 0 | AB181: =IF(OR(AB180+1>(IF(AND(Simulador!$C$9<Simulador!$C$10,OR(Simulador!$E$7="Resgate",Simulador!$E$7="Portabilidade")),Simulador!$C$9,Simulador!$C$50)-Simulador!$C$8)*12,AB180=0),0,AB180+1) -> 177 | AC181: =IF($AB181=0,0,AC180*(1+Simulador!$D$34)+F181+M181) -> 0 | AD181: =IF($AB181=0,0,AD180*(1+Simulador!$D$34)+T181) -> 0
A182: =IF(OR(A181+1>(IF(Simulador!$E$7="Autopatrocínio",Simulador!$C$10,Simulador!$C$9)-Simulador!$C$8)*12,A181=0),0,A181+1) -> 0 | B182: =IF($A182=0,0,IF(INT($A181/12)-$A181/12=0,B181*(1+Simulador!$C$35),B181)) -> 0 | C182: =MAX(IF(A182=0,0,B182-IF(Simulador!$C$11="Individual",0,Simulador!$C$14)),0) -> 0 | E182: 0 | F182: 0 | G182: 0 | H182: 0 | I182: 0 | J182: 0 | L182: 0 | M182: 0 | N182: 0 | O182: 0 | P182: 0 | Q182: 0 | S182: 0 | T182: 0 | U182: 0 | V182: 0 | W182: 0 | Y182: =IF(OR(Y181+1>(IF(AND(Simulador!$C$9<Simulador!$C$10,OR(Simulador!$E$7="Resgate",Simulador!$E$7="Portabilidade")),Simulador!$C$9,Simulador!$C$10)-Simulador!$C$8)*12,Y181=0),0,Y181+1) -> 178 | Z182: =IF($Y182=0,0,Z181*(1+Simulador!$D$34)+E182+L182) -> 0 | AA182: =IF($Y182=0,0,AA181*(1+Simulador!$D$34)+S182) -> 0 | AB182: =IF(OR(AB181+1>(IF(AND(Simulador!$C$9<Simulador!$C$10,OR(Simulador!$E$7="Resgate",Simulador!$E$7="Portabilidade")),Simulador!$C$9,Simulador!$C$50)-Simulador!$C$8)*12,AB181=0),0,AB181+1) -> 178 | AC182: =IF($AB182=0,0,AC181*(1+Simulador!$D$34)+F182+M182) -> 0 | AD182: =IF($AB182=0,0,AD181*(1+Simulador!$D$34)+T182) -> 0
A183: =IF(OR(A182+1>(IF(Simulador!$E$7="Autopatrocínio",Simulador!$C$10,Simulador!$C$9)-Simulador!$C$8)*12,A182=0),0,A182+1) -> 0 | B183: =IF($A183=0,0,IF(INT($A182/12)-$A182/12=0,B182*(1+Simulador!$C$35),B182)) -> 0 | C183: =MAX(IF(A183=0,0,B183-IF(Simulador!$C$11="Individual",0,Simulador!$C$14)),0) -> 0 | E183: 0 | F183: 0 | G183: 0 | H183: 0 | I183: 0 | J183: 0 | L183: 0 | M183: 0 | N183: 0 | O183: 0 | P183: 0 | Q183: 0 | S183: 0 | T183: 0 | U183: 0 | V183: 0 | W183: 0 | Y183: =IF(OR(Y182+1>(IF(AND(Simulador!$C$9<Simulador!$C$10,OR(Simulador!$E$7="Resgate",Simulador!$E$7="Portabilidade")),Simulador!$C$9,Simulador!$C$10)-Simulador!$C$8)*12,Y182=0),0,Y182+1) -> 179 | Z183: =IF($Y183=0,0,Z182*(1+Simulador!$D$34)+E183+L183) -> 0 | AA183: =IF($Y183=0,0,AA182*(1+Simulador!$D$34)+S183) -> 0 | AB183: =IF(OR(AB182+1>(IF(AND(Simulador!$C$9<Simulador!$C$10,OR(Simulador!$E$7="Resgate",Simulador!$E$7="Portabilidade")),Simulador!$C$9,Simulador!$C$50)-Simulador!$C$8)*12,AB182=0),0,AB182+1) -> 179 | AC183: =IF($AB183=0,0,AC182*(1+Simulador!$D$34)+F183+M183) -> 0 | AD183: =IF($AB183=0,0,AD182*(1+Simulador!$D$34)+T183) -> 0
A184: =IF(OR(A183+1>(IF(Simulador!$E$7="Autopatrocínio",Simulador!$C$10,Simulador!$C$9)-Simulador!$C$8)*12,A183=0),0,A183+1) -> 0 | B184: =IF($A184=0,0,IF(INT($A183/12)-$A183/12=0,B183*(1+Simulador!$C$35),B183)) -> 0 | C184: =MAX(IF(A184=0,0,B184-IF(Simulador!$C$11="Individual",0,Simulador!$C$14)),0) -> 0 | E184: 0 | F184: 0 | G184: 0 | H184: 0 | I184: 0 | J184: 0 | L184: 0 | M184: 0 | N184: 0 | O184: 0 | P184: 0 | Q184: 0 | S184: 0 | T184: 0 | U184: 0 | V184: 0 | W184: 0 | Y184: =IF(OR(Y183+1>(IF(AND(Simulador!$C$9<Simulador!$C$10,OR(Simulador!$E$7="Resgate",Simulador!$E$7="Portabilidade")),Simulador!$C$9,Simulador!$C$10)-Simulador!$C$8)*12,Y183=0),0,Y183+1) -> 180 | Z184: =IF($Y184=0,0,Z183*(1+Simulador!$D$34)+E184+L184) -> 0 | AA184: =IF($Y184=0,0,AA183*(1+Simulador!$D$34)+S184) -> 0 | AB184: =IF(OR(AB183+1>(IF(AND(Simulador!$C$9<Simulador!$C$10,OR(Simulador!$E$7="Resgate",Simulador!$E$7="Portabilidade")),Simulador!$C$9,Simulador!$C$50)-Simulador!$C$8)*12,AB183=0),0,AB183+1) -> 180 | AC184: =IF($AB184=0,0,AC183*(1+Simulador!$D$34)+F184+M184) -> 0 | AD184: =IF($AB184=0,0,AD183*(1+Simulador!$D$34)+T184) -> 0
A185: =IF(OR(A184+1>(IF(Simulador!$E$7="Autopatrocínio",Simulador!$C$10,Simulador!$C$9)-Simulador!$C$8)*12,A184=0),0,A184+1) -> 0 | B185: =IF($A185=0,0,IF(INT($A184/12)-$A184/12=0,B184*(1+Simulador!$C$35),B184)) -> 0 | C185: =MAX(IF(A185=0,0,B185-IF(Simulador!$C$11="Individual",0,Simulador!$C$14)),0) -> 0 | E185: =E$4*$C185*(1+$J185) -> 0 | F185: 0 | G185: 0 | H185: 0 | I185: 0 | J185: 0 | L185: =L$4*$C185*$Q185 -> 0 | M185: 0 | N185: 0 | O185: 0 | P185: 0 | Q185: 0 | S185: 0 | T185: 0 | U185: 0 | V185: 0 | W185: 0 | Y185: =IF(OR(Y184+1>(IF(AND(Simulador!$C$9<Simulador!$C$10,OR(Simulador!$E$7="Resgate",Simulador!$E$7="Portabilidade")),Simulador!$C$9,Simulador!$C$10)-Simulador!$C$8)*12,Y184=0),0,Y184+1) -> 181 | Z185: =IF($Y185=0,0,Z184*(1+Simulador!$D$34)+E185+L185) -> 0 | AA185: =IF($Y185=0,0,AA184*(1+Simulador!$D$34)+S185) -> 0 | AB185: =IF(OR(AB184+1>(IF(AND(Simulador!$C$9<Simulador!$C$10,OR(Simulador!$E$7="Resgate",Simulador!$E$7="Portabilidade")),Simulador!$C$9,Simulador!$C$50)-Simulador!$C$8)*12,AB184=0),0,AB184+1) -> 181 | AC185: =IF($AB185=0,0,AC184*(1+Simulador!$D$34)+F185+M185) -> 0 | AD185: =IF($AB185=0,0,AD184*(1+Simulador!$D$34)+T185) -> 0
A186: =IF(OR(A185+1>(IF(Simulador!$E$7="Autopatrocínio",Simulador!$C$10,Simulador!$C$9)-Simulador!$C$8)*12,A185=0),0,A185+1) -> 0 | B186: =IF($A186=0,0,IF(INT($A185/12)-$A185/12=0,B185*(1+Simulador!$C$35),B185)) -> 0 | C186: =MAX(IF(A186=0,0,B186-IF(Simulador!$C$11="Individual",0,Simulador!$C$14)),0) -> 0 | E186: 0 | F186: 0 | G186: 0 | H186: 0 | I186: 0 | J186: 0 | L186: 0 | M186: 0 | N186: 0 | O186: 0 | P186: 0 | Q186: 0 | S186: 0 | T186: 0 | U186: 0 | V186: 0 | W186: 0 | Y186: =IF(OR(Y185+1>(IF(AND(Simulador!$C$9<Simulador!$C$10,OR(Simulador!$E$7="Resgate",Simulador!$E$7="Portabilidade")),Simulador!$C$9,Simulador!$C$10)-Simulador!$C$8)*12,Y185=0),0,Y185+1) -> 182 | Z186: =IF($Y186=0,0,Z185*(1+Simulador!$D$34)+E186+L186) -> 0 | AA186: =IF($Y186=0,0,AA185*(1+Simulador!$D$34)+S186) -> 0 | AB186: =IF(OR(AB185+1>(IF(AND(Simulador!$C$9<Simulador!$C$10,OR(Simulador!$E$7="Resgate",Simulador!$E$7="Portabilidade")),Simulador!$C$9,Simulador!$C$50)-Simulador!$C$8)*12,AB185=0),0,AB185+1) -> 182 | AC186: =IF($AB186=0,0,AC185*(1+Simulador!$D$34)+F186+M186) -> 0 | AD186: =IF($AB186=0,0,AD185*(1+Simulador!$D$34)+T186) -> 0
A187: =IF(OR(A186+1>(IF(Simulador!$E$7="Autopatrocínio",Simulador!$C$10,Simulador!$C$9)-Simulador!$C$8)*12,A186=0),0,A186+1) -> 0 | B187: =IF($A187=0,0,IF(INT($A186/12)-$A186/12=0,B186*(1+Simulador!$C$35),B186)) -> 0 | C187: =MAX(IF(A187=0,0,B187-IF(Simulador!$C$11="Individual",0,Simulador!$C$14)),0) -> 0 | E187: 0 | F187: 0 | G187: 0 | H187: 0 | I187: 0 | J187: 0 | L187: 0 | M187: 0 | N187: 0 | O187: 0 | P187: 0 | Q187: 0 | S187: 0 | T187: 0 | U187: 0 | V187: 0 | W187: 0 | Y187: =IF(OR(Y186+1>(IF(AND(Simulador!$C$9<Simulador!$C$10,OR(Simulador!$E$7="Resgate",Simulador!$E$7="Portabilidade")),Simulador!$C$9,Simulador!$C$10)-Simulador!$C$8)*12,Y186=0),0,Y186+1) -> 183 | Z187: =IF($Y187=0,0,Z186*(1+Simulador!$D$34)+E187+L187) -> 0 | AA187: =IF($Y187=0,0,AA186*(1+Simulador!$D$34)+S187) -> 0 | AB187: =IF(OR(AB186+1>(IF(AND(Simulador!$C$9<Simulador!$C$10,OR(Simulador!$E$7="Resgate",Simulador!$E$7="Portabilidade")),Simulador!$C$9,Simulador!$C$50)-Simulador!$C$8)*12,AB186=0),0,AB186+1) -> 183 | AC187: =IF($AB187=0,0,AC186*(1+Simulador!$D$34)+F187+M187) -> 0 | AD187: =IF($AB187=0,0,AD186*(1+Simulador!$D$34)+T187) -> 0
A188: =IF(OR(A187+1>(IF(Simulador!$E$7="Autopatrocínio",Simulador!$C$10,Simulador!$C$9)-Simulador!$C$8)*12,A187=0),0,A187+1) -> 0 | B188: =IF($A188=0,0,IF(INT($A187/12)-$A187/12=0,B187*(1+Simulador!$C$35),B187)) -> 0 | C188: =MAX(IF(A188=0,0,B188-IF(Simulador!$C$11="Individual",0,Simulador!$C$14)),0) -> 0 | E188: 0 | F188: 0 | G188: 0 | H188: 0 | I188: 0 | J188: 0 | L188: 0 | M188: 0 | N188: 0 | O188: 0 | P188: 0 | Q188: 0 | S188: 0 | T188: 0 | U188: 0 | V188: 0 | W188: 0 | Y188: =IF(OR(Y187+1>(IF(AND(Simulador!$C$9<Simulador!$C$10,OR(Simulador!$E$7="Resgate",Simulador!$E$7="Portabilidade")),Simulador!$C$9,Simulador!$C$10)-Simulador!$C$8)*12,Y187=0),0,Y187+1) -> 184 | Z188: =IF($Y188=0,0,Z187*(1+Simulador!$D$34)+E188+L188) -> 0 | AA188: =IF($Y188=0,0,AA187*(1+Simulador!$D$34)+S188) -> 0 | AB188: =IF(OR(AB187+1>(IF(AND(Simulador!$C$9<Simulador!$C$10,OR(Simulador!$E$7="Resgate",Simulador!$E$7="Portabilidade")),Simulador!$C$9,Simulador!$C$50)-Simulador!$C$8)*12,AB187=0),0,AB187+1) -> 184 | AC188: =IF($AB188=0,0,AC187*(1+Simulador!$D$34)+F188+M188) -> 0 | AD188: =IF($AB188=0,0,AD187*(1+Simulador!$D$34)+T188) -> 0
A189: =IF(OR(A188+1>(IF(Simulador!$E$7="Autopatrocínio",Simulador!$C$10,Simulador!$C$9)-Simulador!$C$8)*12,A188=0),0,A188+1) -> 0 | B189: =IF($A189=0,0,IF(INT($A188/12)-$A188/12=0,B188*(1+Simulador!$C$35),B188)) -> 0 | C189: =MAX(IF(A189=0,0,B189-IF(Simulador!$C$11="Individual",0,Simulador!$C$14)),0) -> 0 | E189: 0 | F189: 0 | G189: 0 | H189: 0 | I189: 0 | J189: 0 | L189: 0 | M189: 0 | N189: 0 | O189: 0 | P189: 0 | Q189: 0 | S189: 0 | T189: 0 | U189: 0 | V189: 0 | W189: 0 | Y189: =IF(OR(Y188+1>(IF(AND(Simulador!$C$9<Simulador!$C$10,OR(Simulador!$E$7="Resgate",Simulador!$E$7="Portabilidade")),Simulador!$C$9,Simulador!$C$10)-Simulador!$C$8)*12,Y188=0),0,Y188+1) -> 185 | Z189: =IF($Y189=0,0,Z188*(1+Simulador!$D$34)+E189+L189) -> 0 | AA189: =IF($Y189=0,0,AA188*(1+Simulador!$D$34)+S189) -> 0 | AB189: =IF(OR(AB188+1>(IF(AND(Simulador!$C$9<Simulador!$C$10,OR(Simulador!$E$7="Resgate",Simulador!$E$7="Portabilidade")),Simulador!$C$9,Simulador!$C$50)-Simulador!$C$8)*12,AB188=0),0,AB188+1) -> 185 | AC189: =IF($AB189=0,0,AC188*(1+Simulador!$D$34)+F189+M189) -> 0 | AD189: =IF($AB189=0,0,AD188*(1+Simulador!$D$34)+T189) -> 0
A190: =IF(OR(A189+1>(IF(Simulador!$E$7="Autopatrocínio",Simulador!$C$10,Simulador!$C$9)-Simulador!$C$8)*12,A189=0),0,A189+1) -> 0 | B190: =IF($A190=0,0,IF(INT($A189/12)-$A189/12=0,B189*(1+Simulador!$C$35),B189)) -> 0 | C190: =MAX(IF(A190=0,0,B190-IF(Simulador!$C$11="Individual",0,Simulador!$C$14)),0) -> 0 | E190: 0 | F190: 0 | G190: 0 | H190: 0 | I190: 0 | J190: 0 | L190: 0 | M190: 0 | N190: 0 | O190: 0 | P190: 0 | Q190: 0 | S190: 0 | T190: 0 | U190: 0 | V190: 0 | W190: 0 | Y190: =IF(OR(Y189+1>(IF(AND(Simulador!$C$9<Simulador!$C$10,OR(Simulador!$E$7="Resgate",Simulador!$E$7="Portabilidade")),Simulador!$C$9,Simulador!$C$10)-Simulador!$C$8)*12,Y189=0),0,Y189+1) -> 186 | Z190: =IF($Y190=0,0,Z189*(1+Simulador!$D$34)+E190+L190) -> 0 | AA190: =IF($Y190=0,0,AA189*(1+Simulador!$D$34)+S190) -> 0 | AB190: =IF(OR(AB189+1>(IF(AND(Simulador!$C$9<Simulador!$C$10,OR(Simulador!$E$7="Resgate",Simulador!$E$7="Portabilidade")),Simulador!$C$9,Simulador!$C$50)-Simulador!$C$8)*12,AB189=0),0,AB189+1) -> 186 | AC190: =IF($AB190=0,0,AC189*(1+Simulador!$D$34)+F190+M190) -> 0 | AD190: =IF($AB190=0,0,AD189*(1+Simulador!$D$34)+T190) -> 0
A191: =IF(OR(A190+1>(IF(Simulador!$E$7="Autopatrocínio",Simulador!$C$10,Simulador!$C$9)-Simulador!$C$8)*12,A190=0),0,A190+1) -> 0 | B191: =IF($A191=0,0,IF(INT($A190/12)-$A190/12=0,B190*(1+Simulador!$C$35),B190)) -> 0 | C191: =MAX(IF(A191=0,0,B191-IF(Simulador!$C$11="Individual",0,Simulador!$C$14)),0) -> 0 | E191: 0 | F191: 0 | G191: 0 | H191: 0 | I191: 0 | J191: 0 | L191: 0 | M191: 0 | N191: 0 | O191: 0 | P191: 0 | Q191: 0 | S191: 0 | T191: 0 | U191: 0 | V191: 0 | W191: 0 | Y191: =IF(OR(Y190+1>(IF(AND(Simulador!$C$9<Simulador!$C$10,OR(Simulador!$E$7="Resgate",Simulador!$E$7="Portabilidade")),Simulador!$C$9,Simulador!$C$10)-Simulador!$C$8)*12,Y190=0),0,Y190+1) -> 187 | Z191: =IF($Y191=0,0,Z190*(1+Simulador!$D$34)+E191+L191) -> 0 | AA191: =IF($Y191=0,0,AA190*(1+Simulador!$D$34)+S191) -> 0 | AB191: =IF(OR(AB190+1>(IF(AND(Simulador!$C$9<Simulador!$C$10,OR(Simulador!$E$7="Resgate",Simulador!$E$7="Portabilidade")),Simulador!$C$9,Simulador!$C$50)-Simulador!$C$8)*12,AB190=0),0,AB190+1) -> 187 | AC191: =IF($AB191=0,0,AC190*(1+Simulador!$D$34)+F191+M191) -> 0 | AD191: =IF($AB191=0,0,AD190*(1+Simulador!$D$34)+T191) -> 0
A192: =IF(OR(A191+1>(IF(Simulador!$E$7="Autopatrocínio",Simulador!$C$10,Simulador!$C$9)-Simulador!$C$8)*12,A191=0),0,A191+1) -> 0 | B192: =IF($A192=0,0,IF(INT($A191/12)-$A191/12=0,B191*(1+Simulador!$C$35),B191)) -> 0 | C192: =MAX(IF(A192=0,0,B192-IF(Simulador!$C$11="Individual",0,Simulador!$C$14)),0) -> 0 | E192: 0 | F192: 0 | G192: 0 | H192: 0 | I192: 0 | J192: 0 | L192: 0 | M192: 0 | N192: 0 | O192: 0 | P192: 0 | Q192: 0 | S192: 0 | T192: 0 | U192: 0 | V192: 0 | W192: 0 | Y192: =IF(OR(Y191+1>(IF(AND(Simulador!$C$9<Simulador!$C$10,OR(Simulador!$E$7="Resgate",Simulador!$E$7="Portabilidade")),Simulador!$C$9,Simulador!$C$10)-Simulador!$C$8)*12,Y191=0),0,Y191+1) -> 188 | Z192: =IF($Y192=0,0,Z191*(1+Simulador!$D$34)+E192+L192) -> 0 | AA192: =IF($Y192=0,0,AA191*(1+Simulador!$D$34)+S192) -> 0 | AB192: =IF(OR(AB191+1>(IF(AND(Simulador!$C$9<Simulador!$C$10,OR(Simulador!$E$7="Resgate",Simulador!$E$7="Portabilidade")),Simulador!$C$9,Simulador!$C$50)-Simulador!$C$8)*12,AB191=0),0,AB191+1) -> 188 | AC192: =IF($AB192=0,0,AC191*(1+Simulador!$D$34)+F192+M192) -> 0 | AD192: =IF($AB192=0,0,AD191*(1+Simulador!$D$34)+T192) -> 0
A193: =IF(OR(A192+1>(IF(Simulador!$E$7="Autopatrocínio",Simulador!$C$10,Simulador!$C$9)-Simulador!$C$8)*12,A192=0),0,A192+1) -> 0 | B193: =IF($A193=0,0,IF(INT($A192/12)-$A192/12=0,B192*(1+Simulador!$C$35),B192)) -> 0 | C193: =MAX(IF(A193=0,0,B193-IF(Simulador!$C$11="Individual",0,Simulador!$C$14)),0) -> 0 | E193: 0 | F193: 0 | G193: 0 | H193: 0 | I193: 0 | J193: 0 | L193: 0 | M193: 0 | N193: 0 | O193: 0 | P193: 0 | Q193: 0 | S193: 0 | T193: 0 | U193: 0 | V193: 0 | W193: 0 | Y193: =IF(OR(Y192+1>(IF(AND(Simulador!$C$9<Simulador!$C$10,OR(Simulador!$E$7="Resgate",Simulador!$E$7="Portabilidade")),Simulador!$C$9,Simulador!$C$10)-Simulador!$C$8)*12,Y192=0),0,Y192+1) -> 189 | Z193: =IF($Y193=0,0,Z192*(1+Simulador!$D$34)+E193+L193) -> 0 | AA193: =IF($Y193=0,0,AA192*(1+Simulador!$D$34)+S193) -> 0 | AB193: =IF(OR(AB192+1>(IF(AND(Simulador!$C$9<Simulador!$C$10,OR(Simulador!$E$7="Resgate",Simulador!$E$7="Portabilidade")),Simulador!$C$9,Simulador!$C$50)-Simulador!$C$8)*12,AB192=0),0,AB192+1) -> 189 | AC193: =IF($AB193=0,0,AC192*(1+Simulador!$D$34)+F193+M193) -> 0 | AD193: =IF($AB193=0,0,AD192*(1+Simulador!$D$34)+T193) -> 0
A194: =IF(OR(A193+1>(IF(Simulador!$E$7="Autopatrocínio",Simulador!$C$10,Simulador!$C$9)-Simulador!$C$8)*12,A193=0),0,A193+1) -> 0 | B194: =IF($A194=0,0,IF(INT($A193/12)-$A193/12=0,B193*(1+Simulador!$C$35),B193)) -> 0 | C194: =MAX(IF(A194=0,0,B194-IF(Simulador!$C$11="Individual",0,Simulador!$C$14)),0) -> 0 | E194: 0 | F194: 0 | G194: 0 | H194: 0 | I194: 0 | J194: 0 | L194: 0 | M194: 0 | N194: 0 | O194: 0 | P194: 0 | Q194: 0 | S194: 0 | T194: 0 | U194: 0 | V194: 0 | W194: 0 | Y194: =IF(OR(Y193+1>(IF(AND(Simulador!$C$9<Simulador!$C$10,OR(Simulador!$E$7="Resgate",Simulador!$E$7="Portabilidade")),Simulador!$C$9,Simulador!$C$10)-Simulador!$C$8)*12,Y193=0),0,Y193+1) -> 190 | Z194: =IF($Y194=0,0,Z193*(1+Simulador!$D$34)+E194+L194) -> 0 | AA194: =IF($Y194=0,0,AA193*(1+Simulador!$D$34)+S194) -> 0 | AB194: =IF(OR(AB193+1>(IF(AND(Simulador!$C$9<Simulador!$C$10,OR(Simulador!$E$7="Resgate",Simulador!$E$7="Portabilidade")),Simulador!$C$9,Simulador!$C$50)-Simulador!$C$8)*12,AB193=0),0,AB193+1) -> 190 | AC194: =IF($AB194=0,0,AC193*(1+Simulador!$D$34)+F194+M194) -> 0 | AD194: =IF($AB194=0,0,AD193*(1+Simulador!$D$34)+T194) -> 0
A195: =IF(OR(A194+1>(IF(Simulador!$E$7="Autopatrocínio",Simulador!$C$10,Simulador!$C$9)-Simulador!$C$8)*12,A194=0),0,A194+1) -> 0 | B195: =IF($A195=0,0,IF(INT($A194/12)-$A194/12=0,B194*(1+Simulador!$C$35),B194)) -> 0 | C195: =MAX(IF(A195=0,0,B195-IF(Simulador!$C$11="Individual",0,Simulador!$C$14)),0) -> 0 | E195: =E$4*$C195*(1+$J195) -> 0 | F195: 0 | G195: 0 | H195: 0 | I195: 0 | J195: 0 | L195: =L$4*$C195*$Q195 -> 0 | M195: 0 | N195: 0 | O195: 0 | P195: 0 | Q195: 0 | S195: 0 | T195: 0 | U195: 0 | V195: 0 | W195: 0 | Y195: =IF(OR(Y194+1>(IF(AND(Simulador!$C$9<Simulador!$C$10,OR(Simulador!$E$7="Resgate",Simulador!$E$7="Portabilidade")),Simulador!$C$9,Simulador!$C$10)-Simulador!$C$8)*12,Y194=0),0,Y194+1) -> 191 | Z195: =IF($Y195=0,0,Z194*(1+Simulador!$D$34)+E195+L195) -> 0 | AA195: =IF($Y195=0,0,AA194*(1+Simulador!$D$34)+S195) -> 0 | AB195: =IF(OR(AB194+1>(IF(AND(Simulador!$C$9<Simulador!$C$10,OR(Simulador!$E$7="Resgate",Simulador!$E$7="Portabilidade")),Simulador!$C$9,Simulador!$C$50)-Simulador!$C$8)*12,AB194=0),0,AB194+1) -> 191 | AC195: =IF($AB195=0,0,AC194*(1+Simulador!$D$34)+F195+M195) -> 0 | AD195: =IF($AB195=0,0,AD194*(1+Simulador!$D$34)+T195) -> 0
A196: =IF(OR(A195+1>(IF(Simulador!$E$7="Autopatrocínio",Simulador!$C$10,Simulador!$C$9)-Simulador!$C$8)*12,A195=0),0,A195+1) -> 0 | B196: =IF($A196=0,0,IF(INT($A195/12)-$A195/12=0,B195*(1+Simulador!$C$35),B195)) -> 0 | C196: =MAX(IF(A196=0,0,B196-IF(Simulador!$C$11="Individual",0,Simulador!$C$14)),0) -> 0 | E196: 0 | F196: 0 | G196: 0 | H196: 0 | I196: 0 | J196: 0 | L196: 0 | M196: 0 | N196: 0 | O196: 0 | P196: 0 | Q196: 0 | S196: 0 | T196: 0 | U196: 0 | V196: 0 | W196: 0 | Y196: =IF(OR(Y195+1>(IF(AND(Simulador!$C$9<Simulador!$C$10,OR(Simulador!$E$7="Resgate",Simulador!$E$7="Portabilidade")),Simulador!$C$9,Simulador!$C$10)-Simulador!$C$8)*12,Y195=0),0,Y195+1) -> 192 | Z196: =IF($Y196=0,0,Z195*(1+Simulador!$D$34)+E196+L196) -> 0 | AA196: =IF($Y196=0,0,AA195*(1+Simulador!$D$34)+S196) -> 0 | AB196: =IF(OR(AB195+1>(IF(AND(Simulador!$C$9<Simulador!$C$10,OR(Simulador!$E$7="Resgate",Simulador!$E$7="Portabilidade")),Simulador!$C$9,Simulador!$C$50)-Simulador!$C$8)*12,AB195=0),0,AB195+1) -> 192 | AC196: =IF($AB196=0,0,AC195*(1+Simulador!$D$34)+F196+M196) -> 0 | AD196: =IF($AB196=0,0,AD195*(1+Simulador!$D$34)+T196) -> 0
A197: =IF(OR(A196+1>(IF(Simulador!$E$7="Autopatrocínio",Simulador!$C$10,Simulador!$C$9)-Simulador!$C$8)*12,A196=0),0,A196+1) -> 0 | B197: =IF($A197=0,0,IF(INT($A196/12)-$A196/12=0,B196*(1+Simulador!$C$35),B196)) -> 0 | C197: =MAX(IF(A197=0,0,B197-IF(Simulador!$C$11="Individual",0,Simulador!$C$14)),0) -> 0 | E197: 0 | F197: 0 | G197: 0 | H197: 0 | I197: 0 | J197: =IF($A197=0,0,IF(INT($A197/12)-$A197/12=0,1,0)) -> 0 | L197: 0 | M197: 0 | N197: 0 | O197: 0 | P197: 0 | Q197: =IF($A197=0,0,IF($Q$4="Mensal",1,IF($Q$4="Semestral",IF(INT(($A197+5)/6)-($A197+5)/6=0,1,0),IF($Q$4="Anual",IF(INT(($A197+11)/12)-($A197+11)/12=0,1,0))))) -> 0 | S197: =S$4*$C197*(1+$J197) -> 0 | T197: 0 | U197: 0 | V197: 0 | W197: 0 | Y197: =IF(OR(Y196+1>(IF(AND(Simulador!$C$9<Simulador!$C$10,OR(Simulador!$E$7="Resgate",Simulador!$E$7="Portabilidade")),Simulador!$C$9,Simulador!$C$10)-Simulador!$C$8)*12,Y196=0),0,Y196+1) -> 193 | Z197: =IF($Y197=0,0,Z196*(1+Simulador!$D$34)+E197+L197) -> 0 | AA197: =IF($Y197=0,0,AA196*(1+Simulador!$D$34)+S197) -> 0 | AB197: =IF(OR(AB196+1>(IF(AND(Simulador!$C$9<Simulador!$C$10,OR(Simulador!$E$7="Resgate",Simulador!$E$7="Portabilidade")),Simulador!$C$9,Simulador!$C$50)-Simulador!$C$8)*12,AB196=0),0,AB196+1) -> 193 | AC197: =IF($AB197=0,0,AC196*(1+Simulador!$D$34)+F197+M197) -> 0 | AD197: =IF($AB197=0,0,AD196*(1+Simulador!$D$34)+T197) -> 0
A198: =IF(OR(A197+1>(IF(Simulador!$E$7="Autopatrocínio",Simulador!$C$10,Simulador!$C$9)-Simulador!$C$8)*12,A197=0),0,A197+1) -> 0 | B198: =IF($A198=0,0,IF(INT($A197/12)-$A197/12=0,B197*(1+Simulador!$C$35),B197)) -> 0 | C198: =MAX(IF(A198=0,0,B198-IF(Simulador!$C$11="Individual",0,Simulador!$C$14)),0) -> 0 | E198: 0 | F198: 0 | G198: 0 | H198: 0 | I198: 0 | J198: 0 | L198: 0 | M198: 0 | N198: 0 | O198: 0 | P198: 0 | Q198: 0 | S198: 0 | T198: 0 | U198: 0 | V198: 0 | W198: 0 | Y198: =IF(OR(Y197+1>(IF(AND(Simulador!$C$9<Simulador!$C$10,OR(Simulador!$E$7="Resgate",Simulador!$E$7="Portabilidade")),Simulador!$C$9,Simulador!$C$10)-Simulador!$C$8)*12,Y197=0),0,Y197+1) -> 194 | Z198: =IF($Y198=0,0,Z197*(1+Simulador!$D$34)+E198+L198) -> 0 | AA198: =IF($Y198=0,0,AA197*(1+Simulador!$D$34)+S198) -> 0 | AB198: =IF(OR(AB197+1>(IF(AND(Simulador!$C$9<Simulador!$C$10,OR(Simulador!$E$7="Resgate",Simulador!$E$7="Portabilidade")),Simulador!$C$9,Simulador!$C$50)-Simulador!$C$8)*12,AB197=0),0,AB197+1) -> 194 | AC198: =IF($AB198=0,0,AC197*(1+Simulador!$D$34)+F198+M198) -> 0 | AD198: =IF($AB198=0,0,AD197*(1+Simulador!$D$34)+T198) -> 0
A199: =IF(OR(A198+1>(IF(Simulador!$E$7="Autopatrocínio",Simulador!$C$10,Simulador!$C$9)-Simulador!$C$8)*12,A198=0),0,A198+1) -> 0 | B199: =IF($A199=0,0,IF(INT($A198/12)-$A198/12=0,B198*(1+Simulador!$C$35),B198)) -> 0 | C199: =MAX(IF(A199=0,0,B199-IF(Simulador!$C$11="Individual",0,Simulador!$C$14)),0) -> 0 | E199: 0 | F199: 0 | G199: 0 | H199: 0 | I199: 0 | J199: 0 | L199: 0 | M199: 0 | N199: 0 | O199: 0 | P199: 0 | Q199: 0 | S199: 0 | T199: 0 | U199: 0 | V199: 0 | W199: 0 | Y199: =IF(OR(Y198+1>(IF(AND(Simulador!$C$9<Simulador!$C$10,OR(Simulador!$E$7="Resgate",Simulador!$E$7="Portabilidade")),Simulador!$C$9,Simulador!$C$10)-Simulador!$C$8)*12,Y198=0),0,Y198+1) -> 195 | Z199: =IF($Y199=0,0,Z198*(1+Simulador!$D$34)+E199+L199) -> 0 | AA199: =IF($Y199=0,0,AA198*(1+Simulador!$D$34)+S199) -> 0 | AB199: =IF(OR(AB198+1>(IF(AND(Simulador!$C$9<Simulador!$C$10,OR(Simulador!$E$7="Resgate",Simulador!$E$7="Portabilidade")),Simulador!$C$9,Simulador!$C$50)-Simulador!$C$8)*12,AB198=0),0,AB198+1) -> 195 | AC199: =IF($AB199=0,0,AC198*(1+Simulador!$D$34)+F199+M199) -> 0 | AD199: =IF($AB199=0,0,AD198*(1+Simulador!$D$34)+T199) -> 0
A200: =IF(OR(A199+1>(IF(Simulador!$E$7="Autopatrocínio",Simulador!$C$10,Simulador!$C$9)-Simulador!$C$8)*12,A199=0),0,A199+1) -> 0 | B200: =IF($A200=0,0,IF(INT($A199/12)-$A199/12=0,B199*(1+Simulador!$C$35),B199)) -> 0 | C200: =MAX(IF(A200=0,0,B200-IF(Simulador!$C$11="Individual",0,Simulador!$C$14)),0) -> 0 | E200: 0 | F200: 0 | G200: 0 | H200: 0 | I200: 0 | J200: 0 | L200: 0 | M200: 0 | N200: 0 | O200: 0 | P200: 0 | Q200: 0 | S200: 0 | T200: 0 | U200: 0 | V200: 0 | W200: 0 | Y200: =IF(OR(Y199+1>(IF(AND(Simulador!$C$9<Simulador!$C$10,OR(Simulador!$E$7="Resgate",Simulador!$E$7="Portabilidade")),Simulador!$C$9,Simulador!$C$10)-Simulador!$C$8)*12,Y199=0),0,Y199+1) -> 196 | Z200: =IF($Y200=0,0,Z199*(1+Simulador!$D$34)+E200+L200) -> 0 | AA200: =IF($Y200=0,0,AA199*(1+Simulador!$D$34)+S200) -> 0 | AB200: =IF(OR(AB199+1>(IF(AND(Simulador!$C$9<Simulador!$C$10,OR(Simulador!$E$7="Resgate",Simulador!$E$7="Portabilidade")),Simulador!$C$9,Simulador!$C$50)-Simulador!$C$8)*12,AB199=0),0,AB199+1) -> 196 | AC200: =IF($AB200=0,0,AC199*(1+Simulador!$D$34)+F200+M200) -> 0 | AD200: =IF($AB200=0,0,AD199*(1+Simulador!$D$34)+T200) -> 0
... 797 more rows

Sheet Ev. Benefícios (hidden)
H1: Cota Inicial | I1: 1 | V1: Cota Inicial | W1: =VLOOKUP(0,$A$6:$M$499,7,0) -> 1
H2: Taxa Rent. Cota | I2: =Simulador!$C$34 -> 0 | V2: Taxa Rent. Cota | W2: =Simulador!$C$34 -> 0
B3: Evolução dos Benefícios em R$ | H3: Evolução dos Benefícios em Cotas | P3: Evolução dos Benefícios de Longevidade em R$ | V3: Evolução dos Benefícios de Longevidade em Cotas
A4: Mês | B4: Cotas Constantes | D4: Cotas Decrescentes | G4: Cota | H4: Cotas Constantes | J4: Cotas Decrescentes | M4: Abono | O4: Mês | P4: Cotas Constantes | R4: Cotas Decrescentes | U4: Cota | V4: Cotas Constantes | X4: Cotas Decrescentes | AA4: Abono
B5: Benefício / R$ | C5: Saldo / R$ | D5: Benefício / R$ | E5: Saldo / R$ | H5: Benefício / Cotas | I5: Saldo / Cotas | J5: Benefício / Cotas | K5: Saldo / Cotas | M5: Abono | P5: Benefício / R$ | Q5: Saldo / R$ | R5: Benefício / R$ | S5: Saldo / R$ | V5: Benefício / Cotas | W5: Saldo / Cotas | X5: Benefício / Cotas | Y5: Saldo / Cotas | AA5: Abono
A6: 1 | B6: =H6*G6 ->  | C6: =I6*G6 -> 0 | D6: =G6*J6 ->  | E6: =C6 -> 0 | G6: =I1 -> 1 | H6: =I6/IF(Simulador!$C$47=12,Simulador!$C$46,(Simulador!$C$46+ROUNDDOWN(Simulador!$C$46/12,0))) ->  | I6: =IF(OR(Simulador!$E$7="Resgate",Simulador!$E$7="Portabilidade"),0,(Simulador!$D$37+Simulador!$D$38-Simulador!$D$43)/G6) -> 0 | J6: =K6/IF(Simulador!$C$47=12,PV(Simulador!$D$34,Simulador!$C$46,-1,,1),PV(Simulador!$D$34,Simulador!$C$46,-1,,1)+PV(Simulador!$C$34,Simulador!$C$46/12,-1,,0)*((1+Simulador!$C$34)^(1/12))) ->  | K6: =I6 -> 0 | M6: =IF(Simulador!$C$47=12,0,IF(A6/12=INT(A6/12),1,0)) -> 0 | O6: 1 | P6: =V6*U6 -> 0 | Q6: =W6*U6 -> 0 | R6: =U6*X6 -> 0 | S6: =Q6 -> 0 | U6: =W1 -> 1 | V6: =W6/IF(Simulador!$C$54=12,Simulador!$C$53,(Simulador!$C$53+ROUNDDOWN(Simulador!$C$53/12,0))) -> 0 | W6: =IF(OR(Simulador!$E$7="Resgate",Simulador!$E$7="Portabilidade"),0,(Simulador!$D$39+Simulador!$D$40)/U6) -> 0 | X6: =Y6/IF(Simulador!$C$54=12,PV(Simulador!$D$34,Simulador!$C$53,-1,,1),PV(Simulador!$D$34,Simulador!$C$53,-1,,1)+PV(Simulador!$C$34,Simulador!$C$53/12,-1,,0)*((1+Simulador!$C$34)^(1/12))) -> 0 | Y6: =W6 -> 0 | AA6: =IF(Simulador!$C$54=12,0,IF(O6/12=INT(O6/12),1,0)) -> 0
A7: =IF(OR(A6+1>Simulador!$C$46,A6=0),0,A6+1) -> 0 | B7: =IF($A7=0,0,G7*H7) -> 0 | C7: =IF($A7=0,0,G7*I7) -> 0 | D7: =IF($A7=0,0,G7*J7) -> 0 | E7: =IF($A7=0,0,(E6-D6)*((1+Simulador!$C$34)^(1/12))) -> 0 | G7: =G6*((1+$I$2)^(1/12)) -> 1 | H7: =IF($A7=0,0,$H$6)*(1+M7) -> 0 | I7: =IF($A7=0,0,I6-H6) -> 0 | J7: =IF(A7=0,0,J$6/((1+Simulador!$C$34)^((A7-A$6)/12)))*(1+M7) -> 0 | K7: =IF($A7=0,0,K6-J6) -> 0 | M7: =IF(Simulador!$C$47=12,0,IF(A7/12=INT(A7/12),1,0)) -> 1 | O7: =IF(OR(O6+1>Simulador!$C$53,O6=0),0,O6+1) -> 2 | P7: =IF($A7=0,0,U7*V7) -> 0 | Q7: =IF($O7=0,0,U7*W7) -> 0 | R7: =IF($A7=0,0,U7*X7) -> 0 | S7: =IF($O7=0,0,(S6-R6)*((1+Simulador!$C$34)^(1/12))) -> 0 | U7: =U6*((1+$I$2)^(1/12)) -> 1 | V7: =IF($O7=0,0,$V$6)*(1+AA7) -> 0 | W7: =IF($O7=0,0,W6-V6) -> 0 | X7: =IF(O7=0,0,X$6/((1+Simulador!$C$34)^((O7-O$6)/12)))*(1+AA7) -> 0 | Y7: =IF($O7=0,0,Y6-X6) -> 0 | AA7: =IF(Simulador!$C$54=12,0,IF(O7/12=INT(O7/12),1,0)) -> 0
A8: =IF(OR(A7+1>Simulador!$C$46,A7=0),0,A7+1) -> 0 | B8: 0 | C8: 0 | D8: 0 | E8: =IF($A8=0,0,(E7-D7)*((1+Simulador!$C$34)^(1/12))) -> 0 | G8: 1 | H8: 0 | I8: 0 | J8: =IF(A8=0,0,J$6/((1+Simulador!$C$34)^((A8-A$6)/12)))*(1+M8) -> 0 | K8: 0 | M8: =IF(Simulador!$C$47=12,0,IF(A8/12=INT(A8/12),1,0)) -> 1 | O8: =IF(OR(O7+1>Simulador!$C$53,O7=0),0,O7+1) -> 3 | P8: 0 | Q8: 0 | R8: 0 | S8: =IF($O8=0,0,(S7-R7)*((1+Simulador!$C$34)^(1/12))) -> 0 | U8: 1 | V8: 0 | W8: 0 | X8: =IF(O8=0,0,X$6/((1+Simulador!$C$34)^((O8-O$6)/12)))*(1+AA8) -> 0 | Y8: 0 | AA8: =IF(Simulador!$C$54=12,0,IF(O8/12=INT(O8/12),1,0)) -> 0
A9: =IF(OR(A8+1>Simulador!$C$46,A8=0),0,A8+1) -> 0 | B9: 0 | C9: 0 | D9: 0 | E9: =IF($A9=0,0,(E8-D8)*((1+Simulador!$C$34)^(1/12))) -> 0 | G9: 1 | H9: 0 | I9: 0 | J9: =IF(A9=0,0,J$6/((1+Simulador!$C$34)^((A9-A$6)/12)))*(1+M9) -> 0 | K9: 0 | M9: =IF(Simulador!$C$47=12,0,IF(A9/12=INT(A9/12),1,0)) -> 1 | O9: =IF(OR(O8+1>Simulador!$C$53,O8=0),0,O8+1) -> 4 | P9: 0 | Q9: 0 | R9: 0 | S9: =IF($O9=0,0,(S8-R8)*((1+Simulador!$C$34)^(1/12))) -> 0 | U9: 1 | V9: 0 | W9: 0 | X9: =IF(O9=0,0,X$6/((1+Simulador!$C$34)^((O9-O$6)/12)))*(1+AA9) -> 0 | Y9: 0 | AA9: =IF(Simulador!$C$54=12,0,IF(O9/12=INT(O9/12),1,0)) -> 0
A10: =IF(OR(A9+1>Simulador!$C$46,A9=0),0,A9+1) -> 0 | B10: 0 | C10: 0 | D10: 0 | E10: =IF($A10=0,0,(E9-D9)*((1+Simulador!$C$34)^(1/12))) -> 0 | G10: 1 | H10: 0 | I10: 0 | J10: =IF(A10=0,0,J$6/((1+Simulador!$C$34)^((A10-A$6)/12)))*(1+M10) -> 0 | K10: 0 | M10: =IF(Simulador!$C$47=12,0,IF(A10/12=INT(A10/12),1,0)) -> 1 | O10: =IF(OR(O9+1>Simulador!$C$53,O9=0),0,O9+1) -> 5 | P10: 0 | Q10: 0 | R10: 0 | S10: =IF($O10=0,0,(S9-R9)*((1+Simulador!$C$34)^(1/12))) -> 0 | U10: 1 | V10: 0 | W10: 0 | X10: =IF(O10=0,0,X$6/((1+Simulador!$C$34)^((O10-O$6)/12)))*(1+AA10) -> 0 | Y10: 0 | AA10: =IF(Simulador!$C$54=12,0,IF(O10/12=INT(O10/12),1,0)) -> 0
A11: =IF(OR(A10+1>Simulador!$C$46,A10=0),0,A10+1) -> 0 | B11: 0 | C11: 0 | D11: 0 | E11: =IF($A11=0,0,(E10-D10)*((1+Simulador!$C$34)^(1/12))) -> 0 | G11: 1 | H11: 0 | I11: 0 | J11: =IF(A11=0,0,J$6/((1+Simulador!$C$34)^((A11-A$6)/12)))*(1+M11) -> 0 | K11: 0 | M11: =IF(Simulador!$C$47=12,0,IF(A11/12=INT(A11/12),1,0)) -> 1 | O11: =IF(OR(O10+1>Simulador!$C$53,O10=0),0,O10+1) -> 6 | P11: 0 | Q11: 0 | R11: 0 | S11: =IF($O11=0,0,(S10-R10)*((1+Simulador!$C$34)^(1/12))) -> 0 | U11: 1 | V11: 0 | W11: 0 | X11: =IF(O11=0,0,X$6/((1+Simulador!$C$34)^((O11-O$6)/12)))*(1+AA11) -> 0 | Y11: 0 | AA11: =IF(Simulador!$C$54=12,0,IF(O11/12=INT(O11/12),1,0)) -> 0
A12: =IF(OR(A11+1>Simulador!$C$46,A11=0),0,A11+1) -> 0 | B12: 0 | C12: 0 | D12: 0 | E12: =IF($A12=0,0,(E11-D11)*((1+Simulador!$C$34)^(1/12))) -> 0 | G12: 1 | H12: 0 | I12: 0 | J12: =IF(A12=0,0,J$6/((1+Simulador!$C$34)^((A12-A$6)/12)))*(1+M12) -> 0 | K12: 0 | M12: =IF(Simulador!$C$47=12,0,IF(A12/12=INT(A12/12),1,0)) -> 1 | O12: =IF(OR(O11+1>Simulador!$C$53,O11=0),0,O11+1) -> 7 | P12: 0 | Q12: 0 | R12: 0 | S12: =IF($O12=0,0,(S11-R11)*((1+Simulador!$C$34)^(1/12))) -> 0 | U12: 1 | V12: 0 | W12: 0 | X12: =IF(O12=0,0,X$6/((1+Simulador!$C$34)^((O12-O$6)/12)))*(1+AA12) -> 0 | Y12: 0 | AA12: =IF(Simulador!$C$54=12,0,IF(O12/12=INT(O12/12),1,0)) -> 0
A13: =IF(OR(A12+1>Simulador!$C$46,A12=0),0,A12+1) -> 0 | B13: 0 | C13: 0 | D13: 0 | E13: =IF($A13=0,0,(E12-D12)*((1+Simulador!$C$34)^(1/12))) -> 0 | G13: 1 | H13: 0 | I13: 0 | J13: =IF(A13=0,0,J$6/((1+Simulador!$C$34)^((A13-A$6)/12)))*(1+M13) -> 0 | K13: 0 | M13: =IF(Simulador!$C$47=12,0,IF(A13/12=INT(A13/12),1,0)) -> 1 | O13: =IF(OR(O12+1>Simulador!$C$53,O12=0),0,O12+1) -> 8 | P13: 0 | Q13: 0 | R13: 0 | S13: =IF($O13=0,0,(S12-R12)*((1+Simulador!$C$34)^(1/12))) -> 0 | U13: 1 | V13: 0 | W13: 0 | X13: =IF(O13=0,0,X$6/((1+Simulador!$C$34)^((O13-O$6)/12)))*(1+AA13) -> 0 | Y13: 0 | AA13: =IF(Simulador!$C$54=12,0,IF(O13/12=INT(O13/12),1,0)) -> 0
A14: =IF(OR(A13+1>Simulador!$C$46,A13=0),0,A13+1) -> 0 | B14: 0 | C14: 0 | D14: 0 | E14: =IF($A14=0,0,(E13-D13)*((1+Simulador!$C$34)^(1/12))) -> 0 | G14: 1 | H14: 0 | I14: 0 | J14: =IF(A14=0,0,J$6/((1+Simulador!$C$34)^((A14-A$6)/12)))*(1+M14) -> 0 | K14: 0 | M14: =IF(Simulador!$C$47=12,0,IF(A14/12=INT(A14/12),1,0)) -> 1 | O14: =IF(OR(O13+1>Simulador!$C$53,O13=0),0,O13+1) -> 9 | P14: 0 | Q14: 0 | R14: 0 | S14: =IF($O14=0,0,(S13-R13)*((1+Simulador!$C$34)^(1/12))) -> 0 | U14: 1 | V14: 0 | W14: 0 | X14: =IF(O14=0,0,X$6/((1+Simulador!$C$34)^((O14-O$6)/12)))*(1+AA14) -> 0 | Y14: 0 | AA14: =IF(Simulador!$C$54=12,0,IF(O14/12=INT(O14/12),1,0)) -> 0
A15: =IF(OR(A14+1>Simulador!$C$46,A14=0),0,A14+1) -> 0 | B15: 0 | C15: 0 | D15: 0 | E15: =IF($A15=0,0,(E14-D14)*((1+Simulador!$C$34)^(1/12))) -> 0 | G15: 1 | H15: 0 | I15: 0 | J15: =IF(A15=0,0,J$6/((1+Simulador!$C$34)^((A15-A$6)/12)))*(1+M15) -> 0 | K15: 0 | M15: =IF(Simulador!$C$47=12,0,IF(A15/12=INT(A15/12),1,0)) -> 1 | O15: =IF(OR(O14+1>Simulador!$C$53,O14=0),0,O14+1) -> 10 | P15: 0 | Q15: 0 | R15: 0 | S15: =IF($O15=0,0,(S14-R14)*((1+Simulador!$C$34)^(1/12))) -> 0 | U15: 1 | V15: 0 | W15: 0 | X15: =IF(O15=0,0,X$6/((1+Simulador!$C$34)^((O15-O$6)/12)))*(1+AA15) -> 0 | Y15: 0 | AA15: =IF(Simulador!$C$54=12,0,IF(O15/12=INT(O15/12),1,0)) -> 0
A16: =IF(OR(A15+1>Simulador!$C$46,A15=0),0,A15+1) -> 0 | B16: 0 | C16: 0 | D16: 0 | E16: =IF($A16=0,0,(E15-D15)*((1+Simulador!$C$34)^(1/12))) -> 0 | G16: 1 | H16: 0 | I16: 0 | J16: =IF(A16=0,0,J$6/((1+Simulador!$C$34)^((A16-A$6)/12)))*(1+M16) -> 0 | K16: 0 | M16: =IF(Simulador!$C$47=12,0,IF(A16/12=INT(A16/12),1,0)) -> 1 | O16: =IF(OR(O15+1>Simulador!$C$53,O15=0),0,O15+1) -> 11 | P16: 0 | Q16: 0 | R16: 0 | S16: =IF($O16=0,0,(S15-R15)*((1+Simulador!$C$34)^(1/12))) -> 0 | U16: 1 | V16: 0 | W16: 0 | X16: =IF(O16=0,0,X$6/((1+Simulador!$C$34)^((O16-O$6)/12)))*(1+AA16) -> 0 | Y16: 0 | AA16: =IF(Simulador!$C$54=12,0,IF(O16/12=INT(O16/12),1,0)) -> 0
A17: =IF(OR(A16+1>Simulador!$C$46,A16=0),0,A16+1) -> 0 | B17: 0 | C17: 0 | D17: 0 | E17: =IF($A17=0,0,(E16-D16)*((1+Simulador!$C$34)^(1/12))) -> 0 | G17: 1 | H17: 0 | I17: 0 | J17: =IF(A17=0,0,J$6/((1+Simulador!$C$34)^((A17-A$6)/12)))*(1+M17) -> 0 | K17: 0 | M17: =IF(Simulador!$C$47=12,0,IF(A17/12=INT(A17/12),1,0)) -> 1 | O17: =IF(OR(O16+1>Simulador!$C$53,O16=0),0,O16+1) -> 12 | P17: 0 | Q17: 0 | R17: 0 | S17: =IF($O17=0,0,(S16-R16)*((1+Simulador!$C$34)^(1/12))) -> 0 | U17: 1 | V17: 0 | W17: 0 | X17: =IF(O17=0,0,X$6/((1+Simulador!$C$34)^((O17-O$6)/12)))*(1+AA17) -> 0 | Y17: 0 | AA17: =IF(Simulador!$C$54=12,0,IF(O17/12=INT(O17/12),1,0)) -> 0
A18: =IF(OR(A17+1>Simulador!$C$46,A17=0),0,A17+1) -> 0 | B18: 0 | C18: 0 | D18: 0 | E18: =IF($A18=0,0,(E17-D17)*((1+Simulador!$C$34)^(1/12))) -> 0 | G18: 1 | H18: 0 | I18: 0 | J18: =IF(A18=0,0,J$6/((1+Simulador!$C$34)^((A18-A$6)/12)))*(1+M18) -> 0 | K18: 0 | M18: =IF(Simulador!$C$47=12,0,IF(A18/12=INT(A18/12),1,0)) -> 1 | O18: =IF(OR(O17+1>Simulador!$C$53,O17=0),0,O17+1) -> 13 | P18: 0 | Q18: 0 | R18: 0 | S18: =IF($O18=0,0,(S17-R17)*((1+Simulador!$C$34)^(1/12))) -> 0 | U18: 1 | V18: 0 | W18: 0 | X18: =IF(O18=0,0,X$6/((1+Simulador!$C$34)^((O18-O$6)/12)))*(1+AA18) -> 0 | Y18: 0 | AA18: =IF(Simulador!$C$54=12,0,IF(O18/12=INT(O18/12),1,0)) -> 0
A19: =IF(OR(A18+1>Simulador!$C$46,A18=0),0,A18+1) -> 0 | B19: 0 | C19: 0 | D19: 0 | E19: =IF($A19=0,0,(E18-D18)*((1+Simulador!$C$34)^(1/12))) -> 0 | G19: 1 | H19: 0 | I19: 0 | J19: =IF(A19=0,0,J$6/((1+Simulador!$C$34)^((A19-A$6)/12)))*(1+M19) -> 0 | K19: 0 | M19: =IF(Simulador!$C$47=12,0,IF(A19/12=INT(A19/12),1,0)) -> 1 | O19: =IF(OR(O18+1>Simulador!$C$53,O18=0),0,O18+1) -> 14 | P19: 0 | Q19: 0 | R19: 0 | S19: =IF($O19=0,0,(S18-R18)*((1+Simulador!$C$34)^(1/12))) -> 0 | U19: 1 | V19: 0 | W19: 0 | X19: =IF(O19=0,0,X$6/((1+Simulador!$C$34)^((O19-O$6)/12)))*(1+AA19) -> 0 | Y19: 0 | AA19: =IF(Simulador!$C$54=12,0,IF(O19/12=INT(O19/12),1,0)) -> 0
A20: =IF(OR(A19+1>Simulador!$C$46,A19=0),0,A19+1) -> 0 | B20: 0 | C20: 0 | D20: 0 | E20: =IF($A20=0,0,(E19-D19)*((1+Simulador!$C$34)^(1/12))) -> 0 | G20: 1 | H20: 0 | I20: 0 | J20: =IF(A20=0,0,J$6/((1+Simulador!$C$34)^((A20-A$6)/12)))*(1+M20) -> 0 | K20: 0 | M20: =IF(Simulador!$C$47=12,0,IF(A20/12=INT(A20/12),1,0)) -> 1 | O20: =IF(OR(O19+1>Simulador!$C$53,O19=0),0,O19+1) -> 15 | P20: 0 | Q20: 0 | R20: 0 | S20: =IF($O20=0,0,(S19-R19)*((1+Simulador!$C$34)^(1/12))) -> 0 | U20: 1 | V20: 0 | W20: 0 | X20: =IF(O20=0,0,X$6/((1+Simulador!$C$34)^((O20-O$6)/12)))*(1+AA20) -> 0 | Y20: 0 | AA20: =IF(Simulador!$C$54=12,0,IF(O20/12=INT(O20/12),1,0)) -> 0
A21: =IF(OR(A20+1>Simulador!$C$46,A20=0),0,A20+1) -> 0 | B21: 0 | C21: 0 | D21: 0 | E21: =IF($A21=0,0,(E20-D20)*((1+Simulador!$C$34)^(1/12))) -> 0 | G21: 1 | H21: 0 | I21: 0 | J21: =IF(A21=0,0,J$6/((1+Simulador!$C$34)^((A21-A$6)/12)))*(1+M21) -> 0 | K21: 0 | M21: =IF(Simulador!$C$47=12,0,IF(A21/12=INT(A21/12),1,0)) -> 1 | O21: =IF(OR(O20+1>Simulador!$C$53,O20=0),0,O20+1) -> 16 | P21: 0 | Q21: 0 | R21: 0 | S21: =IF($O21=0,0,(S20-R20)*((1+Simulador!$C$34)^(1/12))) -> 0 | U21: 1 | V21: 0 | W21: 0 | X21: =IF(O21=0,0,X$6/((1+Simulador!$C$34)^((O21-O$6)/12)))*(1+AA21) -> 0 | Y21: 0 | AA21: =IF(Simulador!$C$54=12,0,IF(O21/12=INT(O21/12),1,0)) -> 0
A22: =IF(OR(A21+1>Simulador!$C$46,A21=0),0,A21+1) -> 0 | B22: 0 | C22: 0 | D22: 0 | E22: =IF($A22=0,0,(E21-D21)*((1+Simulador!$C$34)^(1/12))) -> 0 | G22: 1 | H22: 0 | I22: 0 | J22: =IF(A22=0,0,J$6/((1+Simulador!$C$34)^((A22-A$6)/12)))*(1+M22) -> 0 | K22: 0 | M22: =IF(Simulador!$C$47=12,0,IF(A22/12=INT(A22/12),1,0)) -> 1 | O22: =IF(OR(O21+1>Simulador!$C$53,O21=0),0,O21+1) -> 17 | P22: 0 | Q22: 0 | R22: 0 | S22: =IF($O22=0,0,(S21-R21)*((1+Simulador!$C$34)^(1/12))) -> 0 | U22: 1 | V22: 0 | W22: 0 | X22: =IF(O22=0,0,X$6/((1+Simulador!$C$34)^((O22-O$6)/12)))*(1+AA22) -> 0 | Y22: 0 | AA22: =IF(Simulador!$C$54=12,0,IF(O22/12=INT(O22/12),1,0)) -> 0
A23: =IF(OR(A22+1>Simulador!$C$46,A22=0),0,A22+1) -> 0 | B23: 0 | C23: 0 | D23: 0 | E23: =IF($A23=0,0,(E22-D22)*((1+Simulador!$C$34)^(1/12))) -> 0 | G23: 1 | H23: 0 | I23: 0 | J23: =IF(A23=0,0,J$6/((1+Simulador!$C$34)^((A23-A$6)/12)))*(1+M23) -> 0 | K23: 0 | M23: =IF(Simulador!$C$47=12,0,IF(A23/12=INT(A23/12),1,0)) -> 1 | O23: =IF(OR(O22+1>Simulador!$C$53,O22=0),0,O22+1) -> 18 | P23: 0 | Q23: 0 | R23: 0 | S23: =IF($O23=0,0,(S22-R22)*((1+Simulador!$C$34)^(1/12))) -> 0 | U23: 1 | V23: 0 | W23: 0 | X23: =IF(O23=0,0,X$6/((1+Simulador!$C$34)^((O23-O$6)/12)))*(1+AA23) -> 0 | Y23: 0 | AA23: =IF(Simulador!$C$54=12,0,IF(O23/12=INT(O23/12),1,0)) -> 0
A24: =IF(OR(A23+1>Simulador!$C$46,A23=0),0,A23+1) -> 0 | B24: 0 | C24: 0 | D24: 0 | E24: =IF($A24=0,0,(E23-D23)*((1+Simulador!$C$34)^(1/12))) -> 0 | G24: 1 | H24: 0 | I24: 0 | J24: =IF(A24=0,0,J$6/((1+Simulador!$C$34)^((A24-A$6)/12)))*(1+M24) -> 0 | K24: 0 | M24: =IF(Simulador!$C$47=12,0,IF(A24/12=INT(A24/12),1,0)) -> 1 | O24: =IF(OR(O23+1>Simulador!$C$53,O23=0),0,O23+1) -> 19 | P24: 0 | Q24: 0 | R24: 0 | S24: =IF($O24=0,0,(S23-R23)*((1+Simulador!$C$34)^(1/12))) -> 0 | U24: 1 | V24: 0 | W24: 0 | X24: =IF(O24=0,0,X$6/((1+Simulador!$C$34)^((O24-O$6)/12)))*(1+AA24) -> 0 | Y24: 0 | AA24: =IF(Simulador!$C$54=12,0,IF(O24/12=INT(O24/12),1,0)) -> 0
A25: =IF(OR(A24+1>Simulador!$C$46,A24=0),0,A24+1) -> 0 | B25: 0 | C25: 0 | D25: 0 | E25: =IF($A25=0,0,(E24-D24)*((1+Simulador!$C$34)^(1/12))) -> 0 | G25: 1 | H25: 0 | I25: 0 | J25: =IF(A25=0,0,J$6/((1+Simulador!$C$34)^((A25-A$6)/12)))*(1+M25) -> 0 | K25: 0 | M25: =IF(Simulador!$C$47=12,0,IF(A25/12=INT(A25/12),1,0)) -> 1 | O25: =IF(OR(O24+1>Simulador!$C$53,O24=0),0,O24+1) -> 20 | P25: 0 | Q25: 0 | R25: 0 | S25: =IF($O25=0,0,(S24-R24)*((1+Simulador!$C$34)^(1/12))) -> 0 | U25: 1 | V25: 0 | W25: 0 | X25: =IF(O25=0,0,X$6/((1+Simulador!$C$34)^((O25-O$6)/12)))*(1+AA25) -> 0 | Y25: 0 | AA25: =IF(Simulador!$C$54=12,0,IF(O25/12=INT(O25/12),1,0)) -> 0
A26: =IF(OR(A25+1>Simulador!$C$46,A25=0),0,A25+1) -> 0 | B26: 0 | C26: 0 | D26: 0 | E26: =IF($A26=0,0,(E25-D25)*((1+Simulador!$C$34)^(1/12))) -> 0 | G26: 1 | H26: 0 | I26: 0 | J26: =IF(A26=0,0,J$6/((1+Simulador!$C$34)^((A26-A$6)/12)))*(1+M26) -> 0 | K26: 0 | M26: =IF(Simulador!$C$47=12,0,IF(A26/12=INT(A26/12),1,0)) -> 1 | O26: =IF(OR(O25+1>Simulador!$C$53,O25=0),0,O25+1) -> 21 | P26: 0 | Q26: 0 | R26: 0 | S26: =IF($O26=0,0,(S25-R25)*((1+Simulador!$C$34)^(1/12))) -> 0 | U26: 1 | V26: 0 | W26: 0 | X26: =IF(O26=0,0,X$6/((1+Simulador!$C$34)^((O26-O$6)/12)))*(1+AA26) -> 0 | Y26: 0 | AA26: =IF(Simulador!$C$54=12,0,IF(O26/12=INT(O26/12),1,0)) -> 0
A27: =IF(OR(A26+1>Simulador!$C$46,A26=0),0,A26+1) -> 0 | B27: 0 | C27: 0 | D27: 0 | E27: =IF($A27=0,0,(E26-D26)*((1+Simulador!$C$34)^(1/12))) -> 0 | G27: 1 | H27: 0 | I27: 0 | J27: =IF(A27=0,0,J$6/((1+Simulador!$C$34)^((A27-A$6)/12)))*(1+M27) -> 0 | K27: 0 | M27: =IF(Simulador!$C$47=12,0,IF(A27/12=INT(A27/12),1,0)) -> 1 | O27: =IF(OR(O26+1>Simulador!$C$53,O26=0),0,O26+1) -> 22 | P27: 0 | Q27: 0 | R27: 0 | S27: =IF($O27=0,0,(S26-R26)*((1+Simulador!$C$34)^(1/12))) -> 0 | U27: 1 | V27: 0 | W27: 0 | X27: =IF(O27=0,0,X$6/((1+Simulador!$C$34)^((O27-O$6)/12)))*(1+AA27) -> 0 | Y27: 0 | AA27: =IF(Simulador!$C$54=12,0,IF(O27/12=INT(O27/12),1,0)) -> 0
A28: =IF(OR(A27+1>Simulador!$C$46,A27=0),0,A27+1) -> 0 | B28: 0 | C28: 0 | D28: 0 | E28: =IF($A28=0,0,(E27-D27)*((1+Simulador!$C$34)^(1/12))) -> 0 | G28: 1 | H28: 0 | I28: 0 | J28: =IF(A28=0,0,J$6/((1+Simulador!$C$34)^((A28-A$6)/12)))*(1+M28) -> 0 | K28: 0 | M28: =IF(Simulador!$C$47=12,0,IF(A28/12=INT(A28/12),1,0)) -> 1 | O28: =IF(OR(O27+1>Simulador!$C$53,O27=0),0,O27+1) -> 23 | P28: 0 | Q28: 0 | R28: 0 | S28: =IF($O28=0,0,(S27-R27)*((1+Simulador!$C$34)^(1/12))) -> 0 | U28: 1 | V28: 0 | W28: 0 | X28: =IF(O28=0,0,X$6/((1+Simulador!$C$34)^((O28-O$6)/12)))*(1+AA28) -> 0 | Y28: 0 | AA28: =IF(Simulador!$C$54=12,0,IF(O28/12=INT(O28/12),1,0)) -> 0
A29: =IF(OR(A28+1>Simulador!$C$46,A28=0),0,A28+1) -> 0 | B29: 0 | C29: 0 | D29: 0 | E29: =IF($A29=0,0,(E28-D28)*((1+Simulador!$C$34)^(1/12))) -> 0 | G29: 1 | H29: 0 | I29: 0 | J29: =IF(A29=0,0,J$6/((1+Simulador!$C$34)^((A29-A$6)/12)))*(1+M29) -> 0 | K29: 0 | M29: =IF(Simulador!$C$47=12,0,IF(A29/12=INT(A29/12),1,0)) -> 1 | O29: =IF(OR(O28+1>Simulador!$C$53,O28=0),0,O28+1) -> 24 | P29: 0 | Q29: 0 | R29: 0 | S29: =IF($O29=0,0,(S28-R28)*((1+Simulador!$C$34)^(1/12))) -> 0 | U29: 1 | V29: 0 | W29: 0 | X29: =IF(O29=0,0,X$6/((1+Simulador!$C$34)^((O29-O$6)/12)))*(1+AA29) -> 0 | Y29: 0 | AA29: =IF(Simulador!$C$54=12,0,IF(O29/12=INT(O29/12),1,0)) -> 0
A30: =IF(OR(A29+1>Simulador!$C$46,A29=0),0,A29+1) -> 0 | B30: 0 | C30: 0 | D30: 0 | E30: =IF($A30=0,0,(E29-D29)*((1+Simulador!$C$34)^(1/12))) -> 0 | G30: 1 | H30: 0 | I30: 0 | J30: =IF(A30=0,0,J$6/((1+Simulador!$C$34)^((A30-A$6)/12)))*(1+M30) -> 0 | K30: 0 | M30: =IF(Simulador!$C$47=12,0,IF(A30/12=INT(A30/12),1,0)) -> 1 | O30: =IF(OR(O29+1>Simulador!$C$53,O29=0),0,O29+1) -> 25 | P30: 0 | Q30: 0 | R30: 0 | S30: =IF($O30=0,0,(S29-R29)*((1+Simulador!$C$34)^(1/12))) -> 0 | U30: 1 | V30: 0 | W30: 0 | X30: =IF(O30=0,0,X$6/((1+Simulador!$C$34)^((O30-O$6)/12)))*(1+AA30) -> 0 | Y30: 0 | AA30: =IF(Simulador!$C$54=12,0,IF(O30/12=INT(O30/12),1,0)) -> 0
A31: =IF(OR(A30+1>Simulador!$C$46,A30=0),0,A30+1) -> 0 | B31: 0 | C31: 0 | D31: 0 | E31: =IF($A31=0,0,(E30-D30)*((1+Simulador!$C$34)^(1/12))) -> 0 | G31: 1 | H31: 0 | I31: 0 | J31: =IF(A31=0,0,J$6/((1+Simulador!$C$34)^((A31-A$6)/12)))*(1+M31) -> 0 | K31: 0 | M31: =IF(Simulador!$C$47=12,0,IF(A31/12=INT(A31/12),1,0)) -> 1 | O31: =IF(OR(O30+1>Simulador!$C$53,O30=0),0,O30+1) -> 26 | P31: 0 | Q31: 0 | R31: 0 | S31: =IF($O31=0,0,(S30-R30)*((1+Simulador!$C$34)^(1/12))) -> 0 | U31: 1 | V31: 0 | W31: 0 | X31: =IF(O31=0,0,X$6/((1+Simulador!$C$34)^((O31-O$6)/12)))*(1+AA31) -> 0 | Y31: 0 | AA31: =IF(Simulador!$C$54=12,0,IF(O31/12=INT(O31/12),1,0)) -> 0
A32: =IF(OR(A31+1>Simulador!$C$46,A31=0),0,A31+1) -> 0 | B32: 0 | C32: 0 | D32: 0 | E32: =IF($A32=0,0,(E31-D31)*((1+Simulador!$C$34)^(1/12))) -> 0 | G32: 1 | H32: 0 | I32: 0 | J32: =IF(A32=0,0,J$6/((1+Simulador!$C$34)^((A32-A$6)/12)))*(1+M32) -> 0 | K32: 0 | M32: =IF(Simulador!$C$47=12,0,IF(A32/12=INT(A32/12),1,0)) -> 1 | O32: =IF(OR(O31+1>Simulador!$C$53,O31=0),0,O31+1) -> 27 | P32: 0 | Q32: 0 | R32: 0 | S32: =IF($O32=0,0,(S31-R31)*((1+Simulador!$C$34)^(1/12))) -> 0 | U32: 1 | V32: 0 | W32: 0 | X32: =IF(O32=0,0,X$6/((1+Simulador!$C$34)^((O32-O$6)/12)))*(1+AA32) -> 0 | Y32: 0 | AA32: =IF(Simulador!$C$54=12,0,IF(O32/12=INT(O32/12),1,0)) -> 0
A33: =IF(OR(A32+1>Simulador!$C$46,A32=0),0,A32+1) -> 0 | B33: 0 | C33: 0 | D33: 0 | E33: =IF($A33=0,0,(E32-D32)*((1+Simulador!$C$34)^(1/12))) -> 0 | G33: 1 | H33: 0 | I33: 0 | J33: =IF(A33=0,0,J$6/((1+Simulador!$C$34)^((A33-A$6)/12)))*(1+M33) -> 0 | K33: 0 | M33: =IF(Simulador!$C$47=12,0,IF(A33/12=INT(A33/12),1,0)) -> 1 | O33: =IF(OR(O32+1>Simulador!$C$53,O32=0),0,O32+1) -> 28 | P33: 0 | Q33: 0 | R33: 0 | S33: =IF($O33=0,0,(S32-R32)*((1+Simulador!$C$34)^(1/12))) -> 0 | U33: 1 | V33: 0 | W33: 0 | X33: =IF(O33=0,0,X$6/((1+Simulador!$C$34)^((O33-O$6)/12)))*(1+AA33) -> 0 | Y33: 0 | AA33: =IF(Simulador!$C$54=12,0,IF(O33/12=INT(O33/12),1,0)) -> 0
A34: =IF(OR(A33+1>Simulador!$C$46,A33=0),0,A33+1) -> 0 | B34: 0 | C34: 0 | D34: 0 | E34: =IF($A34=0,0,(E33-D33)*((1+Simulador!$C$34)^(1/12))) -> 0 | G34: 1 | H34: 0 | I34: 0 | J34: =IF(A34=0,0,J$6/((1+Simulador!$C$34)^((A34-A$6)/12)))*(1+M34) -> 0 | K34: 0 | M34: =IF(Simulador!$C$47=12,0,IF(A34/12=INT(A34/12),1,0)) -> 1 | O34: =IF(OR(O33+1>Simulador!$C$53,O33=0),0,O33+1) -> 29 | P34: 0 | Q34: 0 | R34: 0 | S34: =IF($O34=0,0,(S33-R33)*((1+Simulador!$C$34)^(1/12))) -> 0 | U34: 1 | V34: 0 | W34: 0 | X34: =IF(O34=0,0,X$6/((1+Simulador!$C$34)^((O34-O$6)/12)))*(1+AA34) -> 0 | Y34: 0 | AA34: =IF(Simulador!$C$54=12,0,IF(O34/12=INT(O34/12),1,0)) -> 0
A35: =IF(OR(A34+1>Simulador!$C$46,A34=0),0,A34+1) -> 0 | B35: 0 | C35: 0 | D35: 0 | E35: =IF($A35=0,0,(E34-D34)*((1+Simulador!$C$34)^(1/12))) -> 0 | G35: 1 | H35: 0 | I35: 0 | J35: =IF(A35=0,0,J$6/((1+Simulador!$C$34)^((A35-A$6)/12)))*(1+M35) -> 0 | K35: 0 | M35: =IF(Simulador!$C$47=12,0,IF(A35/12=INT(A35/12),1,0)) -> 1 | O35: =IF(OR(O34+1>Simulador!$C$53,O34=0),0,O34+1) -> 30 | P35: 0 | Q35: 0 | R35: 0 | S35: =IF($O35=0,0,(S34-R34)*((1+Simulador!$C$34)^(1/12))) -> 0 | U35: 1 | V35: 0 | W35: 0 | X35: =IF(O35=0,0,X$6/((1+Simulador!$C$34)^((O35-O$6)/12)))*(1+AA35) -> 0 | Y35: 0 | AA35: =IF(Simulador!$C$54=12,0,IF(O35/12=INT(O35/12),1,0)) -> 0
A36: =IF(OR(A35+1>Simulador!$C$46,A35=0),0,A35+1) -> 0 | B36: 0 | C36: 0 | D36: 0 | E36: =IF($A36=0,0,(E35-D35)*((1+Simulador!$C$34)^(1/12))) -> 0 | G36: 1 | H36: 0 | I36: 0 | J36: =IF(A36=0,0,J$6/((1+Simulador!$C$34)^((A36-A$6)/12)))*(1+M36) -> 0 | K36: 0 | M36: =IF(Simulador!$C$47=12,0,IF(A36/12=INT(A36/12),1,0)) -> 1 | O36: =IF(OR(O35+1>Simulador!$C$53,O35=0),0,O35+1) -> 31 | P36: 0 | Q36: 0 | R36: 0 | S36: =IF($O36=0,0,(S35-R35)*((1+Simulador!$C$34)^(1/12))) -> 0 | U36: 1 | V36: 0 | W36: 0 | X36: =IF(O36=0,0,X$6/((1+Simulador!$C$34)^((O36-O$6)/12)))*(1+AA36) -> 0 | Y36: 0 | AA36: =IF(Simulador!$C$54=12,0,IF(O36/12=INT(O36/12),1,0)) -> 0
A37: =IF(OR(A36+1>Simulador!$C$46,A36=0),0,A36+1) -> 0 | B37: 0 | C37: 0 | D37: 0 | E37: =IF($A37=0,0,(E36-D36)*((1+Simulador!$C$34)^(1/12))) -> 0 | G37: 1 | H37: 0 | I37: 0 | J37: =IF(A37=0,0,J$6/((1+Simulador!$C$34)^((A37-A$6)/12)))*(1+M37) -> 0 | K37: 0 | M37: =IF(Simulador!$C$47=12,0,IF(A37/12=INT(A37/12),1,0)) -> 1 | O37: =IF(OR(O36+1>Simulador!$C$53,O36=0),0,O36+1) -> 32 | P37: 0 | Q37: 0 | R37: 0 | S37: =IF($O37=0,0,(S36-R36)*((1+Simulador!$C$34)^(1/12))) -> 0 | U37: 1 | V37: 0 | W37: 0 | X37: =IF(O37=0,0,X$6/((1+Simulador!$C$34)^((O37-O$6)/12)))*(1+AA37) -> 0 | Y37: 0 | AA37: =IF(Simulador!$C$54=12,0,IF(O37/12=INT(O37/12),1,0)) -> 0
A38: =IF(OR(A37+1>Simulador!$C$46,A37=0),0,A37+1) -> 0 | B38: 0 | C38: 0 | D38: 0 | E38: =IF($A38=0,0,(E37-D37)*((1+Simulador!$C$34)^(1/12))) -> 0 | G38: 1 | H38: 0 | I38: 0 | J38: =IF(A38=0,0,J$6/((1+Simulador!$C$34)^((A38-A$6)/12)))*(1+M38) -> 0 | K38: 0 | M38: =IF(Simulador!$C$47=12,0,IF(A38/12=INT(A38/12),1,0)) -> 1 | O38: =IF(OR(O37+1>Simulador!$C$53,O37=0),0,O37+1) -> 33 | P38: 0 | Q38: 0 | R38: 0 | S38: =IF($O38=0,0,(S37-R37)*((1+Simulador!$C$34)^(1/12))) -> 0 | U38: 1 | V38: 0 | W38: 0 | X38: =IF(O38=0,0,X$6/((1+Simulador!$C$34)^((O38-O$6)/12)))*(1+AA38) -> 0 | Y38: 0 | AA38: =IF(Simulador!$C$54=12,0,IF(O38/12=INT(O38/12),1,0)) -> 0
A39: =IF(OR(A38+1>Simulador!$C$46,A38=0),0,A38+1) -> 0 | B39: 0 | C39: 0 | D39: 0 | E39: =IF($A39=0,0,(E38-D38)*((1+Simulador!$C$34)^(1/12))) -> 0 | G39: 1 | H39: 0 | I39: 0 | J39: =IF(A39=0,0,J$6/((1+Simulador!$C$34)^((A39-A$6)/12)))*(1+M39) -> 0 | K39: 0 | M39: =IF(Simulador!$C$47=12,0,IF(A39/12=INT(A39/12),1,0)) -> 1 | O39: =IF(OR(O38+1>Simulador!$C$53,O38=0),0,O38+1) -> 34 | P39: 0 | Q39: 0 | R39: 0 | S39: =IF($O39=0,0,(S38-R38)*((1+Simulador!$C$34)^(1/12))) -> 0 | U39: 1 | V39: 0 | W39: 0 | X39: =IF(O39=0,0,X$6/((1+Simulador!$C$34)^((O39-O$6)/12)))*(1+AA39) -> 0 | Y39: 0 | AA39: =IF(Simulador!$C$54=12,0,IF(O39/12=INT(O39/12),1,0)) -> 0
A40: =IF(OR(A39+1>Simulador!$C$46,A39=0),0,A39+1) -> 0 | B40: 0 | C40: 0 | D40: 0 | E40: =IF($A40=0,0,(E39-D39)*((1+Simulador!$C$34)^(1/12))) -> 0 | G40: 1 | H40: 0 | I40: 0 | J40: =IF(A40=0,0,J$6/((1+Simulador!$C$34)^((A40-A$6)/12)))*(1+M40) -> 0 | K40: 0 | M40: =IF(Simulador!$C$47=12,0,IF(A40/12=INT(A40/12),1,0)) -> 1 | O40: =IF(OR(O39+1>Simulador!$C$53,O39=0),0,O39+1) -> 35 | P40: 0 | Q40: 0 | R40: 0 | S40: =IF($O40=0,0,(S39-R39)*((1+Simulador!$C$34)^(1/12))) -> 0 | U40: 1 | V40: 0 | W40: 0 | X40: =IF(O40=0,0,X$6/((1+Simulador!$C$34)^((O40-O$6)/12)))*(1+AA40) -> 0 | Y40: 0 | AA40: =IF(Simulador!$C$54=12,0,IF(O40/12=INT(O40/12),1,0)) -> 0
A41: =IF(OR(A40+1>Simulador!$C$46,A40=0),0,A40+1) -> 0 | B41: 0 | C41: 0 | D41: 0 | E41: =IF($A41=0,0,(E40-D40)*((1+Simulador!$C$34)^(1/12))) -> 0 | G41: 1 | H41: 0 | I41: 0 | J41: =IF(A41=0,0,J$6/((1+Simulador!$C$34)^((A41-A$6)/12)))*(1+M41) -> 0 | K41: 0 | M41: =IF(Simulador!$C$47=12,0,IF(A41/12=INT(A41/12),1,0)) -> 1 | O41: =IF(OR(O40+1>Simulador!$C$53,O40=0),0,O40+1) -> 36 | P41: 0 | Q41: 0 | R41: 0 | S41: =IF($O41=0,0,(S40-R40)*((1+Simulador!$C$34)^(1/12))) -> 0 | U41: 1 | V41: 0 | W41: 0 | X41: =IF(O41=0,0,X$6/((1+Simulador!$C$34)^((O41-O$6)/12)))*(1+AA41) -> 0 | Y41: 0 | AA41: =IF(Simulador!$C$54=12,0,IF(O41/12=INT(O41/12),1,0)) -> 0
A42: =IF(OR(A41+1>Simulador!$C$46,A41=0),0,A41+1) -> 0 | B42: 0 | C42: 0 | D42: 0 | E42: =IF($A42=0,0,(E41-D41)*((1+Simulador!$C$34)^(1/12))) -> 0 | G42: 1 | H42: 0 | I42: 0 | J42: =IF(A42=0,0,J$6/((1+Simulador!$C$34)^((A42-A$6)/12)))*(1+M42) -> 0 | K42: 0 | M42: =IF(Simulador!$C$47=12,0,IF(A42/12=INT(A42/12),1,0)) -> 1 | O42: =IF(OR(O41+1>Simulador!$C$53,O41=0),0,O41+1) -> 37 | P42: 0 | Q42: 0 | R42: 0 | S42: =IF($O42=0,0,(S41-R41)*((1+Simulador!$C$34)^(1/12))) -> 0 | U42: 1 | V42: 0 | W42: 0 | X42: =IF(O42=0,0,X$6/((1+Simulador!$C$34)^((O42-O$6)/12)))*(1+AA42) -> 0 | Y42: 0 | AA42: =IF(Simulador!$C$54=12,0,IF(O42/12=INT(O42/12),1,0)) -> 0
A43: =IF(OR(A42+1>Simulador!$C$46,A42=0),0,A42+1) -> 0 | B43: 0 | C43: 0 | D43: 0 | E43: =IF($A43=0,0,(E42-D42)*((1+Simulador!$C$34)^(1/12))) -> 0 | G43: 1 | H43: 0 | I43: 0 | J43: =IF(A43=0,0,J$6/((1+Simulador!$C$34)^((A43-A$6)/12)))*(1+M43) -> 0 | K43: 0 | M43: =IF(Simulador!$C$47=12,0,IF(A43/12=INT(A43/12),1,0)) -> 1 | O43: =IF(OR(O42+1>Simulador!$C$53,O42=0),0,O42+1) -> 38 | P43: 0 | Q43: 0 | R43: 0 | S43: =IF($O43=0,0,(S42-R42)*((1+Simulador!$C$34)^(1/12))) -> 0 | U43: 1 | V43: 0 | W43: 0 | X43: =IF(O43=0,0,X$6/((1+Simulador!$C$34)^((O43-O$6)/12)))*(1+AA43) -> 0 | Y43: 0 | AA43: =IF(Simulador!$C$54=12,0,IF(O43/12=INT(O43/12),1,0)) -> 0
A44: =IF(OR(A43+1>Simulador!$C$46,A43=0),0,A43+1) -> 0 | B44: 0 | C44: 0 | D44: 0 | E44: =IF($A44=0,0,(E43-D43)*((1+Simulador!$C$34)^(1/12))) -> 0 | G44: 1 | H44: 0 | I44: 0 | J44: =IF(A44=0,0,J$6/((1+Simulador!$C$34)^((A44-A$6)/12)))*(1+M44) -> 0 | K44: 0 | M44: =IF(Simulador!$C$47=12,0,IF(A44/12=INT(A44/12),1,0)) -> 1 | O44: =IF(OR(O43+1>Simulador!$C$53,O43=0),0,O43+1) -> 39 | P44: 0 | Q44: 0 | R44: 0 | S44: =IF($O44=0,0,(S43-R43)*((1+Simulador!$C$34)^(1/12))) -> 0 | U44: 1 | V44: 0 | W44: 0 | X44: =IF(O44=0,0,X$6/((1+Simulador!$C$34)^((O44-O$6)/12)))*(1+AA44) -> 0 | Y44: 0 | AA44: =IF(Simulador!$C$54=12,0,IF(O44/12=INT(O44/12),1,0)) -> 0
A45: =IF(OR(A44+1>Simulador!$C$46,A44=0),0,A44+1) -> 0 | B45: 0 | C45: 0 | D45: 0 | E45: =IF($A45=0,0,(E44-D44)*((1+Simulador!$C$34)^(1/12))) -> 0 | G45: 1 | H45: 0 | I45: 0 | J45: =IF(A45=0,0,J$6/((1+Simulador!$C$34)^((A45-A$6)/12)))*(1+M45) -> 0 | K45: 0 | M45: =IF(Simulador!$C$47=12,0,IF(A45/12=INT(A45/12),1,0)) -> 1 | O45: =IF(OR(O44+1>Simulador!$C$53,O44=0),0,O44+1) -> 40 | P45: 0 | Q45: 0 | R45: 0 | S45: =IF($O45=0,0,(S44-R44)*((1+Simulador!$C$34)^(1/12))) -> 0 | U45: 1 | V45: 0 | W45: 0 | X45: =IF(O45=0,0,X$6/((1+Simulador!$C$34)^((O45-O$6)/12)))*(1+AA45) -> 0 | Y45: 0 | AA45: =IF(Simulador!$C$54=12,0,IF(O45/12=INT(O45/12),1,0)) -> 0
A46: =IF(OR(A45+1>Simulador!$C$46,A45=0),0,A45+1) -> 0 | B46: 0 | C46: 0 | D46: 0 | E46: =IF($A46=0,0,(E45-D45)*((1+Simulador!$C$34)^(1/12))) -> 0 | G46: 1 | H46: 0 | I46: 0 | J46: =IF(A46=0,0,J$6/((1+Simulador!$C$34)^((A46-A$6)/12)))*(1+M46) -> 0 | K46: 0 | M46: =IF(Simulador!$C$47=12,0,IF(A46/12=INT(A46/12),1,0)) -> 1 | O46: =IF(OR(O45+1>Simulador!$C$53,O45=0),0,O45+1) -> 41 | P46: 0 | Q46: 0 | R46: 0 | S46: =IF($O46=0,0,(S45-R45)*((1+Simulador!$C$34)^(1/12))) -> 0 | U46: 1 | V46: 0 | W46: 0 | X46: =IF(O46=0,0,X$6/((1+Simulador!$C$34)^((O46-O$6)/12)))*(1+AA46) -> 0 | Y46: 0 | AA46: =IF(Simulador!$C$54=12,0,IF(O46/12=INT(O46/12),1,0)) -> 0
A47: =IF(OR(A46+1>Simulador!$C$46,A46=0),0,A46+1) -> 0 | B47: 0 | C47: 0 | D47: 0 | E47: =IF($A47=0,0,(E46-D46)*((1+Simulador!$C$34)^(1/12))) -> 0 | G47: 1 | H47: 0 | I47: 0 | J47: =IF(A47=0,0,J$6/((1+Simulador!$C$34)^((A47-A$6)/12)))*(1+M47) -> 0 | K47: 0 | M47: =IF(Simulador!$C$47=12,0,IF(A47/12=INT(A47/12),1,0)) -> 1 | O47: =IF(OR(O46+1>Simulador!$C$53,O46=0),0,O46+1) -> 42 | P47: 0 | Q47: 0 | R47: 0 | S47: =IF($O47=0,0,(S46-R46)*((1+Simulador!$C$34)^(1/12))) -> 0 | U47: 1 | V47: 0 | W47: 0 | X47: =IF(O47=0,0,X$6/((1+Simulador!$C$34)^((O47-O$6)/12)))*(1+AA47) -> 0 | Y47: 0 | AA47: =IF(Simulador!$C$54=12,0,IF(O47/12=INT(O47/12),1,0)) -> 0
A48: =IF(OR(A47+1>Simulador!$C$46,A47=0),0,A47+1) -> 0 | B48: 0 | C48: 0 | D48: 0 | E48: =IF($A48=0,0,(E47-D47)*((1+Simulador!$C$34)^(1/12))) -> 0 | G48: 1 | H48: 0 | I48: 0 | J48: =IF(A48=0,0,J$6/((1+Simulador!$C$34)^((A48-A$6)/12)))*(1+M48) -> 0 | K48: 0 | M48: =IF(Simulador!$C$47=12,0,IF(A48/12=INT(A48/12),1,0)) -> 1 | O48: =IF(OR(O47+1>Simulador!$C$53,O47=0),0,O47+1) -> 43 | P48: 0 | Q48: 0 | R48: 0 | S48: =IF($O48=0,0,(S47-R47)*((1+Simulador!$C$34)^(1/12))) -> 0 | U48: 1 | V48: 0 | W48: 0 | X48: =IF(O48=0,0,X$6/((1+Simulador!$C$34)^((O48-O$6)/12)))*(1+AA48) -> 0 | Y48: 0 | AA48: =IF(Simulador!$C$54=12,0,IF(O48/12=INT(O48/12),1,0)) -> 0
A49: =IF(OR(A48+1>Simulador!$C$46,A48=0),0,A48+1) -> 0 | B49: 0 | C49: 0 | D49: 0 | E49: =IF($A49=0,0,(E48-D48)*((1+Simulador!$C$34)^(1/12))) -> 0 | G49: 1 | H49: 0 | I49: 0 | J49: =IF(A49=0,0,J$6/((1+Simulador!$C$34)^((A49-A$6)/12)))*(1+M49) -> 0 | K49: 0 | M49: =IF(Simulador!$C$47=12,0,IF(A49/12=INT(A49/12),1,0)) -> 1 | O49: =IF(OR(O48+1>Simulador!$C$53,O48=0),0,O48+1) -> 44 | P49: 0 | Q49: 0 | R49: 0 | S49: =IF($O49=0,0,(S48-R48)*((1+Simulador!$C$34)^(1/12))) -> 0 | U49: 1 | V49: 0 | W49: 0 | X49: =IF(O49=0,0,X$6/((1+Simulador!$C$34)^((O49-O$6)/12)))*(1+AA49) -> 0 | Y49: 0 | AA49: =IF(Simulador!$C$54=12,0,IF(O49/12=INT(O49/12),1,0)) -> 0
A50: =IF(OR(A49+1>Simulador!$C$46,A49=0),0,A49+1) -> 0 | B50: 0 | C50: 0 | D50: 0 | E50: =IF($A50=0,0,(E49-D49)*((1+Simulador!$C$34)^(1/12))) -> 0 | G50: 1 | H50: 0 | I50: 0 | J50: =IF(A50=0,0,J$6/((1+Simulador!$C$34)^((A50-A$6)/12)))*(1+M50) -> 0 | K50: 0 | M50: =IF(Simulador!$C$47=12,0,IF(A50/12=INT(A50/12),1,0)) -> 1 | O50: =IF(OR(O49+1>Simulador!$C$53,O49=0),0,O49+1) -> 45 | P50: 0 | Q50: 0 | R50: 0 | S50: =IF($O50=0,0,(S49-R49)*((1+Simulador!$C$34)^(1/12))) -> 0 | U50: 1 | V50: 0 | W50: 0 | X50: =IF(O50=0,0,X$6/((1+Simulador!$C$34)^((O50-O$6)/12)))*(1+AA50) -> 0 | Y50: 0 | AA50: =IF(Simulador!$C$54=12,0,IF(O50/12=INT(O50/12),1,0)) -> 0
A51: =IF(OR(A50+1>Simulador!$C$46,A50=0),0,A50+1) -> 0 | B51: 0 | C51: 0 | D51: 0 | E51: =IF($A51=0,0,(E50-D50)*((1+Simulador!$C$34)^(1/12))) -> 0 | G51: 1 | H51: 0 | I51: 0 | J51: =IF(A51=0,0,J$6/((1+Simulador!$C$34)^((A51-A$6)/12)))*(1+M51) -> 0 | K51: 0 | M51: =IF(Simulador!$C$47=12,0,IF(A51/12=INT(A51/12),1,0)) -> 1 | O51: =IF(OR(O50+1>Simulador!$C$53,O50=0),0,O50+1) -> 46 | P51: 0 | Q51: 0 | R51: 0 | S51: =IF($O51=0,0,(S50-R50)*((1+Simulador!$C$34)^(1/12))) -> 0 | U51: 1 | V51: 0 | W51: 0 | X51: =IF(O51=0,0,X$6/((1+Simulador!$C$34)^((O51-O$6)/12)))*(1+AA51) -> 0 | Y51: 0 | AA51: =IF(Simulador!$C$54=12,0,IF(O51/12=INT(O51/12),1,0)) -> 0
A52: =IF(OR(A51+1>Simulador!$C$46,A51=0),0,A51+1) -> 0 | B52: 0 | C52: 0 | D52: 0 | E52: =IF($A52=0,0,(E51-D51)*((1+Simulador!$C$34)^(1/12))) -> 0 | G52: 1 | H52: 0 | I52: 0 | J52: =IF(A52=0,0,J$6/((1+Simulador!$C$34)^((A52-A$6)/12)))*(1+M52) -> 0 | K52: 0 | M52: =IF(Simulador!$C$47=12,0,IF(A52/12=INT(A52/12),1,0)) -> 1 | O52: =IF(OR(O51+1>Simulador!$C$53,O51=0),0,O51+1) -> 47 | P52: 0 | Q52: 0 | R52: 0 | S52: =IF($O52=0,0,(S51-R51)*((1+Simulador!$C$34)^(1/12))) -> 0 | U52: 1 | V52: 0 | W52: 0 | X52: =IF(O52=0,0,X$6/((1+Simulador!$C$34)^((O52-O$6)/12)))*(1+AA52) -> 0 | Y52: 0 | AA52: =IF(Simulador!$C$54=12,0,IF(O52/12=INT(O52/12),1,0)) -> 0
A53: =IF(OR(A52+1>Simulador!$C$46,A52=0),0,A52+1) -> 0 | B53: 0 | C53: 0 | D53: 0 | E53: =IF($A53=0,0,(E52-D52)*((1+Simulador!$C$34)^(1/12))) -> 0 | G53: 1 | H53: 0 | I53: 0 | J53: =IF(A53=0,0,J$6/((1+Simulador!$C$34)^((A53-A$6)/12)))*(1+M53) -> 0 | K53: 0 | M53: =IF(Simulador!$C$47=12,0,IF(A53/12=INT(A53/12),1,0)) -> 1 | O53: =IF(OR(O52+1>Simulador!$C$53,O52=0),0,O52+1) -> 48 | P53: 0 | Q53: 0 | R53: 0 | S53: =IF($O53=0,0,(S52-R52)*((1+Simulador!$C$34)^(1/12))) -> 0 | U53: 1 | V53: 0 | W53: 0 | X53: =IF(O53=0,0,X$6/((1+Simulador!$C$34)^((O53-O$6)/12)))*(1+AA53) -> 0 | Y53: 0 | AA53: =IF(Simulador!$C$54=12,0,IF(O53/12=INT(O53/12),1,0)) -> 0
A54: =IF(OR(A53+1>Simulador!$C$46,A53=0),0,A53+1) -> 0 | B54: 0 | C54: 0 | D54: 0 | E54: =IF($A54=0,0,(E53-D53)*((1+Simulador!$C$34)^(1/12))) -> 0 | G54: 1 | H54: 0 | I54: 0 | J54: =IF(A54=0,0,J$6/((1+Simulador!$C$34)^((A54-A$6)/12)))*(1+M54) -> 0 | K54: 0 | M54: =IF(Simulador!$C$47=12,0,IF(A54/12=INT(A54/12),1,0)) -> 1 | O54: =IF(OR(O53+1>Simulador!$C$53,O53=0),0,O53+1) -> 49 | P54: 0 | Q54: 0 | R54: 0 | S54: =IF($O54=0,0,(S53-R53)*((1+Simulador!$C$34)^(1/12))) -> 0 | U54: 1 | V54: 0 | W54: 0 | X54: =IF(O54=0,0,X$6/((1+Simulador!$C$34)^((O54-O$6)/12)))*(1+AA54) -> 0 | Y54: 0 | AA54: =IF(Simulador!$C$54=12,0,IF(O54/12=INT(O54/12),1,0)) -> 0
A55: =IF(OR(A54+1>Simulador!$C$46,A54=0),0,A54+1) -> 0 | B55: 0 | C55: 0 | D55: 0 | E55: =IF($A55=0,0,(E54-D54)*((1+Simulador!$C$34)^(1/12))) -> 0 | G55: 1 | H55: 0 | I55: 0 | J55: =IF(A55=0,0,J$6/((1+Simulador!$C$34)^((A55-A$6)/12)))*(1+M55) -> 0 | K55: 0 | M55: =IF(Simulador!$C$47=12,0,IF(A55/12=INT(A55/12),1,0)) -> 1 | O55: =IF(OR(O54+1>Simulador!$C$53,O54=0),0,O54+1) -> 50 | P55: 0 | Q55: 0 | R55: 0 | S55: =IF($O55=0,0,(S54-R54)*((1+Simulador!$C$34)^(1/12))) -> 0 | U55: 1 | V55: 0 | W55: 0 | X55: =IF(O55=0,0,X$6/((1+Simulador!$C$34)^((O55-O$6)/12)))*(1+AA55) -> 0 | Y55: 0 | AA55: =IF(Simulador!$C$54=12,0,IF(O55/12=INT(O55/12),1,0)) -> 0
A56: =IF(OR(A55+1>Simulador!$C$46,A55=0),0,A55+1) -> 0 | B56: 0 | C56: 0 | D56: 0 | E56: =IF($A56=0,0,(E55-D55)*((1+Simulador!$C$34)^(1/12))) -> 0 | G56: 1 | H56: 0 | I56: 0 | J56: =IF(A56=0,0,J$6/((1+Simulador!$C$34)^((A56-A$6)/12)))*(1+M56) -> 0 | K56: 0 | M56: =IF(Simulador!$C$47=12,0,IF(A56/12=INT(A56/12),1,0)) -> 1 | O56: =IF(OR(O55+1>Simulador!$C$53,O55=0),0,O55+1) -> 51 | P56: 0 | Q56: 0 | R56: 0 | S56: =IF($O56=0,0,(S55-R55)*((1+Simulador!$C$34)^(1/12))) -> 0 | U56: 1 | V56: 0 | W56: 0 | X56: =IF(O56=0,0,X$6/((1+Simulador!$C$34)^((O56-O$6)/12)))*(1+AA56) -> 0 | Y56: 0 | AA56: =IF(Simulador!$C$54=12,0,IF(O56/12=INT(O56/12),1,0)) -> 0
A57: =IF(OR(A56+1>Simulador!$C$46,A56=0),0,A56+1) -> 0 | B57: 0 | C57: 0 | D57: 0 | E57: =IF($A57=0,0,(E56-D56)*((1+Simulador!$C$34)^(1/12))) -> 0 | G57: 1 | H57: 0 | I57: 0 | J57: =IF(A57=0,0,J$6/((1+Simulador!$C$34)^((A57-A$6)/12)))*(1+M57) -> 0 | K57: 0 | M57: =IF(Simulador!$C$47=12,0,IF(A57/12=INT(A57/12),1,0)) -> 1 | O57: =IF(OR(O56+1>Simulador!$C$53,O56=0),0,O56+1) -> 52 | P57: 0 | Q57: 0 | R57: 0 | S57: =IF($O57=0,0,(S56-R56)*((1+Simulador!$C$34)^(1/12))) -> 0 | U57: 1 | V57: 0 | W57: 0 | X57: =IF(O57=0,0,X$6/((1+Simulador!$C$34)^((O57-O$6)/12)))*(1+AA57) -> 0 | Y57: 0 | AA57: =IF(Simulador!$C$54=12,0,IF(O57/12=INT(O57/12),1,0)) -> 0
A58: =IF(OR(A57+1>Simulador!$C$46,A57=0),0,A57+1) -> 0 | B58: 0 | C58: 0 | D58: 0 | E58: =IF($A58=0,0,(E57-D57)*((1+Simulador!$C$34)^(1/12))) -> 0 | G58: 1 | H58: 0 | I58: 0 | J58: =IF(A58=0,0,J$6/((1+Simulador!$C$34)^((A58-A$6)/12)))*(1+M58) -> 0 | K58: 0 | M58: =IF(Simulador!$C$47=12,0,IF(A58/12=INT(A58/12),1,0)) -> 1 | O58: =IF(OR(O57+1>Simulador!$C$53,O57=0),0,O57+1) -> 53 | P58: 0 | Q58: 0 | R58: 0 | S58: =IF($O58=0,0,(S57-R57)*((1+Simulador!$C$34)^(1/12))) -> 0 | U58: 1 | V58: 0 | W58: 0 | X58: =IF(O58=0,0,X$6/((1+Simulador!$C$34)^((O58-O$6)/12)))*(1+AA58) -> 0 | Y58: 0 | AA58: =IF(Simulador!$C$54=12,0,IF(O58/12=INT(O58/12),1,0)) -> 0
A59: =IF(OR(A58+1>Simulador!$C$46,A58=0),0,A58+1) -> 0 | B59: 0 | C59: 0 | D59: 0 | E59: =IF($A59=0,0,(E58-D58)*((1+Simulador!$C$34)^(1/12))) -> 0 | G59: 1 | H59: 0 | I59: 0 | J59: =IF(A59=0,0,J$6/((1+Simulador!$C$34)^((A59-A$6)/12)))*(1+M59) -> 0 | K59: 0 | M59: =IF(Simulador!$C$47=12,0,IF(A59/12=INT(A59/12),1,0)) -> 1 | O59: =IF(OR(O58+1>Simulador!$C$53,O58=0),0,O58+1) -> 54 | P59: 0 | Q59: 0 | R59: 0 | S59: =IF($O59=0,0,(S58-R58)*((1+Simulador!$C$34)^(1/12))) -> 0 | U59: 1 | V59: 0 | W59: 0 | X59: =IF(O59=0,0,X$6/((1+Simulador!$C$34)^((O59-O$6)/12)))*(1+AA59) -> 0 | Y59: 0 | AA59: =IF(Simulador!$C$54=12,0,IF(O59/12=INT(O59/12),1,0)) -> 0
A60: =IF(OR(A59+1>Simulador!$C$46,A59=0),0,A59+1) -> 0 | B60: 0 | C60: 0 | D60: 0 | E60: =IF($A60=0,0,(E59-D59)*((1+Simulador!$C$34)^(1/12))) -> 0 | G60: 1 | H60: 0 | I60: 0 | J60: =IF(A60=0,0,J$6/((1+Simulador!$C$34)^((A60-A$6)/12)))*(1+M60) -> 0 | K60: 0 | M60: =IF(Simulador!$C$47=12,0,IF(A60/12=INT(A60/12),1,0)) -> 1 | O60: =IF(OR(O59+1>Simulador!$C$53,O59=0),0,O59+1) -> 55 | P60: 0 | Q60: 0 | R60: 0 | S60: =IF($O60=0,0,(S59-R59)*((1+Simulador!$C$34)^(1/12))) -> 0 | U60: 1 | V60: 0 | W60: 0 | X60: =IF(O60=0,0,X$6/((1+Simulador!$C$34)^((O60-O$6)/12)))*(1+AA60) -> 0 | Y60: 0 | AA60: =IF(Simulador!$C$54=12,0,IF(O60/12=INT(O60/12),1,0)) -> 0
A61: =IF(OR(A60+1>Simulador!$C$46,A60=0),0,A60+1) -> 0 | B61: 0 | C61: 0 | D61: 0 | E61: =IF($A61=0,0,(E60-D60)*((1+Simulador!$C$34)^(1/12))) -> 0 | G61: 1 | H61: 0 | I61: 0 | J61: =IF(A61=0,0,J$6/((1+Simulador!$C$34)^((A61-A$6)/12)))*(1+M61) -> 0 | K61: 0 | M61: =IF(Simulador!$C$47=12,0,IF(A61/12=INT(A61/12),1,0)) -> 1 | O61: =IF(OR(O60+1>Simulador!$C$53,O60=0),0,O60+1) -> 56 | P61: 0 | Q61: 0 | R61: 0 | S61: =IF($O61=0,0,(S60-R60)*((1+Simulador!$C$34)^(1/12))) -> 0 | U61: 1 | V61: 0 | W61: 0 | X61: =IF(O61=0,0,X$6/((1+Simulador!$C$34)^((O61-O$6)/12)))*(1+AA61) -> 0 | Y61: 0 | AA61: =IF(Simulador!$C$54=12,0,IF(O61/12=INT(O61/12),1,0)) -> 0
A62: =IF(OR(A61+1>Simulador!$C$46,A61=0),0,A61+1) -> 0 | B62: 0 | C62: 0 | D62: 0 | E62: =IF($A62=0,0,(E61-D61)*((1+Simulador!$C$34)^(1/12))) -> 0 | G62: 1 | H62: 0 | I62: 0 | J62: =IF(A62=0,0,J$6/((1+Simulador!$C$34)^((A62-A$6)/12)))*(1+M62) -> 0 | K62: 0 | M62: =IF(Simulador!$C$47=12,0,IF(A62/12=INT(A62/12),1,0)) -> 1 | O62: =IF(OR(O61+1>Simulador!$C$53,O61=0),0,O61+1) -> 57 | P62: 0 | Q62: 0 | R62: 0 | S62: =IF($O62=0,0,(S61-R61)*((1+Simulador!$C$34)^(1/12))) -> 0 | U62: 1 | V62: 0 | W62: 0 | X62: =IF(O62=0,0,X$6/((1+Simulador!$C$34)^((O62-O$6)/12)))*(1+AA62) -> 0 | Y62: 0 | AA62: =IF(Simulador!$C$54=12,0,IF(O62/12=INT(O62/12),1,0)) -> 0
A63: =IF(OR(A62+1>Simulador!$C$46,A62=0),0,A62+1) -> 0 | B63: 0 | C63: 0 | D63: 0 | E63: =IF($A63=0,0,(E62-D62)*((1+Simulador!$C$34)^(1/12))) -> 0 | G63: 1 | H63: 0 | I63: 0 | J63: =IF(A63=0,0,J$6/((1+Simulador!$C$34)^((A63-A$6)/12)))*(1+M63) -> 0 | K63: 0 | M63: =IF(Simulador!$C$47=12,0,IF(A63/12=INT(A63/12),1,0)) -> 1 | O63: =IF(OR(O62+1>Simulador!$C$53,O62=0),0,O62+1) -> 58 | P63: 0 | Q63: 0 | R63: 0 | S63: =IF($O63=0,0,(S62-R62)*((1+Simulador!$C$34)^(1/12))) -> 0 | U63: 1 | V63: 0 | W63: 0 | X63: =IF(O63=0,0,X$6/((1+Simulador!$C$34)^((O63-O$6)/12)))*(1+AA63) -> 0 | Y63: 0 | AA63: =IF(Simulador!$C$54=12,0,IF(O63/12=INT(O63/12),1,0)) -> 0
A64: =IF(OR(A63+1>Simulador!$C$46,A63=0),0,A63+1) -> 0 | B64: 0 | C64: 0 | D64: 0 | E64: =IF($A64=0,0,(E63-D63)*((1+Simulador!$C$34)^(1/12))) -> 0 | G64: 1 | H64: 0 | I64: 0 | J64: =IF(A64=0,0,J$6/((1+Simulador!$C$34)^((A64-A$6)/12)))*(1+M64) -> 0 | K64: 0 | M64: =IF(Simulador!$C$47=12,0,IF(A64/12=INT(A64/12),1,0)) -> 1 | O64: =IF(OR(O63+1>Simulador!$C$53,O63=0),0,O63+1) -> 59 | P64: 0 | Q64: 0 | R64: 0 | S64: =IF($O64=0,0,(S63-R63)*((1+Simulador!$C$34)^(1/12))) -> 0 | U64: 1 | V64: 0 | W64: 0 | X64: =IF(O64=0,0,X$6/((1+Simulador!$C$34)^((O64-O$6)/12)))*(1+AA64) -> 0 | Y64: 0 | AA64: =IF(Simulador!$C$54=12,0,IF(O64/12=INT(O64/12),1,0)) -> 0
A65: =IF(OR(A64+1>Simulador!$C$46,A64=0),0,A64+1) -> 0 | B65: 0 | C65: 0 | D65: 0 | E65: =IF($A65=0,0,(E64-D64)*((1+Simulador!$C$34)^(1/12))) -> 0 | G65: 1 | H65: 0 | I65: 0 | J65: =IF(A65=0,0,J$6/((1+Simulador!$C$34)^((A65-A$6)/12)))*(1+M65) -> 0 | K65: 0 | M65: =IF(Simulador!$C$47=12,0,IF(A65/12=INT(A65/12),1,0)) -> 1 | O65: =IF(OR(O64+1>Simulador!$C$53,O64=0),0,O64+1) -> 60 | P65: 0 | Q65: 0 | R65: 0 | S65: =IF($O65=0,0,(S64-R64)*((1+Simulador!$C$34)^(1/12))) -> 0 | U65: 1 | V65: 0 | W65: 0 | X65: =IF(O65=0,0,X$6/((1+Simulador!$C$34)^((O65-O$6)/12)))*(1+AA65) -> 0 | Y65: 0 | AA65: =IF(Simulador!$C$54=12,0,IF(O65/12=INT(O65/12),1,0)) -> 0
A66: =IF(OR(A65+1>Simulador!$C$46,A65=0),0,A65+1) -> 0 | B66: 0 | C66: 0 | D66: 0 | E66: =IF($A66=0,0,(E65-D65)*((1+Simulador!$C$34)^(1/12))) -> 0 | G66: 1 | H66: 0 | I66: 0 | J66: =IF(A66=0,0,J$6/((1+Simulador!$C$34)^((A66-A$6)/12)))*(1+M66) -> 0 | K66: 0 | M66: =IF(Simulador!$C$47=12,0,IF(A66/12=INT(A66/12),1,0)) -> 1 | O66: =IF(OR(O65+1>Simulador!$C$53,O65=0),0,O65+1) -> 61 | P66: 0 | Q66: 0 | R66: 0 | S66: =IF($O66=0,0,(S65-R65)*((1+Simulador!$C$34)^(1/12))) -> 0 | U66: 1 | V66: 0 | W66: 0 | X66: =IF(O66=0,0,X$6/((1+Simulador!$C$34)^((O66-O$6)/12)))*(1+AA66) -> 0 | Y66: 0 | AA66: =IF(Simulador!$C$54=12,0,IF(O66/12=INT(O66/12),1,0)) -> 0
A67: =IF(OR(A66+1>Simulador!$C$46,A66=0),0,A66+1) -> 0 | B67: 0 | C67: 0 | D67: 0 | E67: =IF($A67=0,0,(E66-D66)*((1+Simulador!$C$34)^(1/12))) -> 0 | G67: 1 | H67: 0 | I67: 0 | J67: =IF(A67=0,0,J$6/((1+Simulador!$C$34)^((A67-A$6)/12)))*(1+M67) -> 0 | K67: 0 | M67: =IF(Simulador!$C$47=12,0,IF(A67/12=INT(A67/12),1,0)) -> 1 | O67: =IF(OR(O66+1>Simulador!$C$53,O66=0),0,O66+1) -> 62 | P67: 0 | Q67: 0 | R67: 0 | S67: =IF($O67=0,0,(S66-R66)*((1+Simulador!$C$34)^(1/12))) -> 0 | U67: 1 | V67: 0 | W67: 0 | X67: =IF(O67=0,0,X$6/((1+Simulador!$C$34)^((O67-O$6)/12)))*(1+AA67) -> 0 | Y67: 0 | AA67: =IF(Simulador!$C$54=12,0,IF(O67/12=INT(O67/12),1,0)) -> 0
A68: =IF(OR(A67+1>Simulador!$C$46,A67=0),0,A67+1) -> 0 | B68: 0 | C68: 0 | D68: 0 | E68: =IF($A68=0,0,(E67-D67)*((1+Simulador!$C$34)^(1/12))) -> 0 | G68: 1 | H68: 0 | I68: 0 | J68: =IF(A68=0,0,J$6/((1+Simulador!$C$34)^((A68-A$6)/12)))*(1+M68) -> 0 | K68: 0 | M68: =IF(Simulador!$C$47=12,0,IF(A68/12=INT(A68/12),1,0)) -> 1 | O68: =IF(OR(O67+1>Simulador!$C$53,O67=0),0,O67+1) -> 63 | P68: 0 | Q68: 0 | R68: 0 | S68: =IF($O68=0,0,(S67-R67)*((1+Simulador!$C$34)^(1/12))) -> 0 | U68: 1 | V68: 0 | W68: 0 | X68: =IF(O68=0,0,X$6/((1+Simulador!$C$34)^((O68-O$6)/12)))*(1+AA68) -> 0 | Y68: 0 | AA68: =IF(Simulador!$C$54=12,0,IF(O68/12=INT(O68/12),1,0)) -> 0
A69: =IF(OR(A68+1>Simulador!$C$46,A68=0),0,A68+1) -> 0 | B69: 0 | C69: 0 | D69: 0 | E69: =IF($A69=0,0,(E68-D68)*((1+Simulador!$C$34)^(1/12))) -> 0 | G69: 1 | H69: 0 | I69: 0 | J69: =IF(A69=0,0,J$6/((1+Simulador!$C$34)^((A69-A$6)/12)))*(1+M69) -> 0 | K69: 0 | M69: =IF(Simulador!$C$47=12,0,IF(A69/12=INT(A69/12),1,0)) -> 1 | O69: =IF(OR(O68+1>Simulador!$C$53,O68=0),0,O68+1) -> 64 | P69: 0 | Q69: 0 | R69: 0 | S69: =IF($O69=0,0,(S68-R68)*((1+Simulador!$C$34)^(1/12))) -> 0 | U69: 1 | V69: 0 | W69: 0 | X69: =IF(O69=0,0,X$6/((1+Simulador!$C$34)^((O69-O$6)/12)))*(1+AA69) -> 0 | Y69: 0 | AA69: =IF(Simulador!$C$54=12,0,IF(O69/12=INT(O69/12),1,0)) -> 0
A70: =IF(OR(A69+1>Simulador!$C$46,A69=0),0,A69+1) -> 0 | B70: 0 | C70: 0 | D70: 0 | E70: =IF($A70=0,0,(E69-D69)*((1+Simulador!$C$34)^(1/12))) -> 0 | G70: 1 | H70: 0 | I70: 0 | J70: =IF(A70=0,0,J$6/((1+Simulador!$C$34)^((A70-A$6)/12)))*(1+M70) -> 0 | K70: 0 | M70: =IF(Simulador!$C$47=12,0,IF(A70/12=INT(A70/12),1,0)) -> 1 | O70: =IF(OR(O69+1>Simulador!$C$53,O69=0),0,O69+1) -> 65 | P70: 0 | Q70: 0 | R70: 0 | S70: =IF($O70=0,0,(S69-R69)*((1+Simulador!$C$34)^(1/12))) -> 0 | U70: 1 | V70: 0 | W70: 0 | X70: =IF(O70=0,0,X$6/((1+Simulador!$C$34)^((O70-O$6)/12)))*(1+AA70) -> 0 | Y70: 0 | AA70: =IF(Simulador!$C$54=12,0,IF(O70/12=INT(O70/12),1,0)) -> 0
A71: =IF(OR(A70+1>Simulador!$C$46,A70=0),0,A70+1) -> 0 | B71: =IF($A71=0,0,G71*H71) -> 0 | C71: =IF($A71=0,0,G71*I71) -> 0 | D71: =IF($A71=0,0,G71*J71) -> 0 | E71: =IF($A71=0,0,(E70-D70)*((1+Simulador!$C$34)^(1/12))) -> 0 | G71: =G70*((1+$I$2)^(1/12)) -> 1 | H71: =IF($A71=0,0,$H$6)*(1+M71) -> 0 | I71: =IF($A71=0,0,I70-H70) -> 0 | J71: =IF(A71=0,0,J$6/((1+Simulador!$C$34)^((A71-A$6)/12)))*(1+M71) -> 0 | K71: =IF($A71=0,0,K70-J70) -> 0 | M71: =IF(Simulador!$C$47=12,0,IF(A71/12=INT(A71/12),1,0)) -> 1 | O71: =IF(OR(O70+1>Simulador!$C$53,O70=0),0,O70+1) -> 66 | P71: =IF($A71=0,0,U71*V71) -> 0 | Q71: =IF($O71=0,0,U71*W71) -> 0 | R71: =IF($A71=0,0,U71*X71) -> 0 | S71: =IF($O71=0,0,(S70-R70)*((1+Simulador!$C$34)^(1/12))) -> 0 | U71: =U70*((1+$I$2)^(1/12)) -> 1 | V71: =IF($O71=0,0,$V$6)*(1+AA71) -> 0 | W71: =IF($O71=0,0,W70-V70) -> 0 | X71: =IF(O71=0,0,X$6/((1+Simulador!$C$34)^((O71-O$6)/12)))*(1+AA71) -> 0 | Y71: =IF($O71=0,0,Y70-X70) -> 0 | AA71: =IF(Simulador!$C$54=12,0,IF(O71/12=INT(O71/12),1,0)) -> 0
A72: =IF(OR(A71+1>Simulador!$C$46,A71=0),0,A71+1) -> 0 | B72: 0 | C72: 0 | D72: 0 | E72: =IF($A72=0,0,(E71-D71)*((1+Simulador!$C$34)^(1/12))) -> 0 | G72: 1 | H72: 0 | I72: 0 | J72: =IF(A72=0,0,J$6/((1+Simulador!$C$34)^((A72-A$6)/12)))*(1+M72) -> 0 | K72: 0 | M72: =IF(Simulador!$C$47=12,0,IF(A72/12=INT(A72/12),1,0)) -> 1 | O72: =IF(OR(O71+1>Simulador!$C$53,O71=0),0,O71+1) -> 67 | P72: 0 | Q72: 0 | R72: 0 | S72: =IF($O72=0,0,(S71-R71)*((1+Simulador!$C$34)^(1/12))) -> 0 | U72: 1 | V72: 0 | W72: 0 | X72: =IF(O72=0,0,X$6/((1+Simulador!$C$34)^((O72-O$6)/12)))*(1+AA72) -> 0 | Y72: 0 | AA72: =IF(Simulador!$C$54=12,0,IF(O72/12=INT(O72/12),1,0)) -> 0
A73: =IF(OR(A72+1>Simulador!$C$46,A72=0),0,A72+1) -> 0 | B73: 0 | C73: 0 | D73: 0 | E73: =IF($A73=0,0,(E72-D72)*((1+Simulador!$C$34)^(1/12))) -> 0 | G73: 1 | H73: 0 | I73: 0 | J73: =IF(A73=0,0,J$6/((1+Simulador!$C$34)^((A73-A$6)/12)))*(1+M73) -> 0 | K73: 0 | M73: =IF(Simulador!$C$47=12,0,IF(A73/12=INT(A73/12),1,0)) -> 1 | O73: =IF(OR(O72+1>Simulador!$C$53,O72=0),0,O72+1) -> 68 | P73: 0 | Q73: 0 | R73: 0 | S73: =IF($O73=0,0,(S72-R72)*((1+Simulador!$C$34)^(1/12))) -> 0 | U73: 1 | V73: 0 | W73: 0 | X73: =IF(O73=0,0,X$6/((1+Simulador!$C$34)^((O73-O$6)/12)))*(1+AA73) -> 0 | Y73: 0 | AA73: =IF(Simulador!$C$54=12,0,IF(O73/12=INT(O73/12),1,0)) -> 0
A74: =IF(OR(A73+1>Simulador!$C$46,A73=0),0,A73+1) -> 0 | B74: 0 | C74: 0 | D74: 0 | E74: =IF($A74=0,0,(E73-D73)*((1+Simulador!$C$34)^(1/12))) -> 0 | G74: 1 | H74: 0 | I74: 0 | J74: =IF(A74=0,0,J$6/((1+Simulador!$C$34)^((A74-A$6)/12)))*(1+M74) -> 0 | K74: 0 | M74: =IF(Simulador!$C$47=12,0,IF(A74/12=INT(A74/12),1,0)) -> 1 | O74: =IF(OR(O73+1>Simulador!$C$53,O73=0),0,O73+1) -> 69 | P74: 0 | Q74: 0 | R74: 0 | S74: =IF($O74=0,0,(S73-R73)*((1+Simulador!$C$34)^(1/12))) -> 0 | U74: 1 | V74: 0 | W74: 0 | X74: =IF(O74=0,0,X$6/((1+Simulador!$C$34)^((O74-O$6)/12)))*(1+AA74) -> 0 | Y74: 0 | AA74: =IF(Simulador!$C$54=12,0,IF(O74/12=INT(O74/12),1,0)) -> 0
A75: =IF(OR(A74+1>Simulador!$C$46,A74=0),0,A74+1) -> 0 | B75: 0 | C75: 0 | D75: 0 | E75: =IF($A75=0,0,(E74-D74)*((1+Simulador!$C$34)^(1/12))) -> 0 | G75: 1 | H75: 0 | I75: 0 | J75: =IF(A75=0,0,J$6/((1+Simulador!$C$34)^((A75-A$6)/12)))*(1+M75) -> 0 | K75: 0 | M75: =IF(Simulador!$C$47=12,0,IF(A75/12=INT(A75/12),1,0)) -> 1 | O75: =IF(OR(O74+1>Simulador!$C$53,O74=0),0,O74+1) -> 70 | P75: 0 | Q75: 0 | R75: 0 | S75: =IF($O75=0,0,(S74-R74)*((1+Simulador!$C$34)^(1/12))) -> 0 | U75: 1 | V75: 0 | W75: 0 | X75: =IF(O75=0,0,X$6/((1+Simulador!$C$34)^((O75-O$6)/12)))*(1+AA75) -> 0 | Y75: 0 | AA75: =IF(Simulador!$C$54=12,0,IF(O75/12=INT(O75/12),1,0)) -> 0
A76: =IF(OR(A75+1>Simulador!$C$46,A75=0),0,A75+1) -> 0 | B76: 0 | C76: 0 | D76: 0 | E76: =IF($A76=0,0,(E75-D75)*((1+Simulador!$C$34)^(1/12))) -> 0 | G76: 1 | H76: 0 | I76: 0 | J76: =IF(A76=0,0,J$6/((1+Simulador!$C$34)^((A76-A$6)/12)))*(1+M76) -> 0 | K76: 0 | M76: =IF(Simulador!$C$47=12,0,IF(A76/12=INT(A76/12),1,0)) -> 1 | O76: =IF(OR(O75+1>Simulador!$C$53,O75=0),0,O75+1) -> 71 | P76: 0 | Q76: 0 | R76: 0 | S76: =IF($O76=0,0,(S75-R75)*((1+Simulador!$C$34)^(1/12))) -> 0 | U76: 1 | V76: 0 | W76: 0 | X76: =IF(O76=0,0,X$6/((1+Simulador!$C$34)^((O76-O$6)/12)))*(1+AA76) -> 0 | Y76: 0 | AA76: =IF(Simulador!$C$54=12,0,IF(O76/12=INT(O76/12),1,0)) -> 0
A77: =IF(OR(A76+1>Simulador!$C$46,A76=0),0,A76+1) -> 0 | B77: 0 | C77: 0 | D77: 0 | E77: =IF($A77=0,0,(E76-D76)*((1+Simulador!$C$34)^(1/12))) -> 0 | G77: 1 | H77: 0 | I77: 0 | J77: =IF(A77=0,0,J$6/((1+Simulador!$C$34)^((A77-A$6)/12)))*(1+M77) -> 0 | K77: 0 | M77: =IF(Simulador!$C$47=12,0,IF(A77/12=INT(A77/12),1,0)) -> 1 | O77: =IF(OR(O76+1>Simulador!$C$53,O76=0),0,O76+1) -> 72 | P77: 0 | Q77: 0 | R77: 0 | S77: =IF($O77=0,0,(S76-R76)*((1+Simulador!$C$34)^(1/12))) -> 0 | U77: 1 | V77: 0 | W77: 0 | X77: =IF(O77=0,0,X$6/((1+Simulador!$C$34)^((O77-O$6)/12)))*(1+AA77) -> 0 | Y77: 0 | AA77: =IF(Simulador!$C$54=12,0,IF(O77/12=INT(O77/12),1,0)) -> 0
A78: =IF(OR(A77+1>Simulador!$C$46,A77=0),0,A77+1) -> 0 | B78: 0 | C78: 0 | D78: 0 | E78: =IF($A78=0,0,(E77-D77)*((1+Simulador!$C$34)^(1/12))) -> 0 | G78: 1 | H78: 0 | I78: 0 | J78: =IF(A78=0,0,J$6/((1+Simulador!$C$34)^((A78-A$6)/12)))*(1+M78) -> 0 | K78: 0 | M78: =IF(Simulador!$C$47=12,0,IF(A78/12=INT(A78/12),1,0)) -> 1 | O78: =IF(OR(O77+1>Simulador!$C$53,O77=0),0,O77+1) -> 73 | P78: 0 | Q78: 0 | R78: 0 | S78: =IF($O78=0,0,(S77-R77)*((1+Simulador!$C$34)^(1/12))) -> 0 | U78: 1 | V78: 0 | W78: 0 | X78: =IF(O78=0,0,X$6/((1+Simulador!$C$34)^((O78-O$6)/12)))*(1+AA78) -> 0 | Y78: 0 | AA78: =IF(Simulador!$C$54=12,0,IF(O78/12=INT(O78/12),1,0)) -> 0
A79: =IF(OR(A78+1>Simulador!$C$46,A78=0),0,A78+1) -> 0 | B79: 0 | C79: 0 | D79: 0 | E79: =IF($A79=0,0,(E78-D78)*((1+Simulador!$C$34)^(1/12))) -> 0 | G79: 1 | H79: 0 | I79: 0 | J79: =IF(A79=0,0,J$6/((1+Simulador!$C$34)^((A79-A$6)/12)))*(1+M79) -> 0 | K79: 0 | M79: =IF(Simulador!$C$47=12,0,IF(A79/12=INT(A79/12),1,0)) -> 1 | O79: =IF(OR(O78+1>Simulador!$C$53,O78=0),0,O78+1) -> 74 | P79: 0 | Q79: 0 | R79: 0 | S79: =IF($O79=0,0,(S78-R78)*((1+Simulador!$C$34)^(1/12))) -> 0 | U79: 1 | V79: 0 | W79: 0 | X79: =IF(O79=0,0,X$6/((1+Simulador!$C$34)^((O79-O$6)/12)))*(1+AA79) -> 0 | Y79: 0 | AA79: =IF(Simulador!$C$54=12,0,IF(O79/12=INT(O79/12),1,0)) -> 0
A80: =IF(OR(A79+1>Simulador!$C$46,A79=0),0,A79+1) -> 0 | B80: 0 | C80: 0 | D80: 0 | E80: =IF($A80=0,0,(E79-D79)*((1+Simulador!$C$34)^(1/12))) -> 0 | G80: 1 | H80: 0 | I80: 0 | J80: =IF(A80=0,0,J$6/((1+Simulador!$C$34)^((A80-A$6)/12)))*(1+M80) -> 0 | K80: 0 | M80: =IF(Simulador!$C$47=12,0,IF(A80/12=INT(A80/12),1,0)) -> 1 | O80: =IF(OR(O79+1>Simulador!$C$53,O79=0),0,O79+1) -> 75 | P80: 0 | Q80: 0 | R80: 0 | S80: =IF($O80=0,0,(S79-R79)*((1+Simulador!$C$34)^(1/12))) -> 0 | U80: 1 | V80: 0 | W80: 0 | X80: =IF(O80=0,0,X$6/((1+Simulador!$C$34)^((O80-O$6)/12)))*(1+AA80) -> 0 | Y80: 0 | AA80: =IF(Simulador!$C$54=12,0,IF(O80/12=INT(O80/12),1,0)) -> 0
A81: =IF(OR(A80+1>Simulador!$C$46,A80=0),0,A80+1) -> 0 | B81: 0 | C81: 0 | D81: 0 | E81: =IF($A81=0,0,(E80-D80)*((1+Simulador!$C$34)^(1/12))) -> 0 | G81: 1 | H81: 0 | I81: 0 | J81: =IF(A81=0,0,J$6/((1+Simulador!$C$34)^((A81-A$6)/12)))*(1+M81) -> 0 | K81: 0 | M81: =IF(Simulador!$C$47=12,0,IF(A81/12=INT(A81/12),1,0)) -> 1 | O81: =IF(OR(O80+1>Simulador!$C$53,O80=0),0,O80+1) -> 76 | P81: 0 | Q81: 0 | R81: 0 | S81: =IF($O81=0,0,(S80-R80)*((1+Simulador!$C$34)^(1/12))) -> 0 | U81: 1 | V81: 0 | W81: 0 | X81: =IF(O81=0,0,X$6/((1+Simulador!$C$34)^((O81-O$6)/12)))*(1+AA81) -> 0 | Y81: 0 | AA81: =IF(Simulador!$C$54=12,0,IF(O81/12=INT(O81/12),1,0)) -> 0
A82: =IF(OR(A81+1>Simulador!$C$46,A81=0),0,A81+1) -> 0 | B82: 0 | C82: 0 | D82: 0 | E82: =IF($A82=0,0,(E81-D81)*((1+Simulador!$C$34)^(1/12))) -> 0 | G82: 1 | H82: 0 | I82: 0 | J82: =IF(A82=0,0,J$6/((1+Simulador!$C$34)^((A82-A$6)/12)))*(1+M82) -> 0 | K82: 0 | M82: =IF(Simulador!$C$47=12,0,IF(A82/12=INT(A82/12),1,0)) -> 1 | O82: =IF(OR(O81+1>Simulador!$C$53,O81=0),0,O81+1) -> 77 | P82: 0 | Q82: 0 | R82: 0 | S82: =IF($O82=0,0,(S81-R81)*((1+Simulador!$C$34)^(1/12))) -> 0 | U82: 1 | V82: 0 | W82: 0 | X82: =IF(O82=0,0,X$6/((1+Simulador!$C$34)^((O82-O$6)/12)))*(1+AA82) -> 0 | Y82: 0 | AA82: =IF(Simulador!$C$54=12,0,IF(O82/12=INT(O82/12),1,0)) -> 0
A83: =IF(OR(A82+1>Simulador!$C$46,A82=0),0,A82+1) -> 0 | B83: 0 | C83: 0 | D83: 0 | E83: =IF($A83=0,0,(E82-D82)*((1+Simulador!$C$34)^(1/12))) -> 0 | G83: 1 | H83: 0 | I83: 0 | J83: =IF(A83=0,0,J$6/((1+Simulador!$C$34)^((A83-A$6)/12)))*(1+M83) -> 0 | K83: 0 | M83: =IF(Simulador!$C$47=12,0,IF(A83/12=INT(A83/12),1,0)) -> 1 | O83: =IF(OR(O82+1>Simulador!$C$53,O82=0),0,O82+1) -> 78 | P83: 0 | Q83: 0 | R83: 0 | S83: =IF($O83=0,0,(S82-R82)*((1+Simulador!$C$34)^(1/12))) -> 0 | U83: 1 | V83: 0 | W83: 0 | X83: =IF(O83=0,0,X$6/((1+Simulador!$C$34)^((O83-O$6)/12)))*(1+AA83) -> 0 | Y83: 0 | AA83: =IF(Simulador!$C$54=12,0,IF(O83/12=INT(O83/12),1,0)) -> 0
A84: =IF(OR(A83+1>Simulador!$C$46,A83=0),0,A83+1) -> 0 | B84: 0 | C84: 0 | D84: 0 | E84: =IF($A84=0,0,(E83-D83)*((1+Simulador!$C$34)^(1/12))) -> 0 | G84: 1 | H84: 0 | I84: 0 | J84: =IF(A84=0,0,J$6/((1+Simulador!$C$34)^((A84-A$6)/12)))*(1+M84) -> 0 | K84: 0 | M84: =IF(Simulador!$C$47=12,0,IF(A84/12=INT(A84/12),1,0)) -> 1 | O84: =IF(OR(O83+1>Simulador!$C$53,O83=0),0,O83+1) -> 79 | P84: 0 | Q84: 0 | R84: 0 | S84: =IF($O84=0,0,(S83-R83)*((1+Simulador!$C$34)^(1/12))) -> 0 | U84: 1 | V84: 0 | W84: 0 | X84: =IF(O84=0,0,X$6/((1+Simulador!$C$34)^((O84-O$6)/12)))*(1+AA84) -> 0 | Y84: 0 | AA84: =IF(Simulador!$C$54=12,0,IF(O84/12=INT(O84/12),1,0)) -> 0
A85: =IF(OR(A84+1>Simulador!$C$46,A84=0),0,A84+1) -> 0 | B85: 0 | C85: 0 | D85: 0 | E85: =IF($A85=0,0,(E84-D84)*((1+Simulador!$C$34)^(1/12))) -> 0 | G85: 1 | H85: 0 | I85: 0 | J85: =IF(A85=0,0,J$6/((1+Simulador!$C$34)^((A85-A$6)/12)))*(1+M85) -> 0 | K85: 0 | M85: =IF(Simulador!$C$47=12,0,IF(A85/12=INT(A85/12),1,0)) -> 1 | O85: =IF(OR(O84+1>Simulador!$C$53,O84=0),0,O84+1) -> 80 | P85: 0 | Q85: 0 | R85: 0 | S85: =IF($O85=0,0,(S84-R84)*((1+Simulador!$C$34)^(1/12))) -> 0 | U85: 1 | V85: 0 | W85: 0 | X85: =IF(O85=0,0,X$6/((1+Simulador!$C$34)^((O85-O$6)/12)))*(1+AA85) -> 0 | Y85: 0 | AA85: =IF(Simulador!$C$54=12,0,IF(O85/12=INT(O85/12),1,0)) -> 0
A86: =IF(OR(A85+1>Simulador!$C$46,A85=0),0,A85+1) -> 0 | B86: 0 | C86: 0 | D86: 0 | E86: =IF($A86=0,0,(E85-D85)*((1+Simulador!$C$34)^(1/12))) -> 0 | G86: 1 | H86: 0 | I86: 0 | J86: =IF(A86=0,0,J$6/((1+Simulador!$C$34)^((A86-A$6)/12)))*(1+M86) -> 0 | K86: 0 | M86: =IF(Simulador!$C$47=12,0,IF(A86/12=INT(A86/12),1,0)) -> 1 | O86: =IF(OR(O85+1>Simulador!$C$53,O85=0),0,O85+1) -> 81 | P86: 0 | Q86: 0 | R86: 0 | S86: =IF($O86=0,0,(S85-R85)*((1+Simulador!$C$34)^(1/12))) -> 0 | U86: 1 | V86: 0 | W86: 0 | X86: =IF(O86=0,0,X$6/((1+Simulador!$C$34)^((O86-O$6)/12)))*(1+AA86) -> 0 | Y86: 0 | AA86: =IF(Simulador!$C$54=12,0,IF(O86/12=INT(O86/12),1,0)) -> 0
A87: =IF(OR(A86+1>Simulador!$C$46,A86=0),0,A86+1) -> 0 | B87: 0 | C87: 0 | D87: 0 | E87: =IF($A87=0,0,(E86-D86)*((1+Simulador!$C$34)^(1/12))) -> 0 | G87: 1 | H87: 0 | I87: 0 | J87: =IF(A87=0,0,J$6/((1+Simulador!$C$34)^((A87-A$6)/12)))*(1+M87) -> 0 | K87: 0 | M87: =IF(Simulador!$C$47=12,0,IF(A87/12=INT(A87/12),1,0)) -> 1 | O87: =IF(OR(O86+1>Simulador!$C$53,O86=0),0,O86+1) -> 82 | P87: 0 | Q87: 0 | R87: 0 | S87: =IF($O87=0,0,(S86-R86)*((1+Simulador!$C$34)^(1/12))) -> 0 | U87: 1 | V87: 0 | W87: 0 | X87: =IF(O87=0,0,X$6/((1+Simulador!$C$34)^((O87-O$6)/12)))*(1+AA87) -> 0 | Y87: 0 | AA87: =IF(Simulador!$C$54=12,0,IF(O87/12=INT(O87/12),1,0)) -> 0
